Workbook

Sheet Notes
B2: Community Health Friends and Family Test (FFT) data - May 2025 | H2: Show data for:

Sheet Summary
B3: FFT | C3: Number of organisations submitting | D3: Total responses to date | E3: Responses | G3: Percentage Positive | I3: Percentage Negative
C4: 2025-05-01 | D4: 2025-05-01 | E4: 2025-05-01 | F4: 2025-04-26 | G4: 2025-05-01 | H4: 2025-04-26 | I4: 2025-05-01 | J4: 2025-04-26
B5: Community Health Overall | C5: 138 | D5: 11355577 | E5: 107096 | F5: - | G5: 0.9415851199 | H5: NA | I5: 0.0275173676 | J5: NA
B6: Community Inpatient Services | C6: 70 | D6: 387055 | E6: 3172 | F6: - | G6: 0.9505044136 | H6: NA | I6: 0.01513240858 | J6: NA
B7: Community Nursing Services | C7: 94 | D7: 1487544 | E7: 18536 | F7: - | G7: 0.9523629694 | H7: NA | I7: 0.017965041 | J7: NA
B8: Rehabilitation and Therapy Services | C8: 90 | D8: 2157089 | E8: 22645 | F8: - | G8: 0.950938397 | H8: NA | I8: 0.02274232722 | J8: NA
B9: Specialist Services | C9: 84 | D9: 2566989 | E9: 22018 | F9: - | G9: 0.9569443183 | H9: NA | I9: 0.01762194568 | J9: NA
B10: Children and Family Services | C10: 84 | D10: 1549870 | E10: 13615 | F10: - | G10: 0.9450605949 | H10: NA | I10: 0.01975762027 | J10: NA
B11: Community Healthcare Other | C11: 91 | D11: 3207030 | E11: 27110 | F11: - | G11: 0.9111398008 | H11: NA | I11: 0.05142014017 | J11: NA

Sheet ICB
A3: ICB Code | B3: ICB Name | C3: Total Responses | D3: Total Eligible | E3: Percentage Positive | F3: Percentage Negative | G3: Breakdown of Responses | M3: Total Responses | N3: Total Eligible | O3: Percentage Positive | P3: Percentage Negative | Q3: Breakdown of Responses | W3: Total Responses | X3: Total Eligible | Y3: Percentage Positive | Z3: Percentage Negative | AA3: Breakdown of Responses
G4: Very Good | H4: Good | I4: Neither Good nor Poor | J4: Poor | K4: Very Poor | L4: Don't Know | Q4: Very Good | R4: Good | S4: Neither Good nor Poor | T4: Poor | U4: Very Poor | V4: Don't Know | AA4: Very Good | AB4: Good | AC4: Neither Good nor Poor | AD4: Poor | AE4: Very Poor | AF4: Don't Know
B5: England (including Independent Sector Providers) | C5: 107096 | D5: 2924150 | E5: 0.9415851199 | F5: 0.0275173676 | G5: 87011 | H5: 13829 | I5: 2552 | J5: 1323 | K5: 1624 | L5: 757 | M5: =SUM(M8:M46) -> 107096 | N5: =SUM(N8:N46) -> 2924150 | O5: =SUM(Q5+R5)/SUM(Q5:V5) -> 0.9415851199 | P5: =SUM(T5+U5)/SUM(Q5:V5) -> 0.0275173676 | Q5: 87011 | R5: 13829 | S5: 2552 | T5: 1323 | U5: 1624 | V5: 757 | W5: =IFERROR(C5-M5,0) -> 0 | X5: =IFERROR(D5-N5,0) -> 0 | Y5: =IFERROR(E5-O5,0) -> 0 | Z5: =IFERROR(F5-P5,0) -> 0 | AA5: =IFERROR(G5-Q5,0) -> 0 | AB5: =IFERROR(H5-R5,0) -> 0 | AC5: =IFERROR(I5-S5,0) -> 0 | AD5: =IFERROR(J5-T5,0) -> 0 | AE5: =IFERROR(K5-U5,0) -> 0 | AF5: =IFERROR(L5-V5,0) -> 0
B6: England (excluding Independent Sector Providers) | C6: 80855 | D6: 2379111 | E6: 0.9471894131 | F6: 0.0235112238 | G6: 66493 | H6: 10092 | I6: 1788 | J6: 868 | K6: 1033 | L6: 581 | M6: =SUM(M8:M45) -> 80855 | N6: =SUM(N8:N45) -> 2379111 | O6: 0.9471894131 | P6: 0.0235112238 | Q6: 66493 | R6: 10092 | S6: 1788 | T6: 868 | U6: 1033 | V6: 581 | W6: 0 | X6: 0 | Y6: 0 | Z6: 0 | AA6: 0 | AB6: 0 | AC6: 0 | AD6: 0 | AE6: 0 | AF6: 0
B7: Selection (excluding suppressed data) | C7: =SUBTOTAL(9,C8:C48) -> 107096 | D7: =SUBTOTAL(9,D8:D48) -> 2924150 | E7: =IFERROR((G7+H7)/SUM(G7:L7), "-") -> 0.9415851199 | F7: =IFERROR((J7+K7)/SUM(G7:L7), "-") -> 0.0275173676 | G7: =SUBTOTAL(9,G8:G48) -> 87011 | H7: =SUBTOTAL(9,H8:H48) -> 13829 | I7: 2552 | J7: 1323 | K7: 1624 | L7: 757 | M7: =SUMIF(C8:C46,"<>*",M8:M46) -> 107096 | N7: =SUMIF(D8:D46,"<>*",N8:N46) -> 2924150 | O7: 0.9415851199 | P7: 0.0275173676 | Q7: 87011 | R7: 13829 | S7: 2552 | T7: 1323 | U7: 1624 | V7: 757 | W7: 0 | X7: 0 | Y7: 0 | Z7: 0 | AA7: 0 | AB7: 0 | AC7: 0 | AD7: 0 | AE7: 0 | AF7: 0
A8: QE1 | B8: LANCASHIRE AND SOUTH CUMBRIA ICB | C8: 2991 | D8: 154339 | E8: 0.949180876 | F8: 0.01905717151 | G8: 2563 | H8: 276 | I8: 59 | J8: 24 | K8: 33 | L8: 36 | M8: =VLOOKUP($A8,[1]Sheet1!$A$47:$I$85,2,0) -> 2991 | N8: =VLOOKUP($A8,[1]Sheet1!$A$47:$I$85,3,0) -> 154339 | O8: =SUM(Q8+R8)/SUM(Q8:V8) -> 0.949180876 | P8: =SUM(T8+U8)/SUM(Q8:V8) -> 0.01905717151 | Q8: =VLOOKUP($A8,[1]Sheet1!$A$47:$I$85,4,0) -> 2563 | R8: =VLOOKUP($A8,[1]Sheet1!$A$47:$I$85,5,0) -> 276 | S8: =VLOOKUP($A8,[1]Sheet1!$A$47:$I$85,6,0) -> 59 | T8: =VLOOKUP($A8,[1]Sheet1!$A$47:$I$85,7,0) -> 24 | U8: =VLOOKUP($A8,[1]Sheet1!$A$47:$I$85,8,0) -> 33 | V8: =VLOOKUP($A8,[1]Sheet1!$A$47:$I$85,9,0) -> 36 | W8: =IFERROR(C8-M8,0) -> 0 | X8: =IFERROR(D8-N8,0) -> 0 | Y8: 0 | Z8: 0 | AA8: 0 | AB8: 0 | AC8: 0 | AD8: 0 | AE8: 0 | AF8: 0
A9: QF7 | B9: SOUTH YORKSHIRE ICB | C9: 914 | D9: 77464 | E9: 0.9256017505 | F9: 0.03282275711 | G9: 722 | H9: 124 | I9: 31 | J9: 14 | K9: 16 | L9: 7 | M9: =VLOOKUP($A9,[1]Sheet1!$A$47:$I$85,2,0) -> 914 | N9: =VLOOKUP($A9,[1]Sheet1!$A$47:$I$85,3,0) -> 77464 | O9: =SUM(Q9+R9)/SUM(Q9:V9) -> 0.9256017505 | P9: =SUM(T9+U9)/SUM(Q9:V9) -> 0.03282275711 | Q9: =VLOOKUP($A9,[1]Sheet1!$A$47:$I$85,4,0) -> 722 | R9: =VLOOKUP($A9,[1]Sheet1!$A$47:$I$85,5,0) -> 124 | S9: =VLOOKUP($A9,[1]Sheet1!$A$47:$I$85,6,0) -> 31 | T9: =VLOOKUP($A9,[1]Sheet1!$A$47:$I$85,7,0) -> 14 | U9: =VLOOKUP($A9,[1]Sheet1!$A$47:$I$85,8,0) -> 16 | V9: =VLOOKUP($A9,[1]Sheet1!$A$47:$I$85,9,0) -> 7 | W9: =IFERROR(C9-M9,0) -> 0 | X9: =IFERROR(D9-N9,0) -> 0 | Y9: =IFERROR(E9-O9,0) -> 0 | Z9: =IFERROR(F9-P9,0) -> 0 | AA9: =IFERROR(G9-Q9,0) -> 0 | AB9: =IFERROR(H9-R9,0) -> 0 | AC9: =IFERROR(I9-S9,0) -> 0 | AD9: =IFERROR(J9-T9,0) -> 0 | AE9: =IFERROR(K9-U9,0) -> 0 | AF9: =IFERROR(L9-V9,0) -> 0
A10: QGH | B10: HEREFORDSHIRE AND WORCESTERSHIRE ICB | C10: 360 | D10: 5552 | E10: 0.95 | F10: 0.03333333333 | G10: 314 | H10: 28 | I10: 4 | J10: 7 | K10: 5 | L10: 2 | M10: =VLOOKUP($A10,[1]Sheet1!$A$47:$I$85,2,0) -> 360 | N10: =VLOOKUP($A10,[1]Sheet1!$A$47:$I$85,3,0) -> 5552 | O10: 0.95 | P10: 0.03333333333 | Q10: =VLOOKUP($A10,[1]Sheet1!$A$47:$I$85,4,0) -> 314 | R10: =VLOOKUP($A10,[1]Sheet1!$A$47:$I$85,5,0) -> 28 | S10: =VLOOKUP($A10,[1]Sheet1!$A$47:$I$85,6,0) -> 4 | T10: =VLOOKUP($A10,[1]Sheet1!$A$47:$I$85,7,0) -> 7 | U10: =VLOOKUP($A10,[1]Sheet1!$A$47:$I$85,8,0) -> 5 | V10: =VLOOKUP($A10,[1]Sheet1!$A$47:$I$85,9,0) -> 2 | W10: 0 | X10: 0 | Y10: 0 | Z10: 0 | AA10: 0 | AB10: 0 | AC10: 0 | AD10: 0 | AE10: 0 | AF10: 0
A11: QH8 | B11: MID AND SOUTH ESSEX ICB | C11: 266 | D11: 20350 | E11: 0.954887218 | F11: 0.01127819549 | G11: 235 | H11: 19 | I11: 4 | J11: 1 | K11: 2 | L11: 5 | M11: =VLOOKUP($A11,[1]Sheet1!$A$47:$I$85,2,0) -> 266 | N11: =VLOOKUP($A11,[1]Sheet1!$A$47:$I$85,3,0) -> 20350 | O11: 0.954887218 | P11: 0.01127819549 | Q11: =VLOOKUP($A11,[1]Sheet1!$A$47:$I$85,4,0) -> 235 | R11: =VLOOKUP($A11,[1]Sheet1!$A$47:$I$85,5,0) -> 19 | S11: =VLOOKUP($A11,[1]Sheet1!$A$47:$I$85,6,0) -> 4 | T11: =VLOOKUP($A11,[1]Sheet1!$A$47:$I$85,7,0) -> 1 | U11: =VLOOKUP($A11,[1]Sheet1!$A$47:$I$85,8,0) -> 2 | V11: =VLOOKUP($A11,[1]Sheet1!$A$47:$I$85,9,0) -> 5 | W11: 0 | X11: 0 | Y11: 0 | Z11: 0 | AA11: 0 | AB11: 0 | AC11: 0 | AD11: 0 | AE11: 0 | AF11: 0
A12: QHL | B12: BIRMINGHAM AND SOLIHULL ICB | C12: 611 | D12: 59777 | E12: 0.9656301146 | F12: 0.01145662848 | G12: 507 | H12: 83 | I12: 14 | J12: 1 | K12: 6 | L12: 0 | M12: =VLOOKUP($A12,[1]Sheet1!$A$47:$I$85,2,0) -> 611 | N12: =VLOOKUP($A12,[1]Sheet1!$A$47:$I$85,3,0) -> 59777 | O12: 0.9656301146 | P12: 0.01145662848 | Q12: =VLOOKUP($A12,[1]Sheet1!$A$47:$I$85,4,0) -> 507 | R12: =VLOOKUP($A12,[1]Sheet1!$A$47:$I$85,5,0) -> 83 | S12: =VLOOKUP($A12,[1]Sheet1!$A$47:$I$85,6,0) -> 14 | T12: =VLOOKUP($A12,[1]Sheet1!$A$47:$I$85,7,0) -> 1 | U12: =VLOOKUP($A12,[1]Sheet1!$A$47:$I$85,8,0) -> 6 | V12: =VLOOKUP($A12,[1]Sheet1!$A$47:$I$85,9,0) -> 0 | W12: 0 | X12: 0 | Y12: 0 | Z12: 0 | AA12: 0 | AB12: 0 | AC12: 0 | AD12: 0 | AE12: 0 | AF12: 0
A13: QHM | B13: NORTH EAST AND NORTH CUMBRIA ICB | C13: 3526 | D13: 116189 | E13: 0.9696539989 | F13: 0.01389676687 | G13: 3026 | H13: 393 | I13: 48 | J13: 24 | K13: 25 | L13: 10 | M13: =VLOOKUP($A13,[1]Sheet1!$A$47:$I$85,2,0) -> 3526 | N13: =VLOOKUP($A13,[1]Sheet1!$A$47:$I$85,3,0) -> 116189 | O13: 0.9696539989 | P13: 0.01389676687 | Q13: =VLOOKUP($A13,[1]Sheet1!$A$47:$I$85,4,0) -> 3026 | R13: =VLOOKUP($A13,[1]Sheet1!$A$47:$I$85,5,0) -> 393 | S13: =VLOOKUP($A13,[1]Sheet1!$A$47:$I$85,6,0) -> 48 | T13: =VLOOKUP($A13,[1]Sheet1!$A$47:$I$85,7,0) -> 24 | U13: =VLOOKUP($A13,[1]Sheet1!$A$47:$I$85,8,0) -> 25 | V13: =VLOOKUP($A13,[1]Sheet1!$A$47:$I$85,9,0) -> 10 | W13: 0 | X13: 0 | Y13: 0 | Z13: 0 | AA13: 0 | AB13: 0 | AC13: 0 | AD13: 0 | AE13: 0 | AF13: 0
A14: QJ2 | B14: DERBY AND DERBYSHIRE ICB | C14: 3076 | D14: 39157 | E14: 0.9327048114 | F14: 0.03706111834 | G14: 2529 | H14: 340 | I14: 78 | J14: 63 | K14: 51 | L14: 15 | M14: =VLOOKUP($A14,[1]Sheet1!$A$47:$I$85,2,0) -> 3076 | N14: =VLOOKUP($A14,[1]Sheet1!$A$47:$I$85,3,0) -> 39157 | O14: 0.9327048114 | P14: 0.03706111834 | Q14: =VLOOKUP($A14,[1]Sheet1!$A$47:$I$85,4,0) -> 2529 | R14: =VLOOKUP($A14,[1]Sheet1!$A$47:$I$85,5,0) -> 340 | S14: =VLOOKUP($A14,[1]Sheet1!$A$47:$I$85,6,0) -> 78 | T14: =VLOOKUP($A14,[1]Sheet1!$A$47:$I$85,7,0) -> 63 | U14: =VLOOKUP($A14,[1]Sheet1!$A$47:$I$85,8,0) -> 51 | V14: =VLOOKUP($A14,[1]Sheet1!$A$47:$I$85,9,0) -> 15 | W14: 0 | X14: 0 | Y14: 0 | Z14: 0 | AA14: 0 | AB14: 0 | AC14: 0 | AD14: 0 | AE14: 0 | AF14: 0
A15: QJG | B15: SUFFOLK AND NORTH EAST ESSEX ICB | C15: 546 | D15: 11122 | E15: 0.9432234432 | F15: 0.03113553114 | G15: 461 | H15: 54 | I15: 11 | J15: 9 | K15: 8 | L15: 3 | M15: =VLOOKUP($A15,[1]Sheet1!$A$47:$I$85,2,0) -> 546 | N15: =VLOOKUP($A15,[1]Sheet1!$A$47:$I$85,3,0) -> 11122 | O15: 0.9432234432 | P15: 0.03113553114 | Q15: =VLOOKUP($A15,[1]Sheet1!$A$47:$I$85,4,0) -> 461 | R15: =VLOOKUP($A15,[1]Sheet1!$A$47:$I$85,5,0) -> 54 | S15: =VLOOKUP($A15,[1]Sheet1!$A$47:$I$85,6,0) -> 11 | T15: =VLOOKUP($A15,[1]Sheet1!$A$47:$I$85,7,0) -> 9 | U15: =VLOOKUP($A15,[1]Sheet1!$A$47:$I$85,8,0) -> 8 | V15: =VLOOKUP($A15,[1]Sheet1!$A$47:$I$85,9,0) -> 3 | W15: 0 | X15: 0 | Y15: 0 | Z15: 0 | AA15: 0 | AB15: 0 | AC15: 0 | AD15: 0 | AE15: 0 | AF15: 0
A16: QJK | B16: DEVON ICB | C16: 681 | D16: 45711 | E16: 0.986784141 | F16: 0.004405286344 | G16: 600 | H16: 72 | I16: 6 | J16: 2 | K16: 1 | L16: 0 | M16: =VLOOKUP($A16,[1]Sheet1!$A$47:$I$85,2,0) -> 681 | N16: =VLOOKUP($A16,[1]Sheet1!$A$47:$I$85,3,0) -> 45711 | O16: 0.986784141 | P16: 0.004405286344 | Q16: =VLOOKUP($A16,[1]Sheet1!$A$47:$I$85,4,0) -> 600 | R16: =VLOOKUP($A16,[1]Sheet1!$A$47:$I$85,5,0) -> 72 | S16: =VLOOKUP($A16,[1]Sheet1!$A$47:$I$85,6,0) -> 6 | T16: =VLOOKUP($A16,[1]Sheet1!$A$47:$I$85,7,0) -> 2 | U16: =VLOOKUP($A16,[1]Sheet1!$A$47:$I$85,8,0) -> 1 | V16: =VLOOKUP($A16,[1]Sheet1!$A$47:$I$85,9,0) -> 0 | W16: 0 | X16: 0 | Y16: 0 | Z16: 0 | AA16: 0 | AB16: 0 | AC16: 0 | AD16: 0 | AE16: 0 | AF16: 0
A17: QJM | B17: LINCOLNSHIRE ICB | C17: 4799 | D17: 26753 | E17: 0.892894353 | F17: 0.05938737237 | G17: 3637 | H17: 648 | I17: 177 | J17: 130 | K17: 155 | L17: 52 | M17: =VLOOKUP($A17,[1]Sheet1!$A$47:$I$85,2,0) -> 4799 | N17: =VLOOKUP($A17,[1]Sheet1!$A$47:$I$85,3,0) -> 26753 | O17: 0.892894353 | P17: 0.05938737237 | Q17: =VLOOKUP($A17,[1]Sheet1!$A$47:$I$85,4,0) -> 3637 | R17: =VLOOKUP($A17,[1]Sheet1!$A$47:$I$85,5,0) -> 648 | S17: =VLOOKUP($A17,[1]Sheet1!$A$47:$I$85,6,0) -> 177 | T17: =VLOOKUP($A17,[1]Sheet1!$A$47:$I$85,7,0) -> 130 | U17: =VLOOKUP($A17,[1]Sheet1!$A$47:$I$85,8,0) -> 155 | V17: =VLOOKUP($A17,[1]Sheet1!$A$47:$I$85,9,0) -> 52 | W17: 0 | X17: 0 | Y17: 0 | Z17: 0 | AA17: 0 | AB17: 0 | AC17: 0 | AD17: 0 | AE17: 0 | AF17: 0
A18: QK1 | B18: LEICESTER, LEICESTERSHIRE AND RUTLAND ICB | C18: 1158 | D18: 44331 | E18: 0.9231433506 | F18: 0.02590673575 | G18: 893 | H18: 176 | I18: 48 | J18: 13 | K18: 17 | L18: 11 | M18: =VLOOKUP($A18,[1]Sheet1!$A$47:$I$85,2,0) -> 1158 | N18: =VLOOKUP($A18,[1]Sheet1!$A$47:$I$85,3,0) -> 44331 | O18: 0.9231433506 | P18: 0.02590673575 | Q18: =VLOOKUP($A18,[1]Sheet1!$A$47:$I$85,4,0) -> 893 | R18: =VLOOKUP($A18,[1]Sheet1!$A$47:$I$85,5,0) -> 176 | S18: =VLOOKUP($A18,[1]Sheet1!$A$47:$I$85,6,0) -> 48 | T18: =VLOOKUP($A18,[1]Sheet1!$A$47:$I$85,7,0) -> 13 | U18: =VLOOKUP($A18,[1]Sheet1!$A$47:$I$85,8,0) -> 17 | V18: =VLOOKUP($A18,[1]Sheet1!$A$47:$I$85,9,0) -> 11 | W18: 0 | X18: 0 | Y18: 0 | Z18: 0 | AA18: 0 | AB18: 0 | AC18: 0 | AD18: 0 | AE18: 0 | AF18: 0
A19: QKK | B19: SOUTH EAST LONDON ICB | C19: 3394 | D19: 61854 | E19: 0.9266352387 | F19: 0.02622274602 | G19: 2624 | H19: 521 | I19: 138 | J19: 47 | K19: 42 | L19: 22 | M19: =VLOOKUP($A19,[1]Sheet1!$A$47:$I$85,2,0) -> 3394 | N19: =VLOOKUP($A19,[1]Sheet1!$A$47:$I$85,3,0) -> 61854 | O19: 0.9266352387 | P19: 0.02622274602 | Q19: =VLOOKUP($A19,[1]Sheet1!$A$47:$I$85,4,0) -> 2624 | R19: =VLOOKUP($A19,[1]Sheet1!$A$47:$I$85,5,0) -> 521 | S19: =VLOOKUP($A19,[1]Sheet1!$A$47:$I$85,6,0) -> 138 | T19: =VLOOKUP($A19,[1]Sheet1!$A$47:$I$85,7,0) -> 47 | U19: =VLOOKUP($A19,[1]Sheet1!$A$47:$I$85,8,0) -> 42 | V19: =VLOOKUP($A19,[1]Sheet1!$A$47:$I$85,9,0) -> 22 | W19: 0 | X19: 0 | Y19: 0 | Z19: 0 | AA19: 0 | AB19: 0 | AC19: 0 | AD19: 0 | AE19: 0 | AF19: 0
A20: QKS | B20: KENT AND MEDWAY ICB | C20: 5040 | D20: 65000 | E20: 0.9714285714 | F20: 0.009126984127 | G20: 4393 | H20: 503 | I20: 81 | J20: 21 | K20: 25 | L20: 17 | M20: =VLOOKUP($A20,[1]Sheet1!$A$47:$I$85,2,0) -> 5040 | N20: =VLOOKUP($A20,[1]Sheet1!$A$47:$I$85,3,0) -> 65000 | O20: 0.9714285714 | P20: 0.009126984127 | Q20: =VLOOKUP($A20,[1]Sheet1!$A$47:$I$85,4,0) -> 4393 | R20: =VLOOKUP($A20,[1]Sheet1!$A$47:$I$85,5,0) -> 503 | S20: =VLOOKUP($A20,[1]Sheet1!$A$47:$I$85,6,0) -> 81 | T20: =VLOOKUP($A20,[1]Sheet1!$A$47:$I$85,7,0) -> 21 | U20: =VLOOKUP($A20,[1]Sheet1!$A$47:$I$85,8,0) -> 25 | V20: =VLOOKUP($A20,[1]Sheet1!$A$47:$I$85,9,0) -> 17 | W20: 0 | X20: 0 | Y20: 0 | Z20: 0 | AA20: 0 | AB20: 0 | AC20: 0 | AD20: 0 | AE20: 0 | AF20: 0
A21: QM7 | B21: HERTFORDSHIRE AND WEST ESSEX ICB | C21: 972 | D21: 42590 | E21: 0.9238683128 | F21: 0.03395061728 | G21: 793 | H21: 105 | I21: 34 | J21: 17 | K21: 16 | L21: 7 | M21: =VLOOKUP($A21,[1]Sheet1!$A$47:$I$85,2,0) -> 972 | N21: =VLOOKUP($A21,[1]Sheet1!$A$47:$I$85,3,0) -> 42590 | O21: 0.9238683128 | P21: 0.03395061728 | Q21: =VLOOKUP($A21,[1]Sheet1!$A$47:$I$85,4,0) -> 793 | R21: =VLOOKUP($A21,[1]Sheet1!$A$47:$I$85,5,0) -> 105 | S21: =VLOOKUP($A21,[1]Sheet1!$A$47:$I$85,6,0) -> 34 | T21: =VLOOKUP($A21,[1]Sheet1!$A$47:$I$85,7,0) -> 17 | U21: =VLOOKUP($A21,[1]Sheet1!$A$47:$I$85,8,0) -> 16 | V21: =VLOOKUP($A21,[1]Sheet1!$A$47:$I$85,9,0) -> 7 | W21: 0 | X21: 0 | Y21: 0 | Z21: 0 | AA21: 0 | AB21: 0 | AC21: 0 | AD21: 0 | AE21: 0 | AF21: 0
A22: QMF | B22: NORTH EAST LONDON ICB | C22: 2908 | D22: 77426 | E22: 0.9336313618 | F22: 0.02888583219 | G22: 1905 | H22: 810 | I22: 88 | J22: 37 | K22: 47 | L22: 21 | M22: =VLOOKUP($A22,[1]Sheet1!$A$47:$I$85,2,0) -> 2908 | N22: =VLOOKUP($A22,[1]Sheet1!$A$47:$I$85,3,0) -> 77426 | O22: 0.9336313618 | P22: 0.02888583219 | Q22: =VLOOKUP($A22,[1]Sheet1!$A$47:$I$85,4,0) -> 1905 | R22: =VLOOKUP($A22,[1]Sheet1!$A$47:$I$85,5,0) -> 810 | S22: =VLOOKUP($A22,[1]Sheet1!$A$47:$I$85,6,0) -> 88 | T22: =VLOOKUP($A22,[1]Sheet1!$A$47:$I$85,7,0) -> 37 | U22: =VLOOKUP($A22,[1]Sheet1!$A$47:$I$85,8,0) -> 47 | V22: =VLOOKUP($A22,[1]Sheet1!$A$47:$I$85,9,0) -> 21 | W22: 0 | X22: 0 | Y22: 0 | Z22: 0 | AA22: 0 | AB22: 0 | AC22: 0 | AD22: 0 | AE22: 0 | AF22: 0
A23: QMJ | B23: NORTH CENTRAL LONDON ICB | C23: 2018 | D23: 65352 | E23: 0.9583746283 | F23: 0.01139742319 | G23: 1477 | H23: 457 | I23: 55 | J23: 13 | K23: 10 | L23: 6 | M23: =VLOOKUP($A23,[1]Sheet1!$A$47:$I$85,2,0) -> 2018 | N23: =VLOOKUP($A23,[1]Sheet1!$A$47:$I$85,3,0) -> 65352 | O23: 0.9583746283 | P23: 0.01139742319 | Q23: =VLOOKUP($A23,[1]Sheet1!$A$47:$I$85,4,0) -> 1477 | R23: =VLOOKUP($A23,[1]Sheet1!$A$47:$I$85,5,0) -> 457 | S23: =VLOOKUP($A23,[1]Sheet1!$A$47:$I$85,6,0) -> 55 | T23: =VLOOKUP($A23,[1]Sheet1!$A$47:$I$85,7,0) -> 13 | U23: =VLOOKUP($A23,[1]Sheet1!$A$47:$I$85,8,0) -> 10 | V23: =VLOOKUP($A23,[1]Sheet1!$A$47:$I$85,9,0) -> 6 | W23: 0 | X23: 0 | Y23: 0 | Z23: 0 | AA23: 0 | AB23: 0 | AC23: 0 | AD23: 0 | AE23: 0 | AF23: 0
A24: QMM | B24: NORFOLK AND WAVENEY ICB | C24: 413 | D24: 30405 | E24: 0.9661016949 | F24: 0.004842615012 | G24: 342 | H24: 57 | I24: 12 | J24: 1 | K24: 1 | L24: 0 | M24: =VLOOKUP($A24,[1]Sheet1!$A$47:$I$85,2,0) -> 413 | N24: =VLOOKUP($A24,[1]Sheet1!$A$47:$I$85,3,0) -> 30405 | O24: 0.9661016949 | P24: 0.004842615012 | Q24: =VLOOKUP($A24,[1]Sheet1!$A$47:$I$85,4,0) -> 342 | R24: =VLOOKUP($A24,[1]Sheet1!$A$47:$I$85,5,0) -> 57 | S24: =VLOOKUP($A24,[1]Sheet1!$A$47:$I$85,6,0) -> 12 | T24: =VLOOKUP($A24,[1]Sheet1!$A$47:$I$85,7,0) -> 1 | U24: =VLOOKUP($A24,[1]Sheet1!$A$47:$I$85,8,0) -> 1 | V24: =VLOOKUP($A24,[1]Sheet1!$A$47:$I$85,9,0) -> 0 | W24: 0 | X24: 0 | Y24: 0 | Z24: 0 | AA24: 0 | AB24: 0 | AC24: 0 | AD24: 0 | AE24: 0 | AF24: 0
A25: QNC | B25: STAFFORDSHIRE AND STOKE-ON-TRENT ICB | C25: 1361 | D25: 48945 | E25: 0.9265246143 | F25: 0.03012490816 | G25: 1083 | H25: 178 | I25: 41 | J25: 18 | K25: 23 | L25: 18 | M25: =VLOOKUP($A25,[1]Sheet1!$A$47:$I$85,2,0) -> 1361 | N25: =VLOOKUP($A25,[1]Sheet1!$A$47:$I$85,3,0) -> 48945 | O25: 0.9265246143 | P25: 0.03012490816 | Q25: =VLOOKUP($A25,[1]Sheet1!$A$47:$I$85,4,0) -> 1083 | R25: =VLOOKUP($A25,[1]Sheet1!$A$47:$I$85,5,0) -> 178 | S25: =VLOOKUP($A25,[1]Sheet1!$A$47:$I$85,6,0) -> 41 | T25: =VLOOKUP($A25,[1]Sheet1!$A$47:$I$85,7,0) -> 18 | U25: =VLOOKUP($A25,[1]Sheet1!$A$47:$I$85,8,0) -> 23 | V25: =VLOOKUP($A25,[1]Sheet1!$A$47:$I$85,9,0) -> 18 | W25: 0 | X25: 0 | Y25: 0 | Z25: 0 | AA25: 0 | AB25: 0 | AC25: 0 | AD25: 0 | AE25: 0 | AF25: 0
A26: QNQ | B26: FRIMLEY ICB | C26: 3894 | D26: 40469 | E26: 0.9612223934 | F26: 0.01309707242 | G26: 3278 | H26: 465 | I26: 58 | J26: 21 | K26: 30 | L26: 42 | M26: =VLOOKUP($A26,[1]Sheet1!$A$47:$I$85,2,0) -> 3894 | N26: =VLOOKUP($A26,[1]Sheet1!$A$47:$I$85,3,0) -> 40469 | O26: 0.9612223934 | P26: 0.01309707242 | Q26: =VLOOKUP($A26,[1]Sheet1!$A$47:$I$85,4,0) -> 3278 | R26: =VLOOKUP($A26,[1]Sheet1!$A$47:$I$85,5,0) -> 465 | S26: =VLOOKUP($A26,[1]Sheet1!$A$47:$I$85,6,0) -> 58 | T26: =VLOOKUP($A26,[1]Sheet1!$A$47:$I$85,7,0) -> 21 | U26: =VLOOKUP($A26,[1]Sheet1!$A$47:$I$85,8,0) -> 30 | V26: =VLOOKUP($A26,[1]Sheet1!$A$47:$I$85,9,0) -> 42 | W26: 0 | X26: 0 | Y26: 0 | Z26: 0 | AA26: 0 | AB26: 0 | AC26: 0 | AD26: 0 | AE26: 0 | AF26: 0
A27: QNX | B27: SUSSEX ICB | C27: 4791 | D27: 105731 | E27: 0.9555416406 | F27: 0.0212899186 | G27: 4091 | H27: 487 | I27: 94 | J27: 45 | K27: 57 | L27: 17 | M27: =VLOOKUP($A27,[1]Sheet1!$A$47:$I$85,2,0) -> 4791 | N27: =VLOOKUP($A27,[1]Sheet1!$A$47:$I$85,3,0) -> 105731 | O27: 0.9555416406 | P27: 0.0212899186 | Q27: =VLOOKUP($A27,[1]Sheet1!$A$47:$I$85,4,0) -> 4091 | R27: =VLOOKUP($A27,[1]Sheet1!$A$47:$I$85,5,0) -> 487 | S27: =VLOOKUP($A27,[1]Sheet1!$A$47:$I$85,6,0) -> 94 | T27: =VLOOKUP($A27,[1]Sheet1!$A$47:$I$85,7,0) -> 45 | U27: =VLOOKUP($A27,[1]Sheet1!$A$47:$I$85,8,0) -> 57 | V27: =VLOOKUP($A27,[1]Sheet1!$A$47:$I$85,9,0) -> 17 | W27: 0 | X27: 0 | Y27: 0 | Z27: 0 | AA27: 0 | AB27: 0 | AC27: 0 | AD27: 0 | AE27: 0 | AF27: 0
A28: QOC | B28: SHROPSHIRE, TELFORD AND WREKIN ICB | C28: 223 | D28: 473413 | E28: 0.9775784753 | F28: 0.004484304933 | G28: 203 | H28: 15 | I28: 4 | J28: 1 | K28: 0 | L28: 0 | M28: =VLOOKUP($A28,[1]Sheet1!$A$47:$I$85,2,0) -> 223 | N28: =VLOOKUP($A28,[1]Sheet1!$A$47:$I$85,3,0) -> 473413 | O28: 0.9775784753 | P28: 0.004484304933 | Q28: =VLOOKUP($A28,[1]Sheet1!$A$47:$I$85,4,0) -> 203 | R28: =VLOOKUP($A28,[1]Sheet1!$A$47:$I$85,5,0) -> 15 | S28: =VLOOKUP($A28,[1]Sheet1!$A$47:$I$85,6,0) -> 4 | T28: =VLOOKUP($A28,[1]Sheet1!$A$47:$I$85,7,0) -> 1 | U28: =VLOOKUP($A28,[1]Sheet1!$A$47:$I$85,8,0) -> 0 | V28: =VLOOKUP($A28,[1]Sheet1!$A$47:$I$85,9,0) -> 0 | W28: 0 | X28: 0 | Y28: 0 | Z28: 0 | AA28: 0 | AB28: 0 | AC28: 0 | AD28: 0 | AE28: 0 | AF28: 0
A29: QOP | B29: GREATER MANCHESTER ICB | C29: 3189 | D29: 71395 | E29: 0.9789902791 | F29: 0.008466603951 | G29: 2838 | H29: 284 | I29: 29 | J29: 13 | K29: 14 | L29: 11 | M29: =VLOOKUP($A29,[1]Sheet1!$A$47:$I$85,2,0) -> 3189 | N29: =VLOOKUP($A29,[1]Sheet1!$A$47:$I$85,3,0) -> 71395 | O29: 0.9789902791 | P29: 0.008466603951 | Q29: =VLOOKUP($A29,[1]Sheet1!$A$47:$I$85,4,0) -> 2838 | R29: =VLOOKUP($A29,[1]Sheet1!$A$47:$I$85,5,0) -> 284 | S29: =VLOOKUP($A29,[1]Sheet1!$A$47:$I$85,6,0) -> 29 | T29: =VLOOKUP($A29,[1]Sheet1!$A$47:$I$85,7,0) -> 13 | U29: =VLOOKUP($A29,[1]Sheet1!$A$47:$I$85,8,0) -> 14 | V29: =VLOOKUP($A29,[1]Sheet1!$A$47:$I$85,9,0) -> 11 | W29: 0 | X29: 0 | Y29: 0 | Z29: 0 | AA29: 0 | AB29: 0 | AC29: 0 | AD29: 0 | AE29: 0 | AF29: 0
A30: QOQ | B30: HUMBER AND NORTH YORKSHIRE ICB | C30: 374 | D30: 28985 | E30: 0.9759358289 | F30: 0.01604278075 | G30: 349 | H30: 16 | I30: 3 | J30: 2 | K30: 4 | L30: 0 | M30: =VLOOKUP($A30,[1]Sheet1!$A$47:$I$85,2,0) -> 374 | N30: =VLOOKUP($A30,[1]Sheet1!$A$47:$I$85,3,0) -> 28985 | O30: 0.9759358289 | P30: 0.01604278075 | Q30: =VLOOKUP($A30,[1]Sheet1!$A$47:$I$85,4,0) -> 349 | R30: =VLOOKUP($A30,[1]Sheet1!$A$47:$I$85,5,0) -> 16 | S30: =VLOOKUP($A30,[1]Sheet1!$A$47:$I$85,6,0) -> 3 | T30: =VLOOKUP($A30,[1]Sheet1!$A$47:$I$85,7,0) -> 2 | U30: =VLOOKUP($A30,[1]Sheet1!$A$47:$I$85,8,0) -> 4 | V30: =VLOOKUP($A30,[1]Sheet1!$A$47:$I$85,9,0) -> 0 | W30: 0 | X30: 0 | Y30: 0 | Z30: 0 | AA30: 0 | AB30: 0 | AC30: 0 | AD30: 0 | AE30: 0 | AF30: 0
A31: QPM | B31: NORTHAMPTONSHIRE ICB | C31: 772 | D31: 33602 | E31: 0.9702072539 | F31: 0.006476683938 | G31: 674 | H31: 75 | I31: 10 | J31: 3 | K31: 2 | L31: 8 | M31: =VLOOKUP($A31,[1]Sheet1!$A$47:$I$85,2,0) -> 772 | N31: =VLOOKUP($A31,[1]Sheet1!$A$47:$I$85,3,0) -> 33602 | O31: 0.9702072539 | P31: 0.006476683938 | Q31: =VLOOKUP($A31,[1]Sheet1!$A$47:$I$85,4,0) -> 674 | R31: =VLOOKUP($A31,[1]Sheet1!$A$47:$I$85,5,0) -> 75 | S31: =VLOOKUP($A31,[1]Sheet1!$A$47:$I$85,6,0) -> 10 | T31: =VLOOKUP($A31,[1]Sheet1!$A$47:$I$85,7,0) -> 3 | U31: =VLOOKUP($A31,[1]Sheet1!$A$47:$I$85,8,0) -> 2 | V31: =VLOOKUP($A31,[1]Sheet1!$A$47:$I$85,9,0) -> 8 | W31: 0 | X31: 0 | Y31: 0 | Z31: 0 | AA31: 0 | AB31: 0 | AC31: 0 | AD31: 0 | AE31: 0 | AF31: 0
A32: QR1 | B32: GLOUCESTERSHIRE ICB | C32: 2326 | D32: 24082 | E32: 0.9393809114 | F32: 0.02966466036 | G32: 1810 | H32: 375 | I32: 48 | J32: 30 | K32: 39 | L32: 24 | M32: =VLOOKUP($A32,[1]Sheet1!$A$47:$I$85,2,0) -> 2326 | N32: =VLOOKUP($A32,[1]Sheet1!$A$47:$I$85,3,0) -> 24082 | O32: 0.9393809114 | P32: 0.02966466036 | Q32: =VLOOKUP($A32,[1]Sheet1!$A$47:$I$85,4,0) -> 1810 | R32: =VLOOKUP($A32,[1]Sheet1!$A$47:$I$85,5,0) -> 375 | S32: =VLOOKUP($A32,[1]Sheet1!$A$47:$I$85,6,0) -> 48 | T32: =VLOOKUP($A32,[1]Sheet1!$A$47:$I$85,7,0) -> 30 | U32: =VLOOKUP($A32,[1]Sheet1!$A$47:$I$85,8,0) -> 39 | V32: =VLOOKUP($A32,[1]Sheet1!$A$47:$I$85,9,0) -> 24 | W32: 0 | X32: 0 | Y32: 0 | Z32: 0 | AA32: 0 | AB32: 0 | AC32: 0 | AD32: 0 | AE32: 0 | AF32: 0
A33: QRL | B33: HAMPSHIRE AND ISLE OF WIGHT ICB | C33: 2521 | D33: 68639 | E33: 0.9706465688 | F33: 0.006346687822 | G33: 2107 | H33: 340 | I33: 44 | J33: 3 | K33: 13 | L33: 14 | M33: =VLOOKUP($A33,[1]Sheet1!$A$47:$I$85,2,0) -> 2521 | N33: =VLOOKUP($A33,[1]Sheet1!$A$47:$I$85,3,0) -> 68639 | O33: 0.9706465688 | P33: 0.006346687822 | Q33: =VLOOKUP($A33,[1]Sheet1!$A$47:$I$85,4,0) -> 2107 | R33: =VLOOKUP($A33,[1]Sheet1!$A$47:$I$85,5,0) -> 340 | S33: =VLOOKUP($A33,[1]Sheet1!$A$47:$I$85,6,0) -> 44 | T33: =VLOOKUP($A33,[1]Sheet1!$A$47:$I$85,7,0) -> 3 | U33: =VLOOKUP($A33,[1]Sheet1!$A$47:$I$85,8,0) -> 13 | V33: =VLOOKUP($A33,[1]Sheet1!$A$47:$I$85,9,0) -> 14 | W33: 0 | X33: 0 | Y33: 0 | Z33: 0 | AA33: 0 | AB33: 0 | AC33: 0 | AD33: 0 | AE33: 0 | AF33: 0
A34: QRV | B34: NORTH WEST LONDON ICB | C34: 4371 | D34: 118480 | E34: 0.9299931366 | F34: 0.03500343171 | G34: 3572 | H34: 493 | I34: 85 | J34: 63 | K34: 90 | L34: 68 | M34: =VLOOKUP($A34,[1]Sheet1!$A$47:$I$85,2,0) -> 4371 | N34: =VLOOKUP($A34,[1]Sheet1!$A$47:$I$85,3,0) -> 118480 | O34: 0.9299931366 | P34: 0.03500343171 | Q34: =VLOOKUP($A34,[1]Sheet1!$A$47:$I$85,4,0) -> 3572 | R34: =VLOOKUP($A34,[1]Sheet1!$A$47:$I$85,5,0) -> 493 | S34: =VLOOKUP($A34,[1]Sheet1!$A$47:$I$85,6,0) -> 85 | T34: =VLOOKUP($A34,[1]Sheet1!$A$47:$I$85,7,0) -> 63 | U34: =VLOOKUP($A34,[1]Sheet1!$A$47:$I$85,8,0) -> 90 | V34: =VLOOKUP($A34,[1]Sheet1!$A$47:$I$85,9,0) -> 68 | W34: 0 | X34: 0 | Y34: 0 | Z34: 0 | AA34: 0 | AB34: 0 | AC34: 0 | AD34: 0 | AE34: 0 | AF34: 0
A35: QSL | B35: SOMERSET ICB | C35: 0 | D35: 19422 | E35: NA | F35: NA | G35: 0 | H35: 0 | I35: 0 | J35: 0 | K35: 0 | L35: 0 | M35: =VLOOKUP($A35,[1]Sheet1!$A$47:$I$85,2,0) -> 0 | N35: =VLOOKUP($A35,[1]Sheet1!$A$47:$I$85,3,0) -> 19422 | Q35: =VLOOKUP($A35,[1]Sheet1!$A$47:$I$85,4,0) -> 0 | R35: =VLOOKUP($A35,[1]Sheet1!$A$47:$I$85,5,0) -> 0 | S35: =VLOOKUP($A35,[1]Sheet1!$A$47:$I$85,6,0) -> 0 | T35: =VLOOKUP($A35,[1]Sheet1!$A$47:$I$85,7,0) -> 0 | U35: =VLOOKUP($A35,[1]Sheet1!$A$47:$I$85,8,0) -> 0 | V35: =VLOOKUP($A35,[1]Sheet1!$A$47:$I$85,9,0) -> 0 | W35: 0 | X35: 0 | Y35: 0 | Z35: 0 | AA35: 0 | AB35: 0 | AC35: 0 | AD35: 0 | AE35: 0 | AF35: 0
A36: QT1 | B36: NOTTINGHAM AND NOTTINGHAMSHIRE ICB | C36: 260 | D36: 37029 | E36: 0.95 | F36: 0.02692307692 | G36: 210 | H36: 37 | I36: 5 | J36: 3 | K36: 4 | L36: 1 | M36: =VLOOKUP($A36,[1]Sheet1!$A$47:$I$85,2,0) -> 260 | N36: =VLOOKUP($A36,[1]Sheet1!$A$47:$I$85,3,0) -> 37029 | O36: 0.95 | P36: 0.02692307692 | Q36: =VLOOKUP($A36,[1]Sheet1!$A$47:$I$85,4,0) -> 210 | R36: =VLOOKUP($A36,[1]Sheet1!$A$47:$I$85,5,0) -> 37 | S36: =VLOOKUP($A36,[1]Sheet1!$A$47:$I$85,6,0) -> 5 | T36: =VLOOKUP($A36,[1]Sheet1!$A$47:$I$85,7,0) -> 3 | U36: =VLOOKUP($A36,[1]Sheet1!$A$47:$I$85,8,0) -> 4 | V36: =VLOOKUP($A36,[1]Sheet1!$A$47:$I$85,9,0) -> 1 | W36: 0 | X36: 0 | Y36: 0 | Z36: 0 | AA36: 0 | AB36: 0 | AC36: 0 | AD36: 0 | AE36: 0 | AF36: 0
A37: QU9 | B37: BUCKINGHAMSHIRE, OXFORDSHIRE AND BERKSHIRE WEST ICB | C37: 1276 | D37: 33570 | E37: 0.9521943574 | F37: 0.02272727273 | G37: 1063 | H37: 152 | I37: 19 | J37: 7 | K37: 22 | L37: 13 | M37: =VLOOKUP($A37,[1]Sheet1!$A$47:$I$85,2,0) -> 1276 | N37: =VLOOKUP($A37,[1]Sheet1!$A$47:$I$85,3,0) -> 33570 | O37: 0.9521943574 | P37: 0.02272727273 | Q37: =VLOOKUP($A37,[1]Sheet1!$A$47:$I$85,4,0) -> 1063 | R37: =VLOOKUP($A37,[1]Sheet1!$A$47:$I$85,5,0) -> 152 | S37: =VLOOKUP($A37,[1]Sheet1!$A$47:$I$85,6,0) -> 19 | T37: =VLOOKUP($A37,[1]Sheet1!$A$47:$I$85,7,0) -> 7 | U37: =VLOOKUP($A37,[1]Sheet1!$A$47:$I$85,8,0) -> 22 | V37: =VLOOKUP($A37,[1]Sheet1!$A$47:$I$85,9,0) -> 13 | W37: 0 | X37: 0 | Y37: 0 | Z37: 0 | AA37: 0 | AB37: 0 | AC37: 0 | AD37: 0 | AE37: 0 | AF37: 0
A38: QUA | B38: BLACK COUNTRY ICB | C38: 1241 | D38: 17949 | E38: 0.939564867 | F38: 0.01128122482 | G38: 1024 | H38: 142 | I38: 29 | J38: 7 | K38: 7 | L38: 32 | M38: =VLOOKUP($A38,[1]Sheet1!$A$47:$I$85,2,0) -> 1241 | N38: =VLOOKUP($A38,[1]Sheet1!$A$47:$I$85,3,0) -> 17949 | O38: 0.939564867 | P38: 0.01128122482 | Q38: =VLOOKUP($A38,[1]Sheet1!$A$47:$I$85,4,0) -> 1024 | R38: =VLOOKUP($A38,[1]Sheet1!$A$47:$I$85,5,0) -> 142 | S38: =VLOOKUP($A38,[1]Sheet1!$A$47:$I$85,6,0) -> 29 | T38: =VLOOKUP($A38,[1]Sheet1!$A$47:$I$85,7,0) -> 7 | U38: =VLOOKUP($A38,[1]Sheet1!$A$47:$I$85,8,0) -> 7 | V38: =VLOOKUP($A38,[1]Sheet1!$A$47:$I$85,9,0) -> 32 | W38: 0 | X38: 0 | Y38: 0 | Z38: 0 | AA38: 0 | AB38: 0 | AC38: 0 | AD38: 0 | AE38: 0 | AF38: 0
A39: QUE | B39: CAMBRIDGESHIRE AND PETERBOROUGH ICB | C39: 3227 | D39: 77061 | E39: 0.9466997211 | F39: 0.01921289123 | G39: 2617 | H39: 438 | I39: 81 | J39: 25 | K39: 37 | L39: 29 | M39: =VLOOKUP($A39,[1]Sheet1!$A$47:$I$85,2,0) -> 3227 | N39: =VLOOKUP($A39,[1]Sheet1!$A$47:$I$85,3,0) -> 77061 | O39: 0.9466997211 | P39: 0.01921289123 | Q39: =VLOOKUP($A39,[1]Sheet1!$A$47:$I$85,4,0) -> 2617 | R39: =VLOOKUP($A39,[1]Sheet1!$A$47:$I$85,5,0) -> 438 | S39: =VLOOKUP($A39,[1]Sheet1!$A$47:$I$85,6,0) -> 81 | T39: =VLOOKUP($A39,[1]Sheet1!$A$47:$I$85,7,0) -> 25 | U39: =VLOOKUP($A39,[1]Sheet1!$A$47:$I$85,8,0) -> 37 | V39: =VLOOKUP($A39,[1]Sheet1!$A$47:$I$85,9,0) -> 29 | W39: 0 | X39: 0 | Y39: 0 | Z39: 0 | AA39: 0 | AB39: 0 | AC39: 0 | AD39: 0 | AE39: 0 | AF39: 0
A40: QVV | B40: DORSET ICB | C40: 1506 | D40: 20486 | E40: 0.9017264276 | F40: 0.05511288181 | G40: 1144 | H40: 214 | I40: 61 | J40: 33 | K40: 50 | L40: 4 | M40: =VLOOKUP($A40,[1]Sheet1!$A$47:$I$85,2,0) -> 1506 | N40: =VLOOKUP($A40,[1]Sheet1!$A$47:$I$85,3,0) -> 20486 | O40: 0.9017264276 | P40: 0.05511288181 | Q40: =VLOOKUP($A40,[1]Sheet1!$A$47:$I$85,4,0) -> 1144 | R40: =VLOOKUP($A40,[1]Sheet1!$A$47:$I$85,5,0) -> 214 | S40: =VLOOKUP($A40,[1]Sheet1!$A$47:$I$85,6,0) -> 61 | T40: =VLOOKUP($A40,[1]Sheet1!$A$47:$I$85,7,0) -> 33 | U40: =VLOOKUP($A40,[1]Sheet1!$A$47:$I$85,8,0) -> 50 | V40: =VLOOKUP($A40,[1]Sheet1!$A$47:$I$85,9,0) -> 4 | W40: 0 | X40: 0 | Y40: 0 | Z40: 0 | AA40: 0 | AB40: 0 | AC40: 0 | AD40: 0 | AE40: 0 | AF40: 0
A41: QWE | B41: SOUTH WEST LONDON ICB | C41: 3168 | D41: 37032 | E41: 0.9479166667 | F41: 0.02430555556 | G41: 2490 | H41: 513 | I41: 71 | J41: 49 | K41: 28 | L41: 17 | M41: =VLOOKUP($A41,[1]Sheet1!$A$47:$I$85,2,0) -> 3168 | N41: =VLOOKUP($A41,[1]Sheet1!$A$47:$I$85,3,0) -> 37032 | O41: 0.9479166667 | P41: 0.02430555556 | Q41: =VLOOKUP($A41,[1]Sheet1!$A$47:$I$85,4,0) -> 2490 | R41: =VLOOKUP($A41,[1]Sheet1!$A$47:$I$85,5,0) -> 513 | S41: =VLOOKUP($A41,[1]Sheet1!$A$47:$I$85,6,0) -> 71 | T41: =VLOOKUP($A41,[1]Sheet1!$A$47:$I$85,7,0) -> 49 | U41: =VLOOKUP($A41,[1]Sheet1!$A$47:$I$85,8,0) -> 28 | V41: =VLOOKUP($A41,[1]Sheet1!$A$47:$I$85,9,0) -> 17 | W41: 0 | X41: 0 | Y41: 0 | Z41: 0 | AA41: 0 | AB41: 0 | AC41: 0 | AD41: 0 | AE41: 0 | AF41: 0
A42: QWO | B42: WEST YORKSHIRE ICB | C42: 3857 | D42: 49651 | E42: 0.9696655432 | F42: 0.01296344309 | G42: 3466 | H42: 274 | I42: 61 | J42: 24 | K42: 26 | L42: 6 | M42: =VLOOKUP($A42,[1]Sheet1!$A$47:$I$85,2,0) -> 3857 | N42: =VLOOKUP($A42,[1]Sheet1!$A$47:$I$85,3,0) -> 49651 | O42: 0.9696655432 | P42: 0.01296344309 | Q42: =VLOOKUP($A42,[1]Sheet1!$A$47:$I$85,4,0) -> 3466 | R42: =VLOOKUP($A42,[1]Sheet1!$A$47:$I$85,5,0) -> 274 | S42: =VLOOKUP($A42,[1]Sheet1!$A$47:$I$85,6,0) -> 61 | T42: =VLOOKUP($A42,[1]Sheet1!$A$47:$I$85,7,0) -> 24 | U42: =VLOOKUP($A42,[1]Sheet1!$A$47:$I$85,8,0) -> 26 | V42: =VLOOKUP($A42,[1]Sheet1!$A$47:$I$85,9,0) -> 6 | W42: 0 | X42: 0 | Y42: 0 | Z42: 0 | AA42: 0 | AB42: 0 | AC42: 0 | AD42: 0 | AE42: 0 | AF42: 0
A43: QWU | B43: COVENTRY AND WARWICKSHIRE ICB | C43: 144 | D43: 7891 | E43: 0.9444444444 | F43: 0.02083333333 | G43: 125 | H43: 11 | I43: 0 | J43: 0 | K43: 3 | L43: 5 | M43: =VLOOKUP($A43,[1]Sheet1!$A$47:$I$85,2,0) -> 144 | N43: =VLOOKUP($A43,[1]Sheet1!$A$47:$I$85,3,0) -> 7891 | O43: 0.9444444444 | P43: 0.02083333333 | Q43: =VLOOKUP($A43,[1]Sheet1!$A$47:$I$85,4,0) -> 125 | R43: =VLOOKUP($A43,[1]Sheet1!$A$47:$I$85,5,0) -> 11 | S43: =VLOOKUP($A43,[1]Sheet1!$A$47:$I$85,6,0) -> 0 | T43: =VLOOKUP($A43,[1]Sheet1!$A$47:$I$85,7,0) -> 0 | U43: =VLOOKUP($A43,[1]Sheet1!$A$47:$I$85,8,0) -> 3 | V43: =VLOOKUP($A43,[1]Sheet1!$A$47:$I$85,9,0) -> 5 | W43: 0 | X43: 0 | Y43: 0 | Z43: 0 | AA43: 0 | AB43: 0 | AC43: 0 | AD43: 0 | AE43: 0 | AF43: 0
A44: QXU | B44: SURREY HEARTLANDS ICB | C44: 49 | D44: 3584 | E44: 0.9795918367 | F44: 0 | G44: 39 | H44: 9 | I44: 1 | J44: 0 | K44: 0 | L44: 0 | M44: =VLOOKUP($A44,[1]Sheet1!$A$47:$I$85,2,0) -> 49 | N44: =VLOOKUP($A44,[1]Sheet1!$A$47:$I$85,3,0) -> 3584 | O44: 0.9795918367 | P44: 0 | Q44: =VLOOKUP($A44,[1]Sheet1!$A$47:$I$85,4,0) -> 39 | R44: =VLOOKUP($A44,[1]Sheet1!$A$47:$I$85,5,0) -> 9 | S44: =VLOOKUP($A44,[1]Sheet1!$A$47:$I$85,6,0) -> 1 | T44: =VLOOKUP($A44,[1]Sheet1!$A$47:$I$85,7,0) -> 0 | U44: =VLOOKUP($A44,[1]Sheet1!$A$47:$I$85,8,0) -> 0 | V44: =VLOOKUP($A44,[1]Sheet1!$A$47:$I$85,9,0) -> 0 | W44: 0 | X44: 0 | Y44: 0 | Z44: 0 | AA44: 0 | AB44: 0 | AC44: 0 | AD44: 0 | AE44: 0 | AF44: 0
A45: QYG | B45: CHESHIRE AND MERSEYSIDE ICB | C45: 8632 | D45: 118323 | E45: 0.9496061168 | F45: 0.02560240964 | G45: 7289 | H45: 908 | I45: 156 | J45: 97 | K45: 124 | L45: 58 | M45: =VLOOKUP($A45,[1]Sheet1!$A$47:$I$85,2,0) -> 8632 | N45: =VLOOKUP($A45,[1]Sheet1!$A$47:$I$85,3,0) -> 118323 | O45: 0.9496061168 | P45: 0.02560240964 | Q45: =VLOOKUP($A45,[1]Sheet1!$A$47:$I$85,4,0) -> 7289 | R45: =VLOOKUP($A45,[1]Sheet1!$A$47:$I$85,5,0) -> 908 | S45: =VLOOKUP($A45,[1]Sheet1!$A$47:$I$85,6,0) -> 156 | T45: =VLOOKUP($A45,[1]Sheet1!$A$47:$I$85,7,0) -> 97 | U45: =VLOOKUP($A45,[1]Sheet1!$A$47:$I$85,8,0) -> 124 | V45: =VLOOKUP($A45,[1]Sheet1!$A$47:$I$85,9,0) -> 58 | W45: 0 | X45: 0 | Y45: 0 | Z45: 0 | AA45: 0 | AB45: 0 | AC45: 0 | AD45: 0 | AE45: 0 | AF45: 0
A46: IS1 | B46: INDEPENDENT SECTOR PROVIDERS | C46: 26241 | D46: 545039 | E46: 0.9243169087 | F46: 0.03986128577 | G46: 20518 | H46: 3737 | I46: 764 | J46: 455 | K46: 591 | L46: 176 | M46: =VLOOKUP($A46,[1]Sheet1!$A$47:$I$85,2,0) -> 26241 | N46: =VLOOKUP($A46,[1]Sheet1!$A$47:$I$85,3,0) -> 545039 | O46: 0.9243169087 | P46: 0.03986128577 | Q46: =VLOOKUP($A46,[1]Sheet1!$A$47:$I$85,4,0) -> 20518 | R46: =VLOOKUP($A46,[1]Sheet1!$A$47:$I$85,5,0) -> 3737 | S46: =VLOOKUP($A46,[1]Sheet1!$A$47:$I$85,6,0) -> 764 | T46: =VLOOKUP($A46,[1]Sheet1!$A$47:$I$85,7,0) -> 455 | U46: =VLOOKUP($A46,[1]Sheet1!$A$47:$I$85,8,0) -> 591 | V46: =VLOOKUP($A46,[1]Sheet1!$A$47:$I$85,9,0) -> 176 | W46: 0 | X46: 0 | Y46: 0 | Z46: 0 | AA46: 0 | AB46: 0 | AC46: 0 | AD46: 0 | AE46: 0 | AF46: 0

Sheet Trusts
A3: ICB Code | B3: Trust Code | C3: Trust Name | D3: Total Responses | E3: Total Eligible | F3: Percentage Positive | G3: Percentage Negative | H3: Breakdown of Responses | N3: Mode of Collection | T3: Total Responses | U3: Total Eligible | V3: Percentage Positive | W3: Percentage Negative | X3: Breakdown of Responses | AD3: Mode of Collection | AJ3: Total Responses | AK3: Total Eligible | AL3: Percentage Positive | AM3: Percentage Negative | AN3: Breakdown of Responses | AT3: Mode of Collection
H4: Very Good | I4: Good | J4: Neither Good nor Poor | K4: Poor | L4: Very Poor | M4: Don't Know | N4: Mode SMS | O4: Mode Electronic Discharge | P4: Mode Paper Home | Q4: Mode Telephone | R4: Mode Online | S4: Mode Other | X4: Very Good | Y4: Good | Z4: Neither Good nor Poor | AA4: Poor | AB4: Very Poor | AC4: Don't Know | AD4: Mode SMS | AE4: Mode Electronic Discharge | AF4: Mode Paper Home | AG4: Mode Telephone | AH4: Mode Online | AI4: Mode Other | AN4: Very Good | AO4: Good | AP4: Neither Good nor Poor | AQ4: Poor | AR4: Very Poor | AS4: Don't Know | AT4: Mode SMS | AU4: Mode Electronic Discharge | AV4: Mode Paper Home | AW4: Mode Telephone | AX4: Mode Online | AY4: Mode Other
C5: England (including Independent Sector Providers) | D5: 107096 | E5: 2924150 | F5: 0.9415851199 | G5: 0.0275173676 | H5: 87011 | I5: 13829 | J5: 2552 | K5: 1323 | L5: 1624 | M5: 757 | N5: 33735 | O5: 6823 | P5: 21651 | Q5: 1931 | R5: 41146 | S5: 1810 | T5: =SUM(T8:T145) -> 107096 | U5: =SUM(U8:U145) -> 2924150 | V5: =SUM(X5+Y5)/SUM(X5:AC5) -> 0.9415851199 | W5: =SUM(AA5+AB5)/SUM(X5:AC5) -> 0.0275173676 | X5: 87011 | Y5: 13829 | Z5: 2552 | AA5: 1323 | AB5: 1624 | AC5: 757 | AD5: =SUM(AD8:AD145) -> 33735 | AE5: 6823 | AF5: 21651 | AG5: 1931 | AH5: 41146 | AI5: 1810 | AJ5: =IFERROR(D5-T5,0) -> 0 | AK5: =IFERROR(E5-U5,0) -> 0 | AL5: =IFERROR(F5-V5,0) -> 0 | AM5: =IFERROR(G5-W5,0) -> 0 | AN5: =IFERROR(H5-X5,0) -> 0 | AO5: =IFERROR(I5-Y5,0) -> 0 | AP5: =IFERROR(J5-Z5,0) -> 0 | AQ5: =IFERROR(K5-AA5,0) -> 0 | AR5: =IFERROR(L5-AB5,0) -> 0 | AS5: =IFERROR(M5-AC5,0) -> 0 | AT5: =IFERROR(N5-AD5,0) -> 0 | AU5: =IFERROR(O5-AE5,0) -> 0 | AV5: =IFERROR(P5-AF5,0) -> 0 | AW5: =IFERROR(Q5-AG5,0) -> 0 | AX5: =IFERROR(R5-AH5,0) -> 0 | AY5: =IFERROR(S5-AI5,0) -> 0
C6: England (excluding Independent Sector Providers) | D6: 80855 | E6: 2379111 | F6: 0.9471894131 | G6: 0.0235112238 | H6: 66493 | I6: 10092 | J6: 1788 | K6: 868 | L6: 1033 | M6: 581 | N6: 27100 | O6: 6463 | P6: 18288 | Q6: 1181 | R6: 26475 | S6: 1348 | T6: =SUM(T8:T103) -> 80855 | U6: =SUM(U8:U103) -> 2379111 | V6: 0.9471894131 | W6: 0.0235112238 | X6: 66493 | Y6: 10092 | Z6: 1788 | AA6: 868 | AB6: 1033 | AC6: 581 | AD6: =SUM(AD8:AD103) -> 27100 | AE6: 6463 | AF6: 18288 | AG6: 1181 | AH6: 26475 | AI6: 1348 | AJ6: 0 | AK6: 0 | AL6: 0 | AM6: 0 | AN6: 0 | AO6: 0 | AP6: 0 | AQ6: 0 | AR6: 0 | AS6: 0 | AT6: 0 | AU6: 0 | AV6: 0 | AW6: 0 | AX6: 0 | AY6: 0
C7: Selection (excluding suppressed data) | D7: =SUBTOTAL(9,D8:D294) -> 107096 | E7: =SUBTOTAL(9,E8:E294) -> 2924150 | F7: =IFERROR((H7+I7)/SUM(H7:M7), "-") -> 0.9415146003 | G7: =IFERROR((K7+L7)/SUM(H7:M7), "-") -> 0.02752198946 | H7: =SUBTOTAL(9,H8:H294) -> 86615 | I7: 13790 | J7: 2547 | K7: 1316 | L7: 1619 | M7: 755 | N7: 33735 | O7: 6823 | P7: 21476 | Q7: 1928 | R7: 40870 | S7: 1810 | T7: =SUMIF(D8:D145,"<>*",T8:T145) -> 107096 | U7: =SUMIF(E8:E145,"<>*",U8:U145) -> 2924150 | V7: 0.9415146003 | W7: 0.02752198946 | X7: 86615 | Y7: 13790 | Z7: 2547 | AA7: 1316 | AB7: 1619 | AC7: 755 | AD7: =SUMIF(N8:N145,"<>*",AD8:AD145) -> 33735 | AE7: =SUMIF(O8:O145,"<>*",AE8:AE145) -> 6823 | AF7: =SUMIF(P8:P145,"<>*",AF8:AF145) -> 21476 | AG7: =SUMIF(Q8:Q145,"<>*",AG8:AG145) -> 1928 | AH7: =SUMIF(R8:R145,"<>*",AH8:AH145) -> 40870 | AI7: =SUMIF(S8:S145,"<>*",AI8:AI145) -> 1810 | AJ7: 0 | AK7: 0 | AL7: 0 | AM7: 0 | AN7: 0 | AO7: 0 | AP7: 0 | AQ7: 0 | AR7: 0 | AS7: 0 | AT7: 0 | AU7: 0 | AV7: 0 | AW7: 0 | AX7: 0 | AY7: 0
A8: QE1 | B8: RXL | C8: BLACKPOOL TEACHING HOSPITALS NHS FOUNDATION TRUST | D8: 1645 | E8: 22826 | F8: 0.9568389058 | G8: 0.01398176292 | H8: 1450 | I8: 124 | J8: 33 | K8: 6 | L8: 17 | M8: 15 | N8: 605 | O8: 10 | P8: 633 | Q8: 0 | R8: 397 | S8: 0 | T8: =VLOOKUP($B8,'[1]Organisation Level'!$C$4:$N$141,11,0) -> 1645 | U8: =VLOOKUP($B8,'[1]Organisation Level'!$C$4:$N$141,12,0) -> 22826 | V8: =SUM(X8+Y8)/SUM(X8:AC8) -> 0.9568389058 | W8: =SUM(AA8+AB8)/SUM(X8:AC8) -> 0.01398176292 | X8: =VLOOKUP($B8,'[1]Organisation Level'!$C$4:$N$141,5,0) -> 1450 | Y8: =VLOOKUP($B8,'[1]Organisation Level'!$C$4:$N$141,6,0) -> 124 | Z8: =VLOOKUP($B8,'[1]Organisation Level'!$C$4:$N$141,7,0) -> 33 | AA8: =VLOOKUP($B8,'[1]Organisation Level'!$C$4:$N$141,8,0) -> 6 | AB8: =VLOOKUP($B8,'[1]Organisation Level'!$C$4:$N$141,9,0) -> 17 | AC8: =VLOOKUP($B8,'[1]Organisation Level'!$C$4:$N$141,10,0) -> 15 | AD8: =VLOOKUP($B8,'[1]Collection Mode'!$C$4:$M$141,6,0) -> 605 | AE8: =VLOOKUP($B8,'[1]Collection Mode'!$C$4:$M$141,7,0) -> 10 | AF8: =VLOOKUP($B8,'[1]Collection Mode'!$C$4:$M$141,8,0) -> 633 | AG8: =VLOOKUP($B8,'[1]Collection Mode'!$C$4:$M$141,9,0) -> 0 | AH8: =VLOOKUP($B8,'[1]Collection Mode'!$C$4:$M$141,10,0) -> 397 | AI8: =VLOOKUP($B8,'[1]Collection Mode'!$C$4:$M$141,11,0) -> 0 | AJ8: =IFERROR(D8-T8,0) -> 0 | AK8: =IFERROR(E8-U8,0) -> 0 | AL8: 0 | AM8: 0 | AN8: 0 | AO8: 0 | AP8: 0 | AQ8: 0 | AR8: 0 | AS8: 0 | AT8: 0 | AU8: 0 | AV8: 0 | AW8: 0 | AX8: 0 | AY8: 0
A9: QE1 | B9: RXR | C9: EAST LANCASHIRE HOSPITALS NHS TRUST | D9: 841 | E9: 82340 | F9: 0.9191438763 | G9: 0.02853745541 | H9: 655 | I9: 118 | J9: 24 | K9: 15 | L9: 9 | M9: 20 | N9: 465 | O9: 0 | P9: 153 | Q9: 86 | R9: 137 | S9: 0 | T9: =VLOOKUP($B9,'[1]Organisation Level'!$C$4:$N$141,11,0) -> 841 | U9: =VLOOKUP($B9,'[1]Organisation Level'!$C$4:$N$141,12,0) -> 82340 | V9: =SUM(X9+Y9)/SUM(X9:AC9) -> 0.9191438763 | W9: =SUM(AA9+AB9)/SUM(X9:AC9) -> 0.02853745541 | X9: =VLOOKUP($B9,'[1]Organisation Level'!$C$4:$N$141,5,0) -> 655 | Y9: =VLOOKUP($B9,'[1]Organisation Level'!$C$4:$N$141,6,0) -> 118 | Z9: =VLOOKUP($B9,'[1]Organisation Level'!$C$4:$N$141,7,0) -> 24 | AA9: =VLOOKUP($B9,'[1]Organisation Level'!$C$4:$N$141,8,0) -> 15 | AB9: =VLOOKUP($B9,'[1]Organisation Level'!$C$4:$N$141,9,0) -> 9 | AC9: =VLOOKUP($B9,'[1]Organisation Level'!$C$4:$N$141,10,0) -> 20 | AD9: =VLOOKUP($B9,'[1]Collection Mode'!$C$4:$M$141,6,0) -> 465 | AE9: =VLOOKUP($B9,'[1]Collection Mode'!$C$4:$M$141,7,0) -> 0 | AF9: =VLOOKUP($B9,'[1]Collection Mode'!$C$4:$M$141,8,0) -> 153 | AG9: =VLOOKUP($B9,'[1]Collection Mode'!$C$4:$M$141,9,0) -> 86 | AH9: =VLOOKUP($B9,'[1]Collection Mode'!$C$4:$M$141,10,0) -> 137 | AI9: =VLOOKUP($B9,'[1]Collection Mode'!$C$4:$M$141,11,0) -> 0 | AJ9: =IFERROR(D9-T9,0) -> 0 | AK9: =IFERROR(E9-U9,0) -> 0 | AL9: =IFERROR(F9-V9,0) -> 0 | AM9: =IFERROR(G9-W9,0) -> 0 | AN9: =IFERROR(H9-X9,0) -> 0 | AO9: =IFERROR(I9-Y9,0) -> 0 | AP9: =IFERROR(J9-Z9,0) -> 0 | AQ9: =IFERROR(K9-AA9,0) -> 0 | AR9: =IFERROR(L9-AB9,0) -> 0 | AS9: =IFERROR(M9-AC9,0) -> 0 | AT9: =IFERROR(N9-AD9,0) -> 0 | AU9: =IFERROR(O9-AE9,0) -> 0 | AV9: =IFERROR(P9-AF9,0) -> 0 | AW9: =IFERROR(Q9-AG9,0) -> 0 | AX9: =IFERROR(R9-AH9,0) -> 0 | AY9: =IFERROR(S9-AI9,0) -> 0
A10: QE1 | B10: RW5 | C10: LANCASHIRE & SOUTH CUMBRIA NHS FOUNDATION TRUST | D10: 473 | E10: 49141 | F10: 0.9725158562 | G10: 0.02114164905 | H10: 439 | I10: 21 | J10: 2 | K10: 3 | L10: 7 | M10: 1 | N10: 0 | O10: 3 | P10: 0 | Q10: 0 | R10: 470 | S10: 0 | T10: =VLOOKUP($B10,'[1]Organisation Level'!$C$4:$N$141,11,0) -> 473 | U10: =VLOOKUP($B10,'[1]Organisation Level'!$C$4:$N$141,12,0) -> 49141 | V10: 0.9725158562 | W10: 0.02114164905 | X10: =VLOOKUP($B10,'[1]Organisation Level'!$C$4:$N$141,5,0) -> 439 | Y10: =VLOOKUP($B10,'[1]Organisation Level'!$C$4:$N$141,6,0) -> 21 | Z10: =VLOOKUP($B10,'[1]Organisation Level'!$C$4:$N$141,7,0) -> 2 | AA10: =VLOOKUP($B10,'[1]Organisation Level'!$C$4:$N$141,8,0) -> 3 | AB10: =VLOOKUP($B10,'[1]Organisation Level'!$C$4:$N$141,9,0) -> 7 | AC10: =VLOOKUP($B10,'[1]Organisation Level'!$C$4:$N$141,10,0) -> 1 | AD10: =VLOOKUP($B10,'[1]Collection Mode'!$C$4:$M$141,6,0) -> 0 | AE10: =VLOOKUP($B10,'[1]Collection Mode'!$C$4:$M$141,7,0) -> 3 | AF10: =VLOOKUP($B10,'[1]Collection Mode'!$C$4:$M$141,8,0) -> 0 | AG10: =VLOOKUP($B10,'[1]Collection Mode'!$C$4:$M$141,9,0) -> 0 | AH10: =VLOOKUP($B10,'[1]Collection Mode'!$C$4:$M$141,10,0) -> 470 | AI10: =VLOOKUP($B10,'[1]Collection Mode'!$C$4:$M$141,11,0) -> 0 | AJ10: 0 | AK10: 0 | AL10: 0 | AM10: 0 | AN10: 0 | AO10: 0 | AP10: 0 | AQ10: 0 | AR10: 0 | AS10: 0 | AT10: 0 | AU10: 0 | AV10: 0 | AW10: 0 | AX10: 0 | AY10: 0
A11: QE1 | B11: RTX | C11: UNIVERSITY HOSPITALS OF MORECAMBE BAY NHS FOUNDATION TRUST | D11: 32 | E11: 32 | F11: 1 | G11: 0 | H11: 19 | I11: 13 | J11: 0 | K11: 0 | L11: 0 | M11: 0 | N11: 0 | O11: 0 | P11: 0 | Q11: 0 | R11: 32 | S11: 0 | T11: =VLOOKUP($B11,'[1]Organisation Level'!$C$4:$N$141,11,0) -> 32 | U11: =VLOOKUP($B11,'[1]Organisation Level'!$C$4:$N$141,12,0) -> 32 | V11: 1 | W11: 0 | X11: =VLOOKUP($B11,'[1]Organisation Level'!$C$4:$N$141,5,0) -> 19 | Y11: =VLOOKUP($B11,'[1]Organisation Level'!$C$4:$N$141,6,0) -> 13 | Z11: =VLOOKUP($B11,'[1]Organisation Level'!$C$4:$N$141,7,0) -> 0 | AA11: =VLOOKUP($B11,'[1]Organisation Level'!$C$4:$N$141,8,0) -> 0 | AB11: =VLOOKUP($B11,'[1]Organisation Level'!$C$4:$N$141,9,0) -> 0 | AC11: =VLOOKUP($B11,'[1]Organisation Level'!$C$4:$N$141,10,0) -> 0 | AD11: =VLOOKUP($B11,'[1]Collection Mode'!$C$4:$M$141,6,0) -> 0 | AE11: =VLOOKUP($B11,'[1]Collection Mode'!$C$4:$M$141,7,0) -> 0 | AF11: =VLOOKUP($B11,'[1]Collection Mode'!$C$4:$M$141,8,0) -> 0 | AG11: =VLOOKUP($B11,'[1]Collection Mode'!$C$4:$M$141,9,0) -> 0 | AH11: =VLOOKUP($B11,'[1]Collection Mode'!$C$4:$M$141,10,0) -> 32 | AI11: =VLOOKUP($B11,'[1]Collection Mode'!$C$4:$M$141,11,0) -> 0 | AJ11: 0 | AK11: 0 | AL11: 0 | AM11: 0 | AN11: 0 | AO11: 0 | AP11: 0 | AQ11: 0 | AR11: 0 | AS11: 0 | AT11: 0 | AU11: 0 | AV11: 0 | AW11: 0 | AX11: 0 | AY11: 0
A12: QF7 | B12: RXE | C12: ROTHERHAM DONCASTER AND SOUTH HUMBER NHS FOUNDATION TRUST | D12: 105 | E12: 19429 | F12: 1 | G12: 0 | H12: 101 | I12: 4 | J12: 0 | K12: 0 | L12: 0 | M12: 0 | N12: 0 | O12: 0 | P12: 0 | Q12: 0 | R12: 105 | S12: 0 | T12: =VLOOKUP($B12,'[1]Organisation Level'!$C$4:$N$141,11,0) -> 105 | U12: =VLOOKUP($B12,'[1]Organisation Level'!$C$4:$N$141,12,0) -> 19429 | V12: 1 | W12: 0 | X12: =VLOOKUP($B12,'[1]Organisation Level'!$C$4:$N$141,5,0) -> 101 | Y12: =VLOOKUP($B12,'[1]Organisation Level'!$C$4:$N$141,6,0) -> 4 | Z12: =VLOOKUP($B12,'[1]Organisation Level'!$C$4:$N$141,7,0) -> 0 | AA12: =VLOOKUP($B12,'[1]Organisation Level'!$C$4:$N$141,8,0) -> 0 | AB12: =VLOOKUP($B12,'[1]Organisation Level'!$C$4:$N$141,9,0) -> 0 | AC12: =VLOOKUP($B12,'[1]Organisation Level'!$C$4:$N$141,10,0) -> 0 | AD12: =VLOOKUP($B12,'[1]Collection Mode'!$C$4:$M$141,6,0) -> 0 | AE12: =VLOOKUP($B12,'[1]Collection Mode'!$C$4:$M$141,7,0) -> 0 | AF12: =VLOOKUP($B12,'[1]Collection Mode'!$C$4:$M$141,8,0) -> 0 | AG12: =VLOOKUP($B12,'[1]Collection Mode'!$C$4:$M$141,9,0) -> 0 | AH12: =VLOOKUP($B12,'[1]Collection Mode'!$C$4:$M$141,10,0) -> 105 | AI12: =VLOOKUP($B12,'[1]Collection Mode'!$C$4:$M$141,11,0) -> 0 | AJ12: 0 | AK12: 0 | AL12: 0 | AM12: 0 | AN12: 0 | AO12: 0 | AP12: 0 | AQ12: 0 | AR12: 0 | AS12: 0 | AT12: 0 | AU12: 0 | AV12: 0 | AW12: 0 | AX12: 0 | AY12: 0
A13: QF7 | B13: RCU | C13: SHEFFIELD CHILDREN'S NHS FOUNDATION TRUST | D13: 65 | E13: 5489 | F13: 0.9384615385 | G13: 0.03076923077 | H13: 58 | I13: 3 | J13: 2 | K13: 0 | L13: 2 | M13: 0 | N13: 0 | O13: 0 | P13: 3 | Q13: 0 | R13: 62 | S13: 0 | T13: =VLOOKUP($B13,'[1]Organisation Level'!$C$4:$N$141,11,0) -> 65 | U13: =VLOOKUP($B13,'[1]Organisation Level'!$C$4:$N$141,12,0) -> 5489 | V13: 0.9384615385 | W13: 0.03076923077 | X13: =VLOOKUP($B13,'[1]Organisation Level'!$C$4:$N$141,5,0) -> 58 | Y13: =VLOOKUP($B13,'[1]Organisation Level'!$C$4:$N$141,6,0) -> 3 | Z13: =VLOOKUP($B13,'[1]Organisation Level'!$C$4:$N$141,7,0) -> 2 | AA13: =VLOOKUP($B13,'[1]Organisation Level'!$C$4:$N$141,8,0) -> 0 | AB13: =VLOOKUP($B13,'[1]Organisation Level'!$C$4:$N$141,9,0) -> 2 | AC13: =VLOOKUP($B13,'[1]Organisation Level'!$C$4:$N$141,10,0) -> 0 | AD13: =VLOOKUP($B13,'[1]Collection Mode'!$C$4:$M$141,6,0) -> 0 | AE13: =VLOOKUP($B13,'[1]Collection Mode'!$C$4:$M$141,7,0) -> 0 | AF13: =VLOOKUP($B13,'[1]Collection Mode'!$C$4:$M$141,8,0) -> 3 | AG13: =VLOOKUP($B13,'[1]Collection Mode'!$C$4:$M$141,9,0) -> 0 | AH13: =VLOOKUP($B13,'[1]Collection Mode'!$C$4:$M$141,10,0) -> 62 | AI13: =VLOOKUP($B13,'[1]Collection Mode'!$C$4:$M$141,11,0) -> 0 | AJ13: 0 | AK13: 0 | AL13: 0 | AM13: 0 | AN13: 0 | AO13: 0 | AP13: 0 | AQ13: 0 | AR13: 0 | AS13: 0 | AT13: 0 | AU13: 0 | AV13: 0 | AW13: 0 | AX13: 0 | AY13: 0
A14: QF7 | B14: RHQ | C14: SHEFFIELD TEACHING HOSPITALS NHS FOUNDATION TRUST | D14: 512 | E14: 22756 | F14: 0.904296875 | G14: 0.041015625 | H14: 371 | I14: 92 | J14: 24 | K14: 11 | L14: 10 | M14: 4 | N14: 357 | O14: 0 | P14: 35 | Q14: 74 | R14: 46 | S14: 0 | T14: =VLOOKUP($B14,'[1]Organisation Level'!$C$4:$N$141,11,0) -> 512 | U14: =VLOOKUP($B14,'[1]Organisation Level'!$C$4:$N$141,12,0) -> 22756 | V14: 0.904296875 | W14: 0.041015625 | X14: =VLOOKUP($B14,'[1]Organisation Level'!$C$4:$N$141,5,0) -> 371 | Y14: =VLOOKUP($B14,'[1]Organisation Level'!$C$4:$N$141,6,0) -> 92 | Z14: =VLOOKUP($B14,'[1]Organisation Level'!$C$4:$N$141,7,0) -> 24 | AA14: =VLOOKUP($B14,'[1]Organisation Level'!$C$4:$N$141,8,0) -> 11 | AB14: =VLOOKUP($B14,'[1]Organisation Level'!$C$4:$N$141,9,0) -> 10 | AC14: =VLOOKUP($B14,'[1]Organisation Level'!$C$4:$N$141,10,0) -> 4 | AD14: =VLOOKUP($B14,'[1]Collection Mode'!$C$4:$M$141,6,0) -> 357 | AE14: =VLOOKUP($B14,'[1]Collection Mode'!$C$4:$M$141,7,0) -> 0 | AF14: =VLOOKUP($B14,'[1]Collection Mode'!$C$4:$M$141,8,0) -> 35 | AG14: =VLOOKUP($B14,'[1]Collection Mode'!$C$4:$M$141,9,0) -> 74 | AH14: =VLOOKUP($B14,'[1]Collection Mode'!$C$4:$M$141,10,0) -> 46 | AI14: =VLOOKUP($B14,'[1]Collection Mode'!$C$4:$M$141,11,0) -> 0 | AJ14: 0 | AK14: 0 | AL14: 0 | AM14: 0 | AN14: 0 | AO14: 0 | AP14: 0 | AQ14: 0 | AR14: 0 | AS14: 0 | AT14: 0 | AU14: 0 | AV14: 0 | AW14: 0 | AX14: 0 | AY14: 0
A15: QF7 | B15: RFR | C15: THE ROTHERHAM NHS FOUNDATION TRUST | D15: 232 | E15: 29790 | F15: 0.9353448276 | G15: 0.03017241379 | H15: 192 | I15: 25 | J15: 5 | K15: 3 | L15: 4 | M15: 3 | N15: 0 | O15: 0 | P15: 95 | Q15: 0 | R15: 137 | S15: 0 | T15: =VLOOKUP($B15,'[1]Organisation Level'!$C$4:$N$141,11,0) -> 232 | U15: =VLOOKUP($B15,'[1]Organisation Level'!$C$4:$N$141,12,0) -> 29790 | V15: 0.9353448276 | W15: 0.03017241379 | X15: =VLOOKUP($B15,'[1]Organisation Level'!$C$4:$N$141,5,0) -> 192 | Y15: =VLOOKUP($B15,'[1]Organisation Level'!$C$4:$N$141,6,0) -> 25 | Z15: =VLOOKUP($B15,'[1]Organisation Level'!$C$4:$N$141,7,0) -> 5 | AA15: =VLOOKUP($B15,'[1]Organisation Level'!$C$4:$N$141,8,0) -> 3 | AB15: =VLOOKUP($B15,'[1]Organisation Level'!$C$4:$N$141,9,0) -> 4 | AC15: =VLOOKUP($B15,'[1]Organisation Level'!$C$4:$N$141,10,0) -> 3 | AD15: =VLOOKUP($B15,'[1]Collection Mode'!$C$4:$M$141,6,0) -> 0 | AE15: =VLOOKUP($B15,'[1]Collection Mode'!$C$4:$M$141,7,0) -> 0 | AF15: =VLOOKUP($B15,'[1]Collection Mode'!$C$4:$M$141,8,0) -> 95 | AG15: =VLOOKUP($B15,'[1]Collection Mode'!$C$4:$M$141,9,0) -> 0 | AH15: =VLOOKUP($B15,'[1]Collection Mode'!$C$4:$M$141,10,0) -> 137 | AI15: =VLOOKUP($B15,'[1]Collection Mode'!$C$4:$M$141,11,0) -> 0 | AJ15: 0 | AK15: 0 | AL15: 0 | AM15: 0 | AN15: 0 | AO15: 0 | AP15: 0 | AQ15: 0 | AR15: 0 | AS15: 0 | AT15: 0 | AU15: 0 | AV15: 0 | AW15: 0 | AX15: 0 | AY15: 0
A16: QGH | B16: R1A | C16: HEREFORDSHIRE AND WORCESTERSHIRE HEALTH AND CARE NHS TRUST | D16: 356 | E16: 356 | F16: 0.9606741573 | G16: 0.02247191011 | H16: * | I16: * | J16: * | K16: * | L16: * | M16: * | N16: * | O16: * | P16: * | Q16: * | R16: * | S16: * | T16: =VLOOKUP($B16,'[1]Organisation Level'!$C$4:$N$141,11,0) -> 356 | U16: =VLOOKUP($B16,'[1]Organisation Level'!$C$4:$N$141,12,0) -> 356 | V16: 0.9606741573 | W16: 0.02247191011 | X16: =VLOOKUP($B16,'[1]Organisation Level'!$C$4:$N$141,5,0) -> 314 | Y16: =VLOOKUP($B16,'[1]Organisation Level'!$C$4:$N$141,6,0) -> 28 | Z16: =VLOOKUP($B16,'[1]Organisation Level'!$C$4:$N$141,7,0) -> 4 | AA16: =VLOOKUP($B16,'[1]Organisation Level'!$C$4:$N$141,8,0) -> 3 | AB16: =VLOOKUP($B16,'[1]Organisation Level'!$C$4:$N$141,9,0) -> 5 | AC16: =VLOOKUP($B16,'[1]Organisation Level'!$C$4:$N$141,10,0) -> 2 | AD16: =VLOOKUP($B16,'[1]Collection Mode'!$C$4:$M$141,6,0) -> 0 | AE16: =VLOOKUP($B16,'[1]Collection Mode'!$C$4:$M$141,7,0) -> 0 | AF16: =VLOOKUP($B16,'[1]Collection Mode'!$C$4:$M$141,8,0) -> 85 | AG16: =VLOOKUP($B16,'[1]Collection Mode'!$C$4:$M$141,9,0) -> 0 | AH16: =VLOOKUP($B16,'[1]Collection Mode'!$C$4:$M$141,10,0) -> 271 | AI16: =VLOOKUP($B16,'[1]Collection Mode'!$C$4:$M$141,11,0) -> 0 | AJ16: 0 | AK16: 0 | AL16: 0 | AM16: 0 | AN16: 0 | AO16: 0 | AP16: 0 | AQ16: 0 | AR16: 0 | AS16: 0 | AT16: 0 | AU16: 0 | AV16: 0 | AW16: 0 | AX16: 0 | AY16: 0
A17: QGH | B17: RLQ | C17: WYE VALLEY NHS TRUST | D17: 4 | E17: 5196 | F17: * | G17: * | H17: * | I17: * | J17: * | K17: * | L17: * | M17: * | N17: * | O17: * | P17: * | Q17: * | R17: * | S17: * | T17: =VLOOKUP($B17,'[1]Organisation Level'!$C$4:$N$141,11,0) -> 4 | U17: =VLOOKUP($B17,'[1]Organisation Level'!$C$4:$N$141,12,0) -> 5196 | V17: 0 | W17: 1 | X17: =VLOOKUP($B17,'[1]Organisation Level'!$C$4:$N$141,5,0) -> 0 | Y17: =VLOOKUP($B17,'[1]Organisation Level'!$C$4:$N$141,6,0) -> 0 | Z17: =VLOOKUP($B17,'[1]Organisation Level'!$C$4:$N$141,7,0) -> 0 | AA17: =VLOOKUP($B17,'[1]Organisation Level'!$C$4:$N$141,8,0) -> 4 | AB17: =VLOOKUP($B17,'[1]Organisation Level'!$C$4:$N$141,9,0) -> 0 | AC17: =VLOOKUP($B17,'[1]Organisation Level'!$C$4:$N$141,10,0) -> 0 | AD17: =VLOOKUP($B17,'[1]Collection Mode'!$C$4:$M$141,6,0) -> 0 | AE17: =VLOOKUP($B17,'[1]Collection Mode'!$C$4:$M$141,7,0) -> 0 | AF17: =VLOOKUP($B17,'[1]Collection Mode'!$C$4:$M$141,8,0) -> 0 | AG17: =VLOOKUP($B17,'[1]Collection Mode'!$C$4:$M$141,9,0) -> 0 | AH17: =VLOOKUP($B17,'[1]Collection Mode'!$C$4:$M$141,10,0) -> 4 | AI17: =VLOOKUP($B17,'[1]Collection Mode'!$C$4:$M$141,11,0) -> 0 | AJ17: 0 | AK17: 0 | AL17: 0 | AM17: 0 | AN17: 0 | AO17: 0 | AP17: 0 | AQ17: 0 | AR17: 0 | AS17: 0 | AT17: 0 | AU17: 0 | AV17: 0 | AW17: 0 | AX17: 0 | AY17: 0
A18: QH8 | B18: R1L | C18: ESSEX PARTNERSHIP UNIVERSITY NHS FOUNDATION TRUST | D18: 266 | E18: 20350 | F18: 0.954887218 | G18: 0.01127819549 | H18: 235 | I18: 19 | J18: 4 | K18: 1 | L18: 2 | M18: 5 | N18: 0 | O18: 7 | P18: 0 | Q18: 128 | R18: 131 | S18: 0 | T18: =VLOOKUP($B18,'[1]Organisation Level'!$C$4:$N$141,11,0) -> 266 | U18: =VLOOKUP($B18,'[1]Organisation Level'!$C$4:$N$141,12,0) -> 20350 | V18: 0.954887218 | W18: 0.01127819549 | X18: =VLOOKUP($B18,'[1]Organisation Level'!$C$4:$N$141,5,0) -> 235 | Y18: =VLOOKUP($B18,'[1]Organisation Level'!$C$4:$N$141,6,0) -> 19 | Z18: =VLOOKUP($B18,'[1]Organisation Level'!$C$4:$N$141,7,0) -> 4 | AA18: =VLOOKUP($B18,'[1]Organisation Level'!$C$4:$N$141,8,0) -> 1 | AB18: =VLOOKUP($B18,'[1]Organisation Level'!$C$4:$N$141,9,0) -> 2 | AC18: =VLOOKUP($B18,'[1]Organisation Level'!$C$4:$N$141,10,0) -> 5 | AD18: =VLOOKUP($B18,'[1]Collection Mode'!$C$4:$M$141,6,0) -> 0 | AE18: =VLOOKUP($B18,'[1]Collection Mode'!$C$4:$M$141,7,0) -> 7 | AF18: =VLOOKUP($B18,'[1]Collection Mode'!$C$4:$M$141,8,0) -> 0 | AG18: =VLOOKUP($B18,'[1]Collection Mode'!$C$4:$M$141,9,0) -> 128 | AH18: =VLOOKUP($B18,'[1]Collection Mode'!$C$4:$M$141,10,0) -> 131 | AI18: =VLOOKUP($B18,'[1]Collection Mode'!$C$4:$M$141,11,0) -> 0 | AJ18: 0 | AK18: 0 | AL18: 0 | AM18: 0 | AN18: 0 | AO18: 0 | AP18: 0 | AQ18: 0 | AR18: 0 | AS18: 0 | AT18: 0 | AU18: 0 | AV18: 0 | AW18: 0 | AX18: 0 | AY18: 0
A19: QHL | B19: RYW | C19: BIRMINGHAM COMMUNITY HEALTHCARE NHS FOUNDATION TRUST | D19: 445 | E19: 54710 | F19: 0.9752808989 | G19: 0.004494382022 | H19: 373 | I19: 61 | J19: 9 | K19: 0 | L19: 2 | M19: 0 | N19: 0 | O19: 0 | P19: 103 | Q19: 0 | R19: 342 | S19: 0 | T19: =VLOOKUP($B19,'[1]Organisation Level'!$C$4:$N$141,11,0) -> 445 | U19: =VLOOKUP($B19,'[1]Organisation Level'!$C$4:$N$141,12,0) -> 54710 | V19: 0.9752808989 | W19: 0.004494382022 | X19: =VLOOKUP($B19,'[1]Organisation Level'!$C$4:$N$141,5,0) -> 373 | Y19: =VLOOKUP($B19,'[1]Organisation Level'!$C$4:$N$141,6,0) -> 61 | Z19: =VLOOKUP($B19,'[1]Organisation Level'!$C$4:$N$141,7,0) -> 9 | AA19: =VLOOKUP($B19,'[1]Organisation Level'!$C$4:$N$141,8,0) -> 0 | AB19: =VLOOKUP($B19,'[1]Organisation Level'!$C$4:$N$141,9,0) -> 2 | AC19: =VLOOKUP($B19,'[1]Organisation Level'!$C$4:$N$141,10,0) -> 0 | AD19: =VLOOKUP($B19,'[1]Collection Mode'!$C$4:$M$141,6,0) -> 0 | AE19: =VLOOKUP($B19,'[1]Collection Mode'!$C$4:$M$141,7,0) -> 0 | AF19: =VLOOKUP($B19,'[1]Collection Mode'!$C$4:$M$141,8,0) -> 103 | AG19: =VLOOKUP($B19,'[1]Collection Mode'!$C$4:$M$141,9,0) -> 0 | AH19: =VLOOKUP($B19,'[1]Collection Mode'!$C$4:$M$141,10,0) -> 342 | AI19: =VLOOKUP($B19,'[1]Collection Mode'!$C$4:$M$141,11,0) -> 0 | AJ19: 0 | AK19: 0 | AL19: 0 | AM19: 0 | AN19: 0 | AO19: 0 | AP19: 0 | AQ19: 0 | AR19: 0 | AS19: 0 | AT19: 0 | AU19: 0 | AV19: 0 | AW19: 0 | AX19: 0 | AY19: 0
A20: QHL | B20: RRK | C20: UNIVERSITY HOSPITALS BIRMINGHAM NHS FOUNDATION TRUST | D20: 166 | E20: 5067 | F20: 0.9397590361 | G20: 0.03012048193 | H20: 134 | I20: 22 | J20: 5 | K20: 1 | L20: 4 | M20: 0 | N20: 0 | O20: 0 | P20: 143 | Q20: 0 | R20: 23 | S20: 0 | T20: =VLOOKUP($B20,'[1]Organisation Level'!$C$4:$N$141,11,0) -> 166 | U20: =VLOOKUP($B20,'[1]Organisation Level'!$C$4:$N$141,12,0) -> 5067 | V20: 0.9397590361 | W20: 0.03012048193 | X20: =VLOOKUP($B20,'[1]Organisation Level'!$C$4:$N$141,5,0) -> 134 | Y20: =VLOOKUP($B20,'[1]Organisation Level'!$C$4:$N$141,6,0) -> 22 | Z20: =VLOOKUP($B20,'[1]Organisation Level'!$C$4:$N$141,7,0) -> 5 | AA20: =VLOOKUP($B20,'[1]Organisation Level'!$C$4:$N$141,8,0) -> 1 | AB20: =VLOOKUP($B20,'[1]Organisation Level'!$C$4:$N$141,9,0) -> 4 | AC20: =VLOOKUP($B20,'[1]Organisation Level'!$C$4:$N$141,10,0) -> 0 | AD20: =VLOOKUP($B20,'[1]Collection Mode'!$C$4:$M$141,6,0) -> 0 | AE20: =VLOOKUP($B20,'[1]Collection Mode'!$C$4:$M$141,7,0) -> 0 | AF20: =VLOOKUP($B20,'[1]Collection Mode'!$C$4:$M$141,8,0) -> 143 | AG20: =VLOOKUP($B20,'[1]Collection Mode'!$C$4:$M$141,9,0) -> 0 | AH20: =VLOOKUP($B20,'[1]Collection Mode'!$C$4:$M$141,10,0) -> 23 | AI20: =VLOOKUP($B20,'[1]Collection Mode'!$C$4:$M$141,11,0) -> 0 | AJ20: 0 | AK20: 0 | AL20: 0 | AM20: 0 | AN20: 0 | AO20: 0 | AP20: 0 | AQ20: 0 | AR20: 0 | AS20: 0 | AT20: 0 | AU20: 0 | AV20: 0 | AW20: 0 | AX20: 0 | AY20: 0
A21: QHM | B21: RXP | C21: COUNTY DURHAM AND DARLINGTON NHS FOUNDATION TRUST | D21: 20 | E21: 577 | F21: 1 | G21: 0 | H21: 16 | I21: 4 | J21: 0 | K21: 0 | L21: 0 | M21: 0 | N21: 0 | O21: 0 | P21: 20 | Q21: 0 | R21: 0 | S21: 0 | T21: =VLOOKUP($B21,'[1]Organisation Level'!$C$4:$N$141,11,0) -> 20 | U21: =VLOOKUP($B21,'[1]Organisation Level'!$C$4:$N$141,12,0) -> 577 | V21: 1 | W21: 0 | X21: =VLOOKUP($B21,'[1]Organisation Level'!$C$4:$N$141,5,0) -> 16 | Y21: =VLOOKUP($B21,'[1]Organisation Level'!$C$4:$N$141,6,0) -> 4 | Z21: =VLOOKUP($B21,'[1]Organisation Level'!$C$4:$N$141,7,0) -> 0 | AA21: =VLOOKUP($B21,'[1]Organisation Level'!$C$4:$N$141,8,0) -> 0 | AB21: =VLOOKUP($B21,'[1]Organisation Level'!$C$4:$N$141,9,0) -> 0 | AC21: =VLOOKUP($B21,'[1]Organisation Level'!$C$4:$N$141,10,0) -> 0 | AD21: =VLOOKUP($B21,'[1]Collection Mode'!$C$4:$M$141,6,0) -> 0 | AE21: =VLOOKUP($B21,'[1]Collection Mode'!$C$4:$M$141,7,0) -> 0 | AF21: =VLOOKUP($B21,'[1]Collection Mode'!$C$4:$M$141,8,0) -> 20 | AG21: =VLOOKUP($B21,'[1]Collection Mode'!$C$4:$M$141,9,0) -> 0 | AH21: =VLOOKUP($B21,'[1]Collection Mode'!$C$4:$M$141,10,0) -> 0 | AI21: =VLOOKUP($B21,'[1]Collection Mode'!$C$4:$M$141,11,0) -> 0 | AJ21: 0 | AK21: 0 | AL21: 0 | AM21: 0 | AN21: 0 | AO21: 0 | AP21: 0 | AQ21: 0 | AR21: 0 | AS21: 0 | AT21: 0 | AU21: 0 | AV21: 0 | AW21: 0 | AX21: 0 | AY21: 0
A22: QHM | B22: RR7 | C22: GATESHEAD HEALTH NHS FOUNDATION TRUST | D22: 5 | E22: 50976 | F22: 1 | G22: 0 | H22: 4 | I22: 1 | J22: 0 | K22: 0 | L22: 0 | M22: 0 | N22: 3 | O22: 0 | P22: 2 | Q22: 0 | R22: 0 | S22: 0 | T22: =VLOOKUP($B22,'[1]Organisation Level'!$C$4:$N$141,11,0) -> 5 | U22: =VLOOKUP($B22,'[1]Organisation Level'!$C$4:$N$141,12,0) -> 50976 | V22: 1 | W22: 0 | X22: =VLOOKUP($B22,'[1]Organisation Level'!$C$4:$N$141,5,0) -> 4 | Y22: =VLOOKUP($B22,'[1]Organisation Level'!$C$4:$N$141,6,0) -> 1 | Z22: =VLOOKUP($B22,'[1]Organisation Level'!$C$4:$N$141,7,0) -> 0 | AA22: =VLOOKUP($B22,'[1]Organisation Level'!$C$4:$N$141,8,0) -> 0 | AB22: =VLOOKUP($B22,'[1]Organisation Level'!$C$4:$N$141,9,0) -> 0 | AC22: =VLOOKUP($B22,'[1]Organisation Level'!$C$4:$N$141,10,0) -> 0 | AD22: =VLOOKUP($B22,'[1]Collection Mode'!$C$4:$M$141,6,0) -> 3 | AE22: =VLOOKUP($B22,'[1]Collection Mode'!$C$4:$M$141,7,0) -> 0 | AF22: =VLOOKUP($B22,'[1]Collection Mode'!$C$4:$M$141,8,0) -> 2 | AG22: =VLOOKUP($B22,'[1]Collection Mode'!$C$4:$M$141,9,0) -> 0 | AH22: =VLOOKUP($B22,'[1]Collection Mode'!$C$4:$M$141,10,0) -> 0 | AI22: =VLOOKUP($B22,'[1]Collection Mode'!$C$4:$M$141,11,0) -> 0 | AJ22: 0 | AK22: 0 | AL22: 0 | AM22: 0 | AN22: 0 | AO22: 0 | AP22: 0 | AQ22: 0 | AR22: 0 | AS22: 0 | AT22: 0 | AU22: 0 | AV22: 0 | AW22: 0 | AX22: 0 | AY22: 0
A23: QHM | B23: RNN | C23: NORTH CUMBRIA INTEGRATED CARE NHS FOUNDATION TRUST | D23: 1124 | E23: 15359 | F23: 0.9608540925 | G23: 0.01957295374 | H23: 952 | I23: 128 | J23: 19 | K23: 10 | L23: 12 | M23: 3 | N23: 774 | O23: 0 | P23: 270 | Q23: 0 | R23: 80 | S23: 0 | T23: =VLOOKUP($B23,'[1]Organisation Level'!$C$4:$N$141,11,0) -> 1124 | U23: =VLOOKUP($B23,'[1]Organisation Level'!$C$4:$N$141,12,0) -> 15359 | V23: 0.9608540925 | W23: 0.01957295374 | X23: =VLOOKUP($B23,'[1]Organisation Level'!$C$4:$N$141,5,0) -> 952 | Y23: =VLOOKUP($B23,'[1]Organisation Level'!$C$4:$N$141,6,0) -> 128 | Z23: =VLOOKUP($B23,'[1]Organisation Level'!$C$4:$N$141,7,0) -> 19 | AA23: =VLOOKUP($B23,'[1]Organisation Level'!$C$4:$N$141,8,0) -> 10 | AB23: =VLOOKUP($B23,'[1]Organisation Level'!$C$4:$N$141,9,0) -> 12 | AC23: =VLOOKUP($B23,'[1]Organisation Level'!$C$4:$N$141,10,0) -> 3 | AD23: =VLOOKUP($B23,'[1]Collection Mode'!$C$4:$M$141,6,0) -> 774 | AE23: =VLOOKUP($B23,'[1]Collection Mode'!$C$4:$M$141,7,0) -> 0 | AF23: =VLOOKUP($B23,'[1]Collection Mode'!$C$4:$M$141,8,0) -> 270 | AG23: =VLOOKUP($B23,'[1]Collection Mode'!$C$4:$M$141,9,0) -> 0 | AH23: =VLOOKUP($B23,'[1]Collection Mode'!$C$4:$M$141,10,0) -> 80 | AI23: =VLOOKUP($B23,'[1]Collection Mode'!$C$4:$M$141,11,0) -> 0 | AJ23: 0 | AK23: 0 | AL23: 0 | AM23: 0 | AN23: 0 | AO23: 0 | AP23: 0 | AQ23: 0 | AR23: 0 | AS23: 0 | AT23: 0 | AU23: 0 | AV23: 0 | AW23: 0 | AX23: 0 | AY23: 0
A24: QHM | B24: RVW | C24: NORTH TEES AND HARTLEPOOL NHS FOUNDATION TRUST | D24: 214 | E24: 9930 | F24: 0.976635514 | G24: 0 | H24: 173 | I24: 36 | J24: 5 | K24: 0 | L24: 0 | M24: 0 | N24: 82 | O24: 0 | P24: 132 | Q24: 0 | R24: 0 | S24: 0 | T24: =VLOOKUP($B24,'[1]Organisation Level'!$C$4:$N$141,11,0) -> 214 | U24: =VLOOKUP($B24,'[1]Organisation Level'!$C$4:$N$141,12,0) -> 9930 | V24: 0.976635514 | W24: 0 | X24: =VLOOKUP($B24,'[1]Organisation Level'!$C$4:$N$141,5,0) -> 173 | Y24: =VLOOKUP($B24,'[1]Organisation Level'!$C$4:$N$141,6,0) -> 36 | Z24: =VLOOKUP($B24,'[1]Organisation Level'!$C$4:$N$141,7,0) -> 5 | AA24: =VLOOKUP($B24,'[1]Organisation Level'!$C$4:$N$141,8,0) -> 0 | AB24: =VLOOKUP($B24,'[1]Organisation Level'!$C$4:$N$141,9,0) -> 0 | AC24: =VLOOKUP($B24,'[1]Organisation Level'!$C$4:$N$141,10,0) -> 0 | AD24: =VLOOKUP($B24,'[1]Collection Mode'!$C$4:$M$141,6,0) -> 82 | AE24: =VLOOKUP($B24,'[1]Collection Mode'!$C$4:$M$141,7,0) -> 0 | AF24: =VLOOKUP($B24,'[1]Collection Mode'!$C$4:$M$141,8,0) -> 132 | AG24: =VLOOKUP($B24,'[1]Collection Mode'!$C$4:$M$141,9,0) -> 0 | AH24: =VLOOKUP($B24,'[1]Collection Mode'!$C$4:$M$141,10,0) -> 0 | AI24: =VLOOKUP($B24,'[1]Collection Mode'!$C$4:$M$141,11,0) -> 0 | AJ24: 0 | AK24: 0 | AL24: 0 | AM24: 0 | AN24: 0 | AO24: 0 | AP24: 0 | AQ24: 0 | AR24: 0 | AS24: 0 | AT24: 0 | AU24: 0 | AV24: 0 | AW24: 0 | AX24: 0 | AY24: 0
A25: QHM | B25: RTF | C25: NORTHUMBRIA HEALTHCARE NHS FOUNDATION TRUST | D25: 979 | E25: 23204 | F25: 0.9479060266 | G25: 0.02655771195 | H25: 814 | I25: 114 | J25: 19 | K25: 13 | L25: 13 | M25: 6 | N25: 979 | O25: 0 | P25: 0 | Q25: 0 | R25: 0 | S25: 0 | T25: =VLOOKUP($B25,'[1]Organisation Level'!$C$4:$N$141,11,0) -> 979 | U25: =VLOOKUP($B25,'[1]Organisation Level'!$C$4:$N$141,12,0) -> 23204 | V25: 0.9479060266 | W25: 0.02655771195 | X25: =VLOOKUP($B25,'[1]Organisation Level'!$C$4:$N$141,5,0) -> 814 | Y25: =VLOOKUP($B25,'[1]Organisation Level'!$C$4:$N$141,6,0) -> 114 | Z25: =VLOOKUP($B25,'[1]Organisation Level'!$C$4:$N$141,7,0) -> 19 | AA25: =VLOOKUP($B25,'[1]Organisation Level'!$C$4:$N$141,8,0) -> 13 | AB25: =VLOOKUP($B25,'[1]Organisation Level'!$C$4:$N$141,9,0) -> 13 | AC25: =VLOOKUP($B25,'[1]Organisation Level'!$C$4:$N$141,10,0) -> 6 | AD25: =VLOOKUP($B25,'[1]Collection Mode'!$C$4:$M$141,6,0) -> 979 | AE25: =VLOOKUP($B25,'[1]Collection Mode'!$C$4:$M$141,7,0) -> 0 | AF25: =VLOOKUP($B25,'[1]Collection Mode'!$C$4:$M$141,8,0) -> 0 | AG25: =VLOOKUP($B25,'[1]Collection Mode'!$C$4:$M$141,9,0) -> 0 | AH25: =VLOOKUP($B25,'[1]Collection Mode'!$C$4:$M$141,10,0) -> 0 | AI25: =VLOOKUP($B25,'[1]Collection Mode'!$C$4:$M$141,11,0) -> 0 | AJ25: 0 | AK25: 0 | AL25: 0 | AM25: 0 | AN25: 0 | AO25: 0 | AP25: 0 | AQ25: 0 | AR25: 0 | AS25: 0 | AT25: 0 | AU25: 0 | AV25: 0 | AW25: 0 | AX25: 0 | AY25: 0
A26: QHM | B26: RTR | C26: SOUTH TEES HOSPITALS NHS FOUNDATION TRUST | D26: 633 | E26: 5718 | F26: 0.9968404423 | G26: 0 | H26: 562 | I26: 69 | J26: 2 | K26: 0 | L26: 0 | M26: 0 | N26: 327 | O26: 277 | P26: 15 | Q26: 0 | R26: 14 | S26: 0 | T26: =VLOOKUP($B26,'[1]Organisation Level'!$C$4:$N$141,11,0) -> 633 | U26: =VLOOKUP($B26,'[1]Organisation Level'!$C$4:$N$141,12,0) -> 5718 | V26: 0.9968404423 | W26: 0 | X26: =VLOOKUP($B26,'[1]Organisation Level'!$C$4:$N$141,5,0) -> 562 | Y26: =VLOOKUP($B26,'[1]Organisation Level'!$C$4:$N$141,6,0) -> 69 | Z26: =VLOOKUP($B26,'[1]Organisation Level'!$C$4:$N$141,7,0) -> 2 | AA26: =VLOOKUP($B26,'[1]Organisation Level'!$C$4:$N$141,8,0) -> 0 | AB26: =VLOOKUP($B26,'[1]Organisation Level'!$C$4:$N$141,9,0) -> 0 | AC26: =VLOOKUP($B26,'[1]Organisation Level'!$C$4:$N$141,10,0) -> 0 | AD26: =VLOOKUP($B26,'[1]Collection Mode'!$C$4:$M$141,6,0) -> 327 | AE26: =VLOOKUP($B26,'[1]Collection Mode'!$C$4:$M$141,7,0) -> 277 | AF26: =VLOOKUP($B26,'[1]Collection Mode'!$C$4:$M$141,8,0) -> 15 | AG26: =VLOOKUP($B26,'[1]Collection Mode'!$C$4:$M$141,9,0) -> 0 | AH26: =VLOOKUP($B26,'[1]Collection Mode'!$C$4:$M$141,10,0) -> 14 | AI26: =VLOOKUP($B26,'[1]Collection Mode'!$C$4:$M$141,11,0) -> 0 | AJ26: 0 | AK26: 0 | AL26: 0 | AM26: 0 | AN26: 0 | AO26: 0 | AP26: 0 | AQ26: 0 | AR26: 0 | AS26: 0 | AT26: 0 | AU26: 0 | AV26: 0 | AW26: 0 | AX26: 0 | AY26: 0
A27: QHM | B27: R0B | C27: SOUTH TYNESIDE AND SUNDERLAND NHS FOUNDATION TRUST | D27: 538 | E27: 7356 | F27: 0.9925650558 | G27: 0.001858736059 | H27: 496 | I27: 38 | J27: 3 | K27: 1 | L27: 0 | M27: 0 | N27: 32 | O27: 15 | P27: 386 | Q27: 0 | R27: 105 | S27: 0 | T27: =VLOOKUP($B27,'[1]Organisation Level'!$C$4:$N$141,11,0) -> 538 | U27: =VLOOKUP($B27,'[1]Organisation Level'!$C$4:$N$141,12,0) -> 7356 | V27: 0.9925650558 | W27: 0.001858736059 | X27: =VLOOKUP($B27,'[1]Organisation Level'!$C$4:$N$141,5,0) -> 496 | Y27: =VLOOKUP($B27,'[1]Organisation Level'!$C$4:$N$141,6,0) -> 38 | Z27: =VLOOKUP($B27,'[1]Organisation Level'!$C$4:$N$141,7,0) -> 3 | AA27: =VLOOKUP($B27,'[1]Organisation Level'!$C$4:$N$141,8,0) -> 1 | AB27: =VLOOKUP($B27,'[1]Organisation Level'!$C$4:$N$141,9,0) -> 0 | AC27: =VLOOKUP($B27,'[1]Organisation Level'!$C$4:$N$141,10,0) -> 0 | AD27: =VLOOKUP($B27,'[1]Collection Mode'!$C$4:$M$141,6,0) -> 32 | AE27: =VLOOKUP($B27,'[1]Collection Mode'!$C$4:$M$141,7,0) -> 15 | AF27: =VLOOKUP($B27,'[1]Collection Mode'!$C$4:$M$141,8,0) -> 386 | AG27: =VLOOKUP($B27,'[1]Collection Mode'!$C$4:$M$141,9,0) -> 0 | AH27: =VLOOKUP($B27,'[1]Collection Mode'!$C$4:$M$141,10,0) -> 105 | AI27: =VLOOKUP($B27,'[1]Collection Mode'!$C$4:$M$141,11,0) -> 0 | AJ27: 0 | AK27: 0 | AL27: 0 | AM27: 0 | AN27: 0 | AO27: 0 | AP27: 0 | AQ27: 0 | AR27: 0 | AS27: 0 | AT27: 0 | AU27: 0 | AV27: 0 | AW27: 0 | AX27: 0 | AY27: 0
A28: QHM | B28: RTD | C28: THE NEWCASTLE UPON TYNE HOSPITALS NHS FOUNDATION TRUST | D28: 13 | E28: 3069 | F28: 0.9230769231 | G28: 0 | H28: 9 | I28: 3 | J28: 0 | K28: 0 | L28: 0 | M28: 1 | N28: 0 | O28: 0 | P28: 0 | Q28: 0 | R28: 13 | S28: 0 | T28: =VLOOKUP($B28,'[1]Organisation Level'!$C$4:$N$141,11,0) -> 13 | U28: =VLOOKUP($B28,'[1]Organisation Level'!$C$4:$N$141,12,0) -> 3069 | V28: 0.9230769231 | W28: 0 | X28: =VLOOKUP($B28,'[1]Organisation Level'!$C$4:$N$141,5,0) -> 9 | Y28: =VLOOKUP($B28,'[1]Organisation Level'!$C$4:$N$141,6,0) -> 3 | Z28: =VLOOKUP($B28,'[1]Organisation Level'!$C$4:$N$141,7,0) -> 0 | AA28: =VLOOKUP($B28,'[1]Organisation Level'!$C$4:$N$141,8,0) -> 0 | AB28: =VLOOKUP($B28,'[1]Organisation Level'!$C$4:$N$141,9,0) -> 0 | AC28: =VLOOKUP($B28,'[1]Organisation Level'!$C$4:$N$141,10,0) -> 1 | AD28: =VLOOKUP($B28,'[1]Collection Mode'!$C$4:$M$141,6,0) -> 0 | AE28: =VLOOKUP($B28,'[1]Collection Mode'!$C$4:$M$141,7,0) -> 0 | AF28: =VLOOKUP($B28,'[1]Collection Mode'!$C$4:$M$141,8,0) -> 0 | AG28: =VLOOKUP($B28,'[1]Collection Mode'!$C$4:$M$141,9,0) -> 0 | AH28: =VLOOKUP($B28,'[1]Collection Mode'!$C$4:$M$141,10,0) -> 13 | AI28: =VLOOKUP($B28,'[1]Collection Mode'!$C$4:$M$141,11,0) -> 0 | AJ28: 0 | AK28: 0 | AL28: 0 | AM28: 0 | AN28: 0 | AO28: 0 | AP28: 0 | AQ28: 0 | AR28: 0 | AS28: 0 | AT28: 0 | AU28: 0 | AV28: 0 | AW28: 0 | AX28: 0 | AY28: 0
A29: QJ2 | B29: RY8 | C29: DERBYSHIRE COMMUNITY HEALTH SERVICES NHS FOUNDATION TRUST | D29: 3064 | E29: 33705 | F29: 0.932767624 | G29: 0.03687989556 | H29: 2521 | I29: 337 | J29: 78 | K29: 63 | L29: 50 | M29: 15 | N29: 2769 | O29: 0 | P29: 5 | Q29: 0 | R29: 52 | S29: 238 | T29: =VLOOKUP($B29,'[1]Organisation Level'!$C$4:$N$141,11,0) -> 3064 | U29: =VLOOKUP($B29,'[1]Organisation Level'!$C$4:$N$141,12,0) -> 33705 | V29: 0.932767624 | W29: 0.03687989556 | X29: =VLOOKUP($B29,'[1]Organisation Level'!$C$4:$N$141,5,0) -> 2521 | Y29: =VLOOKUP($B29,'[1]Organisation Level'!$C$4:$N$141,6,0) -> 337 | Z29: =VLOOKUP($B29,'[1]Organisation Level'!$C$4:$N$141,7,0) -> 78 | AA29: =VLOOKUP($B29,'[1]Organisation Level'!$C$4:$N$141,8,0) -> 63 | AB29: =VLOOKUP($B29,'[1]Organisation Level'!$C$4:$N$141,9,0) -> 50 | AC29: =VLOOKUP($B29,'[1]Organisation Level'!$C$4:$N$141,10,0) -> 15 | AD29: =VLOOKUP($B29,'[1]Collection Mode'!$C$4:$M$141,6,0) -> 2769 | AE29: =VLOOKUP($B29,'[1]Collection Mode'!$C$4:$M$141,7,0) -> 0 | AF29: =VLOOKUP($B29,'[1]Collection Mode'!$C$4:$M$141,8,0) -> 5 | AG29: =VLOOKUP($B29,'[1]Collection Mode'!$C$4:$M$141,9,0) -> 0 | AH29: =VLOOKUP($B29,'[1]Collection Mode'!$C$4:$M$141,10,0) -> 52 | AI29: =VLOOKUP($B29,'[1]Collection Mode'!$C$4:$M$141,11,0) -> 238 | AJ29: 0 | AK29: 0 | AL29: 0 | AM29: 0 | AN29: 0 | AO29: 0 | AP29: 0 | AQ29: 0 | AR29: 0 | AS29: 0 | AT29: 0 | AU29: 0 | AV29: 0 | AW29: 0 | AX29: 0 | AY29: 0
A30: QJ2 | B30: RXM | C30: DERBYSHIRE HEALTHCARE NHS FOUNDATION TRUST | D30: 12 | E30: 5452 | F30: 0.9166666667 | G30: 0.08333333333 | H30: 8 | I30: 3 | J30: 0 | K30: 0 | L30: 1 | M30: 0 | N30: 0 | O30: 0 | P30: 0 | Q30: 0 | R30: 12 | S30: 0 | T30: =VLOOKUP($B30,'[1]Organisation Level'!$C$4:$N$141,11,0) -> 12 | U30: =VLOOKUP($B30,'[1]Organisation Level'!$C$4:$N$141,12,0) -> 5452 | V30: 0.9166666667 | W30: 0.08333333333 | X30: =VLOOKUP($B30,'[1]Organisation Level'!$C$4:$N$141,5,0) -> 8 | Y30: =VLOOKUP($B30,'[1]Organisation Level'!$C$4:$N$141,6,0) -> 3 | Z30: =VLOOKUP($B30,'[1]Organisation Level'!$C$4:$N$141,7,0) -> 0 | AA30: =VLOOKUP($B30,'[1]Organisation Level'!$C$4:$N$141,8,0) -> 0 | AB30: =VLOOKUP($B30,'[1]Organisation Level'!$C$4:$N$141,9,0) -> 1 | AC30: =VLOOKUP($B30,'[1]Organisation Level'!$C$4:$N$141,10,0) -> 0 | AD30: =VLOOKUP($B30,'[1]Collection Mode'!$C$4:$M$141,6,0) -> 0 | AE30: =VLOOKUP($B30,'[1]Collection Mode'!$C$4:$M$141,7,0) -> 0 | AF30: =VLOOKUP($B30,'[1]Collection Mode'!$C$4:$M$141,8,0) -> 0 | AG30: =VLOOKUP($B30,'[1]Collection Mode'!$C$4:$M$141,9,0) -> 0 | AH30: =VLOOKUP($B30,'[1]Collection Mode'!$C$4:$M$141,10,0) -> 12 | AI30: =VLOOKUP($B30,'[1]Collection Mode'!$C$4:$M$141,11,0) -> 0 | AJ30: 0 | AK30: 0 | AL30: 0 | AM30: 0 | AN30: 0 | AO30: 0 | AP30: 0 | AQ30: 0 | AR30: 0 | AS30: 0 | AT30: 0 | AU30: 0 | AV30: 0 | AW30: 0 | AX30: 0 | AY30: 0
A31: QJG | B31: RDE | C31: EAST SUFFOLK AND NORTH ESSEX NHS FOUNDATION TRUST | D31: 400 | E31: 8994 | F31: 0.95 | G31: 0.02 | H31: 351 | I31: 29 | J31: 10 | K31: 5 | L31: 3 | M31: 2 | N31: 0 | O31: 0 | P31: 143 | Q31: 0 | R31: 257 | S31: 0 | T31: =VLOOKUP($B31,'[1]Organisation Level'!$C$4:$N$141,11,0) -> 400 | U31: =VLOOKUP($B31,'[1]Organisation Level'!$C$4:$N$141,12,0) -> 8994 | V31: 0.95 | W31: 0.02 | X31: =VLOOKUP($B31,'[1]Organisation Level'!$C$4:$N$141,5,0) -> 351 | Y31: =VLOOKUP($B31,'[1]Organisation Level'!$C$4:$N$141,6,0) -> 29 | Z31: =VLOOKUP($B31,'[1]Organisation Level'!$C$4:$N$141,7,0) -> 10 | AA31: =VLOOKUP($B31,'[1]Organisation Level'!$C$4:$N$141,8,0) -> 5 | AB31: =VLOOKUP($B31,'[1]Organisation Level'!$C$4:$N$141,9,0) -> 3 | AC31: =VLOOKUP($B31,'[1]Organisation Level'!$C$4:$N$141,10,0) -> 2 | AD31: =VLOOKUP($B31,'[1]Collection Mode'!$C$4:$M$141,6,0) -> 0 | AE31: =VLOOKUP($B31,'[1]Collection Mode'!$C$4:$M$141,7,0) -> 0 | AF31: =VLOOKUP($B31,'[1]Collection Mode'!$C$4:$M$141,8,0) -> 143 | AG31: =VLOOKUP($B31,'[1]Collection Mode'!$C$4:$M$141,9,0) -> 0 | AH31: =VLOOKUP($B31,'[1]Collection Mode'!$C$4:$M$141,10,0) -> 257 | AI31: =VLOOKUP($B31,'[1]Collection Mode'!$C$4:$M$141,11,0) -> 0 | AJ31: 0 | AK31: 0 | AL31: 0 | AM31: 0 | AN31: 0 | AO31: 0 | AP31: 0 | AQ31: 0 | AR31: 0 | AS31: 0 | AT31: 0 | AU31: 0 | AV31: 0 | AW31: 0 | AX31: 0 | AY31: 0
A32: QJG | B32: RGR | C32: WEST SUFFOLK NHS FOUNDATION TRUST | D32: 146 | E32: 2128 | F32: 0.9246575342 | G32: 0.06164383562 | H32: 110 | I32: 25 | J32: 1 | K32: 4 | L32: 5 | M32: 1 | N32: 0 | O32: 32 | P32: 72 | Q32: 0 | R32: 42 | S32: 0 | T32: =VLOOKUP($B32,'[1]Organisation Level'!$C$4:$N$141,11,0) -> 146 | U32: =VLOOKUP($B32,'[1]Organisation Level'!$C$4:$N$141,12,0) -> 2128 | V32: 0.9246575342 | W32: 0.06164383562 | X32: =VLOOKUP($B32,'[1]Organisation Level'!$C$4:$N$141,5,0) -> 110 | Y32: =VLOOKUP($B32,'[1]Organisation Level'!$C$4:$N$141,6,0) -> 25 | Z32: =VLOOKUP($B32,'[1]Organisation Level'!$C$4:$N$141,7,0) -> 1 | AA32: =VLOOKUP($B32,'[1]Organisation Level'!$C$4:$N$141,8,0) -> 4 | AB32: =VLOOKUP($B32,'[1]Organisation Level'!$C$4:$N$141,9,0) -> 5 | AC32: =VLOOKUP($B32,'[1]Organisation Level'!$C$4:$N$141,10,0) -> 1 | AD32: =VLOOKUP($B32,'[1]Collection Mode'!$C$4:$M$141,6,0) -> 0 | AE32: =VLOOKUP($B32,'[1]Collection Mode'!$C$4:$M$141,7,0) -> 32 | AF32: =VLOOKUP($B32,'[1]Collection Mode'!$C$4:$M$141,8,0) -> 72 | AG32: =VLOOKUP($B32,'[1]Collection Mode'!$C$4:$M$141,9,0) -> 0 | AH32: =VLOOKUP($B32,'[1]Collection Mode'!$C$4:$M$141,10,0) -> 42 | AI32: =VLOOKUP($B32,'[1]Collection Mode'!$C$4:$M$141,11,0) -> 0 | AJ32: 0 | AK32: 0 | AL32: 0 | AM32: 0 | AN32: 0 | AO32: 0 | AP32: 0 | AQ32: 0 | AR32: 0 | AS32: 0 | AT32: 0 | AU32: 0 | AV32: 0 | AW32: 0 | AX32: 0 | AY32: 0
A33: QJK | B33: RH8 | C33: ROYAL DEVON UNIVERSITY HEALTHCARE NHS FOUNDATION TRUST | D33: 592 | E33: 22752 | F33: 0.9847972973 | G33: 0.005067567568 | H33: 522 | I33: 61 | J33: 6 | K33: 2 | L33: 1 | M33: 0 | N33: 0 | O33: 0 | P33: 332 | Q33: 0 | R33: 260 | S33: 0 | T33: =VLOOKUP($B33,'[1]Organisation Level'!$C$4:$N$141,11,0) -> 592 | U33: =VLOOKUP($B33,'[1]Organisation Level'!$C$4:$N$141,12,0) -> 22752 | V33: 0.9847972973 | W33: 0.005067567568 | X33: =VLOOKUP($B33,'[1]Organisation Level'!$C$4:$N$141,5,0) -> 522 | Y33: =VLOOKUP($B33,'[1]Organisation Level'!$C$4:$N$141,6,0) -> 61 | Z33: =VLOOKUP($B33,'[1]Organisation Level'!$C$4:$N$141,7,0) -> 6 | AA33: =VLOOKUP($B33,'[1]Organisation Level'!$C$4:$N$141,8,0) -> 2 | AB33: =VLOOKUP($B33,'[1]Organisation Level'!$C$4:$N$141,9,0) -> 1 | AC33: =VLOOKUP($B33,'[1]Organisation Level'!$C$4:$N$141,10,0) -> 0 | AD33: =VLOOKUP($B33,'[1]Collection Mode'!$C$4:$M$141,6,0) -> 0 | AE33: =VLOOKUP($B33,'[1]Collection Mode'!$C$4:$M$141,7,0) -> 0 | AF33: =VLOOKUP($B33,'[1]Collection Mode'!$C$4:$M$141,8,0) -> 332 | AG33: =VLOOKUP($B33,'[1]Collection Mode'!$C$4:$M$141,9,0) -> 0 | AH33: =VLOOKUP($B33,'[1]Collection Mode'!$C$4:$M$141,10,0) -> 260 | AI33: =VLOOKUP($B33,'[1]Collection Mode'!$C$4:$M$141,11,0) -> 0 | AJ33: 0 | AK33: 0 | AL33: 0 | AM33: 0 | AN33: 0 | AO33: 0 | AP33: 0 | AQ33: 0 | AR33: 0 | AS33: 0 | AT33: 0 | AU33: 0 | AV33: 0 | AW33: 0 | AX33: 0 | AY33: 0
A34: QJK | B34: RA9 | C34: TORBAY AND SOUTH DEVON NHS FOUNDATION TRUST | D34: 88 | E34: 22770 | F34: 1 | G34: 0 | H34: * | I34: * | J34: * | K34: * | L34: * | M34: * | N34: * | O34: * | P34: * | Q34: * | R34: * | S34: * | T34: =VLOOKUP($B34,'[1]Organisation Level'!$C$4:$N$141,11,0) -> 88 | U34: =VLOOKUP($B34,'[1]Organisation Level'!$C$4:$N$141,12,0) -> 22770 | V34: 1 | W34: 0 | X34: =VLOOKUP($B34,'[1]Organisation Level'!$C$4:$N$141,5,0) -> 77 | Y34: =VLOOKUP($B34,'[1]Organisation Level'!$C$4:$N$141,6,0) -> 11 | Z34: =VLOOKUP($B34,'[1]Organisation Level'!$C$4:$N$141,7,0) -> 0 | AA34: =VLOOKUP($B34,'[1]Organisation Level'!$C$4:$N$141,8,0) -> 0 | AB34: =VLOOKUP($B34,'[1]Organisation Level'!$C$4:$N$141,9,0) -> 0 | AC34: =VLOOKUP($B34,'[1]Organisation Level'!$C$4:$N$141,10,0) -> 0 | AD34: =VLOOKUP($B34,'[1]Collection Mode'!$C$4:$M$141,6,0) -> 0 | AE34: =VLOOKUP($B34,'[1]Collection Mode'!$C$4:$M$141,7,0) -> 0 | AF34: =VLOOKUP($B34,'[1]Collection Mode'!$C$4:$M$141,8,0) -> 88 | AG34: =VLOOKUP($B34,'[1]Collection Mode'!$C$4:$M$141,9,0) -> 0 | AH34: =VLOOKUP($B34,'[1]Collection Mode'!$C$4:$M$141,10,0) -> 0 | AI34: =VLOOKUP($B34,'[1]Collection Mode'!$C$4:$M$141,11,0) -> 0 | AJ34: 0 | AK34: 0 | AL34: 0 | AM34: 0 | AN34: 0 | AO34: 0 | AP34: 0 | AQ34: 0 | AR34: 0 | AS34: 0 | AT34: 0 | AU34: 0 | AV34: 0 | AW34: 0 | AX34: 0 | AY34: 0
A35: QJK | B35: RK9 | C35: UNIVERSITY HOSPITALS PLYMOUTH NHS TRUST | D35: 1 | E35: 189 | F35: * | G35: * | H35: * | I35: * | J35: * | K35: * | L35: * | M35: * | N35: * | O35: * | P35: * | Q35: * | R35: * | S35: * | T35: =VLOOKUP($B35,'[1]Organisation Level'!$C$4:$N$141,11,0) -> 1 | U35: =VLOOKUP($B35,'[1]Organisation Level'!$C$4:$N$141,12,0) -> 189 | V35: 1 | W35: 0 | X35: =VLOOKUP($B35,'[1]Organisation Level'!$C$4:$N$141,5,0) -> 1 | Y35: =VLOOKUP($B35,'[1]Organisation Level'!$C$4:$N$141,6,0) -> 0 | Z35: =VLOOKUP($B35,'[1]Organisation Level'!$C$4:$N$141,7,0) -> 0 | AA35: =VLOOKUP($B35,'[1]Organisation Level'!$C$4:$N$141,8,0) -> 0 | AB35: =VLOOKUP($B35,'[1]Organisation Level'!$C$4:$N$141,9,0) -> 0 | AC35: =VLOOKUP($B35,'[1]Organisation Level'!$C$4:$N$141,10,0) -> 0 | AD35: =VLOOKUP($B35,'[1]Collection Mode'!$C$4:$M$141,6,0) -> 0 | AE35: =VLOOKUP($B35,'[1]Collection Mode'!$C$4:$M$141,7,0) -> 0 | AF35: =VLOOKUP($B35,'[1]Collection Mode'!$C$4:$M$141,8,0) -> 0 | AG35: =VLOOKUP($B35,'[1]Collection Mode'!$C$4:$M$141,9,0) -> 0 | AH35: =VLOOKUP($B35,'[1]Collection Mode'!$C$4:$M$141,10,0) -> 1 | AI35: =VLOOKUP($B35,'[1]Collection Mode'!$C$4:$M$141,11,0) -> 0 | AJ35: 0 | AK35: 0 | AL35: 0 | AM35: 0 | AN35: 0 | AO35: 0 | AP35: 0 | AQ35: 0 | AR35: 0 | AS35: 0 | AT35: 0 | AU35: 0 | AV35: 0 | AW35: 0 | AX35: 0 | AY35: 0
A36: QJM | B36: RY5 | C36: LINCOLNSHIRE COMMUNITY HEALTH SERVICES NHS TRUST | D36: 4799 | E36: 26753 | F36: 0.892894353 | G36: 0.05938737237 | H36: 3637 | I36: 648 | J36: 177 | K36: 130 | L36: 155 | M36: 52 | N36: 3870 | O36: 527 | P36: 366 | Q36: 0 | R36: 36 | S36: 0 | T36: =VLOOKUP($B36,'[1]Organisation Level'!$C$4:$N$141,11,0) -> 4799 | U36: =VLOOKUP($B36,'[1]Organisation Level'!$C$4:$N$141,12,0) -> 26753 | V36: 0.892894353 | W36: 0.05938737237 | X36: =VLOOKUP($B36,'[1]Organisation Level'!$C$4:$N$141,5,0) -> 3637 | Y36: =VLOOKUP($B36,'[1]Organisation Level'!$C$4:$N$141,6,0) -> 648 | Z36: =VLOOKUP($B36,'[1]Organisation Level'!$C$4:$N$141,7,0) -> 177 | AA36: =VLOOKUP($B36,'[1]Organisation Level'!$C$4:$N$141,8,0) -> 130 | AB36: =VLOOKUP($B36,'[1]Organisation Level'!$C$4:$N$141,9,0) -> 155 | AC36: =VLOOKUP($B36,'[1]Organisation Level'!$C$4:$N$141,10,0) -> 52 | AD36: =VLOOKUP($B36,'[1]Collection Mode'!$C$4:$M$141,6,0) -> 3870 | AE36: =VLOOKUP($B36,'[1]Collection Mode'!$C$4:$M$141,7,0) -> 527 | AF36: =VLOOKUP($B36,'[1]Collection Mode'!$C$4:$M$141,8,0) -> 366 | AG36: =VLOOKUP($B36,'[1]Collection Mode'!$C$4:$M$141,9,0) -> 0 | AH36: =VLOOKUP($B36,'[1]Collection Mode'!$C$4:$M$141,10,0) -> 36 | AI36: =VLOOKUP($B36,'[1]Collection Mode'!$C$4:$M$141,11,0) -> 0 | AJ36: 0 | AK36: 0 | AL36: 0 | AM36: 0 | AN36: 0 | AO36: 0 | AP36: 0 | AQ36: 0 | AR36: 0 | AS36: 0 | AT36: 0 | AU36: 0 | AV36: 0 | AW36: 0 | AX36: 0 | AY36: 0
A37: QK1 | B37: RT5 | C37: LEICESTERSHIRE PARTNERSHIP NHS TRUST | D37: 1158 | E37: 44331 | F37: 0.9231433506 | G37: 0.02590673575 | H37: 893 | I37: 176 | J37: 48 | K37: 13 | L37: 17 | M37: 11 | N37: 450 | O37: 13 | P37: 0 | Q37: 47 | R37: 648 | S37: 0 | T37: =VLOOKUP($B37,'[1]Organisation Level'!$C$4:$N$141,11,0) -> 1158 | U37: =VLOOKUP($B37,'[1]Organisation Level'!$C$4:$N$141,12,0) -> 44331 | V37: 0.9231433506 | W37: 0.02590673575 | X37: =VLOOKUP($B37,'[1]Organisation Level'!$C$4:$N$141,5,0) -> 893 | Y37: =VLOOKUP($B37,'[1]Organisation Level'!$C$4:$N$141,6,0) -> 176 | Z37: =VLOOKUP($B37,'[1]Organisation Level'!$C$4:$N$141,7,0) -> 48 | AA37: =VLOOKUP($B37,'[1]Organisation Level'!$C$4:$N$141,8,0) -> 13 | AB37: =VLOOKUP($B37,'[1]Organisation Level'!$C$4:$N$141,9,0) -> 17 | AC37: =VLOOKUP($B37,'[1]Organisation Level'!$C$4:$N$141,10,0) -> 11 | AD37: =VLOOKUP($B37,'[1]Collection Mode'!$C$4:$M$141,6,0) -> 450 | AE37: =VLOOKUP($B37,'[1]Collection Mode'!$C$4:$M$141,7,0) -> 13 | AF37: =VLOOKUP($B37,'[1]Collection Mode'!$C$4:$M$141,8,0) -> 0 | AG37: =VLOOKUP($B37,'[1]Collection Mode'!$C$4:$M$141,9,0) -> 47 | AH37: =VLOOKUP($B37,'[1]Collection Mode'!$C$4:$M$141,10,0) -> 648 | AI37: =VLOOKUP($B37,'[1]Collection Mode'!$C$4:$M$141,11,0) -> 0 | AJ37: 0 | AK37: 0 | AL37: 0 | AM37: 0 | AN37: 0 | AO37: 0 | AP37: 0 | AQ37: 0 | AR37: 0 | AS37: 0 | AT37: 0 | AU37: 0 | AV37: 0 | AW37: 0 | AX37: 0 | AY37: 0
A38: QKK | B38: RJ1 | C38: GUY'S AND ST THOMAS' NHS FOUNDATION TRUST | D38: 383 | E38: 5724 | F38: 0.9686684073 | G38: 0.01305483029 | H38: 281 | I38: 90 | J38: 4 | K38: 3 | L38: 2 | M38: 3 | N38: 0 | O38: 0 | P38: 308 | Q38: 0 | R38: 75 | S38: 0 | T38: =VLOOKUP($B38,'[1]Organisation Level'!$C$4:$N$141,11,0) -> 383 | U38: =VLOOKUP($B38,'[1]Organisation Level'!$C$4:$N$141,12,0) -> 5724 | V38: 0.9686684073 | W38: 0.01305483029 | X38: =VLOOKUP($B38,'[1]Organisation Level'!$C$4:$N$141,5,0) -> 281 | Y38: =VLOOKUP($B38,'[1]Organisation Level'!$C$4:$N$141,6,0) -> 90 | Z38: =VLOOKUP($B38,'[1]Organisation Level'!$C$4:$N$141,7,0) -> 4 | AA38: =VLOOKUP($B38,'[1]Organisation Level'!$C$4:$N$141,8,0) -> 3 | AB38: =VLOOKUP($B38,'[1]Organisation Level'!$C$4:$N$141,9,0) -> 2 | AC38: =VLOOKUP($B38,'[1]Organisation Level'!$C$4:$N$141,10,0) -> 3 | AD38: =VLOOKUP($B38,'[1]Collection Mode'!$C$4:$M$141,6,0) -> 0 | AE38: =VLOOKUP($B38,'[1]Collection Mode'!$C$4:$M$141,7,0) -> 0 | AF38: =VLOOKUP($B38,'[1]Collection Mode'!$C$4:$M$141,8,0) -> 308 | AG38: =VLOOKUP($B38,'[1]Collection Mode'!$C$4:$M$141,9,0) -> 0 | AH38: =VLOOKUP($B38,'[1]Collection Mode'!$C$4:$M$141,10,0) -> 75 | AI38: =VLOOKUP($B38,'[1]Collection Mode'!$C$4:$M$141,11,0) -> 0 | AJ38: 0 | AK38: 0 | AL38: 0 | AM38: 0 | AN38: 0 | AO38: 0 | AP38: 0 | AQ38: 0 | AR38: 0 | AS38: 0 | AT38: 0 | AU38: 0 | AV38: 0 | AW38: 0 | AX38: 0 | AY38: 0
A39: QKK | B39: RJ2 | C39: LEWISHAM AND GREENWICH NHS TRUST | D39: 909 | E39: 27322 | F39: 0.9801980198 | G39: 0.01100110011 | H39: 803 | I39: 88 | J39: 8 | K39: 5 | L39: 5 | M39: 0 | N39: 14 | O39: 10 | P39: 9 | Q39: 0 | R39: 876 | S39: 0 | T39: =VLOOKUP($B39,'[1]Organisation Level'!$C$4:$N$141,11,0) -> 909 | U39: =VLOOKUP($B39,'[1]Organisation Level'!$C$4:$N$141,12,0) -> 27322 | V39: 0.9801980198 | W39: 0.01100110011 | X39: =VLOOKUP($B39,'[1]Organisation Level'!$C$4:$N$141,5,0) -> 803 | Y39: =VLOOKUP($B39,'[1]Organisation Level'!$C$4:$N$141,6,0) -> 88 | Z39: =VLOOKUP($B39,'[1]Organisation Level'!$C$4:$N$141,7,0) -> 8 | AA39: =VLOOKUP($B39,'[1]Organisation Level'!$C$4:$N$141,8,0) -> 5 | AB39: =VLOOKUP($B39,'[1]Organisation Level'!$C$4:$N$141,9,0) -> 5 | AC39: =VLOOKUP($B39,'[1]Organisation Level'!$C$4:$N$141,10,0) -> 0 | AD39: =VLOOKUP($B39,'[1]Collection Mode'!$C$4:$M$141,6,0) -> 14 | AE39: =VLOOKUP($B39,'[1]Collection Mode'!$C$4:$M$141,7,0) -> 10 | AF39: =VLOOKUP($B39,'[1]Collection Mode'!$C$4:$M$141,8,0) -> 9 | AG39: =VLOOKUP($B39,'[1]Collection Mode'!$C$4:$M$141,9,0) -> 0 | AH39: =VLOOKUP($B39,'[1]Collection Mode'!$C$4:$M$141,10,0) -> 876 | AI39: =VLOOKUP($B39,'[1]Collection Mode'!$C$4:$M$141,11,0) -> 0 | AJ39: 0 | AK39: 0 | AL39: 0 | AM39: 0 | AN39: 0 | AO39: 0 | AP39: 0 | AQ39: 0 | AR39: 0 | AS39: 0 | AT39: 0 | AU39: 0 | AV39: 0 | AW39: 0 | AX39: 0 | AY39: 0
A40: QKK | B40: RPG | C40: OXLEAS NHS FOUNDATION TRUST | D40: 2102 | E40: 28808 | F40: 0.8958135109 | G40: 0.03520456708 | H40: 1540 | I40: 343 | J40: 126 | K40: 39 | L40: 35 | M40: 19 | N40: 1177 | O40: 120 | P40: 674 | Q40: 0 | R40: 82 | S40: 49 | T40: =VLOOKUP($B40,'[1]Organisation Level'!$C$4:$N$141,11,0) -> 2102 | U40: =VLOOKUP($B40,'[1]Organisation Level'!$C$4:$N$141,12,0) -> 28808 | V40: 0.8958135109 | W40: 0.03520456708 | X40: =VLOOKUP($B40,'[1]Organisation Level'!$C$4:$N$141,5,0) -> 1540 | Y40: =VLOOKUP($B40,'[1]Organisation Level'!$C$4:$N$141,6,0) -> 343 | Z40: =VLOOKUP($B40,'[1]Organisation Level'!$C$4:$N$141,7,0) -> 126 | AA40: =VLOOKUP($B40,'[1]Organisation Level'!$C$4:$N$141,8,0) -> 39 | AB40: =VLOOKUP($B40,'[1]Organisation Level'!$C$4:$N$141,9,0) -> 35 | AC40: =VLOOKUP($B40,'[1]Organisation Level'!$C$4:$N$141,10,0) -> 19 | AD40: =VLOOKUP($B40,'[1]Collection Mode'!$C$4:$M$141,6,0) -> 1177 | AE40: =VLOOKUP($B40,'[1]Collection Mode'!$C$4:$M$141,7,0) -> 120 | AF40: =VLOOKUP($B40,'[1]Collection Mode'!$C$4:$M$141,8,0) -> 674 | AG40: =VLOOKUP($B40,'[1]Collection Mode'!$C$4:$M$141,9,0) -> 0 | AH40: =VLOOKUP($B40,'[1]Collection Mode'!$C$4:$M$141,10,0) -> 82 | AI40: =VLOOKUP($B40,'[1]Collection Mode'!$C$4:$M$141,11,0) -> 49 | AJ40: 0 | AK40: 0 | AL40: 0 | AM40: 0 | AN40: 0 | AO40: 0 | AP40: 0 | AQ40: 0 | AR40: 0 | AS40: 0 | AT40: 0 | AU40: 0 | AV40: 0 | AW40: 0 | AX40: 0 | AY40: 0
A41: QKS | B41: RYY | C41: KENT COMMUNITY HEALTH NHS FOUNDATION TRUST | D41: 5040 | E41: 65000 | F41: 0.9714285714 | G41: 0.009126984127 | H41: 4393 | I41: 503 | J41: 81 | K41: 21 | L41: 25 | M41: 17 | N41: 1600 | O41: 173 | P41: 1874 | Q41: 181 | R41: 841 | S41: 371 | T41: =VLOOKUP($B41,'[1]Organisation Level'!$C$4:$N$141,11,0) -> 5040 | U41: =VLOOKUP($B41,'[1]Organisation Level'!$C$4:$N$141,12,0) -> 65000 | V41: 0.9714285714 | W41: 0.009126984127 | X41: =VLOOKUP($B41,'[1]Organisation Level'!$C$4:$N$141,5,0) -> 4393 | Y41: =VLOOKUP($B41,'[1]Organisation Level'!$C$4:$N$141,6,0) -> 503 | Z41: =VLOOKUP($B41,'[1]Organisation Level'!$C$4:$N$141,7,0) -> 81 | AA41: =VLOOKUP($B41,'[1]Organisation Level'!$C$4:$N$141,8,0) -> 21 | AB41: =VLOOKUP($B41,'[1]Organisation Level'!$C$4:$N$141,9,0) -> 25 | AC41: =VLOOKUP($B41,'[1]Organisation Level'!$C$4:$N$141,10,0) -> 17 | AD41: =VLOOKUP($B41,'[1]Collection Mode'!$C$4:$M$141,6,0) -> 1600 | AE41: =VLOOKUP($B41,'[1]Collection Mode'!$C$4:$M$141,7,0) -> 173 | AF41: =VLOOKUP($B41,'[1]Collection Mode'!$C$4:$M$141,8,0) -> 1874 | AG41: =VLOOKUP($B41,'[1]Collection Mode'!$C$4:$M$141,9,0) -> 181 | AH41: =VLOOKUP($B41,'[1]Collection Mode'!$C$4:$M$141,10,0) -> 841 | AI41: =VLOOKUP($B41,'[1]Collection Mode'!$C$4:$M$141,11,0) -> 371 | AJ41: 0 | AK41: 0 | AL41: 0 | AM41: 0 | AN41: 0 | AO41: 0 | AP41: 0 | AQ41: 0 | AR41: 0 | AS41: 0 | AT41: 0 | AU41: 0 | AV41: 0 | AW41: 0 | AX41: 0 | AY41: 0
A42: QM7 | B42: RY4 | C42: HERTFORDSHIRE COMMUNITY NHS TRUST | D42: 972 | E42: 42590 | F42: 0.9238683128 | G42: 0.03395061728 | H42: 793 | I42: 105 | J42: 34 | K42: 17 | L42: 16 | M42: 7 | N42: 224 | O42: 0 | P42: 53 | Q42: 0 | R42: 661 | S42: 34 | T42: =VLOOKUP($B42,'[1]Organisation Level'!$C$4:$N$141,11,0) -> 972 | U42: =VLOOKUP($B42,'[1]Organisation Level'!$C$4:$N$141,12,0) -> 42590 | V42: 0.9238683128 | W42: 0.03395061728 | X42: =VLOOKUP($B42,'[1]Organisation Level'!$C$4:$N$141,5,0) -> 793 | Y42: =VLOOKUP($B42,'[1]Organisation Level'!$C$4:$N$141,6,0) -> 105 | Z42: =VLOOKUP($B42,'[1]Organisation Level'!$C$4:$N$141,7,0) -> 34 | AA42: =VLOOKUP($B42,'[1]Organisation Level'!$C$4:$N$141,8,0) -> 17 | AB42: =VLOOKUP($B42,'[1]Organisation Level'!$C$4:$N$141,9,0) -> 16 | AC42: =VLOOKUP($B42,'[1]Organisation Level'!$C$4:$N$141,10,0) -> 7 | AD42: =VLOOKUP($B42,'[1]Collection Mode'!$C$4:$M$141,6,0) -> 224 | AE42: =VLOOKUP($B42,'[1]Collection Mode'!$C$4:$M$141,7,0) -> 0 | AF42: =VLOOKUP($B42,'[1]Collection Mode'!$C$4:$M$141,8,0) -> 53 | AG42: =VLOOKUP($B42,'[1]Collection Mode'!$C$4:$M$141,9,0) -> 0 | AH42: =VLOOKUP($B42,'[1]Collection Mode'!$C$4:$M$141,10,0) -> 661 | AI42: =VLOOKUP($B42,'[1]Collection Mode'!$C$4:$M$141,11,0) -> 34 | AJ42: 0 | AK42: 0 | AL42: 0 | AM42: 0 | AN42: 0 | AO42: 0 | AP42: 0 | AQ42: 0 | AR42: 0 | AS42: 0 | AT42: 0 | AU42: 0 | AV42: 0 | AW42: 0 | AX42: 0 | AY42: 0
A43: QMF | B43: R1H | C43: BARTS HEALTH NHS TRUST | D43: 0 | E43: 8443 | F43: NA | G43: NA | H43: 0 | I43: 0 | J43: 0 | K43: 0 | L43: 0 | M43: 0 | N43: 0 | O43: 0 | P43: 0 | Q43: 0 | R43: 0 | S43: 0 | T43: =VLOOKUP($B43,'[1]Organisation Level'!$C$4:$N$141,11,0) -> 0 | U43: =VLOOKUP($B43,'[1]Organisation Level'!$C$4:$N$141,12,0) -> 8443 | X43: =VLOOKUP($B43,'[1]Organisation Level'!$C$4:$N$141,5,0) -> 0 | Y43: =VLOOKUP($B43,'[1]Organisation Level'!$C$4:$N$141,6,0) -> 0 | Z43: =VLOOKUP($B43,'[1]Organisation Level'!$C$4:$N$141,7,0) -> 0 | AA43: =VLOOKUP($B43,'[1]Organisation Level'!$C$4:$N$141,8,0) -> 0 | AB43: =VLOOKUP($B43,'[1]Organisation Level'!$C$4:$N$141,9,0) -> 0 | AC43: =VLOOKUP($B43,'[1]Organisation Level'!$C$4:$N$141,10,0) -> 0 | AD43: =VLOOKUP($B43,'[1]Collection Mode'!$C$4:$M$141,6,0) -> 0 | AE43: =VLOOKUP($B43,'[1]Collection Mode'!$C$4:$M$141,7,0) -> 0 | AF43: =VLOOKUP($B43,'[1]Collection Mode'!$C$4:$M$141,8,0) -> 0 | AG43: =VLOOKUP($B43,'[1]Collection Mode'!$C$4:$M$141,9,0) -> 0 | AH43: =VLOOKUP($B43,'[1]Collection Mode'!$C$4:$M$141,10,0) -> 0 | AI43: =VLOOKUP($B43,'[1]Collection Mode'!$C$4:$M$141,11,0) -> 0 | AJ43: 0 | AK43: 0 | AL43: 0 | AM43: 0 | AN43: 0 | AO43: 0 | AP43: 0 | AQ43: 0 | AR43: 0 | AS43: 0 | AT43: 0 | AU43: 0 | AV43: 0 | AW43: 0 | AX43: 0 | AY43: 0
A44: QMF | B44: RWK | C44: EAST LONDON NHS FOUNDATION TRUST | D44: 874 | E44: 35159 | F44: 0.9588100686 | G44: 0.0171624714 | H44: 390 | I44: 448 | J44: 15 | K44: 8 | L44: 7 | M44: 6 | N44: 1 | O44: 4 | P44: 4 | Q44: 139 | R44: 475 | S44: 251 | T44: =VLOOKUP($B44,'[1]Organisation Level'!$C$4:$N$141,11,0) -> 874 | U44: =VLOOKUP($B44,'[1]Organisation Level'!$C$4:$N$141,12,0) -> 35159 | V44: 0.9588100686 | W44: 0.0171624714 | X44: =VLOOKUP($B44,'[1]Organisation Level'!$C$4:$N$141,5,0) -> 390 | Y44: =VLOOKUP($B44,'[1]Organisation Level'!$C$4:$N$141,6,0) -> 448 | Z44: =VLOOKUP($B44,'[1]Organisation Level'!$C$4:$N$141,7,0) -> 15 | AA44: =VLOOKUP($B44,'[1]Organisation Level'!$C$4:$N$141,8,0) -> 8 | AB44: =VLOOKUP($B44,'[1]Organisation Level'!$C$4:$N$141,9,0) -> 7 | AC44: =VLOOKUP($B44,'[1]Organisation Level'!$C$4:$N$141,10,0) -> 6 | AD44: =VLOOKUP($B44,'[1]Collection Mode'!$C$4:$M$141,6,0) -> 1 | AE44: =VLOOKUP($B44,'[1]Collection Mode'!$C$4:$M$141,7,0) -> 4 | AF44: =VLOOKUP($B44,'[1]Collection Mode'!$C$4:$M$141,8,0) -> 4 | AG44: =VLOOKUP($B44,'[1]Collection Mode'!$C$4:$M$141,9,0) -> 139 | AH44: =VLOOKUP($B44,'[1]Collection Mode'!$C$4:$M$141,10,0) -> 475 | AI44: =VLOOKUP($B44,'[1]Collection Mode'!$C$4:$M$141,11,0) -> 251 | AJ44: 0 | AK44: 0 | AL44: 0 | AM44: 0 | AN44: 0 | AO44: 0 | AP44: 0 | AQ44: 0 | AR44: 0 | AS44: 0 | AT44: 0 | AU44: 0 | AV44: 0 | AW44: 0 | AX44: 0 | AY44: 0
A45: QMF | B45: RQX | C45: HOMERTON HEALTHCARE NHS FOUNDATION TRUST | D45: 948 | E45: 15949 | F45: 0.9683544304 | G45: 0.01476793249 | H45: 781 | I45: 137 | J45: 16 | K45: 3 | L45: 11 | M45: 0 | N45: 859 | O45: 0 | P45: 22 | Q45: 0 | R45: 67 | S45: 0 | T45: =VLOOKUP($B45,'[1]Organisation Level'!$C$4:$N$141,11,0) -> 948 | U45: =VLOOKUP($B45,'[1]Organisation Level'!$C$4:$N$141,12,0) -> 15949 | V45: 0.9683544304 | W45: 0.01476793249 | X45: =VLOOKUP($B45,'[1]Organisation Level'!$C$4:$N$141,5,0) -> 781 | Y45: =VLOOKUP($B45,'[1]Organisation Level'!$C$4:$N$141,6,0) -> 137 | Z45: =VLOOKUP($B45,'[1]Organisation Level'!$C$4:$N$141,7,0) -> 16 | AA45: =VLOOKUP($B45,'[1]Organisation Level'!$C$4:$N$141,8,0) -> 3 | AB45: =VLOOKUP($B45,'[1]Organisation Level'!$C$4:$N$141,9,0) -> 11 | AC45: =VLOOKUP($B45,'[1]Organisation Level'!$C$4:$N$141,10,0) -> 0 | AD45: =VLOOKUP($B45,'[1]Collection Mode'!$C$4:$M$141,6,0) -> 859 | AE45: =VLOOKUP($B45,'[1]Collection Mode'!$C$4:$M$141,7,0) -> 0 | AF45: =VLOOKUP($B45,'[1]Collection Mode'!$C$4:$M$141,8,0) -> 22 | AG45: =VLOOKUP($B45,'[1]Collection Mode'!$C$4:$M$141,9,0) -> 0 | AH45: =VLOOKUP($B45,'[1]Collection Mode'!$C$4:$M$141,10,0) -> 67 | AI45: =VLOOKUP($B45,'[1]Collection Mode'!$C$4:$M$141,11,0) -> 0 | AJ45: 0 | AK45: 0 | AL45: 0 | AM45: 0 | AN45: 0 | AO45: 0 | AP45: 0 | AQ45: 0 | AR45: 0 | AS45: 0 | AT45: 0 | AU45: 0 | AV45: 0 | AW45: 0 | AX45: 0 | AY45: 0
A46: QMF | B46: RAT | C46: NORTH EAST LONDON NHS FOUNDATION TRUST | D46: 1086 | E46: 17875 | F46: 0.8830570902 | G46: 0.05064456722 | H46: 734 | I46: 225 | J46: 57 | K46: 26 | L46: 29 | M46: 15 | N46: 0 | O46: 0 | P46: 0 | Q46: 0 | R46: 1086 | S46: 0 | T46: =VLOOKUP($B46,'[1]Organisation Level'!$C$4:$N$141,11,0) -> 1086 | U46: =VLOOKUP($B46,'[1]Organisation Level'!$C$4:$N$141,12,0) -> 17875 | V46: 0.8830570902 | W46: 0.05064456722 | X46: =VLOOKUP($B46,'[1]Organisation Level'!$C$4:$N$141,5,0) -> 734 | Y46: =VLOOKUP($B46,'[1]Organisation Level'!$C$4:$N$141,6,0) -> 225 | Z46: =VLOOKUP($B46,'[1]Organisation Level'!$C$4:$N$141,7,0) -> 57 | AA46: =VLOOKUP($B46,'[1]Organisation Level'!$C$4:$N$141,8,0) -> 26 | AB46: =VLOOKUP($B46,'[1]Organisation Level'!$C$4:$N$141,9,0) -> 29 | AC46: =VLOOKUP($B46,'[1]Organisation Level'!$C$4:$N$141,10,0) -> 15 | AD46: =VLOOKUP($B46,'[1]Collection Mode'!$C$4:$M$141,6,0) -> 0 | AE46: =VLOOKUP($B46,'[1]Collection Mode'!$C$4:$M$141,7,0) -> 0 | AF46: =VLOOKUP($B46,'[1]Collection Mode'!$C$4:$M$141,8,0) -> 0 | AG46: =VLOOKUP($B46,'[1]Collection Mode'!$C$4:$M$141,9,0) -> 0 | AH46: =VLOOKUP($B46,'[1]Collection Mode'!$C$4:$M$141,10,0) -> 1086 | AI46: =VLOOKUP($B46,'[1]Collection Mode'!$C$4:$M$141,11,0) -> 0 | AJ46: 0 | AK46: 0 | AL46: 0 | AM46: 0 | AN46: 0 | AO46: 0 | AP46: 0 | AQ46: 0 | AR46: 0 | AS46: 0 | AT46: 0 | AU46: 0 | AV46: 0 | AW46: 0 | AX46: 0 | AY46: 0
A47: QMJ | B47: RV3 | C47: CENTRAL AND NORTH WEST LONDON NHS FOUNDATION TRUST | D47: 397 | E47: 37988 | F47: 0.9748110831 | G47: 0.007556675063 | H47: 321 | I47: 66 | J47: 7 | K47: 3 | L47: 0 | M47: 0 | N47: 28 | O47: 26 | P47: 63 | Q47: 0 | R47: 280 | S47: 0 | T47: =VLOOKUP($B47,'[1]Organisation Level'!$C$4:$N$141,11,0) -> 397 | U47: =VLOOKUP($B47,'[1]Organisation Level'!$C$4:$N$141,12,0) -> 37988 | V47: 0.9748110831 | W47: 0.007556675063 | X47: =VLOOKUP($B47,'[1]Organisation Level'!$C$4:$N$141,5,0) -> 321 | Y47: =VLOOKUP($B47,'[1]Organisation Level'!$C$4:$N$141,6,0) -> 66 | Z47: =VLOOKUP($B47,'[1]Organisation Level'!$C$4:$N$141,7,0) -> 7 | AA47: =VLOOKUP($B47,'[1]Organisation Level'!$C$4:$N$141,8,0) -> 3 | AB47: =VLOOKUP($B47,'[1]Organisation Level'!$C$4:$N$141,9,0) -> 0 | AC47: =VLOOKUP($B47,'[1]Organisation Level'!$C$4:$N$141,10,0) -> 0 | AD47: =VLOOKUP($B47,'[1]Collection Mode'!$C$4:$M$141,6,0) -> 28 | AE47: =VLOOKUP($B47,'[1]Collection Mode'!$C$4:$M$141,7,0) -> 26 | AF47: =VLOOKUP($B47,'[1]Collection Mode'!$C$4:$M$141,8,0) -> 63 | AG47: =VLOOKUP($B47,'[1]Collection Mode'!$C$4:$M$141,9,0) -> 0 | AH47: =VLOOKUP($B47,'[1]Collection Mode'!$C$4:$M$141,10,0) -> 280 | AI47: =VLOOKUP($B47,'[1]Collection Mode'!$C$4:$M$141,11,0) -> 0 | AJ47: 0 | AK47: 0 | AL47: 0 | AM47: 0 | AN47: 0 | AO47: 0 | AP47: 0 | AQ47: 0 | AR47: 0 | AS47: 0 | AT47: 0 | AU47: 0 | AV47: 0 | AW47: 0 | AX47: 0 | AY47: 0
A48: QMJ | B48: RAL | C48: ROYAL FREE LONDON NHS FOUNDATION TRUST | D48: 769 | E48: 769 | F48: 0.9479843953 | G48: 0.003901170351 | H48: 438 | I48: 291 | J48: 36 | K48: 3 | L48: 0 | M48: 1 | N48: 0 | O48: 742 | P48: 0 | Q48: 0 | R48: 27 | S48: 0 | T48: =VLOOKUP($B48,'[1]Organisation Level'!$C$4:$N$141,11,0) -> 769 | U48: =VLOOKUP($B48,'[1]Organisation Level'!$C$4:$N$141,12,0) -> 769 | V48: 0.9479843953 | W48: 0.003901170351 | X48: =VLOOKUP($B48,'[1]Organisation Level'!$C$4:$N$141,5,0) -> 438 | Y48: =VLOOKUP($B48,'[1]Organisation Level'!$C$4:$N$141,6,0) -> 291 | Z48: =VLOOKUP($B48,'[1]Organisation Level'!$C$4:$N$141,7,0) -> 36 | AA48: =VLOOKUP($B48,'[1]Organisation Level'!$C$4:$N$141,8,0) -> 3 | AB48: =VLOOKUP($B48,'[1]Organisation Level'!$C$4:$N$141,9,0) -> 0 | AC48: =VLOOKUP($B48,'[1]Organisation Level'!$C$4:$N$141,10,0) -> 1 | AD48: =VLOOKUP($B48,'[1]Collection Mode'!$C$4:$M$141,6,0) -> 0 | AE48: =VLOOKUP($B48,'[1]Collection Mode'!$C$4:$M$141,7,0) -> 742 | AF48: =VLOOKUP($B48,'[1]Collection Mode'!$C$4:$M$141,8,0) -> 0 | AG48: =VLOOKUP($B48,'[1]Collection Mode'!$C$4:$M$141,9,0) -> 0 | AH48: =VLOOKUP($B48,'[1]Collection Mode'!$C$4:$M$141,10,0) -> 27 | AI48: =VLOOKUP($B48,'[1]Collection Mode'!$C$4:$M$141,11,0) -> 0 | AJ48: 0 | AK48: 0 | AL48: 0 | AM48: 0 | AN48: 0 | AO48: 0 | AP48: 0 | AQ48: 0 | AR48: 0 | AS48: 0 | AT48: 0 | AU48: 0 | AV48: 0 | AW48: 0 | AX48: 0 | AY48: 0
A49: QMJ | B49: RKE | C49: WHITTINGTON HEALTH NHS TRUST | D49: 852 | E49: 26595 | F49: 0.9600938967 | G49: 0.01995305164 | H49: 718 | I49: 100 | J49: 12 | K49: 7 | L49: 10 | M49: 5 | N49: 215 | O49: 232 | P49: 136 | Q49: 0 | R49: 269 | S49: 0 | T49: =VLOOKUP($B49,'[1]Organisation Level'!$C$4:$N$141,11,0) -> 852 | U49: =VLOOKUP($B49,'[1]Organisation Level'!$C$4:$N$141,12,0) -> 26595 | V49: 0.9600938967 | W49: 0.01995305164 | X49: =VLOOKUP($B49,'[1]Organisation Level'!$C$4:$N$141,5,0) -> 718 | Y49: =VLOOKUP($B49,'[1]Organisation Level'!$C$4:$N$141,6,0) -> 100 | Z49: =VLOOKUP($B49,'[1]Organisation Level'!$C$4:$N$141,7,0) -> 12 | AA49: =VLOOKUP($B49,'[1]Organisation Level'!$C$4:$N$141,8,0) -> 7 | AB49: =VLOOKUP($B49,'[1]Organisation Level'!$C$4:$N$141,9,0) -> 10 | AC49: =VLOOKUP($B49,'[1]Organisation Level'!$C$4:$N$141,10,0) -> 5 | AD49: =VLOOKUP($B49,'[1]Collection Mode'!$C$4:$M$141,6,0) -> 215 | AE49: =VLOOKUP($B49,'[1]Collection Mode'!$C$4:$M$141,7,0) -> 232 | AF49: =VLOOKUP($B49,'[1]Collection Mode'!$C$4:$M$141,8,0) -> 136 | AG49: =VLOOKUP($B49,'[1]Collection Mode'!$C$4:$M$141,9,0) -> 0 | AH49: =VLOOKUP($B49,'[1]Collection Mode'!$C$4:$M$141,10,0) -> 269 | AI49: =VLOOKUP($B49,'[1]Collection Mode'!$C$4:$M$141,11,0) -> 0 | AJ49: 0 | AK49: 0 | AL49: 0 | AM49: 0 | AN49: 0 | AO49: 0 | AP49: 0 | AQ49: 0 | AR49: 0 | AS49: 0 | AT49: 0 | AU49: 0 | AV49: 0 | AW49: 0 | AX49: 0 | AY49: 0
A50: QMM | B50: RY3 | C50: NORFOLK COMMUNITY HEALTH AND CARE NHS TRUST | D50: 413 | E50: 30405 | F50: 0.9661016949 | G50: 0.004842615012 | H50: 342 | I50: 57 | J50: 12 | K50: 1 | L50: 1 | M50: 0 | N50: 0 | O50: 0 | P50: 0 | Q50: 0 | R50: 413 | S50: 0 | T50: =VLOOKUP($B50,'[1]Organisation Level'!$C$4:$N$141,11,0) -> 413 | U50: =VLOOKUP($B50,'[1]Organisation Level'!$C$4:$N$141,12,0) -> 30405 | V50: 0.9661016949 | W50: 0.004842615012 | X50: =VLOOKUP($B50,'[1]Organisation Level'!$C$4:$N$141,5,0) -> 342 | Y50: =VLOOKUP($B50,'[1]Organisation Level'!$C$4:$N$141,6,0) -> 57 | Z50: =VLOOKUP($B50,'[1]Organisation Level'!$C$4:$N$141,7,0) -> 12 | AA50: =VLOOKUP($B50,'[1]Organisation Level'!$C$4:$N$141,8,0) -> 1 | AB50: =VLOOKUP($B50,'[1]Organisation Level'!$C$4:$N$141,9,0) -> 1 | AC50: =VLOOKUP($B50,'[1]Organisation Level'!$C$4:$N$141,10,0) -> 0 | AD50: =VLOOKUP($B50,'[1]Collection Mode'!$C$4:$M$141,6,0) -> 0 | AE50: =VLOOKUP($B50,'[1]Collection Mode'!$C$4:$M$141,7,0) -> 0 | AF50: =VLOOKUP($B50,'[1]Collection Mode'!$C$4:$M$141,8,0) -> 0 | AG50: =VLOOKUP($B50,'[1]Collection Mode'!$C$4:$M$141,9,0) -> 0 | AH50: =VLOOKUP($B50,'[1]Collection Mode'!$C$4:$M$141,10,0) -> 413 | AI50: =VLOOKUP($B50,'[1]Collection Mode'!$C$4:$M$141,11,0) -> 0 | AJ50: 0 | AK50: 0 | AL50: 0 | AM50: 0 | AN50: 0 | AO50: 0 | AP50: 0 | AQ50: 0 | AR50: 0 | AS50: 0 | AT50: 0 | AU50: 0 | AV50: 0 | AW50: 0 | AX50: 0 | AY50: 0
A51: QNC | B51: RRE | C51: MIDLANDS PARTNERSHIP UNIVERSITY NHS FOUNDATION TRUST | D51: 1361 | E51: 48945 | F51: 0.9265246143 | G51: 0.03012490816 | H51: 1083 | I51: 178 | J51: 41 | K51: 18 | L51: 23 | M51: 18 | N51: 1067 | O51: 0 | P51: 0 | Q51: 0 | R51: 235 | S51: 59 | T51: =VLOOKUP($B51,'[1]Organisation Level'!$C$4:$N$141,11,0) -> 1361 | U51: =VLOOKUP($B51,'[1]Organisation Level'!$C$4:$N$141,12,0) -> 48945 | V51: 0.9265246143 | W51: 0.03012490816 | X51: =VLOOKUP($B51,'[1]Organisation Level'!$C$4:$N$141,5,0) -> 1083 | Y51: =VLOOKUP($B51,'[1]Organisation Level'!$C$4:$N$141,6,0) -> 178 | Z51: =VLOOKUP($B51,'[1]Organisation Level'!$C$4:$N$141,7,0) -> 41 | AA51: =VLOOKUP($B51,'[1]Organisation Level'!$C$4:$N$141,8,0) -> 18 | AB51: =VLOOKUP($B51,'[1]Organisation Level'!$C$4:$N$141,9,0) -> 23 | AC51: =VLOOKUP($B51,'[1]Organisation Level'!$C$4:$N$141,10,0) -> 18 | AD51: =VLOOKUP($B51,'[1]Collection Mode'!$C$4:$M$141,6,0) -> 1067 | AE51: =VLOOKUP($B51,'[1]Collection Mode'!$C$4:$M$141,7,0) -> 0 | AF51: =VLOOKUP($B51,'[1]Collection Mode'!$C$4:$M$141,8,0) -> 0 | AG51: =VLOOKUP($B51,'[1]Collection Mode'!$C$4:$M$141,9,0) -> 0 | AH51: =VLOOKUP($B51,'[1]Collection Mode'!$C$4:$M$141,10,0) -> 235 | AI51: =VLOOKUP($B51,'[1]Collection Mode'!$C$4:$M$141,11,0) -> 59 | AJ51: 0 | AK51: 0 | AL51: 0 | AM51: 0 | AN51: 0 | AO51: 0 | AP51: 0 | AQ51: 0 | AR51: 0 | AS51: 0 | AT51: 0 | AU51: 0 | AV51: 0 | AW51: 0 | AX51: 0 | AY51: 0
A52: QNQ | B52: RWX | C52: BERKSHIRE HEALTHCARE NHS FOUNDATION TRUST | D52: 3591 | E52: 40469 | F52: 0.9585073796 | G52: 0.0142021721 | H52: 3000 | I52: 442 | J52: 56 | K52: 21 | L52: 30 | M52: 42 | N52: 0 | O52: 201 | P52: 1497 | Q52: 0 | R52: 1893 | S52: 0 | T52: =VLOOKUP($B52,'[1]Organisation Level'!$C$4:$N$141,11,0) -> 3591 | U52: =VLOOKUP($B52,'[1]Organisation Level'!$C$4:$N$141,12,0) -> 40469 | V52: 0.9585073796 | W52: 0.0142021721 | X52: =VLOOKUP($B52,'[1]Organisation Level'!$C$4:$N$141,5,0) -> 3000 | Y52: =VLOOKUP($B52,'[1]Organisation Level'!$C$4:$N$141,6,0) -> 442 | Z52: =VLOOKUP($B52,'[1]Organisation Level'!$C$4:$N$141,7,0) -> 56 | AA52: =VLOOKUP($B52,'[1]Organisation Level'!$C$4:$N$141,8,0) -> 21 | AB52: =VLOOKUP($B52,'[1]Organisation Level'!$C$4:$N$141,9,0) -> 30 | AC52: =VLOOKUP($B52,'[1]Organisation Level'!$C$4:$N$141,10,0) -> 42 | AD52: =VLOOKUP($B52,'[1]Collection Mode'!$C$4:$M$141,6,0) -> 0 | AE52: =VLOOKUP($B52,'[1]Collection Mode'!$C$4:$M$141,7,0) -> 201 | AF52: =VLOOKUP($B52,'[1]Collection Mode'!$C$4:$M$141,8,0) -> 1497 | AG52: =VLOOKUP($B52,'[1]Collection Mode'!$C$4:$M$141,9,0) -> 0 | AH52: =VLOOKUP($B52,'[1]Collection Mode'!$C$4:$M$141,10,0) -> 1893 | AI52: =VLOOKUP($B52,'[1]Collection Mode'!$C$4:$M$141,11,0) -> 0 | AJ52: 0 | AK52: 0 | AL52: 0 | AM52: 0 | AN52: 0 | AO52: 0 | AP52: 0 | AQ52: 0 | AR52: 0 | AS52: 0 | AT52: 0 | AU52: 0 | AV52: 0 | AW52: 0 | AX52: 0 | AY52: 0
A53: QNQ | B53: RDU | C53: FRIMLEY HEALTH NHS FOUNDATION TRUST | D53: 303 | E53: 0 | F53: 0.9933993399 | G53: 0 | H53: 278 | I53: 23 | J53: 2 | K53: 0 | L53: 0 | M53: 0 | N53: 0 | O53: 163 | P53: 61 | Q53: 0 | R53: 79 | S53: 0 | T53: =VLOOKUP($B53,'[1]Organisation Level'!$C$4:$N$141,11,0) -> 303 | U53: =VLOOKUP($B53,'[1]Organisation Level'!$C$4:$N$141,12,0) -> 0 | V53: 0.9933993399 | W53: 0 | X53: =VLOOKUP($B53,'[1]Organisation Level'!$C$4:$N$141,5,0) -> 278 | Y53: =VLOOKUP($B53,'[1]Organisation Level'!$C$4:$N$141,6,0) -> 23 | Z53: =VLOOKUP($B53,'[1]Organisation Level'!$C$4:$N$141,7,0) -> 2 | AA53: =VLOOKUP($B53,'[1]Organisation Level'!$C$4:$N$141,8,0) -> 0 | AB53: =VLOOKUP($B53,'[1]Organisation Level'!$C$4:$N$141,9,0) -> 0 | AC53: =VLOOKUP($B53,'[1]Organisation Level'!$C$4:$N$141,10,0) -> 0 | AD53: =VLOOKUP($B53,'[1]Collection Mode'!$C$4:$M$141,6,0) -> 0 | AE53: =VLOOKUP($B53,'[1]Collection Mode'!$C$4:$M$141,7,0) -> 163 | AF53: =VLOOKUP($B53,'[1]Collection Mode'!$C$4:$M$141,8,0) -> 61 | AG53: =VLOOKUP($B53,'[1]Collection Mode'!$C$4:$M$141,9,0) -> 0 | AH53: =VLOOKUP($B53,'[1]Collection Mode'!$C$4:$M$141,10,0) -> 79 | AI53: =VLOOKUP($B53,'[1]Collection Mode'!$C$4:$M$141,11,0) -> 0 | AJ53: 0 | AK53: 0 | AL53: 0 | AM53: 0 | AN53: 0 | AO53: 0 | AP53: 0 | AQ53: 0 | AR53: 0 | AS53: 0 | AT53: 0 | AU53: 0 | AV53: 0 | AW53: 0 | AX53: 0 | AY53: 0
A54: QNX | B54: RXC | C54: EAST SUSSEX HEALTHCARE NHS TRUST | D54: 1913 | E54: 41529 | F54: 0.9498170413 | G54: 0.02247778359 | H54: 1668 | I54: 149 | J54: 42 | K54: 19 | L54: 24 | M54: 11 | N54: 1902 | O54: 0 | P54: 0 | Q54: 3 | R54: 8 | S54: 0 | T54: =VLOOKUP($B54,'[1]Organisation Level'!$C$4:$N$141,11,0) -> 1913 | U54: =VLOOKUP($B54,'[1]Organisation Level'!$C$4:$N$141,12,0) -> 41529 | V54: 0.9498170413 | W54: 0.02247778359 | X54: =VLOOKUP($B54,'[1]Organisation Level'!$C$4:$N$141,5,0) -> 1668 | Y54: =VLOOKUP($B54,'[1]Organisation Level'!$C$4:$N$141,6,0) -> 149 | Z54: =VLOOKUP($B54,'[1]Organisation Level'!$C$4:$N$141,7,0) -> 42 | AA54: =VLOOKUP($B54,'[1]Organisation Level'!$C$4:$N$141,8,0) -> 19 | AB54: =VLOOKUP($B54,'[1]Organisation Level'!$C$4:$N$141,9,0) -> 24 | AC54: =VLOOKUP($B54,'[1]Organisation Level'!$C$4:$N$141,10,0) -> 11 | AD54: =VLOOKUP($B54,'[1]Collection Mode'!$C$4:$M$141,6,0) -> 1902 | AE54: =VLOOKUP($B54,'[1]Collection Mode'!$C$4:$M$141,7,0) -> 0 | AF54: =VLOOKUP($B54,'[1]Collection Mode'!$C$4:$M$141,8,0) -> 0 | AG54: =VLOOKUP($B54,'[1]Collection Mode'!$C$4:$M$141,9,0) -> 3 | AH54: =VLOOKUP($B54,'[1]Collection Mode'!$C$4:$M$141,10,0) -> 8 | AI54: =VLOOKUP($B54,'[1]Collection Mode'!$C$4:$M$141,11,0) -> 0 | AJ54: 0 | AK54: 0 | AL54: 0 | AM54: 0 | AN54: 0 | AO54: 0 | AP54: 0 | AQ54: 0 | AR54: 0 | AS54: 0 | AT54: 0 | AU54: 0 | AV54: 0 | AW54: 0 | AX54: 0 | AY54: 0
A55: QNX | B55: RDR | C55: SUSSEX COMMUNITY NHS FOUNDATION TRUST | D55: 2878 | E55: 64202 | F55: 0.9593467686 | G55: 0.02050034746 | H55: 2423 | I55: 338 | J55: 52 | K55: 26 | L55: 33 | M55: 6 | N55: 0 | O55: 0 | P55: 859 | Q55: 0 | R55: 2019 | S55: 0 | T55: =VLOOKUP($B55,'[1]Organisation Level'!$C$4:$N$141,11,0) -> 2878 | U55: =VLOOKUP($B55,'[1]Organisation Level'!$C$4:$N$141,12,0) -> 64202 | V55: 0.9593467686 | W55: 0.02050034746 | X55: =VLOOKUP($B55,'[1]Organisation Level'!$C$4:$N$141,5,0) -> 2423 | Y55: =VLOOKUP($B55,'[1]Organisation Level'!$C$4:$N$141,6,0) -> 338 | Z55: =VLOOKUP($B55,'[1]Organisation Level'!$C$4:$N$141,7,0) -> 52 | AA55: =VLOOKUP($B55,'[1]Organisation Level'!$C$4:$N$141,8,0) -> 26 | AB55: =VLOOKUP($B55,'[1]Organisation Level'!$C$4:$N$141,9,0) -> 33 | AC55: =VLOOKUP($B55,'[1]Organisation Level'!$C$4:$N$141,10,0) -> 6 | AD55: =VLOOKUP($B55,'[1]Collection Mode'!$C$4:$M$141,6,0) -> 0 | AE55: =VLOOKUP($B55,'[1]Collection Mode'!$C$4:$M$141,7,0) -> 0 | AF55: =VLOOKUP($B55,'[1]Collection Mode'!$C$4:$M$141,8,0) -> 859 | AG55: =VLOOKUP($B55,'[1]Collection Mode'!$C$4:$M$141,9,0) -> 0 | AH55: =VLOOKUP($B55,'[1]Collection Mode'!$C$4:$M$141,10,0) -> 2019 | AI55: =VLOOKUP($B55,'[1]Collection Mode'!$C$4:$M$141,11,0) -> 0 | AJ55: 0 | AK55: 0 | AL55: 0 | AM55: 0 | AN55: 0 | AO55: 0 | AP55: 0 | AQ55: 0 | AR55: 0 | AS55: 0 | AT55: 0 | AU55: 0 | AV55: 0 | AW55: 0 | AX55: 0 | AY55: 0
A56: QOC | B56: R1D | C56: SHROPSHIRE COMMUNITY HEALTH NHS TRUST | D56: 223 | E56: 473413 | F56: 0.9775784753 | G56: 0.004484304933 | H56: 203 | I56: 15 | J56: 4 | K56: 1 | L56: 0 | M56: 0 | N56: 0 | O56: 184 | P56: 35 | Q56: 0 | R56: 4 | S56: 0 | T56: =VLOOKUP($B56,'[1]Organisation Level'!$C$4:$N$141,11,0) -> 223 | U56: =VLOOKUP($B56,'[1]Organisation Level'!$C$4:$N$141,12,0) -> 473413 | V56: 0.9775784753 | W56: 0.004484304933 | X56: =VLOOKUP($B56,'[1]Organisation Level'!$C$4:$N$141,5,0) -> 203 | Y56: =VLOOKUP($B56,'[1]Organisation Level'!$C$4:$N$141,6,0) -> 15 | Z56: =VLOOKUP($B56,'[1]Organisation Level'!$C$4:$N$141,7,0) -> 4 | AA56: =VLOOKUP($B56,'[1]Organisation Level'!$C$4:$N$141,8,0) -> 1 | AB56: =VLOOKUP($B56,'[1]Organisation Level'!$C$4:$N$141,9,0) -> 0 | AC56: =VLOOKUP($B56,'[1]Organisation Level'!$C$4:$N$141,10,0) -> 0 | AD56: =VLOOKUP($B56,'[1]Collection Mode'!$C$4:$M$141,6,0) -> 0 | AE56: =VLOOKUP($B56,'[1]Collection Mode'!$C$4:$M$141,7,0) -> 184 | AF56: =VLOOKUP($B56,'[1]Collection Mode'!$C$4:$M$141,8,0) -> 35 | AG56: =VLOOKUP($B56,'[1]Collection Mode'!$C$4:$M$141,9,0) -> 0 | AH56: =VLOOKUP($B56,'[1]Collection Mode'!$C$4:$M$141,10,0) -> 4 | AI56: =VLOOKUP($B56,'[1]Collection Mode'!$C$4:$M$141,11,0) -> 0 | AJ56: 0 | AK56: 0 | AL56: 0 | AM56: 0 | AN56: 0 | AO56: 0 | AP56: 0 | AQ56: 0 | AR56: 0 | AS56: 0 | AT56: 0 | AU56: 0 | AV56: 0 | AW56: 0 | AX56: 0 | AY56: 0
A57: QOP | B57: RMC | C57: BOLTON NHS FOUNDATION TRUST | D57: 844 | E57: 10213 | F57: 0.981042654 | G57: 0.004739336493 | H57: 754 | I57: 74 | J57: 4 | K57: 2 | L57: 2 | M57: 8 | N57: 207 | O57: 0 | P57: 621 | Q57: 0 | R57: 16 | S57: 0 | T57: =VLOOKUP($B57,'[1]Organisation Level'!$C$4:$N$141,11,0) -> 844 | U57: =VLOOKUP($B57,'[1]Organisation Level'!$C$4:$N$141,12,0) -> 10213 | V57: 0.981042654 | W57: 0.004739336493 | X57: =VLOOKUP($B57,'[1]Organisation Level'!$C$4:$N$141,5,0) -> 754 | Y57: =VLOOKUP($B57,'[1]Organisation Level'!$C$4:$N$141,6,0) -> 74 | Z57: =VLOOKUP($B57,'[1]Organisation Level'!$C$4:$N$141,7,0) -> 4 | AA57: =VLOOKUP($B57,'[1]Organisation Level'!$C$4:$N$141,8,0) -> 2 | AB57: =VLOOKUP($B57,'[1]Organisation Level'!$C$4:$N$141,9,0) -> 2 | AC57: =VLOOKUP($B57,'[1]Organisation Level'!$C$4:$N$141,10,0) -> 8 | AD57: =VLOOKUP($B57,'[1]Collection Mode'!$C$4:$M$141,6,0) -> 207 | AE57: =VLOOKUP($B57,'[1]Collection Mode'!$C$4:$M$141,7,0) -> 0 | AF57: =VLOOKUP($B57,'[1]Collection Mode'!$C$4:$M$141,8,0) -> 621 | AG57: =VLOOKUP($B57,'[1]Collection Mode'!$C$4:$M$141,9,0) -> 0 | AH57: =VLOOKUP($B57,'[1]Collection Mode'!$C$4:$M$141,10,0) -> 16 | AI57: =VLOOKUP($B57,'[1]Collection Mode'!$C$4:$M$141,11,0) -> 0 | AJ57: 0 | AK57: 0 | AL57: 0 | AM57: 0 | AN57: 0 | AO57: 0 | AP57: 0 | AQ57: 0 | AR57: 0 | AS57: 0 | AT57: 0 | AU57: 0 | AV57: 0 | AW57: 0 | AX57: 0 | AY57: 0
A58: QOP | B58: R0A | C58: MANCHESTER UNIVERSITY NHS FOUNDATION TRUST | D58: 1599 | E58: 40340 | F58: 0.9812382739 | G58: 0.006253908693 | H58: 1455 | I58: 114 | J58: 17 | K58: 6 | L58: 4 | M58: 3 | N58: 0 | O58: 521 | P58: 457 | Q58: 0 | R58: 621 | S58: 0 | T58: =VLOOKUP($B58,'[1]Organisation Level'!$C$4:$N$141,11,0) -> 1599 | U58: =VLOOKUP($B58,'[1]Organisation Level'!$C$4:$N$141,12,0) -> 40340 | V58: 0.9812382739 | W58: 0.006253908693 | X58: =VLOOKUP($B58,'[1]Organisation Level'!$C$4:$N$141,5,0) -> 1455 | Y58: =VLOOKUP($B58,'[1]Organisation Level'!$C$4:$N$141,6,0) -> 114 | Z58: =VLOOKUP($B58,'[1]Organisation Level'!$C$4:$N$141,7,0) -> 17 | AA58: =VLOOKUP($B58,'[1]Organisation Level'!$C$4:$N$141,8,0) -> 6 | AB58: =VLOOKUP($B58,'[1]Organisation Level'!$C$4:$N$141,9,0) -> 4 | AC58: =VLOOKUP($B58,'[1]Organisation Level'!$C$4:$N$141,10,0) -> 3 | AD58: =VLOOKUP($B58,'[1]Collection Mode'!$C$4:$M$141,6,0) -> 0 | AE58: =VLOOKUP($B58,'[1]Collection Mode'!$C$4:$M$141,7,0) -> 521 | AF58: =VLOOKUP($B58,'[1]Collection Mode'!$C$4:$M$141,8,0) -> 457 | AG58: =VLOOKUP($B58,'[1]Collection Mode'!$C$4:$M$141,9,0) -> 0 | AH58: =VLOOKUP($B58,'[1]Collection Mode'!$C$4:$M$141,10,0) -> 621 | AI58: =VLOOKUP($B58,'[1]Collection Mode'!$C$4:$M$141,11,0) -> 0 | AJ58: 0 | AK58: 0 | AL58: 0 | AM58: 0 | AN58: 0 | AO58: 0 | AP58: 0 | AQ58: 0 | AR58: 0 | AS58: 0 | AT58: 0 | AU58: 0 | AV58: 0 | AW58: 0 | AX58: 0 | AY58: 0
A59: QOP | B59: RWJ | C59: STOCKPORT NHS FOUNDATION TRUST | D59: 112 | E59: 16991 | F59: 0.9375 | G59: 0.04464285714 | H59: 90 | I59: 15 | J59: 2 | K59: 4 | L59: 1 | M59: 0 | N59: 97 | O59: 0 | P59: 0 | Q59: 15 | R59: 0 | S59: 0 | T59: =VLOOKUP($B59,'[1]Organisation Level'!$C$4:$N$141,11,0) -> 112 | U59: =VLOOKUP($B59,'[1]Organisation Level'!$C$4:$N$141,12,0) -> 16991 | V59: 0.9375 | W59: 0.04464285714 | X59: =VLOOKUP($B59,'[1]Organisation Level'!$C$4:$N$141,5,0) -> 90 | Y59: =VLOOKUP($B59,'[1]Organisation Level'!$C$4:$N$141,6,0) -> 15 | Z59: =VLOOKUP($B59,'[1]Organisation Level'!$C$4:$N$141,7,0) -> 2 | AA59: =VLOOKUP($B59,'[1]Organisation Level'!$C$4:$N$141,8,0) -> 4 | AB59: =VLOOKUP($B59,'[1]Organisation Level'!$C$4:$N$141,9,0) -> 1 | AC59: =VLOOKUP($B59,'[1]Organisation Level'!$C$4:$N$141,10,0) -> 0 | AD59: =VLOOKUP($B59,'[1]Collection Mode'!$C$4:$M$141,6,0) -> 97 | AE59: =VLOOKUP($B59,'[1]Collection Mode'!$C$4:$M$141,7,0) -> 0 | AF59: =VLOOKUP($B59,'[1]Collection Mode'!$C$4:$M$141,8,0) -> 0 | AG59: =VLOOKUP($B59,'[1]Collection Mode'!$C$4:$M$141,9,0) -> 15 | AH59: =VLOOKUP($B59,'[1]Collection Mode'!$C$4:$M$141,10,0) -> 0 | AI59: =VLOOKUP($B59,'[1]Collection Mode'!$C$4:$M$141,11,0) -> 0 | AJ59: 0 | AK59: 0 | AL59: 0 | AM59: 0 | AN59: 0 | AO59: 0 | AP59: 0 | AQ59: 0 | AR59: 0 | AS59: 0 | AT59: 0 | AU59: 0 | AV59: 0 | AW59: 0 | AX59: 0 | AY59: 0
A60: QOP | B60: RMP | C60: TAMESIDE AND GLOSSOP INTEGRATED CARE NHS FOUNDATION TRUST | D60: 614 | E60: 0 | F60: 0.9788273616 | G60: 0.01302931596 | H60: 524 | I60: 77 | J60: 5 | K60: 1 | L60: 7 | M60: 0 | N60: 0 | O60: 110 | P60: 164 | Q60: 0 | R60: 340 | S60: 0 | T60: =VLOOKUP($B60,'[1]Organisation Level'!$C$4:$N$141,11,0) -> 614 | U60: =VLOOKUP($B60,'[1]Organisation Level'!$C$4:$N$141,12,0) -> 0 | V60: 0.9788273616 | W60: 0.01302931596 | X60: =VLOOKUP($B60,'[1]Organisation Level'!$C$4:$N$141,5,0) -> 524 | Y60: =VLOOKUP($B60,'[1]Organisation Level'!$C$4:$N$141,6,0) -> 77 | Z60: =VLOOKUP($B60,'[1]Organisation Level'!$C$4:$N$141,7,0) -> 5 | AA60: =VLOOKUP($B60,'[1]Organisation Level'!$C$4:$N$141,8,0) -> 1 | AB60: =VLOOKUP($B60,'[1]Organisation Level'!$C$4:$N$141,9,0) -> 7 | AC60: =VLOOKUP($B60,'[1]Organisation Level'!$C$4:$N$141,10,0) -> 0 | AD60: =VLOOKUP($B60,'[1]Collection Mode'!$C$4:$M$141,6,0) -> 0 | AE60: =VLOOKUP($B60,'[1]Collection Mode'!$C$4:$M$141,7,0) -> 110 | AF60: =VLOOKUP($B60,'[1]Collection Mode'!$C$4:$M$141,8,0) -> 164 | AG60: =VLOOKUP($B60,'[1]Collection Mode'!$C$4:$M$141,9,0) -> 0 | AH60: =VLOOKUP($B60,'[1]Collection Mode'!$C$4:$M$141,10,0) -> 340 | AI60: =VLOOKUP($B60,'[1]Collection Mode'!$C$4:$M$141,11,0) -> 0 | AJ60: 0 | AK60: 0 | AL60: 0 | AM60: 0 | AN60: 0 | AO60: 0 | AP60: 0 | AQ60: 0 | AR60: 0 | AS60: 0 | AT60: 0 | AU60: 0 | AV60: 0 | AW60: 0 | AX60: 0 | AY60: 0
A61: QOP | B61: RRF | C61: WRIGHTINGTON, WIGAN AND LEIGH NHS FOUNDATION TRUST | D61: 20 | E61: 3851 | F61: 0.95 | G61: 0 | H61: 15 | I61: 4 | J61: 1 | K61: 0 | L61: 0 | M61: 0 | N61: 0 | O61: 0 | P61: 5 | Q61: 0 | R61: 15 | S61: 0 | T61: =VLOOKUP($B61,'[1]Organisation Level'!$C$4:$N$141,11,0) -> 20 | U61: =VLOOKUP($B61,'[1]Organisation Level'!$C$4:$N$141,12,0) -> 3851 | V61: 0.95 | W61: 0 | X61: =VLOOKUP($B61,'[1]Organisation Level'!$C$4:$N$141,5,0) -> 15 | Y61: =VLOOKUP($B61,'[1]Organisation Level'!$C$4:$N$141,6,0) -> 4 | Z61: =VLOOKUP($B61,'[1]Organisation Level'!$C$4:$N$141,7,0) -> 1 | AA61: =VLOOKUP($B61,'[1]Organisation Level'!$C$4:$N$141,8,0) -> 0 | AB61: =VLOOKUP($B61,'[1]Organisation Level'!$C$4:$N$141,9,0) -> 0 | AC61: =VLOOKUP($B61,'[1]Organisation Level'!$C$4:$N$141,10,0) -> 0 | AD61: =VLOOKUP($B61,'[1]Collection Mode'!$C$4:$M$141,6,0) -> 0 | AE61: =VLOOKUP($B61,'[1]Collection Mode'!$C$4:$M$141,7,0) -> 0 | AF61: =VLOOKUP($B61,'[1]Collection Mode'!$C$4:$M$141,8,0) -> 5 | AG61: =VLOOKUP($B61,'[1]Collection Mode'!$C$4:$M$141,9,0) -> 0 | AH61: =VLOOKUP($B61,'[1]Collection Mode'!$C$4:$M$141,10,0) -> 15 | AI61: =VLOOKUP($B61,'[1]Collection Mode'!$C$4:$M$141,11,0) -> 0 | AJ61: 0 | AK61: 0 | AL61: 0 | AM61: 0 | AN61: 0 | AO61: 0 | AP61: 0 | AQ61: 0 | AR61: 0 | AS61: 0 | AT61: 0 | AU61: 0 | AV61: 0 | AW61: 0 | AX61: 0 | AY61: 0
A62: QOQ | B62: RCD | C62: HARROGATE AND DISTRICT NHS FOUNDATION TRUST | D62: 11 | E62: 5811 | F62: 1 | G62: 0 | H62: 10 | I62: 1 | J62: 0 | K62: 0 | L62: 0 | M62: 0 | N62: 0 | O62: 0 | P62: 11 | Q62: 0 | R62: 0 | S62: 0 | T62: =VLOOKUP($B62,'[1]Organisation Level'!$C$4:$N$141,11,0) -> 11 | U62: =VLOOKUP($B62,'[1]Organisation Level'!$C$4:$N$141,12,0) -> 5811 | V62: 1 | W62: 0 | X62: =VLOOKUP($B62,'[1]Organisation Level'!$C$4:$N$141,5,0) -> 10 | Y62: =VLOOKUP($B62,'[1]Organisation Level'!$C$4:$N$141,6,0) -> 1 | Z62: =VLOOKUP($B62,'[1]Organisation Level'!$C$4:$N$141,7,0) -> 0 | AA62: =VLOOKUP($B62,'[1]Organisation Level'!$C$4:$N$141,8,0) -> 0 | AB62: =VLOOKUP($B62,'[1]Organisation Level'!$C$4:$N$141,9,0) -> 0 | AC62: =VLOOKUP($B62,'[1]Organisation Level'!$C$4:$N$141,10,0) -> 0 | AD62: =VLOOKUP($B62,'[1]Collection Mode'!$C$4:$M$141,6,0) -> 0 | AE62: =VLOOKUP($B62,'[1]Collection Mode'!$C$4:$M$141,7,0) -> 0 | AF62: =VLOOKUP($B62,'[1]Collection Mode'!$C$4:$M$141,8,0) -> 11 | AG62: =VLOOKUP($B62,'[1]Collection Mode'!$C$4:$M$141,9,0) -> 0 | AH62: =VLOOKUP($B62,'[1]Collection Mode'!$C$4:$M$141,10,0) -> 0 | AI62: =VLOOKUP($B62,'[1]Collection Mode'!$C$4:$M$141,11,0) -> 0 | AJ62: 0 | AK62: 0 | AL62: 0 | AM62: 0 | AN62: 0 | AO62: 0 | AP62: 0 | AQ62: 0 | AR62: 0 | AS62: 0 | AT62: 0 | AU62: 0 | AV62: 0 | AW62: 0 | AX62: 0 | AY62: 0
A63: QOQ | B63: RV9 | C63: HUMBER TEACHING NHS FOUNDATION TRUST | D63: 108 | E63: 10878 | F63: 0.9537037037 | G63: 0.02777777778 | H63: 96 | I63: 7 | J63: 2 | K63: 2 | L63: 1 | M63: 0 | N63: 0 | O63: 0 | P63: 108 | Q63: 0 | R63: 0 | S63: 0 | T63: =VLOOKUP($B63,'[1]Organisation Level'!$C$4:$N$141,11,0) -> 108 | U63: =VLOOKUP($B63,'[1]Organisation Level'!$C$4:$N$141,12,0) -> 10878 | V63: 0.9537037037 | W63: 0.02777777778 | X63: =VLOOKUP($B63,'[1]Organisation Level'!$C$4:$N$141,5,0) -> 96 | Y63: =VLOOKUP($B63,'[1]Organisation Level'!$C$4:$N$141,6,0) -> 7 | Z63: =VLOOKUP($B63,'[1]Organisation Level'!$C$4:$N$141,7,0) -> 2 | AA63: =VLOOKUP($B63,'[1]Organisation Level'!$C$4:$N$141,8,0) -> 2 | AB63: =VLOOKUP($B63,'[1]Organisation Level'!$C$4:$N$141,9,0) -> 1 | AC63: =VLOOKUP($B63,'[1]Organisation Level'!$C$4:$N$141,10,0) -> 0 | AD63: =VLOOKUP($B63,'[1]Collection Mode'!$C$4:$M$141,6,0) -> 0 | AE63: =VLOOKUP($B63,'[1]Collection Mode'!$C$4:$M$141,7,0) -> 0 | AF63: =VLOOKUP($B63,'[1]Collection Mode'!$C$4:$M$141,8,0) -> 108 | AG63: =VLOOKUP($B63,'[1]Collection Mode'!$C$4:$M$141,9,0) -> 0 | AH63: =VLOOKUP($B63,'[1]Collection Mode'!$C$4:$M$141,10,0) -> 0 | AI63: =VLOOKUP($B63,'[1]Collection Mode'!$C$4:$M$141,11,0) -> 0 | AJ63: 0 | AK63: 0 | AL63: 0 | AM63: 0 | AN63: 0 | AO63: 0 | AP63: 0 | AQ63: 0 | AR63: 0 | AS63: 0 | AT63: 0 | AU63: 0 | AV63: 0 | AW63: 0 | AX63: 0 | AY63: 0
A64: QOQ | B64: RJL | C64: NORTHERN LINCOLNSHIRE AND GOOLE NHS FOUNDATION TRUST | D64: 255 | E64: 12296 | F64: 0.9843137255 | G64: 0.01176470588 | H64: 243 | I64: 8 | J64: 1 | K64: 0 | L64: 3 | M64: 0 | N64: 0 | O64: 0 | P64: 163 | Q64: 0 | R64: 0 | S64: 92 | T64: =VLOOKUP($B64,'[1]Organisation Level'!$C$4:$N$141,11,0) -> 255 | U64: =VLOOKUP($B64,'[1]Organisation Level'!$C$4:$N$141,12,0) -> 12296 | V64: 0.9843137255 | W64: 0.01176470588 | X64: =VLOOKUP($B64,'[1]Organisation Level'!$C$4:$N$141,5,0) -> 243 | Y64: =VLOOKUP($B64,'[1]Organisation Level'!$C$4:$N$141,6,0) -> 8 | Z64: =VLOOKUP($B64,'[1]Organisation Level'!$C$4:$N$141,7,0) -> 1 | AA64: =VLOOKUP($B64,'[1]Organisation Level'!$C$4:$N$141,8,0) -> 0 | AB64: =VLOOKUP($B64,'[1]Organisation Level'!$C$4:$N$141,9,0) -> 3 | AC64: =VLOOKUP($B64,'[1]Organisation Level'!$C$4:$N$141,10,0) -> 0 | AD64: =VLOOKUP($B64,'[1]Collection Mode'!$C$4:$M$141,6,0) -> 0 | AE64: =VLOOKUP($B64,'[1]Collection Mode'!$C$4:$M$141,7,0) -> 0 | AF64: =VLOOKUP($B64,'[1]Collection Mode'!$C$4:$M$141,8,0) -> 163 | AG64: =VLOOKUP($B64,'[1]Collection Mode'!$C$4:$M$141,9,0) -> 0 | AH64: =VLOOKUP($B64,'[1]Collection Mode'!$C$4:$M$141,10,0) -> 0 | AI64: =VLOOKUP($B64,'[1]Collection Mode'!$C$4:$M$141,11,0) -> 92 | AJ64: 0 | AK64: 0 | AL64: 0 | AM64: 0 | AN64: 0 | AO64: 0 | AP64: 0 | AQ64: 0 | AR64: 0 | AS64: 0 | AT64: 0 | AU64: 0 | AV64: 0 | AW64: 0 | AX64: 0 | AY64: 0
A65: QPM | B65: RP1 | C65: NORTHAMPTONSHIRE HEALTHCARE NHS FOUNDATION TRUST | D65: 772 | E65: 33602 | F65: 0.9702072539 | G65: 0.006476683938 | H65: 674 | I65: 75 | J65: 10 | K65: 3 | L65: 2 | M65: 8 | N65: 0 | O65: 593 | P65: 170 | Q65: 0 | R65: 9 | S65: 0 | T65: =VLOOKUP($B65,'[1]Organisation Level'!$C$4:$N$141,11,0) -> 772 | U65: =VLOOKUP($B65,'[1]Organisation Level'!$C$4:$N$141,12,0) -> 33602 | V65: 0.9702072539 | W65: 0.006476683938 | X65: =VLOOKUP($B65,'[1]Organisation Level'!$C$4:$N$141,5,0) -> 674 | Y65: =VLOOKUP($B65,'[1]Organisation Level'!$C$4:$N$141,6,0) -> 75 | Z65: =VLOOKUP($B65,'[1]Organisation Level'!$C$4:$N$141,7,0) -> 10 | AA65: =VLOOKUP($B65,'[1]Organisation Level'!$C$4:$N$141,8,0) -> 3 | AB65: =VLOOKUP($B65,'[1]Organisation Level'!$C$4:$N$141,9,0) -> 2 | AC65: =VLOOKUP($B65,'[1]Organisation Level'!$C$4:$N$141,10,0) -> 8 | AD65: =VLOOKUP($B65,'[1]Collection Mode'!$C$4:$M$141,6,0) -> 0 | AE65: =VLOOKUP($B65,'[1]Collection Mode'!$C$4:$M$141,7,0) -> 593 | AF65: =VLOOKUP($B65,'[1]Collection Mode'!$C$4:$M$141,8,0) -> 170 | AG65: =VLOOKUP($B65,'[1]Collection Mode'!$C$4:$M$141,9,0) -> 0 | AH65: =VLOOKUP($B65,'[1]Collection Mode'!$C$4:$M$141,10,0) -> 9 | AI65: =VLOOKUP($B65,'[1]Collection Mode'!$C$4:$M$141,11,0) -> 0 | AJ65: 0 | AK65: 0 | AL65: 0 | AM65: 0 | AN65: 0 | AO65: 0 | AP65: 0 | AQ65: 0 | AR65: 0 | AS65: 0 | AT65: 0 | AU65: 0 | AV65: 0 | AW65: 0 | AX65: 0 | AY65: 0
A66: QR1 | B66: RTQ | C66: GLOUCESTERSHIRE HEALTH AND CARE NHS FOUNDATION TRUST | D66: 2326 | E66: 24082 | F66: 0.9393809114 | G66: 0.02966466036 | H66: 1810 | I66: 375 | J66: 48 | K66: 30 | L66: 39 | M66: 24 | N66: 0 | O66: 0 | P66: 0 | Q66: 0 | R66: 2326 | S66: 0 | T66: =VLOOKUP($B66,'[1]Organisation Level'!$C$4:$N$141,11,0) -> 2326 | U66: =VLOOKUP($B66,'[1]Organisation Level'!$C$4:$N$141,12,0) -> 24082 | V66: 0.9393809114 | W66: 0.02966466036 | X66: =VLOOKUP($B66,'[1]Organisation Level'!$C$4:$N$141,5,0) -> 1810 | Y66: =VLOOKUP($B66,'[1]Organisation Level'!$C$4:$N$141,6,0) -> 375 | Z66: =VLOOKUP($B66,'[1]Organisation Level'!$C$4:$N$141,7,0) -> 48 | AA66: =VLOOKUP($B66,'[1]Organisation Level'!$C$4:$N$141,8,0) -> 30 | AB66: =VLOOKUP($B66,'[1]Organisation Level'!$C$4:$N$141,9,0) -> 39 | AC66: =VLOOKUP($B66,'[1]Organisation Level'!$C$4:$N$141,10,0) -> 24 | AD66: =VLOOKUP($B66,'[1]Collection Mode'!$C$4:$M$141,6,0) -> 0 | AE66: =VLOOKUP($B66,'[1]Collection Mode'!$C$4:$M$141,7,0) -> 0 | AF66: =VLOOKUP($B66,'[1]Collection Mode'!$C$4:$M$141,8,0) -> 0 | AG66: =VLOOKUP($B66,'[1]Collection Mode'!$C$4:$M$141,9,0) -> 0 | AH66: =VLOOKUP($B66,'[1]Collection Mode'!$C$4:$M$141,10,0) -> 2326 | AI66: =VLOOKUP($B66,'[1]Collection Mode'!$C$4:$M$141,11,0) -> 0 | AJ66: 0 | AK66: 0 | AL66: 0 | AM66: 0 | AN66: 0 | AO66: 0 | AP66: 0 | AQ66: 0 | AR66: 0 | AS66: 0 | AT66: 0 | AU66: 0 | AV66: 0 | AW66: 0 | AX66: 0 | AY66: 0
A67: QRL | B67: RW1 | C67: HAMPSHIRE AND ISLE OF WIGHT HEALTHCARE NHS FOUNDATION TRUST | D67: 2521 | E67: 68639 | F67: 0.9706465688 | G67: 0.006346687822 | H67: 2107 | I67: 340 | J67: 44 | K67: 3 | L67: 13 | M67: 14 | N67: 0 | O67: 0 | P67: 0 | Q67: 0 | R67: 2521 | S67: 0 | T67: =VLOOKUP($B67,'[1]Organisation Level'!$C$4:$N$141,11,0) -> 2521 | U67: =VLOOKUP($B67,'[1]Organisation Level'!$C$4:$N$141,12,0) -> 68639 | V67: 0.9706465688 | W67: 0.006346687822 | X67: =VLOOKUP($B67,'[1]Organisation Level'!$C$4:$N$141,5,0) -> 2107 | Y67: =VLOOKUP($B67,'[1]Organisation Level'!$C$4:$N$141,6,0) -> 340 | Z67: =VLOOKUP($B67,'[1]Organisation Level'!$C$4:$N$141,7,0) -> 44 | AA67: =VLOOKUP($B67,'[1]Organisation Level'!$C$4:$N$141,8,0) -> 3 | AB67: =VLOOKUP($B67,'[1]Organisation Level'!$C$4:$N$141,9,0) -> 13 | AC67: =VLOOKUP($B67,'[1]Organisation Level'!$C$4:$N$141,10,0) -> 14 | AD67: =VLOOKUP($B67,'[1]Collection Mode'!$C$4:$M$141,6,0) -> 0 | AE67: =VLOOKUP($B67,'[1]Collection Mode'!$C$4:$M$141,7,0) -> 0 | AF67: =VLOOKUP($B67,'[1]Collection Mode'!$C$4:$M$141,8,0) -> 0 | AG67: =VLOOKUP($B67,'[1]Collection Mode'!$C$4:$M$141,9,0) -> 0 | AH67: =VLOOKUP($B67,'[1]Collection Mode'!$C$4:$M$141,10,0) -> 2521 | AI67: =VLOOKUP($B67,'[1]Collection Mode'!$C$4:$M$141,11,0) -> 0 | AJ67: 0 | AK67: 0 | AL67: 0 | AM67: 0 | AN67: 0 | AO67: 0 | AP67: 0 | AQ67: 0 | AR67: 0 | AS67: 0 | AT67: 0 | AU67: 0 | AV67: 0 | AW67: 0 | AX67: 0 | AY67: 0
A68: QRV | B68: RYX | C68: CENTRAL LONDON COMMUNITY HEALTHCARE NHS TRUST | D68: 3046 | E68: 89651 | F68: 0.911687459 | G68: 0.04366382141 | H68: 2382 | I68: 395 | J68: 72 | K68: 53 | L68: 80 | M68: 64 | N68: 1882 | O68: 0 | P68: 687 | Q68: 0 | R68: 301 | S68: 176 | T68: =VLOOKUP($B68,'[1]Organisation Level'!$C$4:$N$141,11,0) -> 3046 | U68: =VLOOKUP($B68,'[1]Organisation Level'!$C$4:$N$141,12,0) -> 89651 | V68: 0.911687459 | W68: 0.04366382141 | X68: =VLOOKUP($B68,'[1]Organisation Level'!$C$4:$N$141,5,0) -> 2382 | Y68: =VLOOKUP($B68,'[1]Organisation Level'!$C$4:$N$141,6,0) -> 395 | Z68: =VLOOKUP($B68,'[1]Organisation Level'!$C$4:$N$141,7,0) -> 72 | AA68: =VLOOKUP($B68,'[1]Organisation Level'!$C$4:$N$141,8,0) -> 53 | AB68: =VLOOKUP($B68,'[1]Organisation Level'!$C$4:$N$141,9,0) -> 80 | AC68: =VLOOKUP($B68,'[1]Organisation Level'!$C$4:$N$141,10,0) -> 64 | AD68: =VLOOKUP($B68,'[1]Collection Mode'!$C$4:$M$141,6,0) -> 1882 | AE68: =VLOOKUP($B68,'[1]Collection Mode'!$C$4:$M$141,7,0) -> 0 | AF68: =VLOOKUP($B68,'[1]Collection Mode'!$C$4:$M$141,8,0) -> 687 | AG68: =VLOOKUP($B68,'[1]Collection Mode'!$C$4:$M$141,9,0) -> 0 | AH68: =VLOOKUP($B68,'[1]Collection Mode'!$C$4:$M$141,10,0) -> 301 | AI68: =VLOOKUP($B68,'[1]Collection Mode'!$C$4:$M$141,11,0) -> 176 | AJ68: 0 | AK68: 0 | AL68: 0 | AM68: 0 | AN68: 0 | AO68: 0 | AP68: 0 | AQ68: 0 | AR68: 0 | AS68: 0 | AT68: 0 | AU68: 0 | AV68: 0 | AW68: 0 | AX68: 0 | AY68: 0
A69: QRV | B69: RQM | C69: CHELSEA AND WESTMINSTER HOSPITAL NHS FOUNDATION TRUST | D69: 163 | E69: 1119 | F69: 0.9447852761 | G69: 0.03680981595 | H69: 147 | I69: 7 | J69: 3 | K69: 2 | L69: 4 | M69: 0 | N69: 141 | O69: 0 | P69: 0 | Q69: 0 | R69: 22 | S69: 0 | T69: =VLOOKUP($B69,'[1]Organisation Level'!$C$4:$N$141,11,0) -> 163 | U69: =VLOOKUP($B69,'[1]Organisation Level'!$C$4:$N$141,12,0) -> 1119 | V69: 0.9447852761 | W69: 0.03680981595 | X69: =VLOOKUP($B69,'[1]Organisation Level'!$C$4:$N$141,5,0) -> 147 | Y69: =VLOOKUP($B69,'[1]Organisation Level'!$C$4:$N$141,6,0) -> 7 | Z69: =VLOOKUP($B69,'[1]Organisation Level'!$C$4:$N$141,7,0) -> 3 | AA69: =VLOOKUP($B69,'[1]Organisation Level'!$C$4:$N$141,8,0) -> 2 | AB69: =VLOOKUP($B69,'[1]Organisation Level'!$C$4:$N$141,9,0) -> 4 | AC69: =VLOOKUP($B69,'[1]Organisation Level'!$C$4:$N$141,10,0) -> 0 | AD69: =VLOOKUP($B69,'[1]Collection Mode'!$C$4:$M$141,6,0) -> 141 | AE69: =VLOOKUP($B69,'[1]Collection Mode'!$C$4:$M$141,7,0) -> 0 | AF69: =VLOOKUP($B69,'[1]Collection Mode'!$C$4:$M$141,8,0) -> 0 | AG69: =VLOOKUP($B69,'[1]Collection Mode'!$C$4:$M$141,9,0) -> 0 | AH69: =VLOOKUP($B69,'[1]Collection Mode'!$C$4:$M$141,10,0) -> 22 | AI69: =VLOOKUP($B69,'[1]Collection Mode'!$C$4:$M$141,11,0) -> 0 | AJ69: 0 | AK69: 0 | AL69: 0 | AM69: 0 | AN69: 0 | AO69: 0 | AP69: 0 | AQ69: 0 | AR69: 0 | AS69: 0 | AT69: 0 | AU69: 0 | AV69: 0 | AW69: 0 | AX69: 0 | AY69: 0
A70: QRV | B70: R1K | C70: LONDON NORTH WEST UNIVERSITY HEALTHCARE NHS TRUST | D70: 547 | E70: 699 | F70: 0.9616087751 | G70: 0.02193784278 | H70: 479 | I70: 47 | J70: 8 | K70: 7 | L70: 5 | M70: 1 | N70: 0 | O70: 0 | P70: 484 | Q70: 0 | R70: 63 | S70: 0 | T70: =VLOOKUP($B70,'[1]Organisation Level'!$C$4:$N$141,11,0) -> 547 | U70: =VLOOKUP($B70,'[1]Organisation Level'!$C$4:$N$141,12,0) -> 699 | V70: 0.9616087751 | W70: 0.02193784278 | X70: =VLOOKUP($B70,'[1]Organisation Level'!$C$4:$N$141,5,0) -> 479 | Y70: =VLOOKUP($B70,'[1]Organisation Level'!$C$4:$N$141,6,0) -> 47 | Z70: =VLOOKUP($B70,'[1]Organisation Level'!$C$4:$N$141,7,0) -> 8 | AA70: =VLOOKUP($B70,'[1]Organisation Level'!$C$4:$N$141,8,0) -> 7 | AB70: =VLOOKUP($B70,'[1]Organisation Level'!$C$4:$N$141,9,0) -> 5 | AC70: =VLOOKUP($B70,'[1]Organisation Level'!$C$4:$N$141,10,0) -> 1 | AD70: =VLOOKUP($B70,'[1]Collection Mode'!$C$4:$M$141,6,0) -> 0 | AE70: =VLOOKUP($B70,'[1]Collection Mode'!$C$4:$M$141,7,0) -> 0 | AF70: =VLOOKUP($B70,'[1]Collection Mode'!$C$4:$M$141,8,0) -> 484 | AG70: =VLOOKUP($B70,'[1]Collection Mode'!$C$4:$M$141,9,0) -> 0 | AH70: =VLOOKUP($B70,'[1]Collection Mode'!$C$4:$M$141,10,0) -> 63 | AI70: =VLOOKUP($B70,'[1]Collection Mode'!$C$4:$M$141,11,0) -> 0 | AJ70: 0 | AK70: 0 | AL70: 0 | AM70: 0 | AN70: 0 | AO70: 0 | AP70: 0 | AQ70: 0 | AR70: 0 | AS70: 0 | AT70: 0 | AU70: 0 | AV70: 0 | AW70: 0 | AX70: 0 | AY70: 0
A71: QRV | B71: RKL | C71: WEST LONDON NHS TRUST | D71: 615 | E71: 27011 | F71: 0.9886178862 | G71: 0.00325203252 | H71: 564 | I71: 44 | J71: 2 | K71: 1 | L71: 1 | M71: 3 | N71: 0 | O71: 0 | P71: 502 | Q71: 0 | R71: 113 | S71: 0 | T71: =VLOOKUP($B71,'[1]Organisation Level'!$C$4:$N$141,11,0) -> 615 | U71: =VLOOKUP($B71,'[1]Organisation Level'!$C$4:$N$141,12,0) -> 27011 | V71: 0.9886178862 | W71: 0.00325203252 | X71: =VLOOKUP($B71,'[1]Organisation Level'!$C$4:$N$141,5,0) -> 564 | Y71: =VLOOKUP($B71,'[1]Organisation Level'!$C$4:$N$141,6,0) -> 44 | Z71: =VLOOKUP($B71,'[1]Organisation Level'!$C$4:$N$141,7,0) -> 2 | AA71: =VLOOKUP($B71,'[1]Organisation Level'!$C$4:$N$141,8,0) -> 1 | AB71: =VLOOKUP($B71,'[1]Organisation Level'!$C$4:$N$141,9,0) -> 1 | AC71: =VLOOKUP($B71,'[1]Organisation Level'!$C$4:$N$141,10,0) -> 3 | AD71: =VLOOKUP($B71,'[1]Collection Mode'!$C$4:$M$141,6,0) -> 0 | AE71: =VLOOKUP($B71,'[1]Collection Mode'!$C$4:$M$141,7,0) -> 0 | AF71: =VLOOKUP($B71,'[1]Collection Mode'!$C$4:$M$141,8,0) -> 502 | AG71: =VLOOKUP($B71,'[1]Collection Mode'!$C$4:$M$141,9,0) -> 0 | AH71: =VLOOKUP($B71,'[1]Collection Mode'!$C$4:$M$141,10,0) -> 113 | AI71: =VLOOKUP($B71,'[1]Collection Mode'!$C$4:$M$141,11,0) -> 0 | AJ71: 0 | AK71: 0 | AL71: 0 | AM71: 0 | AN71: 0 | AO71: 0 | AP71: 0 | AQ71: 0 | AR71: 0 | AS71: 0 | AT71: 0 | AU71: 0 | AV71: 0 | AW71: 0 | AX71: 0 | AY71: 0
A72: QSL | B72: RH5 | C72: SOMERSET NHS FOUNDATION TRUST | D72: 0 | E72: 19422 | F72: NA | G72: NA | H72: 0 | I72: 0 | J72: 0 | K72: 0 | L72: 0 | M72: 0 | N72: 0 | O72: 0 | P72: 0 | Q72: 0 | R72: 0 | S72: 0 | T72: =VLOOKUP($B72,'[1]Organisation Level'!$C$4:$N$141,11,0) -> 0 | U72: =VLOOKUP($B72,'[1]Organisation Level'!$C$4:$N$141,12,0) -> 19422 | X72: =VLOOKUP($B72,'[1]Organisation Level'!$C$4:$N$141,5,0) -> 0 | Y72: =VLOOKUP($B72,'[1]Organisation Level'!$C$4:$N$141,6,0) -> 0 | Z72: =VLOOKUP($B72,'[1]Organisation Level'!$C$4:$N$141,7,0) -> 0 | AA72: =VLOOKUP($B72,'[1]Organisation Level'!$C$4:$N$141,8,0) -> 0 | AB72: =VLOOKUP($B72,'[1]Organisation Level'!$C$4:$N$141,9,0) -> 0 | AC72: =VLOOKUP($B72,'[1]Organisation Level'!$C$4:$N$141,10,0) -> 0 | AD72: =VLOOKUP($B72,'[1]Collection Mode'!$C$4:$M$141,6,0) -> 0 | AE72: =VLOOKUP($B72,'[1]Collection Mode'!$C$4:$M$141,7,0) -> 0 | AF72: =VLOOKUP($B72,'[1]Collection Mode'!$C$4:$M$141,8,0) -> 0 | AG72: =VLOOKUP($B72,'[1]Collection Mode'!$C$4:$M$141,9,0) -> 0 | AH72: =VLOOKUP($B72,'[1]Collection Mode'!$C$4:$M$141,10,0) -> 0 | AI72: =VLOOKUP($B72,'[1]Collection Mode'!$C$4:$M$141,11,0) -> 0 | AJ72: 0 | AK72: 0 | AL72: 0 | AM72: 0 | AN72: 0 | AO72: 0 | AP72: 0 | AQ72: 0 | AR72: 0 | AS72: 0 | AT72: 0 | AU72: 0 | AV72: 0 | AW72: 0 | AX72: 0 | AY72: 0
A73: QT1 | B73: RX1 | C73: NOTTINGHAM UNIVERSITY HOSPITALS NHS TRUST | D73: 70 | E73: 695 | F73: 0.9714285714 | G73: 0.01428571429 | H73: 53 | I73: 15 | J73: 0 | K73: 1 | L73: 0 | M73: 1 | N73: 0 | O73: 0 | P73: 70 | Q73: 0 | R73: 0 | S73: 0 | T73: =VLOOKUP($B73,'[1]Organisation Level'!$C$4:$N$141,11,0) -> 70 | U73: =VLOOKUP($B73,'[1]Organisation Level'!$C$4:$N$141,12,0) -> 695 | V73: =SUM(X73+Y73)/SUM(X73:AC73) -> 0.9714285714 | W73: =SUM(AA73+AB73)/SUM(X73:AC73) -> 0.01428571429 | X73: =VLOOKUP($B73,'[1]Organisation Level'!$C$4:$N$141,5,0) -> 53 | Y73: =VLOOKUP($B73,'[1]Organisation Level'!$C$4:$N$141,6,0) -> 15 | Z73: =VLOOKUP($B73,'[1]Organisation Level'!$C$4:$N$141,7,0) -> 0 | AA73: =VLOOKUP($B73,'[1]Organisation Level'!$C$4:$N$141,8,0) -> 1 | AB73: =VLOOKUP($B73,'[1]Organisation Level'!$C$4:$N$141,9,0) -> 0 | AC73: =VLOOKUP($B73,'[1]Organisation Level'!$C$4:$N$141,10,0) -> 1 | AD73: =VLOOKUP($B73,'[1]Collection Mode'!$C$4:$M$141,6,0) -> 0 | AE73: =VLOOKUP($B73,'[1]Collection Mode'!$C$4:$M$141,7,0) -> 0 | AF73: =VLOOKUP($B73,'[1]Collection Mode'!$C$4:$M$141,8,0) -> 70 | AG73: =VLOOKUP($B73,'[1]Collection Mode'!$C$4:$M$141,9,0) -> 0 | AH73: =VLOOKUP($B73,'[1]Collection Mode'!$C$4:$M$141,10,0) -> 0 | AI73: =VLOOKUP($B73,'[1]Collection Mode'!$C$4:$M$141,11,0) -> 0 | AJ73: =IFERROR(D73-T73,0) -> 0 | AK73: =IFERROR(E73-U73,0) -> 0 | AL73: =IFERROR(F73-V73,0) -> 0 | AM73: =IFERROR(G73-W73,0) -> 0 | AN73: =IFERROR(H73-X73,0) -> 0 | AO73: =IFERROR(I73-Y73,0) -> 0 | AP73: =IFERROR(J73-Z73,0) -> 0 | AQ73: =IFERROR(K73-AA73,0) -> 0 | AR73: =IFERROR(L73-AB73,0) -> 0 | AS73: =IFERROR(M73-AC73,0) -> 0 | AT73: =IFERROR(N73-AD73,0) -> 0 | AU73: =IFERROR(O73-AE73,0) -> 0 | AV73: =IFERROR(P73-AF73,0) -> 0 | AW73: =IFERROR(Q73-AG73,0) -> 0 | AX73: =IFERROR(R73-AH73,0) -> 0 | AY73: =IFERROR(S73-AI73,0) -> 0
A74: QT1 | B74: RHA | C74: NOTTINGHAMSHIRE HEALTHCARE NHS FOUNDATION TRUST | D74: 190 | E74: 36334 | F74: 0.9421052632 | G74: 0.03157894737 | H74: 157 | I74: 22 | J74: 5 | K74: 2 | L74: 4 | M74: 0 | N74: 160 | O74: 0 | P74: 21 | Q74: 0 | R74: 0 | S74: 9 | T74: =VLOOKUP($B74,'[1]Organisation Level'!$C$4:$N$141,11,0) -> 190 | U74: =VLOOKUP($B74,'[1]Organisation Level'!$C$4:$N$141,12,0) -> 36334 | V74: 0.9421052632 | W74: 0.03157894737 | X74: =VLOOKUP($B74,'[1]Organisation Level'!$C$4:$N$141,5,0) -> 157 | Y74: =VLOOKUP($B74,'[1]Organisation Level'!$C$4:$N$141,6,0) -> 22 | Z74: =VLOOKUP($B74,'[1]Organisation Level'!$C$4:$N$141,7,0) -> 5 | AA74: =VLOOKUP($B74,'[1]Organisation Level'!$C$4:$N$141,8,0) -> 2 | AB74: =VLOOKUP($B74,'[1]Organisation Level'!$C$4:$N$141,9,0) -> 4 | AC74: =VLOOKUP($B74,'[1]Organisation Level'!$C$4:$N$141,10,0) -> 0 | AD74: =VLOOKUP($B74,'[1]Collection Mode'!$C$4:$M$141,6,0) -> 160 | AE74: =VLOOKUP($B74,'[1]Collection Mode'!$C$4:$M$141,7,0) -> 0 | AF74: =VLOOKUP($B74,'[1]Collection Mode'!$C$4:$M$141,8,0) -> 21 | AG74: =VLOOKUP($B74,'[1]Collection Mode'!$C$4:$M$141,9,0) -> 0 | AH74: =VLOOKUP($B74,'[1]Collection Mode'!$C$4:$M$141,10,0) -> 0 | AI74: =VLOOKUP($B74,'[1]Collection Mode'!$C$4:$M$141,11,0) -> 9 | AJ74: 0 | AK74: 0 | AL74: 0 | AM74: 0 | AN74: 0 | AO74: 0 | AP74: 0 | AQ74: 0 | AR74: 0 | AS74: 0 | AT74: 0 | AU74: 0 | AV74: 0 | AW74: 0 | AX74: 0 | AY74: 0
A75: QU9 | B75: RXQ | C75: BUCKINGHAMSHIRE HEALTHCARE NHS TRUST | D75: 416 | E75: 3473 | F75: 0.9447115385 | G75: 0.03365384615 | H75: 326 | I75: 67 | J75: 8 | K75: 5 | L75: 9 | M75: 1 | N75: 308 | O75: 0 | P75: 0 | Q75: 108 | R75: 0 | S75: 0 | T75: =VLOOKUP($B75,'[1]Organisation Level'!$C$4:$N$141,11,0) -> 416 | U75: =VLOOKUP($B75,'[1]Organisation Level'!$C$4:$N$141,12,0) -> 3473 | V75: 0.9447115385 | W75: 0.03365384615 | X75: =VLOOKUP($B75,'[1]Organisation Level'!$C$4:$N$141,5,0) -> 326 | Y75: =VLOOKUP($B75,'[1]Organisation Level'!$C$4:$N$141,6,0) -> 67 | Z75: =VLOOKUP($B75,'[1]Organisation Level'!$C$4:$N$141,7,0) -> 8 | AA75: =VLOOKUP($B75,'[1]Organisation Level'!$C$4:$N$141,8,0) -> 5 | AB75: =VLOOKUP($B75,'[1]Organisation Level'!$C$4:$N$141,9,0) -> 9 | AC75: =VLOOKUP($B75,'[1]Organisation Level'!$C$4:$N$141,10,0) -> 1 | AD75: =VLOOKUP($B75,'[1]Collection Mode'!$C$4:$M$141,6,0) -> 308 | AE75: =VLOOKUP($B75,'[1]Collection Mode'!$C$4:$M$141,7,0) -> 0 | AF75: =VLOOKUP($B75,'[1]Collection Mode'!$C$4:$M$141,8,0) -> 0 | AG75: =VLOOKUP($B75,'[1]Collection Mode'!$C$4:$M$141,9,0) -> 108 | AH75: =VLOOKUP($B75,'[1]Collection Mode'!$C$4:$M$141,10,0) -> 0 | AI75: =VLOOKUP($B75,'[1]Collection Mode'!$C$4:$M$141,11,0) -> 0 | AJ75: 0 | AK75: 0 | AL75: 0 | AM75: 0 | AN75: 0 | AO75: 0 | AP75: 0 | AQ75: 0 | AR75: 0 | AS75: 0 | AT75: 0 | AU75: 0 | AV75: 0 | AW75: 0 | AX75: 0 | AY75: 0
A76: QU9 | B76: RNU | C76: OXFORD HEALTH NHS FOUNDATION TRUST | D76: 860 | E76: 30097 | F76: 0.9558139535 | G76: 0.01744186047 | H76: 737 | I76: 85 | J76: 11 | K76: 2 | L76: 13 | M76: 12 | N76: 0 | O76: 252 | P76: 197 | Q76: 0 | R76: 411 | S76: 0 | T76: =VLOOKUP($B76,'[1]Organisation Level'!$C$4:$N$141,11,0) -> 860 | U76: =VLOOKUP($B76,'[1]Organisation Level'!$C$4:$N$141,12,0) -> 30097 | V76: 0.9558139535 | W76: 0.01744186047 | X76: =VLOOKUP($B76,'[1]Organisation Level'!$C$4:$N$141,5,0) -> 737 | Y76: =VLOOKUP($B76,'[1]Organisation Level'!$C$4:$N$141,6,0) -> 85 | Z76: =VLOOKUP($B76,'[1]Organisation Level'!$C$4:$N$141,7,0) -> 11 | AA76: =VLOOKUP($B76,'[1]Organisation Level'!$C$4:$N$141,8,0) -> 2 | AB76: =VLOOKUP($B76,'[1]Organisation Level'!$C$4:$N$141,9,0) -> 13 | AC76: =VLOOKUP($B76,'[1]Organisation Level'!$C$4:$N$141,10,0) -> 12 | AD76: =VLOOKUP($B76,'[1]Collection Mode'!$C$4:$M$141,6,0) -> 0 | AE76: =VLOOKUP($B76,'[1]Collection Mode'!$C$4:$M$141,7,0) -> 252 | AF76: =VLOOKUP($B76,'[1]Collection Mode'!$C$4:$M$141,8,0) -> 197 | AG76: =VLOOKUP($B76,'[1]Collection Mode'!$C$4:$M$141,9,0) -> 0 | AH76: =VLOOKUP($B76,'[1]Collection Mode'!$C$4:$M$141,10,0) -> 411 | AI76: =VLOOKUP($B76,'[1]Collection Mode'!$C$4:$M$141,11,0) -> 0 | AJ76: 0 | AK76: 0 | AL76: 0 | AM76: 0 | AN76: 0 | AO76: 0 | AP76: 0 | AQ76: 0 | AR76: 0 | AS76: 0 | AT76: 0 | AU76: 0 | AV76: 0 | AW76: 0 | AX76: 0 | AY76: 0
A77: QUA | B77: TAJ | C77: BLACK COUNTRY HEALTHCARE NHS FOUNDATION TRUST | D77: 42 | E77: 3670 | F77: 0.9523809524 | G77: 0.04761904762 | H77: 38 | I77: 2 | J77: 0 | K77: 1 | L77: 1 | M77: 0 | N77: 0 | O77: 0 | P77: 0 | Q77: 0 | R77: 0 | S77: 42 | T77: =VLOOKUP($B77,'[1]Organisation Level'!$C$4:$N$141,11,0) -> 42 | U77: =VLOOKUP($B77,'[1]Organisation Level'!$C$4:$N$141,12,0) -> 3670 | V77: 0.9523809524 | W77: 0.04761904762 | X77: =VLOOKUP($B77,'[1]Organisation Level'!$C$4:$N$141,5,0) -> 38 | Y77: =VLOOKUP($B77,'[1]Organisation Level'!$C$4:$N$141,6,0) -> 2 | Z77: =VLOOKUP($B77,'[1]Organisation Level'!$C$4:$N$141,7,0) -> 0 | AA77: =VLOOKUP($B77,'[1]Organisation Level'!$C$4:$N$141,8,0) -> 1 | AB77: =VLOOKUP($B77,'[1]Organisation Level'!$C$4:$N$141,9,0) -> 1 | AC77: =VLOOKUP($B77,'[1]Organisation Level'!$C$4:$N$141,10,0) -> 0 | AD77: =VLOOKUP($B77,'[1]Collection Mode'!$C$4:$M$141,6,0) -> 0 | AE77: =VLOOKUP($B77,'[1]Collection Mode'!$C$4:$M$141,7,0) -> 0 | AF77: =VLOOKUP($B77,'[1]Collection Mode'!$C$4:$M$141,8,0) -> 0 | AG77: =VLOOKUP($B77,'[1]Collection Mode'!$C$4:$M$141,9,0) -> 0 | AH77: =VLOOKUP($B77,'[1]Collection Mode'!$C$4:$M$141,10,0) -> 0 | AI77: =VLOOKUP($B77,'[1]Collection Mode'!$C$4:$M$141,11,0) -> 42 | AJ77: 0 | AK77: 0 | AL77: 0 | AM77: 0 | AN77: 0 | AO77: 0 | AP77: 0 | AQ77: 0 | AR77: 0 | AS77: 0 | AT77: 0 | AU77: 0 | AV77: 0 | AW77: 0 | AX77: 0 | AY77: 0
A78: QUA | B78: RNA | C78: THE DUDLEY GROUP NHS FOUNDATION TRUST | D78: 369 | E78: 0 | F78: 0.8861788618 | G78: 0.0162601626 | H78: 296 | I78: 31 | J78: 12 | K78: 2 | L78: 4 | M78: 24 | N78: 220 | O78: 0 | P78: 141 | Q78: 0 | R78: 8 | S78: 0 | T78: =VLOOKUP($B78,'[1]Organisation Level'!$C$4:$N$141,11,0) -> 369 | U78: =VLOOKUP($B78,'[1]Organisation Level'!$C$4:$N$141,12,0) -> 0 | V78: 0.8861788618 | W78: 0.0162601626 | X78: =VLOOKUP($B78,'[1]Organisation Level'!$C$4:$N$141,5,0) -> 296 | Y78: =VLOOKUP($B78,'[1]Organisation Level'!$C$4:$N$141,6,0) -> 31 | Z78: =VLOOKUP($B78,'[1]Organisation Level'!$C$4:$N$141,7,0) -> 12 | AA78: =VLOOKUP($B78,'[1]Organisation Level'!$C$4:$N$141,8,0) -> 2 | AB78: =VLOOKUP($B78,'[1]Organisation Level'!$C$4:$N$141,9,0) -> 4 | AC78: =VLOOKUP($B78,'[1]Organisation Level'!$C$4:$N$141,10,0) -> 24 | AD78: =VLOOKUP($B78,'[1]Collection Mode'!$C$4:$M$141,6,0) -> 220 | AE78: =VLOOKUP($B78,'[1]Collection Mode'!$C$4:$M$141,7,0) -> 0 | AF78: =VLOOKUP($B78,'[1]Collection Mode'!$C$4:$M$141,8,0) -> 141 | AG78: =VLOOKUP($B78,'[1]Collection Mode'!$C$4:$M$141,9,0) -> 0 | AH78: =VLOOKUP($B78,'[1]Collection Mode'!$C$4:$M$141,10,0) -> 8 | AI78: =VLOOKUP($B78,'[1]Collection Mode'!$C$4:$M$141,11,0) -> 0 | AJ78: 0 | AK78: 0 | AL78: 0 | AM78: 0 | AN78: 0 | AO78: 0 | AP78: 0 | AQ78: 0 | AR78: 0 | AS78: 0 | AT78: 0 | AU78: 0 | AV78: 0 | AW78: 0 | AX78: 0 | AY78: 0
A79: QUA | B79: RL4 | C79: THE ROYAL WOLVERHAMPTON NHS TRUST | D79: 288 | E79: 4752 | F79: 0.9166666667 | G79: 0.02083333333 | H79: 212 | I79: 52 | J79: 10 | K79: 4 | L79: 2 | M79: 8 | N79: 43 | O79: 0 | P79: 0 | Q79: 245 | R79: 0 | S79: 0 | T79: =VLOOKUP($B79,'[1]Organisation Level'!$C$4:$N$141,11,0) -> 288 | U79: =VLOOKUP($B79,'[1]Organisation Level'!$C$4:$N$141,12,0) -> 4752 | V79: 0.9166666667 | W79: 0.02083333333 | X79: =VLOOKUP($B79,'[1]Organisation Level'!$C$4:$N$141,5,0) -> 212 | Y79: =VLOOKUP($B79,'[1]Organisation Level'!$C$4:$N$141,6,0) -> 52 | Z79: =VLOOKUP($B79,'[1]Organisation Level'!$C$4:$N$141,7,0) -> 10 | AA79: =VLOOKUP($B79,'[1]Organisation Level'!$C$4:$N$141,8,0) -> 4 | AB79: =VLOOKUP($B79,'[1]Organisation Level'!$C$4:$N$141,9,0) -> 2 | AC79: =VLOOKUP($B79,'[1]Organisation Level'!$C$4:$N$141,10,0) -> 8 | AD79: =VLOOKUP($B79,'[1]Collection Mode'!$C$4:$M$141,6,0) -> 43 | AE79: =VLOOKUP($B79,'[1]Collection Mode'!$C$4:$M$141,7,0) -> 0 | AF79: =VLOOKUP($B79,'[1]Collection Mode'!$C$4:$M$141,8,0) -> 0 | AG79: =VLOOKUP($B79,'[1]Collection Mode'!$C$4:$M$141,9,0) -> 245 | AH79: =VLOOKUP($B79,'[1]Collection Mode'!$C$4:$M$141,10,0) -> 0 | AI79: =VLOOKUP($B79,'[1]Collection Mode'!$C$4:$M$141,11,0) -> 0 | AJ79: 0 | AK79: 0 | AL79: 0 | AM79: 0 | AN79: 0 | AO79: 0 | AP79: 0 | AQ79: 0 | AR79: 0 | AS79: 0 | AT79: 0 | AU79: 0 | AV79: 0 | AW79: 0 | AX79: 0 | AY79: 0
A80: QUA | B80: RBK | C80: WALSALL HEALTHCARE NHS TRUST | D80: 542 | E80: 9527 | F80: 0.9870848708 | G80: 0 | H80: 478 | I80: 57 | J80: 7 | K80: 0 | L80: 0 | M80: 0 | N80: 0 | O80: 542 | P80: 0 | Q80: 0 | R80: 0 | S80: 0 | T80: =VLOOKUP($B80,'[1]Organisation Level'!$C$4:$N$141,11,0) -> 542 | U80: =VLOOKUP($B80,'[1]Organisation Level'!$C$4:$N$141,12,0) -> 9527 | V80: 0.9870848708 | W80: 0 | X80: =VLOOKUP($B80,'[1]Organisation Level'!$C$4:$N$141,5,0) -> 478 | Y80: =VLOOKUP($B80,'[1]Organisation Level'!$C$4:$N$141,6,0) -> 57 | Z80: =VLOOKUP($B80,'[1]Organisation Level'!$C$4:$N$141,7,0) -> 7 | AA80: =VLOOKUP($B80,'[1]Organisation Level'!$C$4:$N$141,8,0) -> 0 | AB80: =VLOOKUP($B80,'[1]Organisation Level'!$C$4:$N$141,9,0) -> 0 | AC80: =VLOOKUP($B80,'[1]Organisation Level'!$C$4:$N$141,10,0) -> 0 | AD80: =VLOOKUP($B80,'[1]Collection Mode'!$C$4:$M$141,6,0) -> 0 | AE80: =VLOOKUP($B80,'[1]Collection Mode'!$C$4:$M$141,7,0) -> 542 | AF80: =VLOOKUP($B80,'[1]Collection Mode'!$C$4:$M$141,8,0) -> 0 | AG80: =VLOOKUP($B80,'[1]Collection Mode'!$C$4:$M$141,9,0) -> 0 | AH80: =VLOOKUP($B80,'[1]Collection Mode'!$C$4:$M$141,10,0) -> 0 | AI80: =VLOOKUP($B80,'[1]Collection Mode'!$C$4:$M$141,11,0) -> 0 | AJ80: 0 | AK80: 0 | AL80: 0 | AM80: 0 | AN80: 0 | AO80: 0 | AP80: 0 | AQ80: 0 | AR80: 0 | AS80: 0 | AT80: 0 | AU80: 0 | AV80: 0 | AW80: 0 | AX80: 0 | AY80: 0
A81: QUE | B81: RT1 | C81: CAMBRIDGESHIRE AND PETERBOROUGH NHS FOUNDATION TRUST | D81: 725 | E81: 24084 | F81: 0.9393103448 | G81: 0.02896551724 | H81: 553 | I81: 128 | J81: 14 | K81: 5 | L81: 16 | M81: 9 | N81: 0 | O81: 0 | P81: 0 | Q81: 0 | R81: 715 | S81: 10 | T81: =VLOOKUP($B81,'[1]Organisation Level'!$C$4:$N$141,11,0) -> 725 | U81: =VLOOKUP($B81,'[1]Organisation Level'!$C$4:$N$141,12,0) -> 24084 | V81: 0.9393103448 | W81: 0.02896551724 | X81: =VLOOKUP($B81,'[1]Organisation Level'!$C$4:$N$141,5,0) -> 553 | Y81: =VLOOKUP($B81,'[1]Organisation Level'!$C$4:$N$141,6,0) -> 128 | Z81: =VLOOKUP($B81,'[1]Organisation Level'!$C$4:$N$141,7,0) -> 14 | AA81: =VLOOKUP($B81,'[1]Organisation Level'!$C$4:$N$141,8,0) -> 5 | AB81: =VLOOKUP($B81,'[1]Organisation Level'!$C$4:$N$141,9,0) -> 16 | AC81: =VLOOKUP($B81,'[1]Organisation Level'!$C$4:$N$141,10,0) -> 9 | AD81: =VLOOKUP($B81,'[1]Collection Mode'!$C$4:$M$141,6,0) -> 0 | AE81: =VLOOKUP($B81,'[1]Collection Mode'!$C$4:$M$141,7,0) -> 0 | AF81: =VLOOKUP($B81,'[1]Collection Mode'!$C$4:$M$141,8,0) -> 0 | AG81: =VLOOKUP($B81,'[1]Collection Mode'!$C$4:$M$141,9,0) -> 0 | AH81: =VLOOKUP($B81,'[1]Collection Mode'!$C$4:$M$141,10,0) -> 715 | AI81: =VLOOKUP($B81,'[1]Collection Mode'!$C$4:$M$141,11,0) -> 10 | AJ81: 0 | AK81: 0 | AL81: 0 | AM81: 0 | AN81: 0 | AO81: 0 | AP81: 0 | AQ81: 0 | AR81: 0 | AS81: 0 | AT81: 0 | AU81: 0 | AV81: 0 | AW81: 0 | AX81: 0 | AY81: 0
A82: QUE | B82: RYV | C82: CAMBRIDGESHIRE COMMUNITY SERVICES NHS TRUST | D82: 2502 | E82: 52977 | F82: 0.9488409273 | G82: 0.01638689049 | H82: 2064 | I82: 310 | J82: 67 | K82: 20 | L82: 21 | M82: 20 | N82: 1 | O82: 1485 | P82: 419 | Q82: 112 | R82: 485 | S82: 0 | T82: =VLOOKUP($B82,'[1]Organisation Level'!$C$4:$N$141,11,0) -> 2502 | U82: =VLOOKUP($B82,'[1]Organisation Level'!$C$4:$N$141,12,0) -> 52977 | V82: 0.9488409273 | W82: 0.01638689049 | X82: =VLOOKUP($B82,'[1]Organisation Level'!$C$4:$N$141,5,0) -> 2064 | Y82: =VLOOKUP($B82,'[1]Organisation Level'!$C$4:$N$141,6,0) -> 310 | Z82: =VLOOKUP($B82,'[1]Organisation Level'!$C$4:$N$141,7,0) -> 67 | AA82: =VLOOKUP($B82,'[1]Organisation Level'!$C$4:$N$141,8,0) -> 20 | AB82: =VLOOKUP($B82,'[1]Organisation Level'!$C$4:$N$141,9,0) -> 21 | AC82: =VLOOKUP($B82,'[1]Organisation Level'!$C$4:$N$141,10,0) -> 20 | AD82: =VLOOKUP($B82,'[1]Collection Mode'!$C$4:$M$141,6,0) -> 1 | AE82: =VLOOKUP($B82,'[1]Collection Mode'!$C$4:$M$141,7,0) -> 1485 | AF82: =VLOOKUP($B82,'[1]Collection Mode'!$C$4:$M$141,8,0) -> 419 | AG82: =VLOOKUP($B82,'[1]Collection Mode'!$C$4:$M$141,9,0) -> 112 | AH82: =VLOOKUP($B82,'[1]Collection Mode'!$C$4:$M$141,10,0) -> 485 | AI82: =VLOOKUP($B82,'[1]Collection Mode'!$C$4:$M$141,11,0) -> 0 | AJ82: 0 | AK82: 0 | AL82: 0 | AM82: 0 | AN82: 0 | AO82: 0 | AP82: 0 | AQ82: 0 | AR82: 0 | AS82: 0 | AT82: 0 | AU82: 0 | AV82: 0 | AW82: 0 | AX82: 0 | AY82: 0
A83: QVV | B83: RDY | C83: DORSET HEALTHCARE UNIVERSITY NHS FOUNDATION TRUST | D83: 1506 | E83: 20486 | F83: 0.9017264276 | G83: 0.05511288181 | H83: 1144 | I83: 214 | J83: 61 | K83: 33 | L83: 50 | M83: 4 | N83: 18 | O83: 209 | P83: 255 | Q83: 0 | R83: 1024 | S83: 0 | T83: =VLOOKUP($B83,'[1]Organisation Level'!$C$4:$N$141,11,0) -> 1506 | U83: =VLOOKUP($B83,'[1]Organisation Level'!$C$4:$N$141,12,0) -> 20486 | V83: 0.9017264276 | W83: 0.05511288181 | X83: =VLOOKUP($B83,'[1]Organisation Level'!$C$4:$N$141,5,0) -> 1144 | Y83: =VLOOKUP($B83,'[1]Organisation Level'!$C$4:$N$141,6,0) -> 214 | Z83: =VLOOKUP($B83,'[1]Organisation Level'!$C$4:$N$141,7,0) -> 61 | AA83: =VLOOKUP($B83,'[1]Organisation Level'!$C$4:$N$141,8,0) -> 33 | AB83: =VLOOKUP($B83,'[1]Organisation Level'!$C$4:$N$141,9,0) -> 50 | AC83: =VLOOKUP($B83,'[1]Organisation Level'!$C$4:$N$141,10,0) -> 4 | AD83: =VLOOKUP($B83,'[1]Collection Mode'!$C$4:$M$141,6,0) -> 18 | AE83: =VLOOKUP($B83,'[1]Collection Mode'!$C$4:$M$141,7,0) -> 209 | AF83: =VLOOKUP($B83,'[1]Collection Mode'!$C$4:$M$141,8,0) -> 255 | AG83: =VLOOKUP($B83,'[1]Collection Mode'!$C$4:$M$141,9,0) -> 0 | AH83: =VLOOKUP($B83,'[1]Collection Mode'!$C$4:$M$141,10,0) -> 1024 | AI83: =VLOOKUP($B83,'[1]Collection Mode'!$C$4:$M$141,11,0) -> 0 | AJ83: 0 | AK83: 0 | AL83: 0 | AM83: 0 | AN83: 0 | AO83: 0 | AP83: 0 | AQ83: 0 | AR83: 0 | AS83: 0 | AT83: 0 | AU83: 0 | AV83: 0 | AW83: 0 | AX83: 0 | AY83: 0
A84: QWE | B84: RJ6 | C84: CROYDON HEALTH SERVICES NHS TRUST | D84: 632 | E84: 2541 | F84: 0.9446202532 | G84: 0.01898734177 | H84: 402 | I84: 195 | J84: 19 | K84: 9 | L84: 3 | M84: 4 | N84: 170 | O84: 0 | P84: 0 | Q84: 0 | R84: 462 | S84: 0 | T84: =VLOOKUP($B84,'[1]Organisation Level'!$C$4:$N$141,11,0) -> 632 | U84: =VLOOKUP($B84,'[1]Organisation Level'!$C$4:$N$141,12,0) -> 2541 | V84: 0.9446202532 | W84: 0.01898734177 | X84: =VLOOKUP($B84,'[1]Organisation Level'!$C$4:$N$141,5,0) -> 402 | Y84: =VLOOKUP($B84,'[1]Organisation Level'!$C$4:$N$141,6,0) -> 195 | Z84: =VLOOKUP($B84,'[1]Organisation Level'!$C$4:$N$141,7,0) -> 19 | AA84: =VLOOKUP($B84,'[1]Organisation Level'!$C$4:$N$141,8,0) -> 9 | AB84: =VLOOKUP($B84,'[1]Organisation Level'!$C$4:$N$141,9,0) -> 3 | AC84: =VLOOKUP($B84,'[1]Organisation Level'!$C$4:$N$141,10,0) -> 4 | AD84: =VLOOKUP($B84,'[1]Collection Mode'!$C$4:$M$141,6,0) -> 170 | AE84: =VLOOKUP($B84,'[1]Collection Mode'!$C$4:$M$141,7,0) -> 0 | AF84: =VLOOKUP($B84,'[1]Collection Mode'!$C$4:$M$141,8,0) -> 0 | AG84: =VLOOKUP($B84,'[1]Collection Mode'!$C$4:$M$141,9,0) -> 0 | AH84: =VLOOKUP($B84,'[1]Collection Mode'!$C$4:$M$141,10,0) -> 462 | AI84: =VLOOKUP($B84,'[1]Collection Mode'!$C$4:$M$141,11,0) -> 0 | AJ84: 0 | AK84: 0 | AL84: 0 | AM84: 0 | AN84: 0 | AO84: 0 | AP84: 0 | AQ84: 0 | AR84: 0 | AS84: 0 | AT84: 0 | AU84: 0 | AV84: 0 | AW84: 0 | AX84: 0 | AY84: 0
A85: QWE | B85: RVR | C85: EPSOM AND ST HELIER UNIVERSITY HOSPITALS NHS TRUST | D85: 906 | E85: 17905 | F85: 0.9635761589 | G85: 0.01214128035 | H85: 782 | I85: 91 | J85: 19 | K85: 4 | L85: 7 | M85: 3 | N85: 0 | O85: 0 | P85: 0 | Q85: 0 | R85: 906 | S85: 0 | T85: =VLOOKUP($B85,'[1]Organisation Level'!$C$4:$N$141,11,0) -> 906 | U85: =VLOOKUP($B85,'[1]Organisation Level'!$C$4:$N$141,12,0) -> 17905 | V85: 0.9635761589 | W85: 0.01214128035 | X85: =VLOOKUP($B85,'[1]Organisation Level'!$C$4:$N$141,5,0) -> 782 | Y85: =VLOOKUP($B85,'[1]Organisation Level'!$C$4:$N$141,6,0) -> 91 | Z85: =VLOOKUP($B85,'[1]Organisation Level'!$C$4:$N$141,7,0) -> 19 | AA85: =VLOOKUP($B85,'[1]Organisation Level'!$C$4:$N$141,8,0) -> 4 | AB85: =VLOOKUP($B85,'[1]Organisation Level'!$C$4:$N$141,9,0) -> 7 | AC85: =VLOOKUP($B85,'[1]Organisation Level'!$C$4:$N$141,10,0) -> 3 | AD85: =VLOOKUP($B85,'[1]Collection Mode'!$C$4:$M$141,6,0) -> 0 | AE85: =VLOOKUP($B85,'[1]Collection Mode'!$C$4:$M$141,7,0) -> 0 | AF85: =VLOOKUP($B85,'[1]Collection Mode'!$C$4:$M$141,8,0) -> 0 | AG85: =VLOOKUP($B85,'[1]Collection Mode'!$C$4:$M$141,9,0) -> 0 | AH85: =VLOOKUP($B85,'[1]Collection Mode'!$C$4:$M$141,10,0) -> 906 | AI85: =VLOOKUP($B85,'[1]Collection Mode'!$C$4:$M$141,11,0) -> 0 | AJ85: 0 | AK85: 0 | AL85: 0 | AM85: 0 | AN85: 0 | AO85: 0 | AP85: 0 | AQ85: 0 | AR85: 0 | AS85: 0 | AT85: 0 | AU85: 0 | AV85: 0 | AW85: 0 | AX85: 0 | AY85: 0
A86: QWE | B86: RAX | C86: KINGSTON AND RICHMOND NHS FOUNDATION TRUST | D86: 1624 | E86: 14866 | F86: 0.940270936 | G86: 0.03325123153 | H86: 1302 | I86: 225 | J86: 33 | K86: 36 | L86: 18 | M86: 10 | N86: 1127 | O86: 0 | P86: 482 | Q86: 0 | R86: 15 | S86: 0 | T86: =VLOOKUP($B86,'[1]Organisation Level'!$C$4:$N$141,11,0) -> 1624 | U86: =VLOOKUP($B86,'[1]Organisation Level'!$C$4:$N$141,12,0) -> 14866 | V86: 0.940270936 | W86: 0.03325123153 | X86: =VLOOKUP($B86,'[1]Organisation Level'!$C$4:$N$141,5,0) -> 1302 | Y86: =VLOOKUP($B86,'[1]Organisation Level'!$C$4:$N$141,6,0) -> 225 | Z86: =VLOOKUP($B86,'[1]Organisation Level'!$C$4:$N$141,7,0) -> 33 | AA86: =VLOOKUP($B86,'[1]Organisation Level'!$C$4:$N$141,8,0) -> 36 | AB86: =VLOOKUP($B86,'[1]Organisation Level'!$C$4:$N$141,9,0) -> 18 | AC86: =VLOOKUP($B86,'[1]Organisation Level'!$C$4:$N$141,10,0) -> 10 | AD86: =VLOOKUP($B86,'[1]Collection Mode'!$C$4:$M$141,6,0) -> 1127 | AE86: =VLOOKUP($B86,'[1]Collection Mode'!$C$4:$M$141,7,0) -> 0 | AF86: =VLOOKUP($B86,'[1]Collection Mode'!$C$4:$M$141,8,0) -> 482 | AG86: =VLOOKUP($B86,'[1]Collection Mode'!$C$4:$M$141,9,0) -> 0 | AH86: =VLOOKUP($B86,'[1]Collection Mode'!$C$4:$M$141,10,0) -> 15 | AI86: =VLOOKUP($B86,'[1]Collection Mode'!$C$4:$M$141,11,0) -> 0 | AJ86: 0 | AK86: 0 | AL86: 0 | AM86: 0 | AN86: 0 | AO86: 0 | AP86: 0 | AQ86: 0 | AR86: 0 | AS86: 0 | AT86: 0 | AU86: 0 | AV86: 0 | AW86: 0 | AX86: 0 | AY86: 0
A87: QWE | B87: RJ7 | C87: ST GEORGE'S UNIVERSITY HOSPITALS NHS FOUNDATION TRUST | D87: 6 | E87: 1720 | F87: 1 | G87: 0 | H87: 4 | I87: 2 | J87: 0 | K87: 0 | L87: 0 | M87: 0 | N87: 0 | O87: 0 | P87: 4 | Q87: 0 | R87: 2 | S87: 0 | T87: =VLOOKUP($B87,'[1]Organisation Level'!$C$4:$N$141,11,0) -> 6 | U87: =VLOOKUP($B87,'[1]Organisation Level'!$C$4:$N$141,12,0) -> 1720 | V87: 1 | W87: 0 | X87: =VLOOKUP($B87,'[1]Organisation Level'!$C$4:$N$141,5,0) -> 4 | Y87: =VLOOKUP($B87,'[1]Organisation Level'!$C$4:$N$141,6,0) -> 2 | Z87: =VLOOKUP($B87,'[1]Organisation Level'!$C$4:$N$141,7,0) -> 0 | AA87: =VLOOKUP($B87,'[1]Organisation Level'!$C$4:$N$141,8,0) -> 0 | AB87: =VLOOKUP($B87,'[1]Organisation Level'!$C$4:$N$141,9,0) -> 0 | AC87: =VLOOKUP($B87,'[1]Organisation Level'!$C$4:$N$141,10,0) -> 0 | AD87: =VLOOKUP($B87,'[1]Collection Mode'!$C$4:$M$141,6,0) -> 0 | AE87: =VLOOKUP($B87,'[1]Collection Mode'!$C$4:$M$141,7,0) -> 0 | AF87: =VLOOKUP($B87,'[1]Collection Mode'!$C$4:$M$141,8,0) -> 4 | AG87: =VLOOKUP($B87,'[1]Collection Mode'!$C$4:$M$141,9,0) -> 0 | AH87: =VLOOKUP($B87,'[1]Collection Mode'!$C$4:$M$141,10,0) -> 2 | AI87: =VLOOKUP($B87,'[1]Collection Mode'!$C$4:$M$141,11,0) -> 0 | AJ87: 0 | AK87: 0 | AL87: 0 | AM87: 0 | AN87: 0 | AO87: 0 | AP87: 0 | AQ87: 0 | AR87: 0 | AS87: 0 | AT87: 0 | AU87: 0 | AV87: 0 | AW87: 0 | AX87: 0 | AY87: 0
A88: QWO | B88: RCF | C88: AIREDALE NHS FOUNDATION TRUST | D88: 159 | E88: 1556 | F88: 0.8993710692 | G88: 0.05031446541 | H88: 121 | I88: 22 | J88: 7 | K88: 1 | L88: 7 | M88: 1 | N88: 146 | O88: 0 | P88: 0 | Q88: 0 | R88: 13 | S88: 0 | T88: =VLOOKUP($B88,'[1]Organisation Level'!$C$4:$N$141,11,0) -> 159 | U88: =VLOOKUP($B88,'[1]Organisation Level'!$C$4:$N$141,12,0) -> 1556 | V88: 0.8993710692 | W88: 0.05031446541 | X88: =VLOOKUP($B88,'[1]Organisation Level'!$C$4:$N$141,5,0) -> 121 | Y88: =VLOOKUP($B88,'[1]Organisation Level'!$C$4:$N$141,6,0) -> 22 | Z88: =VLOOKUP($B88,'[1]Organisation Level'!$C$4:$N$141,7,0) -> 7 | AA88: =VLOOKUP($B88,'[1]Organisation Level'!$C$4:$N$141,8,0) -> 1 | AB88: =VLOOKUP($B88,'[1]Organisation Level'!$C$4:$N$141,9,0) -> 7 | AC88: =VLOOKUP($B88,'[1]Organisation Level'!$C$4:$N$141,10,0) -> 1 | AD88: =VLOOKUP($B88,'[1]Collection Mode'!$C$4:$M$141,6,0) -> 146 | AE88: =VLOOKUP($B88,'[1]Collection Mode'!$C$4:$M$141,7,0) -> 0 | AF88: =VLOOKUP($B88,'[1]Collection Mode'!$C$4:$M$141,8,0) -> 0 | AG88: =VLOOKUP($B88,'[1]Collection Mode'!$C$4:$M$141,9,0) -> 0 | AH88: =VLOOKUP($B88,'[1]Collection Mode'!$C$4:$M$141,10,0) -> 13 | AI88: =VLOOKUP($B88,'[1]Collection Mode'!$C$4:$M$141,11,0) -> 0 | AJ88: 0 | AK88: 0 | AL88: 0 | AM88: 0 | AN88: 0 | AO88: 0 | AP88: 0 | AQ88: 0 | AR88: 0 | AS88: 0 | AT88: 0 | AU88: 0 | AV88: 0 | AW88: 0 | AX88: 0 | AY88: 0
A89: QWO | B89: TAD | C89: BRADFORD DISTRICT CARE NHS FOUNDATION TRUST | D89: 1755 | E89: 21519 | F89: 0.9680911681 | G89: 0.01424501425 | H89: 1620 | I89: 79 | J89: 30 | K89: 16 | L89: 9 | M89: 1 | N89: 1 | O89: 0 | P89: 1381 | Q89: 0 | R89: 373 | S89: 0 | T89: =VLOOKUP($B89,'[1]Organisation Level'!$C$4:$N$141,11,0) -> 1755 | U89: =VLOOKUP($B89,'[1]Organisation Level'!$C$4:$N$141,12,0) -> 21519 | V89: 0.9680911681 | W89: 0.01424501425 | X89: =VLOOKUP($B89,'[1]Organisation Level'!$C$4:$N$141,5,0) -> 1620 | Y89: =VLOOKUP($B89,'[1]Organisation Level'!$C$4:$N$141,6,0) -> 79 | Z89: =VLOOKUP($B89,'[1]Organisation Level'!$C$4:$N$141,7,0) -> 30 | AA89: =VLOOKUP($B89,'[1]Organisation Level'!$C$4:$N$141,8,0) -> 16 | AB89: =VLOOKUP($B89,'[1]Organisation Level'!$C$4:$N$141,9,0) -> 9 | AC89: =VLOOKUP($B89,'[1]Organisation Level'!$C$4:$N$141,10,0) -> 1 | AD89: =VLOOKUP($B89,'[1]Collection Mode'!$C$4:$M$141,6,0) -> 1 | AE89: =VLOOKUP($B89,'[1]Collection Mode'!$C$4:$M$141,7,0) -> 0 | AF89: =VLOOKUP($B89,'[1]Collection Mode'!$C$4:$M$141,8,0) -> 1381 | AG89: =VLOOKUP($B89,'[1]Collection Mode'!$C$4:$M$141,9,0) -> 0 | AH89: =VLOOKUP($B89,'[1]Collection Mode'!$C$4:$M$141,10,0) -> 373 | AI89: =VLOOKUP($B89,'[1]Collection Mode'!$C$4:$M$141,11,0) -> 0 | AJ89: 0 | AK89: 0 | AL89: 0 | AM89: 0 | AN89: 0 | AO89: 0 | AP89: 0 | AQ89: 0 | AR89: 0 | AS89: 0 | AT89: 0 | AU89: 0 | AV89: 0 | AW89: 0 | AX89: 0 | AY89: 0
A90: QWO | B90: RWY | C90: CALDERDALE AND HUDDERSFIELD NHS FOUNDATION TRUST | D90: 246 | E90: 14237 | F90: 0.9796747967 | G90: 0.008130081301 | H90: 219 | I90: 22 | J90: 2 | K90: 1 | L90: 1 | M90: 1 | N90: 0 | O90: 0 | P90: 0 | Q90: 0 | R90: 246 | S90: 0 | T90: =VLOOKUP($B90,'[1]Organisation Level'!$C$4:$N$141,11,0) -> 246 | U90: =VLOOKUP($B90,'[1]Organisation Level'!$C$4:$N$141,12,0) -> 14237 | V90: 0.9796747967 | W90: 0.008130081301 | X90: =VLOOKUP($B90,'[1]Organisation Level'!$C$4:$N$141,5,0) -> 219 | Y90: =VLOOKUP($B90,'[1]Organisation Level'!$C$4:$N$141,6,0) -> 22 | Z90: =VLOOKUP($B90,'[1]Organisation Level'!$C$4:$N$141,7,0) -> 2 | AA90: =VLOOKUP($B90,'[1]Organisation Level'!$C$4:$N$141,8,0) -> 1 | AB90: =VLOOKUP($B90,'[1]Organisation Level'!$C$4:$N$141,9,0) -> 1 | AC90: =VLOOKUP($B90,'[1]Organisation Level'!$C$4:$N$141,10,0) -> 1 | AD90: =VLOOKUP($B90,'[1]Collection Mode'!$C$4:$M$141,6,0) -> 0 | AE90: =VLOOKUP($B90,'[1]Collection Mode'!$C$4:$M$141,7,0) -> 0 | AF90: =VLOOKUP($B90,'[1]Collection Mode'!$C$4:$M$141,8,0) -> 0 | AG90: =VLOOKUP($B90,'[1]Collection Mode'!$C$4:$M$141,9,0) -> 0 | AH90: =VLOOKUP($B90,'[1]Collection Mode'!$C$4:$M$141,10,0) -> 246 | AI90: =VLOOKUP($B90,'[1]Collection Mode'!$C$4:$M$141,11,0) -> 0 | AJ90: 0 | AK90: 0 | AL90: 0 | AM90: 0 | AN90: 0 | AO90: 0 | AP90: 0 | AQ90: 0 | AR90: 0 | AS90: 0 | AT90: 0 | AU90: 0 | AV90: 0 | AW90: 0 | AX90: 0 | AY90: 0
A91: QWO | B91: RXF | C91: MID YORKSHIRE TEACHING NHS TRUST | D91: 1296 | E91: 0 | F91: 0.9814814815 | G91: 0.006172839506 | H91: 1163 | I91: 109 | J91: 15 | K91: 2 | L91: 6 | M91: 1 | N91: 68 | O91: 0 | P91: 1073 | Q91: 0 | R91: 155 | S91: 0 | T91: =VLOOKUP($B91,'[1]Organisation Level'!$C$4:$N$141,11,0) -> 1296 | U91: =VLOOKUP($B91,'[1]Organisation Level'!$C$4:$N$141,12,0) -> 0 | V91: 0.9814814815 | W91: 0.006172839506 | X91: =VLOOKUP($B91,'[1]Organisation Level'!$C$4:$N$141,5,0) -> 1163 | Y91: =VLOOKUP($B91,'[1]Organisation Level'!$C$4:$N$141,6,0) -> 109 | Z91: =VLOOKUP($B91,'[1]Organisation Level'!$C$4:$N$141,7,0) -> 15 | AA91: =VLOOKUP($B91,'[1]Organisation Level'!$C$4:$N$141,8,0) -> 2 | AB91: =VLOOKUP($B91,'[1]Organisation Level'!$C$4:$N$141,9,0) -> 6 | AC91: =VLOOKUP($B91,'[1]Organisation Level'!$C$4:$N$141,10,0) -> 1 | AD91: =VLOOKUP($B91,'[1]Collection Mode'!$C$4:$M$141,6,0) -> 68 | AE91: =VLOOKUP($B91,'[1]Collection Mode'!$C$4:$M$141,7,0) -> 0 | AF91: =VLOOKUP($B91,'[1]Collection Mode'!$C$4:$M$141,8,0) -> 1073 | AG91: =VLOOKUP($B91,'[1]Collection Mode'!$C$4:$M$141,9,0) -> 0 | AH91: =VLOOKUP($B91,'[1]Collection Mode'!$C$4:$M$141,10,0) -> 155 | AI91: =VLOOKUP($B91,'[1]Collection Mode'!$C$4:$M$141,11,0) -> 0 | AJ91: 0 | AK91: 0 | AL91: 0 | AM91: 0 | AN91: 0 | AO91: 0 | AP91: 0 | AQ91: 0 | AR91: 0 | AS91: 0 | AT91: 0 | AU91: 0 | AV91: 0 | AW91: 0 | AX91: 0 | AY91: 0
A92: QWO | B92: RXG | C92: SOUTH WEST YORKSHIRE PARTNERSHIP NHS FOUNDATION TRUST | D92: 401 | E92: 12339 | F92: 0.9600997506 | G92: 0.0174563591 | H92: 343 | I92: 42 | J92: 7 | K92: 4 | L92: 3 | M92: 2 | N92: 0 | O92: 11 | P92: 20 | Q92: 0 | R92: 370 | S92: 0 | T92: =VLOOKUP($B92,'[1]Organisation Level'!$C$4:$N$141,11,0) -> 401 | U92: =VLOOKUP($B92,'[1]Organisation Level'!$C$4:$N$141,12,0) -> 12339 | V92: 0.9600997506 | W92: 0.0174563591 | X92: =VLOOKUP($B92,'[1]Organisation Level'!$C$4:$N$141,5,0) -> 343 | Y92: =VLOOKUP($B92,'[1]Organisation Level'!$C$4:$N$141,6,0) -> 42 | Z92: =VLOOKUP($B92,'[1]Organisation Level'!$C$4:$N$141,7,0) -> 7 | AA92: =VLOOKUP($B92,'[1]Organisation Level'!$C$4:$N$141,8,0) -> 4 | AB92: =VLOOKUP($B92,'[1]Organisation Level'!$C$4:$N$141,9,0) -> 3 | AC92: =VLOOKUP($B92,'[1]Organisation Level'!$C$4:$N$141,10,0) -> 2 | AD92: =VLOOKUP($B92,'[1]Collection Mode'!$C$4:$M$141,6,0) -> 0 | AE92: =VLOOKUP($B92,'[1]Collection Mode'!$C$4:$M$141,7,0) -> 11 | AF92: =VLOOKUP($B92,'[1]Collection Mode'!$C$4:$M$141,8,0) -> 20 | AG92: =VLOOKUP($B92,'[1]Collection Mode'!$C$4:$M$141,9,0) -> 0 | AH92: =VLOOKUP($B92,'[1]Collection Mode'!$C$4:$M$141,10,0) -> 370 | AI92: =VLOOKUP($B92,'[1]Collection Mode'!$C$4:$M$141,11,0) -> 0 | AJ92: 0 | AK92: 0 | AL92: 0 | AM92: 0 | AN92: 0 | AO92: 0 | AP92: 0 | AQ92: 0 | AR92: 0 | AS92: 0 | AT92: 0 | AU92: 0 | AV92: 0 | AW92: 0 | AX92: 0 | AY92: 0
A93: QWU | B93: RJC | C93: SOUTH WARWICKSHIRE UNIVERSITY NHS FOUNDATION TRUST | D93: 144 | E93: 7891 | F93: 0.9444444444 | G93: 0.02083333333 | H93: 125 | I93: 11 | J93: 0 | K93: 0 | L93: 3 | M93: 5 | N93: 0 | O93: 0 | P93: 144 | Q93: 0 | R93: 0 | S93: 0 | T93: =VLOOKUP($B93,'[1]Organisation Level'!$C$4:$N$141,11,0) -> 144 | U93: =VLOOKUP($B93,'[1]Organisation Level'!$C$4:$N$141,12,0) -> 7891 | V93: 0.9444444444 | W93: 0.02083333333 | X93: =VLOOKUP($B93,'[1]Organisation Level'!$C$4:$N$141,5,0) -> 125 | Y93: =VLOOKUP($B93,'[1]Organisation Level'!$C$4:$N$141,6,0) -> 11 | Z93: =VLOOKUP($B93,'[1]Organisation Level'!$C$4:$N$141,7,0) -> 0 | AA93: =VLOOKUP($B93,'[1]Organisation Level'!$C$4:$N$141,8,0) -> 0 | AB93: =VLOOKUP($B93,'[1]Organisation Level'!$C$4:$N$141,9,0) -> 3 | AC93: =VLOOKUP($B93,'[1]Organisation Level'!$C$4:$N$141,10,0) -> 5 | AD93: =VLOOKUP($B93,'[1]Collection Mode'!$C$4:$M$141,6,0) -> 0 | AE93: =VLOOKUP($B93,'[1]Collection Mode'!$C$4:$M$141,7,0) -> 0 | AF93: =VLOOKUP($B93,'[1]Collection Mode'!$C$4:$M$141,8,0) -> 144 | AG93: =VLOOKUP($B93,'[1]Collection Mode'!$C$4:$M$141,9,0) -> 0 | AH93: =VLOOKUP($B93,'[1]Collection Mode'!$C$4:$M$141,10,0) -> 0 | AI93: =VLOOKUP($B93,'[1]Collection Mode'!$C$4:$M$141,11,0) -> 0 | AJ93: 0 | AK93: 0 | AL93: 0 | AM93: 0 | AN93: 0 | AO93: 0 | AP93: 0 | AQ93: 0 | AR93: 0 | AS93: 0 | AT93: 0 | AU93: 0 | AV93: 0 | AW93: 0 | AX93: 0 | AY93: 0
A94: QXU | B94: RA2 | C94: ROYAL SURREY COUNTY HOSPITAL NHS FOUNDATION TRUST | D94: 49 | E94: 3584 | F94: 0.9795918367 | G94: 0 | H94: 39 | I94: 9 | J94: 1 | K94: 0 | L94: 0 | M94: 0 | N94: 0 | O94: 0 | P94: 41 | Q94: 0 | R94: 8 | S94: 0 | T94: =VLOOKUP($B94,'[1]Organisation Level'!$C$4:$N$141,11,0) -> 49 | U94: =VLOOKUP($B94,'[1]Organisation Level'!$C$4:$N$141,12,0) -> 3584 | V94: 0.9795918367 | W94: 0 | X94: =VLOOKUP($B94,'[1]Organisation Level'!$C$4:$N$141,5,0) -> 39 | Y94: =VLOOKUP($B94,'[1]Organisation Level'!$C$4:$N$141,6,0) -> 9 | Z94: =VLOOKUP($B94,'[1]Organisation Level'!$C$4:$N$141,7,0) -> 1 | AA94: =VLOOKUP($B94,'[1]Organisation Level'!$C$4:$N$141,8,0) -> 0 | AB94: =VLOOKUP($B94,'[1]Organisation Level'!$C$4:$N$141,9,0) -> 0 | AC94: =VLOOKUP($B94,'[1]Organisation Level'!$C$4:$N$141,10,0) -> 0 | AD94: =VLOOKUP($B94,'[1]Collection Mode'!$C$4:$M$141,6,0) -> 0 | AE94: =VLOOKUP($B94,'[1]Collection Mode'!$C$4:$M$141,7,0) -> 0 | AF94: =VLOOKUP($B94,'[1]Collection Mode'!$C$4:$M$141,8,0) -> 41 | AG94: =VLOOKUP($B94,'[1]Collection Mode'!$C$4:$M$141,9,0) -> 0 | AH94: =VLOOKUP($B94,'[1]Collection Mode'!$C$4:$M$141,10,0) -> 8 | AI94: =VLOOKUP($B94,'[1]Collection Mode'!$C$4:$M$141,11,0) -> 0 | AJ94: 0 | AK94: 0 | AL94: 0 | AM94: 0 | AN94: 0 | AO94: 0 | AP94: 0 | AQ94: 0 | AR94: 0 | AS94: 0 | AT94: 0 | AU94: 0 | AV94: 0 | AW94: 0 | AX94: 0 | AY94: 0
A95: QYG | B95: RBS | C95: ALDER HEY CHILDREN'S NHS FOUNDATION TRUST | D95: 173 | E95: 1106 | F95: 0.9306358382 | G95: 0.04624277457 | H95: 146 | I95: 15 | J95: 4 | K95: 2 | L95: 6 | M95: 0 | N95: 101 | O95: 1 | P95: 0 | Q95: 0 | R95: 71 | S95: 0 | T95: =VLOOKUP($B95,'[1]Organisation Level'!$C$4:$N$141,11,0) -> 173 | U95: =VLOOKUP($B95,'[1]Organisation Level'!$C$4:$N$141,12,0) -> 1106 | V95: 0.9306358382 | W95: 0.04624277457 | X95: =VLOOKUP($B95,'[1]Organisation Level'!$C$4:$N$141,5,0) -> 146 | Y95: =VLOOKUP($B95,'[1]Organisation Level'!$C$4:$N$141,6,0) -> 15 | Z95: =VLOOKUP($B95,'[1]Organisation Level'!$C$4:$N$141,7,0) -> 4 | AA95: =VLOOKUP($B95,'[1]Organisation Level'!$C$4:$N$141,8,0) -> 2 | AB95: =VLOOKUP($B95,'[1]Organisation Level'!$C$4:$N$141,9,0) -> 6 | AC95: =VLOOKUP($B95,'[1]Organisation Level'!$C$4:$N$141,10,0) -> 0 | AD95: =VLOOKUP($B95,'[1]Collection Mode'!$C$4:$M$141,6,0) -> 101 | AE95: =VLOOKUP($B95,'[1]Collection Mode'!$C$4:$M$141,7,0) -> 1 | AF95: =VLOOKUP($B95,'[1]Collection Mode'!$C$4:$M$141,8,0) -> 0 | AG95: =VLOOKUP($B95,'[1]Collection Mode'!$C$4:$M$141,9,0) -> 0 | AH95: =VLOOKUP($B95,'[1]Collection Mode'!$C$4:$M$141,10,0) -> 71 | AI95: =VLOOKUP($B95,'[1]Collection Mode'!$C$4:$M$141,11,0) -> 0 | AJ95: 0 | AK95: 0 | AL95: 0 | AM95: 0 | AN95: 0 | AO95: 0 | AP95: 0 | AQ95: 0 | AR95: 0 | AS95: 0 | AT95: 0 | AU95: 0 | AV95: 0 | AW95: 0 | AX95: 0 | AY95: 0
A96: QYG | B96: RY2 | C96: BRIDGEWATER COMMUNITY HEALTHCARE NHS FOUNDATION TRUST | D96: 4380 | E96: 20431 | F96: 0.9506849315 | G96: 0.02739726027 | H96: 3714 | I96: 450 | J96: 72 | K96: 57 | L96: 63 | M96: 24 | N96: 2685 | O96: 0 | P96: 1350 | Q96: 0 | R96: 345 | S96: 0 | T96: =VLOOKUP($B96,'[1]Organisation Level'!$C$4:$N$141,11,0) -> 4380 | U96: =VLOOKUP($B96,'[1]Organisation Level'!$C$4:$N$141,12,0) -> 20431 | V96: 0.9506849315 | W96: 0.02739726027 | X96: =VLOOKUP($B96,'[1]Organisation Level'!$C$4:$N$141,5,0) -> 3714 | Y96: =VLOOKUP($B96,'[1]Organisation Level'!$C$4:$N$141,6,0) -> 450 | Z96: =VLOOKUP($B96,'[1]Organisation Level'!$C$4:$N$141,7,0) -> 72 | AA96: =VLOOKUP($B96,'[1]Organisation Level'!$C$4:$N$141,8,0) -> 57 | AB96: =VLOOKUP($B96,'[1]Organisation Level'!$C$4:$N$141,9,0) -> 63 | AC96: =VLOOKUP($B96,'[1]Organisation Level'!$C$4:$N$141,10,0) -> 24 | AD96: =VLOOKUP($B96,'[1]Collection Mode'!$C$4:$M$141,6,0) -> 2685 | AE96: =VLOOKUP($B96,'[1]Collection Mode'!$C$4:$M$141,7,0) -> 0 | AF96: =VLOOKUP($B96,'[1]Collection Mode'!$C$4:$M$141,8,0) -> 1350 | AG96: =VLOOKUP($B96,'[1]Collection Mode'!$C$4:$M$141,9,0) -> 0 | AH96: =VLOOKUP($B96,'[1]Collection Mode'!$C$4:$M$141,10,0) -> 345 | AI96: =VLOOKUP($B96,'[1]Collection Mode'!$C$4:$M$141,11,0) -> 0 | AJ96: 0 | AK96: 0 | AL96: 0 | AM96: 0 | AN96: 0 | AO96: 0 | AP96: 0 | AQ96: 0 | AR96: 0 | AS96: 0 | AT96: 0 | AU96: 0 | AV96: 0 | AW96: 0 | AX96: 0 | AY96: 0
A97: QYG | B97: RXA | C97: CHESHIRE AND WIRRAL PARTNERSHIP NHS FOUNDATION TRUST | D97: 1087 | E97: 13923 | F97: 0.9254829807 | G97: 0.02943882245 | H97: 900 | I97: 106 | J97: 32 | K97: 8 | L97: 24 | M97: 17 | N97: 1072 | O97: 0 | P97: 15 | Q97: 0 | R97: 0 | S97: 0 | T97: =VLOOKUP($B97,'[1]Organisation Level'!$C$4:$N$141,11,0) -> 1087 | U97: =VLOOKUP($B97,'[1]Organisation Level'!$C$4:$N$141,12,0) -> 13923 | V97: 0.9254829807 | W97: 0.02943882245 | X97: =VLOOKUP($B97,'[1]Organisation Level'!$C$4:$N$141,5,0) -> 900 | Y97: =VLOOKUP($B97,'[1]Organisation Level'!$C$4:$N$141,6,0) -> 106 | Z97: =VLOOKUP($B97,'[1]Organisation Level'!$C$4:$N$141,7,0) -> 32 | AA97: =VLOOKUP($B97,'[1]Organisation Level'!$C$4:$N$141,8,0) -> 8 | AB97: =VLOOKUP($B97,'[1]Organisation Level'!$C$4:$N$141,9,0) -> 24 | AC97: =VLOOKUP($B97,'[1]Organisation Level'!$C$4:$N$141,10,0) -> 17 | AD97: =VLOOKUP($B97,'[1]Collection Mode'!$C$4:$M$141,6,0) -> 1072 | AE97: =VLOOKUP($B97,'[1]Collection Mode'!$C$4:$M$141,7,0) -> 0 | AF97: =VLOOKUP($B97,'[1]Collection Mode'!$C$4:$M$141,8,0) -> 15 | AG97: =VLOOKUP($B97,'[1]Collection Mode'!$C$4:$M$141,9,0) -> 0 | AH97: =VLOOKUP($B97,'[1]Collection Mode'!$C$4:$M$141,10,0) -> 0 | AI97: =VLOOKUP($B97,'[1]Collection Mode'!$C$4:$M$141,11,0) -> 0 | AJ97: 0 | AK97: 0 | AL97: 0 | AM97: 0 | AN97: 0 | AO97: 0 | AP97: 0 | AQ97: 0 | AR97: 0 | AS97: 0 | AT97: 0 | AU97: 0 | AV97: 0 | AW97: 0 | AX97: 0 | AY97: 0
A98: QYG | B98: RJN | C98: EAST CHESHIRE NHS TRUST | D98: 184 | E98: 2817 | F98: 0.9456521739 | G98: 0.02717391304 | H98: 150 | I98: 24 | J98: 4 | K98: 3 | L98: 2 | M98: 1 | N98: 141 | O98: 0 | P98: 0 | Q98: 43 | R98: 0 | S98: 0 | T98: =VLOOKUP($B98,'[1]Organisation Level'!$C$4:$N$141,11,0) -> 184 | U98: =VLOOKUP($B98,'[1]Organisation Level'!$C$4:$N$141,12,0) -> 2817 | V98: 0.9456521739 | W98: 0.02717391304 | X98: =VLOOKUP($B98,'[1]Organisation Level'!$C$4:$N$141,5,0) -> 150 | Y98: =VLOOKUP($B98,'[1]Organisation Level'!$C$4:$N$141,6,0) -> 24 | Z98: =VLOOKUP($B98,'[1]Organisation Level'!$C$4:$N$141,7,0) -> 4 | AA98: =VLOOKUP($B98,'[1]Organisation Level'!$C$4:$N$141,8,0) -> 3 | AB98: =VLOOKUP($B98,'[1]Organisation Level'!$C$4:$N$141,9,0) -> 2 | AC98: =VLOOKUP($B98,'[1]Organisation Level'!$C$4:$N$141,10,0) -> 1 | AD98: =VLOOKUP($B98,'[1]Collection Mode'!$C$4:$M$141,6,0) -> 141 | AE98: =VLOOKUP($B98,'[1]Collection Mode'!$C$4:$M$141,7,0) -> 0 | AF98: =VLOOKUP($B98,'[1]Collection Mode'!$C$4:$M$141,8,0) -> 0 | AG98: =VLOOKUP($B98,'[1]Collection Mode'!$C$4:$M$141,9,0) -> 43 | AH98: =VLOOKUP($B98,'[1]Collection Mode'!$C$4:$M$141,10,0) -> 0 | AI98: =VLOOKUP($B98,'[1]Collection Mode'!$C$4:$M$141,11,0) -> 0 | AJ98: 0 | AK98: 0 | AL98: 0 | AM98: 0 | AN98: 0 | AO98: 0 | AP98: 0 | AQ98: 0 | AR98: 0 | AS98: 0 | AT98: 0 | AU98: 0 | AV98: 0 | AW98: 0 | AX98: 0 | AY98: 0
A99: QYG | B99: RBQ | C99: LIVERPOOL HEART AND CHEST HOSPITAL NHS FOUNDATION TRUST | D99: 0 | E99: 0 | F99: NA | G99: NA | H99: 0 | I99: 0 | J99: 0 | K99: 0 | L99: 0 | M99: 0 | N99: 0 | O99: 0 | P99: 0 | Q99: 0 | R99: 0 | S99: 0 | T99: =VLOOKUP($B99,'[1]Organisation Level'!$C$4:$N$141,11,0) -> 0 | U99: =VLOOKUP($B99,'[1]Organisation Level'!$C$4:$N$141,12,0) -> 0 | X99: =VLOOKUP($B99,'[1]Organisation Level'!$C$4:$N$141,5,0) -> 0 | Y99: =VLOOKUP($B99,'[1]Organisation Level'!$C$4:$N$141,6,0) -> 0 | Z99: =VLOOKUP($B99,'[1]Organisation Level'!$C$4:$N$141,7,0) -> 0 | AA99: =VLOOKUP($B99,'[1]Organisation Level'!$C$4:$N$141,8,0) -> 0 | AB99: =VLOOKUP($B99,'[1]Organisation Level'!$C$4:$N$141,9,0) -> 0 | AC99: =VLOOKUP($B99,'[1]Organisation Level'!$C$4:$N$141,10,0) -> 0 | AD99: =VLOOKUP($B99,'[1]Collection Mode'!$C$4:$M$141,6,0) -> 0 | AE99: =VLOOKUP($B99,'[1]Collection Mode'!$C$4:$M$141,7,0) -> 0 | AF99: =VLOOKUP($B99,'[1]Collection Mode'!$C$4:$M$141,8,0) -> 0 | AG99: =VLOOKUP($B99,'[1]Collection Mode'!$C$4:$M$141,9,0) -> 0 | AH99: =VLOOKUP($B99,'[1]Collection Mode'!$C$4:$M$141,10,0) -> 0 | AI99: =VLOOKUP($B99,'[1]Collection Mode'!$C$4:$M$141,11,0) -> 0 | AJ99: 0 | AK99: 0 | AL99: 0 | AM99: 0 | AN99: 0 | AO99: 0 | AP99: 0 | AQ99: 0 | AR99: 0 | AS99: 0 | AT99: 0 | AU99: 0 | AV99: 0 | AW99: 0 | AX99: 0 | AY99: 0
A100: QYG | B100: RBN | C100: MERSEY AND WEST LANCASHIRE TEACHING HOSPITALS NHS TRUST | D100: 138 | E100: 1602 | F100: 0.9855072464 | G100: 0.01449275362 | H100: 129 | I100: 7 | J100: 0 | K100: 1 | L100: 1 | M100: 0 | N100: 0 | O100: 0 | P100: 80 | Q100: 0 | R100: 58 | S100: 0 | T100: =VLOOKUP($B100,'[1]Organisation Level'!$C$4:$N$141,11,0) -> 138 | U100: =VLOOKUP($B100,'[1]Organisation Level'!$C$4:$N$141,12,0) -> 1602 | V100: 0.9855072464 | W100: 0.01449275362 | X100: =VLOOKUP($B100,'[1]Organisation Level'!$C$4:$N$141,5,0) -> 129 | Y100: =VLOOKUP($B100,'[1]Organisation Level'!$C$4:$N$141,6,0) -> 7 | Z100: =VLOOKUP($B100,'[1]Organisation Level'!$C$4:$N$141,7,0) -> 0 | AA100: =VLOOKUP($B100,'[1]Organisation Level'!$C$4:$N$141,8,0) -> 1 | AB100: =VLOOKUP($B100,'[1]Organisation Level'!$C$4:$N$141,9,0) -> 1 | AC100: =VLOOKUP($B100,'[1]Organisation Level'!$C$4:$N$141,10,0) -> 0 | AD100: =VLOOKUP($B100,'[1]Collection Mode'!$C$4:$M$141,6,0) -> 0 | AE100: =VLOOKUP($B100,'[1]Collection Mode'!$C$4:$M$141,7,0) -> 0 | AF100: =VLOOKUP($B100,'[1]Collection Mode'!$C$4:$M$141,8,0) -> 80 | AG100: =VLOOKUP($B100,'[1]Collection Mode'!$C$4:$M$141,9,0) -> 0 | AH100: =VLOOKUP($B100,'[1]Collection Mode'!$C$4:$M$141,10,0) -> 58 | AI100: =VLOOKUP($B100,'[1]Collection Mode'!$C$4:$M$141,11,0) -> 0 | AJ100: 0 | AK100: 0 | AL100: 0 | AM100: 0 | AN100: 0 | AO100: 0 | AP100: 0 | AQ100: 0 | AR100: 0 | AS100: 0 | AT100: 0 | AU100: 0 | AV100: 0 | AW100: 0 | AX100: 0 | AY100: 0
A101: QYG | B101: RW4 | C101: MERSEY CARE NHS FOUNDATION TRUST | D101: 1794 | E101: 66140 | F101: 0.9799331104 | G101: 0.00613154961 | H101: 1556 | I101: 202 | J101: 15 | K101: 5 | L101: 6 | M101: 10 | N101: 0 | O101: 0 | P101: 547 | Q101: 0 | R101: 1247 | S101: 0 | T101: =VLOOKUP($B101,'[1]Organisation Level'!$C$4:$N$141,11,0) -> 1794 | U101: =VLOOKUP($B101,'[1]Organisation Level'!$C$4:$N$141,12,0) -> 66140 | V101: 0.9799331104 | W101: 0.00613154961 | X101: =VLOOKUP($B101,'[1]Organisation Level'!$C$4:$N$141,5,0) -> 1556 | Y101: =VLOOKUP($B101,'[1]Organisation Level'!$C$4:$N$141,6,0) -> 202 | Z101: =VLOOKUP($B101,'[1]Organisation Level'!$C$4:$N$141,7,0) -> 15 | AA101: =VLOOKUP($B101,'[1]Organisation Level'!$C$4:$N$141,8,0) -> 5 | AB101: =VLOOKUP($B101,'[1]Organisation Level'!$C$4:$N$141,9,0) -> 6 | AC101: =VLOOKUP($B101,'[1]Organisation Level'!$C$4:$N$141,10,0) -> 10 | AD101: =VLOOKUP($B101,'[1]Collection Mode'!$C$4:$M$141,6,0) -> 0 | AE101: =VLOOKUP($B101,'[1]Collection Mode'!$C$4:$M$141,7,0) -> 0 | AF101: =VLOOKUP($B101,'[1]Collection Mode'!$C$4:$M$141,8,0) -> 547 | AG101: =VLOOKUP($B101,'[1]Collection Mode'!$C$4:$M$141,9,0) -> 0 | AH101: =VLOOKUP($B101,'[1]Collection Mode'!$C$4:$M$141,10,0) -> 1247 | AI101: =VLOOKUP($B101,'[1]Collection Mode'!$C$4:$M$141,11,0) -> 0 | AJ101: 0 | AK101: 0 | AL101: 0 | AM101: 0 | AN101: 0 | AO101: 0 | AP101: 0 | AQ101: 0 | AR101: 0 | AS101: 0 | AT101: 0 | AU101: 0 | AV101: 0 | AW101: 0 | AX101: 0 | AY101: 0
A102: QYG | B102: RBT | C102: MID CHESHIRE HOSPITALS NHS FOUNDATION TRUST | D102: 412 | E102: 3804 | F102: 0.9538834951 | G102: 0.02184466019 | H102: 364 | I102: 29 | J102: 8 | K102: 4 | L102: 5 | M102: 2 | N102: 412 | O102: 0 | P102: 0 | Q102: 0 | R102: 0 | S102: 0 | T102: =VLOOKUP($B102,'[1]Organisation Level'!$C$4:$N$141,11,0) -> 412 | U102: =VLOOKUP($B102,'[1]Organisation Level'!$C$4:$N$141,12,0) -> 3804 | V102: 0.9538834951 | W102: 0.02184466019 | X102: =VLOOKUP($B102,'[1]Organisation Level'!$C$4:$N$141,5,0) -> 364 | Y102: =VLOOKUP($B102,'[1]Organisation Level'!$C$4:$N$141,6,0) -> 29 | Z102: =VLOOKUP($B102,'[1]Organisation Level'!$C$4:$N$141,7,0) -> 8 | AA102: =VLOOKUP($B102,'[1]Organisation Level'!$C$4:$N$141,8,0) -> 4 | AB102: =VLOOKUP($B102,'[1]Organisation Level'!$C$4:$N$141,9,0) -> 5 | AC102: =VLOOKUP($B102,'[1]Organisation Level'!$C$4:$N$141,10,0) -> 2 | AD102: =VLOOKUP($B102,'[1]Collection Mode'!$C$4:$M$141,6,0) -> 412 | AE102: =VLOOKUP($B102,'[1]Collection Mode'!$C$4:$M$141,7,0) -> 0 | AF102: =VLOOKUP($B102,'[1]Collection Mode'!$C$4:$M$141,8,0) -> 0 | AG102: =VLOOKUP($B102,'[1]Collection Mode'!$C$4:$M$141,9,0) -> 0 | AH102: =VLOOKUP($B102,'[1]Collection Mode'!$C$4:$M$141,10,0) -> 0 | AI102: =VLOOKUP($B102,'[1]Collection Mode'!$C$4:$M$141,11,0) -> 0 | AJ102: 0 | AK102: 0 | AL102: 0 | AM102: 0 | AN102: 0 | AO102: 0 | AP102: 0 | AQ102: 0 | AR102: 0 | AS102: 0 | AT102: 0 | AU102: 0 | AV102: 0 | AW102: 0 | AX102: 0 | AY102: 0
A103: QYG | B103: RY7 | C103: WIRRAL COMMUNITY HEALTH AND CARE NHS FOUNDATION TRUST | D103: 464 | E103: 8500 | F103: 0.8728448276 | G103: 0.07327586207 | H103: 330 | I103: 75 | J103: 21 | K103: 17 | L103: 17 | M103: 4 | N103: 300 | O103: 0 | P103: 0 | Q103: 0 | R103: 147 | S103: 17 | T103: =VLOOKUP($B103,'[1]Organisation Level'!$C$4:$N$141,11,0) -> 464 | U103: =VLOOKUP($B103,'[1]Organisation Level'!$C$4:$N$141,12,0) -> 8500 | V103: 0.8728448276 | W103: 0.07327586207 | X103: =VLOOKUP($B103,'[1]Organisation Level'!$C$4:$N$141,5,0) -> 330 | Y103: =VLOOKUP($B103,'[1]Organisation Level'!$C$4:$N$141,6,0) -> 75 | Z103: =VLOOKUP($B103,'[1]Organisation Level'!$C$4:$N$141,7,0) -> 21 | AA103: =VLOOKUP($B103,'[1]Organisation Level'!$C$4:$N$141,8,0) -> 17 | AB103: =VLOOKUP($B103,'[1]Organisation Level'!$C$4:$N$141,9,0) -> 17 | AC103: =VLOOKUP($B103,'[1]Organisation Level'!$C$4:$N$141,10,0) -> 4 | AD103: =VLOOKUP($B103,'[1]Collection Mode'!$C$4:$M$141,6,0) -> 300 | AE103: =VLOOKUP($B103,'[1]Collection Mode'!$C$4:$M$141,7,0) -> 0 | AF103: =VLOOKUP($B103,'[1]Collection Mode'!$C$4:$M$141,8,0) -> 0 | AG103: =VLOOKUP($B103,'[1]Collection Mode'!$C$4:$M$141,9,0) -> 0 | AH103: =VLOOKUP($B103,'[1]Collection Mode'!$C$4:$M$141,10,0) -> 147 | AI103: =VLOOKUP($B103,'[1]Collection Mode'!$C$4:$M$141,11,0) -> 17 | AJ103: 0 | AK103: 0 | AL103: 0 | AM103: 0 | AN103: 0 | AO103: 0 | AP103: 0 | AQ103: 0 | AR103: 0 | AS103: 0 | AT103: 0 | AU103: 0 | AV103: 0 | AW103: 0 | AX103: 0 | AY103: 0
A104: IS1 | B104: NEC | C104: ALLIED HEALTH PROFESSIONALS SUFFOLK CIC | D104: 842 | E104: 9376 | F104: 0.9287410926 | G104: 0.03444180523 | H104: 666 | I104: 116 | J104: 30 | K104: 16 | L104: 13 | M104: 1 | N104: 0 | O104: 0 | P104: 0 | Q104: 0 | R104: 842 | S104: 0 | T104: =VLOOKUP($B104,'[1]Organisation Level'!$C$4:$N$141,11,0) -> 842 | U104: =VLOOKUP($B104,'[1]Organisation Level'!$C$4:$N$141,12,0) -> 9376 | V104: 0.9287410926 | W104: 0.03444180523 | X104: =VLOOKUP($B104,'[1]Organisation Level'!$C$4:$N$141,5,0) -> 666 | Y104: =VLOOKUP($B104,'[1]Organisation Level'!$C$4:$N$141,6,0) -> 116 | Z104: =VLOOKUP($B104,'[1]Organisation Level'!$C$4:$N$141,7,0) -> 30 | AA104: =VLOOKUP($B104,'[1]Organisation Level'!$C$4:$N$141,8,0) -> 16 | AB104: =VLOOKUP($B104,'[1]Organisation Level'!$C$4:$N$141,9,0) -> 13 | AC104: =VLOOKUP($B104,'[1]Organisation Level'!$C$4:$N$141,10,0) -> 1 | AD104: =VLOOKUP($B104,'[1]Collection Mode'!$C$4:$M$141,6,0) -> 0 | AE104: =VLOOKUP($B104,'[1]Collection Mode'!$C$4:$M$141,7,0) -> 0 | AF104: =VLOOKUP($B104,'[1]Collection Mode'!$C$4:$M$141,8,0) -> 0 | AG104: =VLOOKUP($B104,'[1]Collection Mode'!$C$4:$M$141,9,0) -> 0 | AH104: =VLOOKUP($B104,'[1]Collection Mode'!$C$4:$M$141,10,0) -> 842 | AI104: =VLOOKUP($B104,'[1]Collection Mode'!$C$4:$M$141,11,0) -> 0 | AJ104: 0 | AK104: 0 | AL104: 0 | AM104: 0 | AN104: 0 | AO104: 0 | AP104: 0 | AQ104: 0 | AR104: 0 | AS104: 0 | AT104: 0 | AU104: 0 | AV104: 0 | AW104: 0 | AX104: 0 | AY104: 0
A105: IS1 | B105: 8J094 | C105: BADGER LTD | D105: 554 | E105: 13002 | F105: 0.8375451264 | G105: 0.09025270758 | H105: 375 | I105: 89 | J105: 0 | K105: 21 | L105: 29 | M105: 40 | N105: 0 | O105: 0 | P105: 61 | Q105: 0 | R105: 493 | S105: 0 | T105: =VLOOKUP($B105,'[1]Organisation Level'!$C$4:$N$141,11,0) -> 554 | U105: =VLOOKUP($B105,'[1]Organisation Level'!$C$4:$N$141,12,0) -> 13002 | V105: 0.8375451264 | W105: 0.09025270758 | X105: =VLOOKUP($B105,'[1]Organisation Level'!$C$4:$N$141,5,0) -> 375 | Y105: =VLOOKUP($B105,'[1]Organisation Level'!$C$4:$N$141,6,0) -> 89 | Z105: =VLOOKUP($B105,'[1]Organisation Level'!$C$4:$N$141,7,0) -> 0 | AA105: =VLOOKUP($B105,'[1]Organisation Level'!$C$4:$N$141,8,0) -> 21 | AB105: =VLOOKUP($B105,'[1]Organisation Level'!$C$4:$N$141,9,0) -> 29 | AC105: =VLOOKUP($B105,'[1]Organisation Level'!$C$4:$N$141,10,0) -> 40 | AD105: =VLOOKUP($B105,'[1]Collection Mode'!$C$4:$M$141,6,0) -> 0 | AE105: =VLOOKUP($B105,'[1]Collection Mode'!$C$4:$M$141,7,0) -> 0 | AF105: =VLOOKUP($B105,'[1]Collection Mode'!$C$4:$M$141,8,0) -> 61 | AG105: =VLOOKUP($B105,'[1]Collection Mode'!$C$4:$M$141,9,0) -> 0 | AH105: =VLOOKUP($B105,'[1]Collection Mode'!$C$4:$M$141,10,0) -> 493 | AI105: =VLOOKUP($B105,'[1]Collection Mode'!$C$4:$M$141,11,0) -> 0 | AJ105: 0 | AK105: 0 | AL105: 0 | AM105: 0 | AN105: 0 | AO105: 0 | AP105: 0 | AQ105: 0 | AR105: 0 | AS105: 0 | AT105: 0 | AU105: 0 | AV105: 0 | AW105: 0 | AX105: 0 | AY105: 0
A106: IS1 | B106: DVG | C106: BARDOC | D106: 661 | E106: 7516 | F106: 0.8502269289 | G106: 0.1180030257 | H106: 432 | I106: 130 | J106: 21 | K106: 40 | L106: 38 | M106: 0 | N106: 0 | O106: 0 | P106: 0 | Q106: 661 | R106: 0 | S106: 0 | T106: =VLOOKUP($B106,'[1]Organisation Level'!$C$4:$N$141,11,0) -> 661 | U106: =VLOOKUP($B106,'[1]Organisation Level'!$C$4:$N$141,12,0) -> 7516 | V106: 0.8502269289 | W106: 0.1180030257 | X106: =VLOOKUP($B106,'[1]Organisation Level'!$C$4:$N$141,5,0) -> 432 | Y106: =VLOOKUP($B106,'[1]Organisation Level'!$C$4:$N$141,6,0) -> 130 | Z106: =VLOOKUP($B106,'[1]Organisation Level'!$C$4:$N$141,7,0) -> 21 | AA106: =VLOOKUP($B106,'[1]Organisation Level'!$C$4:$N$141,8,0) -> 40 | AB106: =VLOOKUP($B106,'[1]Organisation Level'!$C$4:$N$141,9,0) -> 38 | AC106: =VLOOKUP($B106,'[1]Organisation Level'!$C$4:$N$141,10,0) -> 0 | AD106: =VLOOKUP($B106,'[1]Collection Mode'!$C$4:$M$141,6,0) -> 0 | AE106: =VLOOKUP($B106,'[1]Collection Mode'!$C$4:$M$141,7,0) -> 0 | AF106: =VLOOKUP($B106,'[1]Collection Mode'!$C$4:$M$141,8,0) -> 0 | AG106: =VLOOKUP($B106,'[1]Collection Mode'!$C$4:$M$141,9,0) -> 661 | AH106: =VLOOKUP($B106,'[1]Collection Mode'!$C$4:$M$141,10,0) -> 0 | AI106: =VLOOKUP($B106,'[1]Collection Mode'!$C$4:$M$141,11,0) -> 0 | AJ106: 0 | AK106: 0 | AL106: 0 | AM106: 0 | AN106: 0 | AO106: 0 | AP106: 0 | AQ106: 0 | AR106: 0 | AS106: 0 | AT106: 0 | AU106: 0 | AV106: 0 | AW106: 0 | AX106: 0 | AY106: 0
A107: IS1 | B107: NQV | C107: BROMLEY HEALTHCARE | D107: 383 | E107: 19245 | F107: 0.9582245431 | G107: 0.007832898172 | H107: 334 | I107: 33 | J107: 12 | K107: 1 | L107: 2 | M107: 1 | N107: 154 | O107: 0 | P107: 136 | Q107: 0 | R107: 32 | S107: 61 | T107: =VLOOKUP($B107,'[1]Organisation Level'!$C$4:$N$141,11,0) -> 383 | U107: =VLOOKUP($B107,'[1]Organisation Level'!$C$4:$N$141,12,0) -> 19245 | V107: 0.9582245431 | W107: 0.007832898172 | X107: =VLOOKUP($B107,'[1]Organisation Level'!$C$4:$N$141,5,0) -> 334 | Y107: =VLOOKUP($B107,'[1]Organisation Level'!$C$4:$N$141,6,0) -> 33 | Z107: =VLOOKUP($B107,'[1]Organisation Level'!$C$4:$N$141,7,0) -> 12 | AA107: =VLOOKUP($B107,'[1]Organisation Level'!$C$4:$N$141,8,0) -> 1 | AB107: =VLOOKUP($B107,'[1]Organisation Level'!$C$4:$N$141,9,0) -> 2 | AC107: =VLOOKUP($B107,'[1]Organisation Level'!$C$4:$N$141,10,0) -> 1 | AD107: =VLOOKUP($B107,'[1]Collection Mode'!$C$4:$M$141,6,0) -> 154 | AE107: =VLOOKUP($B107,'[1]Collection Mode'!$C$4:$M$141,7,0) -> 0 | AF107: =VLOOKUP($B107,'[1]Collection Mode'!$C$4:$M$141,8,0) -> 136 | AG107: =VLOOKUP($B107,'[1]Collection Mode'!$C$4:$M$141,9,0) -> 0 | AH107: =VLOOKUP($B107,'[1]Collection Mode'!$C$4:$M$141,10,0) -> 32 | AI107: =VLOOKUP($B107,'[1]Collection Mode'!$C$4:$M$141,11,0) -> 61 | AJ107: 0 | AK107: 0 | AL107: 0 | AM107: 0 | AN107: 0 | AO107: 0 | AP107: 0 | AQ107: 0 | AR107: 0 | AS107: 0 | AT107: 0 | AU107: 0 | AV107: 0 | AW107: 0 | AX107: 0 | AY107: 0
A108: IS1 | B108: NL3 | C108: CARE PLUS GROUP | D108: 171 | E108: 6375 | F108: 1 | G108: 0 | H108: 157 | I108: 14 | J108: 0 | K108: 0 | L108: 0 | M108: 0 | N108: 0 | O108: 0 | P108: 0 | Q108: 0 | R108: 171 | S108: 0 | T108: =VLOOKUP($B108,'[1]Organisation Level'!$C$4:$N$141,11,0) -> 171 | U108: =VLOOKUP($B108,'[1]Organisation Level'!$C$4:$N$141,12,0) -> 6375 | V108: 1 | W108: 0 | X108: =VLOOKUP($B108,'[1]Organisation Level'!$C$4:$N$141,5,0) -> 157 | Y108: =VLOOKUP($B108,'[1]Organisation Level'!$C$4:$N$141,6,0) -> 14 | Z108: =VLOOKUP($B108,'[1]Organisation Level'!$C$4:$N$141,7,0) -> 0 | AA108: =VLOOKUP($B108,'[1]Organisation Level'!$C$4:$N$141,8,0) -> 0 | AB108: =VLOOKUP($B108,'[1]Organisation Level'!$C$4:$N$141,9,0) -> 0 | AC108: =VLOOKUP($B108,'[1]Organisation Level'!$C$4:$N$141,10,0) -> 0 | AD108: =VLOOKUP($B108,'[1]Collection Mode'!$C$4:$M$141,6,0) -> 0 | AE108: =VLOOKUP($B108,'[1]Collection Mode'!$C$4:$M$141,7,0) -> 0 | AF108: =VLOOKUP($B108,'[1]Collection Mode'!$C$4:$M$141,8,0) -> 0 | AG108: =VLOOKUP($B108,'[1]Collection Mode'!$C$4:$M$141,9,0) -> 0 | AH108: =VLOOKUP($B108,'[1]Collection Mode'!$C$4:$M$141,10,0) -> 171 | AI108: =VLOOKUP($B108,'[1]Collection Mode'!$C$4:$M$141,11,0) -> 0 | AJ108: 0 | AK108: 0 | AL108: 0 | AM108: 0 | AN108: 0 | AO108: 0 | AP108: 0 | AQ108: 0 | AR108: 0 | AS108: 0 | AT108: 0 | AU108: 0 | AV108: 0 | AW108: 0 | AX108: 0 | AY108: 0
A109: IS1 | B109: NNF | C109: CITY HEALTH CARE PARTNERSHIP CIC | D109: 2663 | E109: 19929 | F109: 0.9643259482 | G109: 0.01727375141 | H109: 2320 | I109: 248 | J109: 35 | K109: 18 | L109: 28 | M109: 14 | N109: 0 | O109: 0 | P109: 449 | Q109: 0 | R109: 2214 | S109: 0 | T109: =VLOOKUP($B109,'[1]Organisation Level'!$C$4:$N$141,11,0) -> 2663 | U109: =VLOOKUP($B109,'[1]Organisation Level'!$C$4:$N$141,12,0) -> 19929 | V109: 0.9643259482 | W109: 0.01727375141 | X109: =VLOOKUP($B109,'[1]Organisation Level'!$C$4:$N$141,5,0) -> 2320 | Y109: =VLOOKUP($B109,'[1]Organisation Level'!$C$4:$N$141,6,0) -> 248 | Z109: =VLOOKUP($B109,'[1]Organisation Level'!$C$4:$N$141,7,0) -> 35 | AA109: =VLOOKUP($B109,'[1]Organisation Level'!$C$4:$N$141,8,0) -> 18 | AB109: =VLOOKUP($B109,'[1]Organisation Level'!$C$4:$N$141,9,0) -> 28 | AC109: =VLOOKUP($B109,'[1]Organisation Level'!$C$4:$N$141,10,0) -> 14 | AD109: =VLOOKUP($B109,'[1]Collection Mode'!$C$4:$M$141,6,0) -> 0 | AE109: =VLOOKUP($B109,'[1]Collection Mode'!$C$4:$M$141,7,0) -> 0 | AF109: =VLOOKUP($B109,'[1]Collection Mode'!$C$4:$M$141,8,0) -> 449 | AG109: =VLOOKUP($B109,'[1]Collection Mode'!$C$4:$M$141,9,0) -> 0 | AH109: =VLOOKUP($B109,'[1]Collection Mode'!$C$4:$M$141,10,0) -> 2214 | AI109: =VLOOKUP($B109,'[1]Collection Mode'!$C$4:$M$141,11,0) -> 0 | AJ109: 0 | AK109: 0 | AL109: 0 | AM109: 0 | AN109: 0 | AO109: 0 | AP109: 0 | AQ109: 0 | AR109: 0 | AS109: 0 | AT109: 0 | AU109: 0 | AV109: 0 | AW109: 0 | AX109: 0 | AY109: 0
A110: IS1 | B110: NMG | C110: CONNECT HEALTH LIMITED | D110: 2649 | E110: 35778 | F110: 0.8486221216 | G110: 0.07663269158 | H110: 1829 | I110: 419 | J110: 155 | K110: 72 | L110: 131 | M110: 43 | N110: 2361 | O110: 11 | P110: 0 | Q110: 82 | R110: 195 | S110: 0 | T110: =VLOOKUP($B110,'[1]Organisation Level'!$C$4:$N$141,11,0) -> 2649 | U110: =VLOOKUP($B110,'[1]Organisation Level'!$C$4:$N$141,12,0) -> 35778 | V110: 0.8486221216 | W110: 0.07663269158 | X110: =VLOOKUP($B110,'[1]Organisation Level'!$C$4:$N$141,5,0) -> 1829 | Y110: =VLOOKUP($B110,'[1]Organisation Level'!$C$4:$N$141,6,0) -> 419 | Z110: =VLOOKUP($B110,'[1]Organisation Level'!$C$4:$N$141,7,0) -> 155 | AA110: =VLOOKUP($B110,'[1]Organisation Level'!$C$4:$N$141,8,0) -> 72 | AB110: =VLOOKUP($B110,'[1]Organisation Level'!$C$4:$N$141,9,0) -> 131 | AC110: =VLOOKUP($B110,'[1]Organisation Level'!$C$4:$N$141,10,0) -> 43 | AD110: =VLOOKUP($B110,'[1]Collection Mode'!$C$4:$M$141,6,0) -> 2361 | AE110: =VLOOKUP($B110,'[1]Collection Mode'!$C$4:$M$141,7,0) -> 11 | AF110: =VLOOKUP($B110,'[1]Collection Mode'!$C$4:$M$141,8,0) -> 0 | AG110: =VLOOKUP($B110,'[1]Collection Mode'!$C$4:$M$141,9,0) -> 82 | AH110: =VLOOKUP($B110,'[1]Collection Mode'!$C$4:$M$141,10,0) -> 195 | AI110: =VLOOKUP($B110,'[1]Collection Mode'!$C$4:$M$141,11,0) -> 0 | AJ110: 0 | AK110: 0 | AL110: 0 | AM110: 0 | AN110: 0 | AO110: 0 | AP110: 0 | AQ110: 0 | AR110: 0 | AS110: 0 | AT110: 0 | AU110: 0 | AV110: 0 | AW110: 0 | AX110: 0 | AY110: 0
A111: IS1 | B111: NY6 | C111: CONNECT HEALTH PAIN SERVICES | D111: 108 | E111: 2703 | F111: 0.8703703704 | G111: 0.07407407407 | H111: 76 | I111: 18 | J111: 4 | K111: 5 | L111: 3 | M111: 2 | N111: 107 | O111: 0 | P111: 0 | Q111: 0 | R111: 1 | S111: 0 | T111: =VLOOKUP($B111,'[1]Organisation Level'!$C$4:$N$141,11,0) -> 108 | U111: =VLOOKUP($B111,'[1]Organisation Level'!$C$4:$N$141,12,0) -> 2703 | V111: 0.8703703704 | W111: 0.07407407407 | X111: =VLOOKUP($B111,'[1]Organisation Level'!$C$4:$N$141,5,0) -> 76 | Y111: =VLOOKUP($B111,'[1]Organisation Level'!$C$4:$N$141,6,0) -> 18 | Z111: =VLOOKUP($B111,'[1]Organisation Level'!$C$4:$N$141,7,0) -> 4 | AA111: =VLOOKUP($B111,'[1]Organisation Level'!$C$4:$N$141,8,0) -> 5 | AB111: =VLOOKUP($B111,'[1]Organisation Level'!$C$4:$N$141,9,0) -> 3 | AC111: =VLOOKUP($B111,'[1]Organisation Level'!$C$4:$N$141,10,0) -> 2 | AD111: =VLOOKUP($B111,'[1]Collection Mode'!$C$4:$M$141,6,0) -> 107 | AE111: =VLOOKUP($B111,'[1]Collection Mode'!$C$4:$M$141,7,0) -> 0 | AF111: =VLOOKUP($B111,'[1]Collection Mode'!$C$4:$M$141,8,0) -> 0 | AG111: =VLOOKUP($B111,'[1]Collection Mode'!$C$4:$M$141,9,0) -> 0 | AH111: =VLOOKUP($B111,'[1]Collection Mode'!$C$4:$M$141,10,0) -> 1 | AI111: =VLOOKUP($B111,'[1]Collection Mode'!$C$4:$M$141,11,0) -> 0 | AJ111: 0 | AK111: 0 | AL111: 0 | AM111: 0 | AN111: 0 | AO111: 0 | AP111: 0 | AQ111: 0 | AR111: 0 | AS111: 0 | AT111: 0 | AU111: 0 | AV111: 0 | AW111: 0 | AX111: 0 | AY111: 0
A112: IS1 | B112: DFY01 | C112: COTSWOLDS SURGICAL PARTNERS | D112: 85 | E112: 175 | F112: 1 | G112: 0 | H112: 85 | I112: 0 | J112: 0 | K112: 0 | L112: 0 | M112: 0 | N112: 0 | O112: 85 | P112: 0 | Q112: 0 | R112: 0 | S112: 0 | T112: =VLOOKUP($B112,'[1]Organisation Level'!$C$4:$N$141,11,0) -> 85 | U112: =VLOOKUP($B112,'[1]Organisation Level'!$C$4:$N$141,12,0) -> 175 | V112: 1 | W112: 0 | X112: =VLOOKUP($B112,'[1]Organisation Level'!$C$4:$N$141,5,0) -> 85 | Y112: =VLOOKUP($B112,'[1]Organisation Level'!$C$4:$N$141,6,0) -> 0 | Z112: =VLOOKUP($B112,'[1]Organisation Level'!$C$4:$N$141,7,0) -> 0 | AA112: =VLOOKUP($B112,'[1]Organisation Level'!$C$4:$N$141,8,0) -> 0 | AB112: =VLOOKUP($B112,'[1]Organisation Level'!$C$4:$N$141,9,0) -> 0 | AC112: =VLOOKUP($B112,'[1]Organisation Level'!$C$4:$N$141,10,0) -> 0 | AD112: =VLOOKUP($B112,'[1]Collection Mode'!$C$4:$M$141,6,0) -> 0 | AE112: =VLOOKUP($B112,'[1]Collection Mode'!$C$4:$M$141,7,0) -> 85 | AF112: =VLOOKUP($B112,'[1]Collection Mode'!$C$4:$M$141,8,0) -> 0 | AG112: =VLOOKUP($B112,'[1]Collection Mode'!$C$4:$M$141,9,0) -> 0 | AH112: =VLOOKUP($B112,'[1]Collection Mode'!$C$4:$M$141,10,0) -> 0 | AI112: =VLOOKUP($B112,'[1]Collection Mode'!$C$4:$M$141,11,0) -> 0 | AJ112: 0 | AK112: 0 | AL112: 0 | AM112: 0 | AN112: 0 | AO112: 0 | AP112: 0 | AQ112: 0 | AR112: 0 | AS112: 0 | AT112: 0 | AU112: 0 | AV112: 0 | AW112: 0 | AX112: 0 | AY112: 0
A113: IS1 | B113: NTV | C113: CSH SURREY | D113: 269 | E113: 20155 | F113: 0.8513011152 | G113: 0.1078066914 | H113: 200 | I113: 29 | J113: 11 | K113: 9 | L113: 20 | M113: 0 | N113: 0 | O113: 59 | P113: 11 | Q113: 0 | R113: 199 | S113: 0 | T113: =VLOOKUP($B113,'[1]Organisation Level'!$C$4:$N$141,11,0) -> 269 | U113: =VLOOKUP($B113,'[1]Organisation Level'!$C$4:$N$141,12,0) -> 20155 | V113: 0.8513011152 | W113: 0.1078066914 | X113: =VLOOKUP($B113,'[1]Organisation Level'!$C$4:$N$141,5,0) -> 200 | Y113: =VLOOKUP($B113,'[1]Organisation Level'!$C$4:$N$141,6,0) -> 29 | Z113: =VLOOKUP($B113,'[1]Organisation Level'!$C$4:$N$141,7,0) -> 11 | AA113: =VLOOKUP($B113,'[1]Organisation Level'!$C$4:$N$141,8,0) -> 9 | AB113: =VLOOKUP($B113,'[1]Organisation Level'!$C$4:$N$141,9,0) -> 20 | AC113: =VLOOKUP($B113,'[1]Organisation Level'!$C$4:$N$141,10,0) -> 0 | AD113: =VLOOKUP($B113,'[1]Collection Mode'!$C$4:$M$141,6,0) -> 0 | AE113: =VLOOKUP($B113,'[1]Collection Mode'!$C$4:$M$141,7,0) -> 59 | AF113: =VLOOKUP($B113,'[1]Collection Mode'!$C$4:$M$141,8,0) -> 11 | AG113: =VLOOKUP($B113,'[1]Collection Mode'!$C$4:$M$141,9,0) -> 0 | AH113: =VLOOKUP($B113,'[1]Collection Mode'!$C$4:$M$141,10,0) -> 199 | AI113: =VLOOKUP($B113,'[1]Collection Mode'!$C$4:$M$141,11,0) -> 0 | AJ113: 0 | AK113: 0 | AL113: 0 | AM113: 0 | AN113: 0 | AO113: 0 | AP113: 0 | AQ113: 0 | AR113: 0 | AS113: 0 | AT113: 0 | AU113: 0 | AV113: 0 | AW113: 0 | AX113: 0 | AY113: 0
A114: IS1 | B114: 8HE44 | C114: DR KERSHAWS HOSPICE | D114: 10 | E114: 212 | F114: 1 | G114: 0 | H114: 10 | I114: 0 | J114: 0 | K114: 0 | L114: 0 | M114: 0 | N114: 0 | O114: 0 | P114: 10 | Q114: 0 | R114: 0 | S114: 0 | T114: =VLOOKUP($B114,'[1]Organisation Level'!$C$4:$N$141,11,0) -> 10 | U114: =VLOOKUP($B114,'[1]Organisation Level'!$C$4:$N$141,12,0) -> 212 | V114: 1 | W114: 0 | X114: =VLOOKUP($B114,'[1]Organisation Level'!$C$4:$N$141,5,0) -> 10 | Y114: =VLOOKUP($B114,'[1]Organisation Level'!$C$4:$N$141,6,0) -> 0 | Z114: =VLOOKUP($B114,'[1]Organisation Level'!$C$4:$N$141,7,0) -> 0 | AA114: =VLOOKUP($B114,'[1]Organisation Level'!$C$4:$N$141,8,0) -> 0 | AB114: =VLOOKUP($B114,'[1]Organisation Level'!$C$4:$N$141,9,0) -> 0 | AC114: =VLOOKUP($B114,'[1]Organisation Level'!$C$4:$N$141,10,0) -> 0 | AD114: =VLOOKUP($B114,'[1]Collection Mode'!$C$4:$M$141,6,0) -> 0 | AE114: =VLOOKUP($B114,'[1]Collection Mode'!$C$4:$M$141,7,0) -> 0 | AF114: =VLOOKUP($B114,'[1]Collection Mode'!$C$4:$M$141,8,0) -> 10 | AG114: =VLOOKUP($B114,'[1]Collection Mode'!$C$4:$M$141,9,0) -> 0 | AH114: =VLOOKUP($B114,'[1]Collection Mode'!$C$4:$M$141,10,0) -> 0 | AI114: =VLOOKUP($B114,'[1]Collection Mode'!$C$4:$M$141,11,0) -> 0 | AJ114: 0 | AK114: 0 | AL114: 0 | AM114: 0 | AN114: 0 | AO114: 0 | AP114: 0 | AQ114: 0 | AR114: 0 | AS114: 0 | AT114: 0 | AU114: 0 | AV114: 0 | AW114: 0 | AX114: 0 | AY114: 0
A115: IS1 | B115: NAX | C115: EAST COAST COMMUNITY HEALTHCARE C.I.C | D115: 187 | E115: 7228 | F115: 0.9251336898 | G115: 0.01604278075 | H115: 142 | I115: 31 | J115: 10 | K115: 1 | L115: 2 | M115: 1 | N115: 0 | O115: 0 | P115: 100 | Q115: 1 | R115: 86 | S115: 0 | T115: =VLOOKUP($B115,'[1]Organisation Level'!$C$4:$N$141,11,0) -> 187 | U115: =VLOOKUP($B115,'[1]Organisation Level'!$C$4:$N$141,12,0) -> 7228 | V115: 0.9251336898 | W115: 0.01604278075 | X115: =VLOOKUP($B115,'[1]Organisation Level'!$C$4:$N$141,5,0) -> 142 | Y115: =VLOOKUP($B115,'[1]Organisation Level'!$C$4:$N$141,6,0) -> 31 | Z115: =VLOOKUP($B115,'[1]Organisation Level'!$C$4:$N$141,7,0) -> 10 | AA115: =VLOOKUP($B115,'[1]Organisation Level'!$C$4:$N$141,8,0) -> 1 | AB115: =VLOOKUP($B115,'[1]Organisation Level'!$C$4:$N$141,9,0) -> 2 | AC115: =VLOOKUP($B115,'[1]Organisation Level'!$C$4:$N$141,10,0) -> 1 | AD115: =VLOOKUP($B115,'[1]Collection Mode'!$C$4:$M$141,6,0) -> 0 | AE115: =VLOOKUP($B115,'[1]Collection Mode'!$C$4:$M$141,7,0) -> 0 | AF115: =VLOOKUP($B115,'[1]Collection Mode'!$C$4:$M$141,8,0) -> 100 | AG115: =VLOOKUP($B115,'[1]Collection Mode'!$C$4:$M$141,9,0) -> 1 | AH115: =VLOOKUP($B115,'[1]Collection Mode'!$C$4:$M$141,10,0) -> 86 | AI115: =VLOOKUP($B115,'[1]Collection Mode'!$C$4:$M$141,11,0) -> 0 | AJ115: 0 | AK115: 0 | AL115: 0 | AM115: 0 | AN115: 0 | AO115: 0 | AP115: 0 | AQ115: 0 | AR115: 0 | AS115: 0 | AT115: 0 | AU115: 0 | AV115: 0 | AW115: 0 | AX115: 0 | AY115: 0
A116: IS1 | B116: DY6 | C116: EASTLEIGH SOUTHERN PARISHES NETWORK LTD | D116: 23 | E116: 159 | F116: 1 | G116: 0 | H116: 23 | I116: 0 | J116: 0 | K116: 0 | L116: 0 | M116: 0 | N116: 0 | O116: 0 | P116: 23 | Q116: 0 | R116: 0 | S116: 0 | T116: =VLOOKUP($B116,'[1]Organisation Level'!$C$4:$N$141,11,0) -> 23 | U116: =VLOOKUP($B116,'[1]Organisation Level'!$C$4:$N$141,12,0) -> 159 | V116: 1 | W116: 0 | X116: =VLOOKUP($B116,'[1]Organisation Level'!$C$4:$N$141,5,0) -> 23 | Y116: =VLOOKUP($B116,'[1]Organisation Level'!$C$4:$N$141,6,0) -> 0 | Z116: =VLOOKUP($B116,'[1]Organisation Level'!$C$4:$N$141,7,0) -> 0 | AA116: =VLOOKUP($B116,'[1]Organisation Level'!$C$4:$N$141,8,0) -> 0 | AB116: =VLOOKUP($B116,'[1]Organisation Level'!$C$4:$N$141,9,0) -> 0 | AC116: =VLOOKUP($B116,'[1]Organisation Level'!$C$4:$N$141,10,0) -> 0 | AD116: =VLOOKUP($B116,'[1]Collection Mode'!$C$4:$M$141,6,0) -> 0 | AE116: =VLOOKUP($B116,'[1]Collection Mode'!$C$4:$M$141,7,0) -> 0 | AF116: =VLOOKUP($B116,'[1]Collection Mode'!$C$4:$M$141,8,0) -> 23 | AG116: =VLOOKUP($B116,'[1]Collection Mode'!$C$4:$M$141,9,0) -> 0 | AH116: =VLOOKUP($B116,'[1]Collection Mode'!$C$4:$M$141,10,0) -> 0 | AI116: =VLOOKUP($B116,'[1]Collection Mode'!$C$4:$M$141,11,0) -> 0 | AJ116: 0 | AK116: 0 | AL116: 0 | AM116: 0 | AN116: 0 | AO116: 0 | AP116: 0 | AQ116: 0 | AR116: 0 | AS116: 0 | AT116: 0 | AU116: 0 | AV116: 0 | AW116: 0 | AX116: 0 | AY116: 0
A117: IS1 | B117: NDJ | C117: FIRST COMMUNITY HEALTH AND CARE CIC | D117: 184 | E117: 6086 | F117: 0.9782608696 | G117: 0.01630434783 | H117: 169 | I117: 11 | J117: 1 | K117: 1 | L117: 2 | M117: 0 | N117: 0 | O117: 0 | P117: 43 | Q117: 0 | R117: 141 | S117: 0 | T117: =VLOOKUP($B117,'[1]Organisation Level'!$C$4:$N$141,11,0) -> 184 | U117: =VLOOKUP($B117,'[1]Organisation Level'!$C$4:$N$141,12,0) -> 6086 | V117: 0.9782608696 | W117: 0.01630434783 | X117: =VLOOKUP($B117,'[1]Organisation Level'!$C$4:$N$141,5,0) -> 169 | Y117: =VLOOKUP($B117,'[1]Organisation Level'!$C$4:$N$141,6,0) -> 11 | Z117: =VLOOKUP($B117,'[1]Organisation Level'!$C$4:$N$141,7,0) -> 1 | AA117: =VLOOKUP($B117,'[1]Organisation Level'!$C$4:$N$141,8,0) -> 1 | AB117: =VLOOKUP($B117,'[1]Organisation Level'!$C$4:$N$141,9,0) -> 2 | AC117: =VLOOKUP($B117,'[1]Organisation Level'!$C$4:$N$141,10,0) -> 0 | AD117: =VLOOKUP($B117,'[1]Collection Mode'!$C$4:$M$141,6,0) -> 0 | AE117: =VLOOKUP($B117,'[1]Collection Mode'!$C$4:$M$141,7,0) -> 0 | AF117: =VLOOKUP($B117,'[1]Collection Mode'!$C$4:$M$141,8,0) -> 43 | AG117: =VLOOKUP($B117,'[1]Collection Mode'!$C$4:$M$141,9,0) -> 0 | AH117: =VLOOKUP($B117,'[1]Collection Mode'!$C$4:$M$141,10,0) -> 141 | AI117: =VLOOKUP($B117,'[1]Collection Mode'!$C$4:$M$141,11,0) -> 0 | AJ117: 0 | AK117: 0 | AL117: 0 | AM117: 0 | AN117: 0 | AO117: 0 | AP117: 0 | AQ117: 0 | AR117: 0 | AS117: 0 | AT117: 0 | AU117: 0 | AV117: 0 | AW117: 0 | AX117: 0 | AY117: 0
A118: IS1 | B118: NDK | C118: FRESHNEY PELHAM CARE LIMITED | D118: 31 | E118: 35 | F118: 1 | G118: 0 | H118: 29 | I118: 2 | J118: 0 | K118: 0 | L118: 0 | M118: 0 | N118: 0 | O118: 0 | P118: 31 | Q118: 0 | R118: 0 | S118: 0 | T118: =VLOOKUP($B118,'[1]Organisation Level'!$C$4:$N$141,11,0) -> 31 | U118: =VLOOKUP($B118,'[1]Organisation Level'!$C$4:$N$141,12,0) -> 35 | V118: 1 | W118: 0 | X118: =VLOOKUP($B118,'[1]Organisation Level'!$C$4:$N$141,5,0) -> 29 | Y118: =VLOOKUP($B118,'[1]Organisation Level'!$C$4:$N$141,6,0) -> 2 | Z118: =VLOOKUP($B118,'[1]Organisation Level'!$C$4:$N$141,7,0) -> 0 | AA118: =VLOOKUP($B118,'[1]Organisation Level'!$C$4:$N$141,8,0) -> 0 | AB118: =VLOOKUP($B118,'[1]Organisation Level'!$C$4:$N$141,9,0) -> 0 | AC118: =VLOOKUP($B118,'[1]Organisation Level'!$C$4:$N$141,10,0) -> 0 | AD118: =VLOOKUP($B118,'[1]Collection Mode'!$C$4:$M$141,6,0) -> 0 | AE118: =VLOOKUP($B118,'[1]Collection Mode'!$C$4:$M$141,7,0) -> 0 | AF118: =VLOOKUP($B118,'[1]Collection Mode'!$C$4:$M$141,8,0) -> 31 | AG118: =VLOOKUP($B118,'[1]Collection Mode'!$C$4:$M$141,9,0) -> 0 | AH118: =VLOOKUP($B118,'[1]Collection Mode'!$C$4:$M$141,10,0) -> 0 | AI118: =VLOOKUP($B118,'[1]Collection Mode'!$C$4:$M$141,11,0) -> 0 | AJ118: 0 | AK118: 0 | AL118: 0 | AM118: 0 | AN118: 0 | AO118: 0 | AP118: 0 | AQ118: 0 | AR118: 0 | AS118: 0 | AT118: 0 | AU118: 0 | AV118: 0 | AW118: 0 | AX118: 0 | AY118: 0
A119: IS1 | B119: NWV01 | C119: GP CARE UK | D119: 450 | E119: 1086 | F119: 0.9866666667 | G119: 0.006666666667 | H119: 372 | I119: 72 | J119: 3 | K119: 2 | L119: 1 | M119: 0 | N119: 0 | O119: 0 | P119: 450 | Q119: 0 | R119: 0 | S119: 0 | T119: =VLOOKUP($B119,'[1]Organisation Level'!$C$4:$N$141,11,0) -> 450 | U119: =VLOOKUP($B119,'[1]Organisation Level'!$C$4:$N$141,12,0) -> 1086 | V119: 0.9866666667 | W119: 0.006666666667 | X119: =VLOOKUP($B119,'[1]Organisation Level'!$C$4:$N$141,5,0) -> 372 | Y119: =VLOOKUP($B119,'[1]Organisation Level'!$C$4:$N$141,6,0) -> 72 | Z119: =VLOOKUP($B119,'[1]Organisation Level'!$C$4:$N$141,7,0) -> 3 | AA119: =VLOOKUP($B119,'[1]Organisation Level'!$C$4:$N$141,8,0) -> 2 | AB119: =VLOOKUP($B119,'[1]Organisation Level'!$C$4:$N$141,9,0) -> 1 | AC119: =VLOOKUP($B119,'[1]Organisation Level'!$C$4:$N$141,10,0) -> 0 | AD119: =VLOOKUP($B119,'[1]Collection Mode'!$C$4:$M$141,6,0) -> 0 | AE119: =VLOOKUP($B119,'[1]Collection Mode'!$C$4:$M$141,7,0) -> 0 | AF119: =VLOOKUP($B119,'[1]Collection Mode'!$C$4:$M$141,8,0) -> 450 | AG119: =VLOOKUP($B119,'[1]Collection Mode'!$C$4:$M$141,9,0) -> 0 | AH119: =VLOOKUP($B119,'[1]Collection Mode'!$C$4:$M$141,10,0) -> 0 | AI119: =VLOOKUP($B119,'[1]Collection Mode'!$C$4:$M$141,11,0) -> 0 | AJ119: 0 | AK119: 0 | AL119: 0 | AM119: 0 | AN119: 0 | AO119: 0 | AP119: 0 | AQ119: 0 | AR119: 0 | AS119: 0 | AT119: 0 | AU119: 0 | AV119: 0 | AW119: 0 | AX119: 0 | AY119: 0
A120: IS1 | B120: NQT | C120: HCRG CARE LTD | D120: 2301 | E120: 82407 | F120: 0.93698392 | G120: 0.02824858757 | H120: 1775 | I120: 381 | J120: 70 | K120: 37 | L120: 28 | M120: 10 | N120: 106 | O120: 0 | P120: 748 | Q120: 0 | R120: 1447 | S120: 0 | T120: =VLOOKUP($B120,'[1]Organisation Level'!$C$4:$N$141,11,0) -> 2301 | U120: =VLOOKUP($B120,'[1]Organisation Level'!$C$4:$N$141,12,0) -> 82407 | V120: 0.93698392 | W120: 0.02824858757 | X120: =VLOOKUP($B120,'[1]Organisation Level'!$C$4:$N$141,5,0) -> 1775 | Y120: =VLOOKUP($B120,'[1]Organisation Level'!$C$4:$N$141,6,0) -> 381 | Z120: =VLOOKUP($B120,'[1]Organisation Level'!$C$4:$N$141,7,0) -> 70 | AA120: =VLOOKUP($B120,'[1]Organisation Level'!$C$4:$N$141,8,0) -> 37 | AB120: =VLOOKUP($B120,'[1]Organisation Level'!$C$4:$N$141,9,0) -> 28 | AC120: =VLOOKUP($B120,'[1]Organisation Level'!$C$4:$N$141,10,0) -> 10 | AD120: =VLOOKUP($B120,'[1]Collection Mode'!$C$4:$M$141,6,0) -> 106 | AE120: =VLOOKUP($B120,'[1]Collection Mode'!$C$4:$M$141,7,0) -> 0 | AF120: =VLOOKUP($B120,'[1]Collection Mode'!$C$4:$M$141,8,0) -> 748 | AG120: =VLOOKUP($B120,'[1]Collection Mode'!$C$4:$M$141,9,0) -> 0 | AH120: =VLOOKUP($B120,'[1]Collection Mode'!$C$4:$M$141,10,0) -> 1447 | AI120: =VLOOKUP($B120,'[1]Collection Mode'!$C$4:$M$141,11,0) -> 0 | AJ120: 0 | AK120: 0 | AL120: 0 | AM120: 0 | AN120: 0 | AO120: 0 | AP120: 0 | AQ120: 0 | AR120: 0 | AS120: 0 | AT120: 0 | AU120: 0 | AV120: 0 | AW120: 0 | AX120: 0 | AY120: 0
A121: IS1 | B121: NDA | C121: HCRG CARE SERVICES LTD | D121: 100 | E121: 8651 | F121: 0.99 | G121: 0.01 | H121: 93 | I121: 6 | J121: 0 | K121: 1 | L121: 0 | M121: 0 | N121: 4 | O121: 0 | P121: 29 | Q121: 0 | R121: 67 | S121: 0 | T121: =VLOOKUP($B121,'[1]Organisation Level'!$C$4:$N$141,11,0) -> 100 | U121: =VLOOKUP($B121,'[1]Organisation Level'!$C$4:$N$141,12,0) -> 8651 | V121: 0.99 | W121: 0.01 | X121: =VLOOKUP($B121,'[1]Organisation Level'!$C$4:$N$141,5,0) -> 93 | Y121: =VLOOKUP($B121,'[1]Organisation Level'!$C$4:$N$141,6,0) -> 6 | Z121: =VLOOKUP($B121,'[1]Organisation Level'!$C$4:$N$141,7,0) -> 0 | AA121: =VLOOKUP($B121,'[1]Organisation Level'!$C$4:$N$141,8,0) -> 1 | AB121: =VLOOKUP($B121,'[1]Organisation Level'!$C$4:$N$141,9,0) -> 0 | AC121: =VLOOKUP($B121,'[1]Organisation Level'!$C$4:$N$141,10,0) -> 0 | AD121: =VLOOKUP($B121,'[1]Collection Mode'!$C$4:$M$141,6,0) -> 4 | AE121: =VLOOKUP($B121,'[1]Collection Mode'!$C$4:$M$141,7,0) -> 0 | AF121: =VLOOKUP($B121,'[1]Collection Mode'!$C$4:$M$141,8,0) -> 29 | AG121: =VLOOKUP($B121,'[1]Collection Mode'!$C$4:$M$141,9,0) -> 0 | AH121: =VLOOKUP($B121,'[1]Collection Mode'!$C$4:$M$141,10,0) -> 67 | AI121: =VLOOKUP($B121,'[1]Collection Mode'!$C$4:$M$141,11,0) -> 0 | AJ121: 0 | AK121: 0 | AL121: 0 | AM121: 0 | AN121: 0 | AO121: 0 | AP121: 0 | AQ121: 0 | AR121: 0 | AS121: 0 | AT121: 0 | AU121: 0 | AV121: 0 | AW121: 0 | AX121: 0 | AY121: 0
A122: IS1 | B122: NHA | C122: INSIDEVUE LIMITED | D122: 91 | E122: 988 | F122: 0.8901098901 | G122: 0.02197802198 | H122: 54 | I122: 27 | J122: 4 | K122: 2 | L122: 0 | M122: 4 | N122: 91 | O122: 0 | P122: 0 | Q122: 0 | R122: 0 | S122: 0 | T122: =VLOOKUP($B122,'[1]Organisation Level'!$C$4:$N$141,11,0) -> 91 | U122: =VLOOKUP($B122,'[1]Organisation Level'!$C$4:$N$141,12,0) -> 988 | V122: 0.8901098901 | W122: 0.02197802198 | X122: =VLOOKUP($B122,'[1]Organisation Level'!$C$4:$N$141,5,0) -> 54 | Y122: =VLOOKUP($B122,'[1]Organisation Level'!$C$4:$N$141,6,0) -> 27 | Z122: =VLOOKUP($B122,'[1]Organisation Level'!$C$4:$N$141,7,0) -> 4 | AA122: =VLOOKUP($B122,'[1]Organisation Level'!$C$4:$N$141,8,0) -> 2 | AB122: =VLOOKUP($B122,'[1]Organisation Level'!$C$4:$N$141,9,0) -> 0 | AC122: =VLOOKUP($B122,'[1]Organisation Level'!$C$4:$N$141,10,0) -> 4 | AD122: =VLOOKUP($B122,'[1]Collection Mode'!$C$4:$M$141,6,0) -> 91 | AE122: =VLOOKUP($B122,'[1]Collection Mode'!$C$4:$M$141,7,0) -> 0 | AF122: =VLOOKUP($B122,'[1]Collection Mode'!$C$4:$M$141,8,0) -> 0 | AG122: =VLOOKUP($B122,'[1]Collection Mode'!$C$4:$M$141,9,0) -> 0 | AH122: =VLOOKUP($B122,'[1]Collection Mode'!$C$4:$M$141,10,0) -> 0 | AI122: =VLOOKUP($B122,'[1]Collection Mode'!$C$4:$M$141,11,0) -> 0 | AJ122: 0 | AK122: 0 | AL122: 0 | AM122: 0 | AN122: 0 | AO122: 0 | AP122: 0 | AQ122: 0 | AR122: 0 | AS122: 0 | AT122: 0 | AU122: 0 | AV122: 0 | AW122: 0 | AX122: 0 | AY122: 0
A123: IS1 | B123: NLE01 | C123: LANCASTER HOUSE CONSULTING DIAGNOSTICS SURGICAL LTD HQ | D123: 355 | E123: 355 | F123: 0.9971830986 | G123: 0 | H123: 205 | I123: 149 | J123: 1 | K123: 0 | L123: 0 | M123: 0 | N123: 0 | O123: 0 | P123: 355 | Q123: 0 | R123: 0 | S123: 0 | T123: =VLOOKUP($B123,'[1]Organisation Level'!$C$4:$N$141,11,0) -> 355 | U123: =VLOOKUP($B123,'[1]Organisation Level'!$C$4:$N$141,12,0) -> 355 | V123: 0.9971830986 | W123: 0 | X123: =VLOOKUP($B123,'[1]Organisation Level'!$C$4:$N$141,5,0) -> 205 | Y123: =VLOOKUP($B123,'[1]Organisation Level'!$C$4:$N$141,6,0) -> 149 | Z123: =VLOOKUP($B123,'[1]Organisation Level'!$C$4:$N$141,7,0) -> 1 | AA123: =VLOOKUP($B123,'[1]Organisation Level'!$C$4:$N$141,8,0) -> 0 | AB123: =VLOOKUP($B123,'[1]Organisation Level'!$C$4:$N$141,9,0) -> 0 | AC123: =VLOOKUP($B123,'[1]Organisation Level'!$C$4:$N$141,10,0) -> 0 | AD123: =VLOOKUP($B123,'[1]Collection Mode'!$C$4:$M$141,6,0) -> 0 | AE123: =VLOOKUP($B123,'[1]Collection Mode'!$C$4:$M$141,7,0) -> 0 | AF123: =VLOOKUP($B123,'[1]Collection Mode'!$C$4:$M$141,8,0) -> 355 | AG123: =VLOOKUP($B123,'[1]Collection Mode'!$C$4:$M$141,9,0) -> 0 | AH123: =VLOOKUP($B123,'[1]Collection Mode'!$C$4:$M$141,10,0) -> 0 | AI123: =VLOOKUP($B123,'[1]Collection Mode'!$C$4:$M$141,11,0) -> 0 | AJ123: 0 | AK123: 0 | AL123: 0 | AM123: 0 | AN123: 0 | AO123: 0 | AP123: 0 | AQ123: 0 | AR123: 0 | AS123: 0 | AT123: 0 | AU123: 0 | AV123: 0 | AW123: 0 | AX123: 0 | AY123: 0
A124: IS1 | B124: NR5 | C124: LIVEWELL SOUTHWEST | D124: 694 | E124: 7138 | F124: 0.9740634006 | G124: 0.008645533141 | H124: 609 | I124: 67 | J124: 7 | K124: 1 | L124: 5 | M124: 5 | N124: 190 | O124: 41 | P124: 0 | Q124: 0 | R124: 62 | S124: 401 | T124: =VLOOKUP($B124,'[1]Organisation Level'!$C$4:$N$141,11,0) -> 694 | U124: =VLOOKUP($B124,'[1]Organisation Level'!$C$4:$N$141,12,0) -> 7138 | V124: 0.9740634006 | W124: 0.008645533141 | X124: =VLOOKUP($B124,'[1]Organisation Level'!$C$4:$N$141,5,0) -> 609 | Y124: =VLOOKUP($B124,'[1]Organisation Level'!$C$4:$N$141,6,0) -> 67 | Z124: =VLOOKUP($B124,'[1]Organisation Level'!$C$4:$N$141,7,0) -> 7 | AA124: =VLOOKUP($B124,'[1]Organisation Level'!$C$4:$N$141,8,0) -> 1 | AB124: =VLOOKUP($B124,'[1]Organisation Level'!$C$4:$N$141,9,0) -> 5 | AC124: =VLOOKUP($B124,'[1]Organisation Level'!$C$4:$N$141,10,0) -> 5 | AD124: =VLOOKUP($B124,'[1]Collection Mode'!$C$4:$M$141,6,0) -> 190 | AE124: =VLOOKUP($B124,'[1]Collection Mode'!$C$4:$M$141,7,0) -> 41 | AF124: =VLOOKUP($B124,'[1]Collection Mode'!$C$4:$M$141,8,0) -> 0 | AG124: =VLOOKUP($B124,'[1]Collection Mode'!$C$4:$M$141,9,0) -> 0 | AH124: =VLOOKUP($B124,'[1]Collection Mode'!$C$4:$M$141,10,0) -> 62 | AI124: =VLOOKUP($B124,'[1]Collection Mode'!$C$4:$M$141,11,0) -> 401 | AJ124: 0 | AK124: 0 | AL124: 0 | AM124: 0 | AN124: 0 | AO124: 0 | AP124: 0 | AQ124: 0 | AR124: 0 | AS124: 0 | AT124: 0 | AU124: 0 | AV124: 0 | AW124: 0 | AX124: 0 | AY124: 0
A125: IS1 | B125: DAY | C125: LLR PATIENT CARE LOCALLY | D125: 781 | E125: 6079 | F125: 0.9526248399 | G125: 0.02816901408 | H125: 653 | I125: 91 | J125: 14 | K125: 12 | L125: 10 | M125: 1 | N125: 26 | O125: 120 | P125: 203 | Q125: 0 | R125: 432 | S125: 0 | T125: =VLOOKUP($B125,'[1]Organisation Level'!$C$4:$N$141,11,0) -> 781 | U125: =VLOOKUP($B125,'[1]Organisation Level'!$C$4:$N$141,12,0) -> 6079 | V125: 0.9526248399 | W125: 0.02816901408 | X125: =VLOOKUP($B125,'[1]Organisation Level'!$C$4:$N$141,5,0) -> 653 | Y125: =VLOOKUP($B125,'[1]Organisation Level'!$C$4:$N$141,6,0) -> 91 | Z125: =VLOOKUP($B125,'[1]Organisation Level'!$C$4:$N$141,7,0) -> 14 | AA125: =VLOOKUP($B125,'[1]Organisation Level'!$C$4:$N$141,8,0) -> 12 | AB125: =VLOOKUP($B125,'[1]Organisation Level'!$C$4:$N$141,9,0) -> 10 | AC125: =VLOOKUP($B125,'[1]Organisation Level'!$C$4:$N$141,10,0) -> 1 | AD125: =VLOOKUP($B125,'[1]Collection Mode'!$C$4:$M$141,6,0) -> 26 | AE125: =VLOOKUP($B125,'[1]Collection Mode'!$C$4:$M$141,7,0) -> 120 | AF125: =VLOOKUP($B125,'[1]Collection Mode'!$C$4:$M$141,8,0) -> 203 | AG125: =VLOOKUP($B125,'[1]Collection Mode'!$C$4:$M$141,9,0) -> 0 | AH125: =VLOOKUP($B125,'[1]Collection Mode'!$C$4:$M$141,10,0) -> 432 | AI125: =VLOOKUP($B125,'[1]Collection Mode'!$C$4:$M$141,11,0) -> 0 | AJ125: 0 | AK125: 0 | AL125: 0 | AM125: 0 | AN125: 0 | AO125: 0 | AP125: 0 | AQ125: 0 | AR125: 0 | AS125: 0 | AT125: 0 | AU125: 0 | AV125: 0 | AW125: 0 | AX125: 0 | AY125: 0
A126: IS1 | B126: NL8 | C126: LOCALA COMMUNITY PARTNERSHIPS CIC | D126: 1179 | E126: 24731 | F126: 0.9728583545 | G126: 0.01357082273 | H126: 1011 | I126: 136 | J126: 13 | K126: 10 | L126: 6 | M126: 3 | N126: 0 | O126: 0 | P126: 0 | Q126: 0 | R126: 1179 | S126: 0 | T126: =VLOOKUP($B126,'[1]Organisation Level'!$C$4:$N$141,11,0) -> 1179 | U126: =VLOOKUP($B126,'[1]Organisation Level'!$C$4:$N$141,12,0) -> 24731 | V126: 0.9728583545 | W126: 0.01357082273 | X126: =VLOOKUP($B126,'[1]Organisation Level'!$C$4:$N$141,5,0) -> 1011 | Y126: =VLOOKUP($B126,'[1]Organisation Level'!$C$4:$N$141,6,0) -> 136 | Z126: =VLOOKUP($B126,'[1]Organisation Level'!$C$4:$N$141,7,0) -> 13 | AA126: =VLOOKUP($B126,'[1]Organisation Level'!$C$4:$N$141,8,0) -> 10 | AB126: =VLOOKUP($B126,'[1]Organisation Level'!$C$4:$N$141,9,0) -> 6 | AC126: =VLOOKUP($B126,'[1]Organisation Level'!$C$4:$N$141,10,0) -> 3 | AD126: =VLOOKUP($B126,'[1]Collection Mode'!$C$4:$M$141,6,0) -> 0 | AE126: =VLOOKUP($B126,'[1]Collection Mode'!$C$4:$M$141,7,0) -> 0 | AF126: =VLOOKUP($B126,'[1]Collection Mode'!$C$4:$M$141,8,0) -> 0 | AG126: =VLOOKUP($B126,'[1]Collection Mode'!$C$4:$M$141,9,0) -> 0 | AH126: =VLOOKUP($B126,'[1]Collection Mode'!$C$4:$M$141,10,0) -> 1179 | AI126: =VLOOKUP($B126,'[1]Collection Mode'!$C$4:$M$141,11,0) -> 0 | AJ126: 0 | AK126: 0 | AL126: 0 | AM126: 0 | AN126: 0 | AO126: 0 | AP126: 0 | AQ126: 0 | AR126: 0 | AS126: 0 | AT126: 0 | AU126: 0 | AV126: 0 | AW126: 0 | AX126: 0 | AY126: 0
A127: IS1 | B127: NCE | C127: MASTERCALL HEALTHCARE | D127: 364 | E127: 19589 | F127: 0.8653846154 | G127: 0.08791208791 | H127: 265 | I127: 50 | J127: 15 | K127: 7 | L127: 25 | M127: 2 | N127: 364 | O127: 0 | P127: 0 | Q127: 0 | R127: 0 | S127: 0 | T127: =VLOOKUP($B127,'[1]Organisation Level'!$C$4:$N$141,11,0) -> 364 | U127: =VLOOKUP($B127,'[1]Organisation Level'!$C$4:$N$141,12,0) -> 19589 | V127: 0.8653846154 | W127: 0.08791208791 | X127: =VLOOKUP($B127,'[1]Organisation Level'!$C$4:$N$141,5,0) -> 265 | Y127: =VLOOKUP($B127,'[1]Organisation Level'!$C$4:$N$141,6,0) -> 50 | Z127: =VLOOKUP($B127,'[1]Organisation Level'!$C$4:$N$141,7,0) -> 15 | AA127: =VLOOKUP($B127,'[1]Organisation Level'!$C$4:$N$141,8,0) -> 7 | AB127: =VLOOKUP($B127,'[1]Organisation Level'!$C$4:$N$141,9,0) -> 25 | AC127: =VLOOKUP($B127,'[1]Organisation Level'!$C$4:$N$141,10,0) -> 2 | AD127: =VLOOKUP($B127,'[1]Collection Mode'!$C$4:$M$141,6,0) -> 364 | AE127: =VLOOKUP($B127,'[1]Collection Mode'!$C$4:$M$141,7,0) -> 0 | AF127: =VLOOKUP($B127,'[1]Collection Mode'!$C$4:$M$141,8,0) -> 0 | AG127: =VLOOKUP($B127,'[1]Collection Mode'!$C$4:$M$141,9,0) -> 0 | AH127: =VLOOKUP($B127,'[1]Collection Mode'!$C$4:$M$141,10,0) -> 0 | AI127: =VLOOKUP($B127,'[1]Collection Mode'!$C$4:$M$141,11,0) -> 0 | AJ127: 0 | AK127: 0 | AL127: 0 | AM127: 0 | AN127: 0 | AO127: 0 | AP127: 0 | AQ127: 0 | AR127: 0 | AS127: 0 | AT127: 0 | AU127: 0 | AV127: 0 | AW127: 0 | AX127: 0 | AY127: 0
A128: IS1 | B128: NQ7 | C128: MEDWAY COMMUNITY HEALTHCARE | D128: 1332 | E128: 10862 | F128: 0.9564564565 | G128: 0.02402402402 | H128: 1148 | I128: 126 | J128: 24 | K128: 14 | L128: 18 | M128: 2 | N128: 0 | O128: 0 | P128: 66 | Q128: 0 | R128: 1266 | S128: 0 | T128: =VLOOKUP($B128,'[1]Organisation Level'!$C$4:$N$141,11,0) -> 1332 | U128: =VLOOKUP($B128,'[1]Organisation Level'!$C$4:$N$141,12,0) -> 10862 | V128: 0.9564564565 | W128: 0.02402402402 | X128: =VLOOKUP($B128,'[1]Organisation Level'!$C$4:$N$141,5,0) -> 1148 | Y128: =VLOOKUP($B128,'[1]Organisation Level'!$C$4:$N$141,6,0) -> 126 | Z128: =VLOOKUP($B128,'[1]Organisation Level'!$C$4:$N$141,7,0) -> 24 | AA128: =VLOOKUP($B128,'[1]Organisation Level'!$C$4:$N$141,8,0) -> 14 | AB128: =VLOOKUP($B128,'[1]Organisation Level'!$C$4:$N$141,9,0) -> 18 | AC128: =VLOOKUP($B128,'[1]Organisation Level'!$C$4:$N$141,10,0) -> 2 | AD128: =VLOOKUP($B128,'[1]Collection Mode'!$C$4:$M$141,6,0) -> 0 | AE128: =VLOOKUP($B128,'[1]Collection Mode'!$C$4:$M$141,7,0) -> 0 | AF128: =VLOOKUP($B128,'[1]Collection Mode'!$C$4:$M$141,8,0) -> 66 | AG128: =VLOOKUP($B128,'[1]Collection Mode'!$C$4:$M$141,9,0) -> 0 | AH128: =VLOOKUP($B128,'[1]Collection Mode'!$C$4:$M$141,10,0) -> 1266 | AI128: =VLOOKUP($B128,'[1]Collection Mode'!$C$4:$M$141,11,0) -> 0 | AJ128: 0 | AK128: 0 | AL128: 0 | AM128: 0 | AN128: 0 | AO128: 0 | AP128: 0 | AQ128: 0 | AR128: 0 | AS128: 0 | AT128: 0 | AU128: 0 | AV128: 0 | AW128: 0 | AX128: 0 | AY128: 0
A129: IS1 | B129: ARA | C129: MID HAMPSHIRE HEALTHCARE LIMITED | D129: 2178 | E129: 2178 | F129: 0.9444444444 | G129: 0.02754820937 | H129: 1842 | I129: 215 | J129: 61 | K129: 24 | L129: 36 | M129: 0 | N129: 0 | O129: 0 | P129: 0 | Q129: 0 | R129: 2178 | S129: 0 | T129: =VLOOKUP($B129,'[1]Organisation Level'!$C$4:$N$141,11,0) -> 2178 | U129: =VLOOKUP($B129,'[1]Organisation Level'!$C$4:$N$141,12,0) -> 2178 | V129: 0.9444444444 | W129: 0.02754820937 | X129: =VLOOKUP($B129,'[1]Organisation Level'!$C$4:$N$141,5,0) -> 1842 | Y129: =VLOOKUP($B129,'[1]Organisation Level'!$C$4:$N$141,6,0) -> 215 | Z129: =VLOOKUP($B129,'[1]Organisation Level'!$C$4:$N$141,7,0) -> 61 | AA129: =VLOOKUP($B129,'[1]Organisation Level'!$C$4:$N$141,8,0) -> 24 | AB129: =VLOOKUP($B129,'[1]Organisation Level'!$C$4:$N$141,9,0) -> 36 | AC129: =VLOOKUP($B129,'[1]Organisation Level'!$C$4:$N$141,10,0) -> 0 | AD129: =VLOOKUP($B129,'[1]Collection Mode'!$C$4:$M$141,6,0) -> 0 | AE129: =VLOOKUP($B129,'[1]Collection Mode'!$C$4:$M$141,7,0) -> 0 | AF129: =VLOOKUP($B129,'[1]Collection Mode'!$C$4:$M$141,8,0) -> 0 | AG129: =VLOOKUP($B129,'[1]Collection Mode'!$C$4:$M$141,9,0) -> 0 | AH129: =VLOOKUP($B129,'[1]Collection Mode'!$C$4:$M$141,10,0) -> 2178 | AI129: =VLOOKUP($B129,'[1]Collection Mode'!$C$4:$M$141,11,0) -> 0 | AJ129: 0 | AK129: 0 | AL129: 0 | AM129: 0 | AN129: 0 | AO129: 0 | AP129: 0 | AQ129: 0 | AR129: 0 | AS129: 0 | AT129: 0 | AU129: 0 | AV129: 0 | AW129: 0 | AX129: 0 | AY129: 0
A130: IS1 | B130: NPH | C130: MILTON KEYNES URGENT CARE SERVICES CIC HQ | D130: 521 | E130: 9136 | F130: 0.8195777351 | G130: 0.08637236084 | H130: 271 | I130: 156 | J130: 43 | K130: 21 | L130: 24 | M130: 6 | N130: 0 | O130: 0 | P130: 0 | Q130: 0 | R130: 521 | S130: 0 | T130: =VLOOKUP($B130,'[1]Organisation Level'!$C$4:$N$141,11,0) -> 521 | U130: =VLOOKUP($B130,'[1]Organisation Level'!$C$4:$N$141,12,0) -> 9136 | V130: 0.8195777351 | W130: 0.08637236084 | X130: =VLOOKUP($B130,'[1]Organisation Level'!$C$4:$N$141,5,0) -> 271 | Y130: =VLOOKUP($B130,'[1]Organisation Level'!$C$4:$N$141,6,0) -> 156 | Z130: =VLOOKUP($B130,'[1]Organisation Level'!$C$4:$N$141,7,0) -> 43 | AA130: =VLOOKUP($B130,'[1]Organisation Level'!$C$4:$N$141,8,0) -> 21 | AB130: =VLOOKUP($B130,'[1]Organisation Level'!$C$4:$N$141,9,0) -> 24 | AC130: =VLOOKUP($B130,'[1]Organisation Level'!$C$4:$N$141,10,0) -> 6 | AD130: =VLOOKUP($B130,'[1]Collection Mode'!$C$4:$M$141,6,0) -> 0 | AE130: =VLOOKUP($B130,'[1]Collection Mode'!$C$4:$M$141,7,0) -> 0 | AF130: =VLOOKUP($B130,'[1]Collection Mode'!$C$4:$M$141,8,0) -> 0 | AG130: =VLOOKUP($B130,'[1]Collection Mode'!$C$4:$M$141,9,0) -> 0 | AH130: =VLOOKUP($B130,'[1]Collection Mode'!$C$4:$M$141,10,0) -> 521 | AI130: =VLOOKUP($B130,'[1]Collection Mode'!$C$4:$M$141,11,0) -> 0 | AJ130: 0 | AK130: 0 | AL130: 0 | AM130: 0 | AN130: 0 | AO130: 0 | AP130: 0 | AQ130: 0 | AR130: 0 | AS130: 0 | AT130: 0 | AU130: 0 | AV130: 0 | AW130: 0 | AX130: 0 | AY130: 0
A131: IS1 | B131: NHX | C131: NORTH HAMPSHIRE URGENT CARE | D131: 103 | E131: 8417 | F131: 0.9708737864 | G131: 0.009708737864 | H131: 77 | I131: 23 | J131: 2 | K131: 1 | L131: 0 | M131: 0 | N131: 0 | O131: 0 | P131: 103 | Q131: 0 | R131: 0 | S131: 0 | T131: =VLOOKUP($B131,'[1]Organisation Level'!$C$4:$N$141,11,0) -> 103 | U131: =VLOOKUP($B131,'[1]Organisation Level'!$C$4:$N$141,12,0) -> 8417 | V131: 0.9708737864 | W131: 0.009708737864 | X131: =VLOOKUP($B131,'[1]Organisation Level'!$C$4:$N$141,5,0) -> 77 | Y131: =VLOOKUP($B131,'[1]Organisation Level'!$C$4:$N$141,6,0) -> 23 | Z131: =VLOOKUP($B131,'[1]Organisation Level'!$C$4:$N$141,7,0) -> 2 | AA131: =VLOOKUP($B131,'[1]Organisation Level'!$C$4:$N$141,8,0) -> 1 | AB131: =VLOOKUP($B131,'[1]Organisation Level'!$C$4:$N$141,9,0) -> 0 | AC131: =VLOOKUP($B131,'[1]Organisation Level'!$C$4:$N$141,10,0) -> 0 | AD131: =VLOOKUP($B131,'[1]Collection Mode'!$C$4:$M$141,6,0) -> 0 | AE131: =VLOOKUP($B131,'[1]Collection Mode'!$C$4:$M$141,7,0) -> 0 | AF131: =VLOOKUP($B131,'[1]Collection Mode'!$C$4:$M$141,8,0) -> 103 | AG131: =VLOOKUP($B131,'[1]Collection Mode'!$C$4:$M$141,9,0) -> 0 | AH131: =VLOOKUP($B131,'[1]Collection Mode'!$C$4:$M$141,10,0) -> 0 | AI131: =VLOOKUP($B131,'[1]Collection Mode'!$C$4:$M$141,11,0) -> 0 | AJ131: 0 | AK131: 0 | AL131: 0 | AM131: 0 | AN131: 0 | AO131: 0 | AP131: 0 | AQ131: 0 | AR131: 0 | AS131: 0 | AT131: 0 | AU131: 0 | AV131: 0 | AW131: 0 | AX131: 0 | AY131: 0
A132: IS1 | B132: NR3 | C132: NOTTINGHAM CITYCARE PARTNERSHIP | D132: 1597 | E132: 53189 | F132: 0.8490920476 | G132: 0.08641202254 | H132: 1068 | I132: 288 | J132: 96 | K132: 56 | L132: 82 | M132: 7 | N132: 1371 | O132: 0 | P132: 222 | Q132: 0 | R132: 4 | S132: 0 | T132: =VLOOKUP($B132,'[1]Organisation Level'!$C$4:$N$141,11,0) -> 1597 | U132: =VLOOKUP($B132,'[1]Organisation Level'!$C$4:$N$141,12,0) -> 53189 | V132: 0.8490920476 | W132: 0.08641202254 | X132: =VLOOKUP($B132,'[1]Organisation Level'!$C$4:$N$141,5,0) -> 1068 | Y132: =VLOOKUP($B132,'[1]Organisation Level'!$C$4:$N$141,6,0) -> 288 | Z132: =VLOOKUP($B132,'[1]Organisation Level'!$C$4:$N$141,7,0) -> 96 | AA132: =VLOOKUP($B132,'[1]Organisation Level'!$C$4:$N$141,8,0) -> 56 | AB132: =VLOOKUP($B132,'[1]Organisation Level'!$C$4:$N$141,9,0) -> 82 | AC132: =VLOOKUP($B132,'[1]Organisation Level'!$C$4:$N$141,10,0) -> 7 | AD132: =VLOOKUP($B132,'[1]Collection Mode'!$C$4:$M$141,6,0) -> 1371 | AE132: =VLOOKUP($B132,'[1]Collection Mode'!$C$4:$M$141,7,0) -> 0 | AF132: =VLOOKUP($B132,'[1]Collection Mode'!$C$4:$M$141,8,0) -> 222 | AG132: =VLOOKUP($B132,'[1]Collection Mode'!$C$4:$M$141,9,0) -> 0 | AH132: =VLOOKUP($B132,'[1]Collection Mode'!$C$4:$M$141,10,0) -> 4 | AI132: =VLOOKUP($B132,'[1]Collection Mode'!$C$4:$M$141,11,0) -> 0 | AJ132: 0 | AK132: 0 | AL132: 0 | AM132: 0 | AN132: 0 | AO132: 0 | AP132: 0 | AQ132: 0 | AR132: 0 | AS132: 0 | AT132: 0 | AU132: 0 | AV132: 0 | AW132: 0 | AX132: 0 | AY132: 0
A133: IS1 | B133: NQH | C133: NOVUS HEALTH LTD | D133: 769 | E133: 6118 | F133: 0.9544863459 | G133: 0.01950585176 | H133: 644 | I133: 90 | J133: 18 | K133: 7 | L133: 8 | M133: 2 | N133: 0 | O133: 0 | P133: 95 | Q133: 0 | R133: 674 | S133: 0 | T133: =VLOOKUP($B133,'[1]Organisation Level'!$C$4:$N$141,11,0) -> 769 | U133: =VLOOKUP($B133,'[1]Organisation Level'!$C$4:$N$141,12,0) -> 6118 | V133: 0.9544863459 | W133: 0.01950585176 | X133: =VLOOKUP($B133,'[1]Organisation Level'!$C$4:$N$141,5,0) -> 644 | Y133: =VLOOKUP($B133,'[1]Organisation Level'!$C$4:$N$141,6,0) -> 90 | Z133: =VLOOKUP($B133,'[1]Organisation Level'!$C$4:$N$141,7,0) -> 18 | AA133: =VLOOKUP($B133,'[1]Organisation Level'!$C$4:$N$141,8,0) -> 7 | AB133: =VLOOKUP($B133,'[1]Organisation Level'!$C$4:$N$141,9,0) -> 8 | AC133: =VLOOKUP($B133,'[1]Organisation Level'!$C$4:$N$141,10,0) -> 2 | AD133: =VLOOKUP($B133,'[1]Collection Mode'!$C$4:$M$141,6,0) -> 0 | AE133: =VLOOKUP($B133,'[1]Collection Mode'!$C$4:$M$141,7,0) -> 0 | AF133: =VLOOKUP($B133,'[1]Collection Mode'!$C$4:$M$141,8,0) -> 95 | AG133: =VLOOKUP($B133,'[1]Collection Mode'!$C$4:$M$141,9,0) -> 0 | AH133: =VLOOKUP($B133,'[1]Collection Mode'!$C$4:$M$141,10,0) -> 674 | AI133: =VLOOKUP($B133,'[1]Collection Mode'!$C$4:$M$141,11,0) -> 0 | AJ133: 0 | AK133: 0 | AL133: 0 | AM133: 0 | AN133: 0 | AO133: 0 | AP133: 0 | AQ133: 0 | AR133: 0 | AS133: 0 | AT133: 0 | AU133: 0 | AV133: 0 | AW133: 0 | AX133: 0 | AY133: 0
A134: IS1 | B134: DCF | C134: OZONE HEALTH | D134: 153 | E134: 2740 | F134: 0.7647058824 | G134: 0.06535947712 | H134: 98 | I134: 19 | J134: 15 | K134: 7 | L134: 3 | M134: 11 | N134: 0 | O134: 0 | P134: 0 | Q134: 0 | R134: 153 | S134: 0 | T134: =VLOOKUP($B134,'[1]Organisation Level'!$C$4:$N$141,11,0) -> 153 | U134: =VLOOKUP($B134,'[1]Organisation Level'!$C$4:$N$141,12,0) -> 2740 | V134: 0.7647058824 | W134: 0.06535947712 | X134: =VLOOKUP($B134,'[1]Organisation Level'!$C$4:$N$141,5,0) -> 98 | Y134: =VLOOKUP($B134,'[1]Organisation Level'!$C$4:$N$141,6,0) -> 19 | Z134: =VLOOKUP($B134,'[1]Organisation Level'!$C$4:$N$141,7,0) -> 15 | AA134: =VLOOKUP($B134,'[1]Organisation Level'!$C$4:$N$141,8,0) -> 7 | AB134: =VLOOKUP($B134,'[1]Organisation Level'!$C$4:$N$141,9,0) -> 3 | AC134: =VLOOKUP($B134,'[1]Organisation Level'!$C$4:$N$141,10,0) -> 11 | AD134: =VLOOKUP($B134,'[1]Collection Mode'!$C$4:$M$141,6,0) -> 0 | AE134: =VLOOKUP($B134,'[1]Collection Mode'!$C$4:$M$141,7,0) -> 0 | AF134: =VLOOKUP($B134,'[1]Collection Mode'!$C$4:$M$141,8,0) -> 0 | AG134: =VLOOKUP($B134,'[1]Collection Mode'!$C$4:$M$141,9,0) -> 0 | AH134: =VLOOKUP($B134,'[1]Collection Mode'!$C$4:$M$141,10,0) -> 153 | AI134: =VLOOKUP($B134,'[1]Collection Mode'!$C$4:$M$141,11,0) -> 0 | AJ134: 0 | AK134: 0 | AL134: 0 | AM134: 0 | AN134: 0 | AO134: 0 | AP134: 0 | AQ134: 0 | AR134: 0 | AS134: 0 | AT134: 0 | AU134: 0 | AV134: 0 | AW134: 0 | AX134: 0 | AY134: 0
A135: IS1 | B135: NLF | C135: PENNINE MUSCULOSKELETAL PARTNERSHIP (ICATS) | D135: 499 | E135: 6453 | F135: 0.9599198397 | G135: 0.02204408818 | H135: 434 | I135: 45 | J135: 5 | K135: 3 | L135: 8 | M135: 4 | N135: 499 | O135: 0 | P135: 0 | Q135: 0 | R135: 0 | S135: 0 | T135: =VLOOKUP($B135,'[1]Organisation Level'!$C$4:$N$141,11,0) -> 499 | U135: =VLOOKUP($B135,'[1]Organisation Level'!$C$4:$N$141,12,0) -> 6453 | V135: 0.9599198397 | W135: 0.02204408818 | X135: =VLOOKUP($B135,'[1]Organisation Level'!$C$4:$N$141,5,0) -> 434 | Y135: =VLOOKUP($B135,'[1]Organisation Level'!$C$4:$N$141,6,0) -> 45 | Z135: =VLOOKUP($B135,'[1]Organisation Level'!$C$4:$N$141,7,0) -> 5 | AA135: =VLOOKUP($B135,'[1]Organisation Level'!$C$4:$N$141,8,0) -> 3 | AB135: =VLOOKUP($B135,'[1]Organisation Level'!$C$4:$N$141,9,0) -> 8 | AC135: =VLOOKUP($B135,'[1]Organisation Level'!$C$4:$N$141,10,0) -> 4 | AD135: =VLOOKUP($B135,'[1]Collection Mode'!$C$4:$M$141,6,0) -> 499 | AE135: =VLOOKUP($B135,'[1]Collection Mode'!$C$4:$M$141,7,0) -> 0 | AF135: =VLOOKUP($B135,'[1]Collection Mode'!$C$4:$M$141,8,0) -> 0 | AG135: =VLOOKUP($B135,'[1]Collection Mode'!$C$4:$M$141,9,0) -> 0 | AH135: =VLOOKUP($B135,'[1]Collection Mode'!$C$4:$M$141,10,0) -> 0 | AI135: =VLOOKUP($B135,'[1]Collection Mode'!$C$4:$M$141,11,0) -> 0 | AJ135: 0 | AK135: 0 | AL135: 0 | AM135: 0 | AN135: 0 | AO135: 0 | AP135: 0 | AQ135: 0 | AR135: 0 | AS135: 0 | AT135: 0 | AU135: 0 | AV135: 0 | AW135: 0 | AX135: 0 | AY135: 0
A136: IS1 | B136: NTP | C136: PRACTICE PLUS GROUP HOLDINGS | D136: 795 | E136: 44167 | F136: 0.8855345912 | G136: 0.08176100629 | H136: 566 | I136: 138 | J136: 22 | K136: 26 | L136: 39 | M136: 4 | N136: 0 | O136: 0 | P136: 38 | Q136: 0 | R136: 757 | S136: 0 | T136: =VLOOKUP($B136,'[1]Organisation Level'!$C$4:$N$141,11,0) -> 795 | U136: =VLOOKUP($B136,'[1]Organisation Level'!$C$4:$N$141,12,0) -> 44167 | V136: 0.8855345912 | W136: 0.08176100629 | X136: =VLOOKUP($B136,'[1]Organisation Level'!$C$4:$N$141,5,0) -> 566 | Y136: =VLOOKUP($B136,'[1]Organisation Level'!$C$4:$N$141,6,0) -> 138 | Z136: =VLOOKUP($B136,'[1]Organisation Level'!$C$4:$N$141,7,0) -> 22 | AA136: =VLOOKUP($B136,'[1]Organisation Level'!$C$4:$N$141,8,0) -> 26 | AB136: =VLOOKUP($B136,'[1]Organisation Level'!$C$4:$N$141,9,0) -> 39 | AC136: =VLOOKUP($B136,'[1]Organisation Level'!$C$4:$N$141,10,0) -> 4 | AD136: =VLOOKUP($B136,'[1]Collection Mode'!$C$4:$M$141,6,0) -> 0 | AE136: =VLOOKUP($B136,'[1]Collection Mode'!$C$4:$M$141,7,0) -> 0 | AF136: =VLOOKUP($B136,'[1]Collection Mode'!$C$4:$M$141,8,0) -> 38 | AG136: =VLOOKUP($B136,'[1]Collection Mode'!$C$4:$M$141,9,0) -> 0 | AH136: =VLOOKUP($B136,'[1]Collection Mode'!$C$4:$M$141,10,0) -> 757 | AI136: =VLOOKUP($B136,'[1]Collection Mode'!$C$4:$M$141,11,0) -> 0 | AJ136: 0 | AK136: 0 | AL136: 0 | AM136: 0 | AN136: 0 | AO136: 0 | AP136: 0 | AQ136: 0 | AR136: 0 | AS136: 0 | AT136: 0 | AU136: 0 | AV136: 0 | AW136: 0 | AX136: 0 | AY136: 0
A137: IS1 | B137: D0V7H | C137: PROCARE COMMUNITY SERVICES LTD | D137: 3 | E137: 3 | F137: * | G137: * | H137: * | I137: * | J137: * | K137: * | L137: * | M137: * | N137: * | O137: * | P137: * | Q137: * | R137: * | S137: * | T137: =VLOOKUP($B137,'[1]Organisation Level'!$C$4:$N$141,11,0) -> 3 | U137: =VLOOKUP($B137,'[1]Organisation Level'!$C$4:$N$141,12,0) -> 3 | V137: =SUM(X137+Y137)/SUM(X137:AC137) -> 1 | W137: =SUM(AA137+AB137)/SUM(X137:AC137) -> 0 | X137: =VLOOKUP($B137,'[1]Organisation Level'!$C$4:$N$141,5,0) -> 3 | Y137: =VLOOKUP($B137,'[1]Organisation Level'!$C$4:$N$141,6,0) -> 0 | Z137: =VLOOKUP($B137,'[1]Organisation Level'!$C$4:$N$141,7,0) -> 0 | AA137: =VLOOKUP($B137,'[1]Organisation Level'!$C$4:$N$141,8,0) -> 0 | AB137: =VLOOKUP($B137,'[1]Organisation Level'!$C$4:$N$141,9,0) -> 0 | AC137: =VLOOKUP($B137,'[1]Organisation Level'!$C$4:$N$141,10,0) -> 0 | AD137: =VLOOKUP($B137,'[1]Collection Mode'!$C$4:$M$141,6,0) -> 0 | AE137: =VLOOKUP($B137,'[1]Collection Mode'!$C$4:$M$141,7,0) -> 0 | AF137: =VLOOKUP($B137,'[1]Collection Mode'!$C$4:$M$141,8,0) -> 0 | AG137: =VLOOKUP($B137,'[1]Collection Mode'!$C$4:$M$141,9,0) -> 3 | AH137: =VLOOKUP($B137,'[1]Collection Mode'!$C$4:$M$141,10,0) -> 0 | AI137: =VLOOKUP($B137,'[1]Collection Mode'!$C$4:$M$141,11,0) -> 0 | AJ137: =IFERROR(D137-T137,0) -> 0 | AK137: =IFERROR(E137-U137,0) -> 0 | AL137: =IFERROR(F137-V137,0) -> 0 | AM137: =IFERROR(G137-W137,0) -> 0 | AN137: =IFERROR(H137-X137,0) -> 0 | AO137: =IFERROR(I137-Y137,0) -> 0 | AP137: =IFERROR(J137-Z137,0) -> 0 | AQ137: =IFERROR(K137-AA137,0) -> 0 | AR137: =IFERROR(L137-AB137,0) -> 0 | AS137: =IFERROR(M137-AC137,0) -> 0 | AT137: =IFERROR(N137-AD137,0) -> 0 | AU137: =IFERROR(O137-AE137,0) -> 0 | AV137: =IFERROR(P137-AF137,0) -> 0 | AW137: =IFERROR(Q137-AG137,0) -> 0 | AX137: =IFERROR(R137-AH137,0) -> 0 | AY137: =IFERROR(S137-AI137,0) -> 0
A138: IS1 | B138: NQA | C138: PROVIDE | D138: 968 | E138: 14900 | F138: 0.979338843 | G138: 0.00826446281 | H138: 887 | I138: 61 | J138: 11 | K138: 6 | L138: 2 | M138: 1 | N138: 0 | O138: 0 | P138: 0 | Q138: 0 | R138: 968 | S138: 0 | T138: =VLOOKUP($B138,'[1]Organisation Level'!$C$4:$N$141,11,0) -> 968 | U138: =VLOOKUP($B138,'[1]Organisation Level'!$C$4:$N$141,12,0) -> 14900 | V138: 0.979338843 | W138: 0.00826446281 | X138: =VLOOKUP($B138,'[1]Organisation Level'!$C$4:$N$141,5,0) -> 887 | Y138: =VLOOKUP($B138,'[1]Organisation Level'!$C$4:$N$141,6,0) -> 61 | Z138: =VLOOKUP($B138,'[1]Organisation Level'!$C$4:$N$141,7,0) -> 11 | AA138: =VLOOKUP($B138,'[1]Organisation Level'!$C$4:$N$141,8,0) -> 6 | AB138: =VLOOKUP($B138,'[1]Organisation Level'!$C$4:$N$141,9,0) -> 2 | AC138: =VLOOKUP($B138,'[1]Organisation Level'!$C$4:$N$141,10,0) -> 1 | AD138: =VLOOKUP($B138,'[1]Collection Mode'!$C$4:$M$141,6,0) -> 0 | AE138: =VLOOKUP($B138,'[1]Collection Mode'!$C$4:$M$141,7,0) -> 0 | AF138: =VLOOKUP($B138,'[1]Collection Mode'!$C$4:$M$141,8,0) -> 0 | AG138: =VLOOKUP($B138,'[1]Collection Mode'!$C$4:$M$141,9,0) -> 0 | AH138: =VLOOKUP($B138,'[1]Collection Mode'!$C$4:$M$141,10,0) -> 968 | AI138: =VLOOKUP($B138,'[1]Collection Mode'!$C$4:$M$141,11,0) -> 0 | AJ138: 0 | AK138: 0 | AL138: 0 | AM138: 0 | AN138: 0 | AO138: 0 | AP138: 0 | AQ138: 0 | AR138: 0 | AS138: 0 | AT138: 0 | AU138: 0 | AV138: 0 | AW138: 0 | AX138: 0 | AY138: 0
A139: IS1 | B139: NLX | C139: SIRONA CARE & HEALTH | D139: 198 | E139: 45447 | F139: 0.9393939394 | G139: 0.0303030303 | H139: 166 | I139: 20 | J139: 6 | K139: 1 | L139: 5 | M139: 0 | N139: 0 | O139: 44 | P139: 143 | Q139: 3 | R139: 8 | S139: 0 | T139: =VLOOKUP($B139,'[1]Organisation Level'!$C$4:$N$141,11,0) -> 198 | U139: =VLOOKUP($B139,'[1]Organisation Level'!$C$4:$N$141,12,0) -> 45447 | V139: 0.9393939394 | W139: 0.0303030303 | X139: =VLOOKUP($B139,'[1]Organisation Level'!$C$4:$N$141,5,0) -> 166 | Y139: =VLOOKUP($B139,'[1]Organisation Level'!$C$4:$N$141,6,0) -> 20 | Z139: =VLOOKUP($B139,'[1]Organisation Level'!$C$4:$N$141,7,0) -> 6 | AA139: =VLOOKUP($B139,'[1]Organisation Level'!$C$4:$N$141,8,0) -> 1 | AB139: =VLOOKUP($B139,'[1]Organisation Level'!$C$4:$N$141,9,0) -> 5 | AC139: =VLOOKUP($B139,'[1]Organisation Level'!$C$4:$N$141,10,0) -> 0 | AD139: =VLOOKUP($B139,'[1]Collection Mode'!$C$4:$M$141,6,0) -> 0 | AE139: =VLOOKUP($B139,'[1]Collection Mode'!$C$4:$M$141,7,0) -> 44 | AF139: =VLOOKUP($B139,'[1]Collection Mode'!$C$4:$M$141,8,0) -> 143 | AG139: =VLOOKUP($B139,'[1]Collection Mode'!$C$4:$M$141,9,0) -> 3 | AH139: =VLOOKUP($B139,'[1]Collection Mode'!$C$4:$M$141,10,0) -> 8 | AI139: =VLOOKUP($B139,'[1]Collection Mode'!$C$4:$M$141,11,0) -> 0 | AJ139: 0 | AK139: 0 | AL139: 0 | AM139: 0 | AN139: 0 | AO139: 0 | AP139: 0 | AQ139: 0 | AR139: 0 | AS139: 0 | AT139: 0 | AU139: 0 | AV139: 0 | AW139: 0 | AX139: 0 | AY139: 0
A140: IS1 | B140: NDL | C140: SUFFOLK GP FEDERATION | D140: 986 | E140: 27148 | F140: 0.939148073 | G140: 0.04259634888 | H140: 809 | I140: 117 | J140: 18 | K140: 23 | L140: 19 | M140: 0 | N140: 986 | O140: 0 | P140: 0 | Q140: 0 | R140: 0 | S140: 0 | T140: =VLOOKUP($B140,'[1]Organisation Level'!$C$4:$N$141,11,0) -> 986 | U140: =VLOOKUP($B140,'[1]Organisation Level'!$C$4:$N$141,12,0) -> 27148 | V140: 0.939148073 | W140: 0.04259634888 | X140: =VLOOKUP($B140,'[1]Organisation Level'!$C$4:$N$141,5,0) -> 809 | Y140: =VLOOKUP($B140,'[1]Organisation Level'!$C$4:$N$141,6,0) -> 117 | Z140: =VLOOKUP($B140,'[1]Organisation Level'!$C$4:$N$141,7,0) -> 18 | AA140: =VLOOKUP($B140,'[1]Organisation Level'!$C$4:$N$141,8,0) -> 23 | AB140: =VLOOKUP($B140,'[1]Organisation Level'!$C$4:$N$141,9,0) -> 19 | AC140: =VLOOKUP($B140,'[1]Organisation Level'!$C$4:$N$141,10,0) -> 0 | AD140: =VLOOKUP($B140,'[1]Collection Mode'!$C$4:$M$141,6,0) -> 986 | AE140: =VLOOKUP($B140,'[1]Collection Mode'!$C$4:$M$141,7,0) -> 0 | AF140: =VLOOKUP($B140,'[1]Collection Mode'!$C$4:$M$141,8,0) -> 0 | AG140: =VLOOKUP($B140,'[1]Collection Mode'!$C$4:$M$141,9,0) -> 0 | AH140: =VLOOKUP($B140,'[1]Collection Mode'!$C$4:$M$141,10,0) -> 0 | AI140: =VLOOKUP($B140,'[1]Collection Mode'!$C$4:$M$141,11,0) -> 0 | AJ140: 0 | AK140: 0 | AL140: 0 | AM140: 0 | AN140: 0 | AO140: 0 | AP140: 0 | AQ140: 0 | AR140: 0 | AS140: 0 | AT140: 0 | AU140: 0 | AV140: 0 | AW140: 0 | AX140: 0 | AY140: 0
A141: IS1 | B141: NYG | C141: SUSSEX COMMUNITY DERMATOLOGY SERVICE | D141: 341 | E141: 10994 | F141: 0.9970674487 | G141: 0 | H141: 194 | I141: 146 | J141: 1 | K141: 0 | L141: 0 | M141: 0 | N141: 0 | O141: 0 | P141: 0 | Q141: 0 | R141: 341 | S141: 0 | T141: =VLOOKUP($B141,'[1]Organisation Level'!$C$4:$N$141,11,0) -> 341 | U141: =VLOOKUP($B141,'[1]Organisation Level'!$C$4:$N$141,12,0) -> 10994 | V141: 0.9970674487 | W141: 0 | X141: =VLOOKUP($B141,'[1]Organisation Level'!$C$4:$N$141,5,0) -> 194 | Y141: =VLOOKUP($B141,'[1]Organisation Level'!$C$4:$N$141,6,0) -> 146 | Z141: =VLOOKUP($B141,'[1]Organisation Level'!$C$4:$N$141,7,0) -> 1 | AA141: =VLOOKUP($B141,'[1]Organisation Level'!$C$4:$N$141,8,0) -> 0 | AB141: =VLOOKUP($B141,'[1]Organisation Level'!$C$4:$N$141,9,0) -> 0 | AC141: =VLOOKUP($B141,'[1]Organisation Level'!$C$4:$N$141,10,0) -> 0 | AD141: =VLOOKUP($B141,'[1]Collection Mode'!$C$4:$M$141,6,0) -> 0 | AE141: =VLOOKUP($B141,'[1]Collection Mode'!$C$4:$M$141,7,0) -> 0 | AF141: =VLOOKUP($B141,'[1]Collection Mode'!$C$4:$M$141,8,0) -> 0 | AG141: =VLOOKUP($B141,'[1]Collection Mode'!$C$4:$M$141,9,0) -> 0 | AH141: =VLOOKUP($B141,'[1]Collection Mode'!$C$4:$M$141,10,0) -> 341 | AI141: =VLOOKUP($B141,'[1]Collection Mode'!$C$4:$M$141,11,0) -> 0 | AJ141: 0 | AK141: 0 | AL141: 0 | AM141: 0 | AN141: 0 | AO141: 0 | AP141: 0 | AQ141: 0 | AR141: 0 | AS141: 0 | AT141: 0 | AU141: 0 | AV141: 0 | AW141: 0 | AX141: 0 | AY141: 0
A142: IS1 | B142: NGX | C142: TAURUS HEALTHCARE LTD | D142: 376 | E142: 3312 | F142: 0.954787234 | G142: 0.02393617021 | H142: 292 | I142: 67 | J142: 8 | K142: 6 | L142: 3 | M142: 0 | N142: 376 | O142: 0 | P142: 0 | Q142: 0 | R142: 0 | S142: 0 | T142: =VLOOKUP($B142,'[1]Organisation Level'!$C$4:$N$141,11,0) -> 376 | U142: =VLOOKUP($B142,'[1]Organisation Level'!$C$4:$N$141,12,0) -> 3312 | V142: 0.954787234 | W142: 0.02393617021 | X142: =VLOOKUP($B142,'[1]Organisation Level'!$C$4:$N$141,5,0) -> 292 | Y142: =VLOOKUP($B142,'[1]Organisation Level'!$C$4:$N$141,6,0) -> 67 | Z142: =VLOOKUP($B142,'[1]Organisation Level'!$C$4:$N$141,7,0) -> 8 | AA142: =VLOOKUP($B142,'[1]Organisation Level'!$C$4:$N$141,8,0) -> 6 | AB142: =VLOOKUP($B142,'[1]Organisation Level'!$C$4:$N$141,9,0) -> 3 | AC142: =VLOOKUP($B142,'[1]Organisation Level'!$C$4:$N$141,10,0) -> 0 | AD142: =VLOOKUP($B142,'[1]Collection Mode'!$C$4:$M$141,6,0) -> 376 | AE142: =VLOOKUP($B142,'[1]Collection Mode'!$C$4:$M$141,7,0) -> 0 | AF142: =VLOOKUP($B142,'[1]Collection Mode'!$C$4:$M$141,8,0) -> 0 | AG142: =VLOOKUP($B142,'[1]Collection Mode'!$C$4:$M$141,9,0) -> 0 | AH142: =VLOOKUP($B142,'[1]Collection Mode'!$C$4:$M$141,10,0) -> 0 | AI142: =VLOOKUP($B142,'[1]Collection Mode'!$C$4:$M$141,11,0) -> 0 | AJ142: 0 | AK142: 0 | AL142: 0 | AM142: 0 | AN142: 0 | AO142: 0 | AP142: 0 | AQ142: 0 | AR142: 0 | AS142: 0 | AT142: 0 | AU142: 0 | AV142: 0 | AW142: 0 | AX142: 0 | AY142: 0
A143: IS1 | B143: NN1 | C143: THE ROYAL HOSPITAL FOR NEURO-DISABILITY | D143: 10 | E143: 11 | F143: 1 | G143: 0 | H143: 2 | I143: 8 | J143: 0 | K143: 0 | L143: 0 | M143: 0 | N143: 0 | O143: 0 | P143: 10 | Q143: 0 | R143: 0 | S143: 0 | T143: =VLOOKUP($B143,'[1]Organisation Level'!$C$4:$N$141,11,0) -> 10 | U143: =VLOOKUP($B143,'[1]Organisation Level'!$C$4:$N$141,12,0) -> 11 | V143: 1 | W143: 0 | X143: =VLOOKUP($B143,'[1]Organisation Level'!$C$4:$N$141,5,0) -> 2 | Y143: =VLOOKUP($B143,'[1]Organisation Level'!$C$4:$N$141,6,0) -> 8 | Z143: =VLOOKUP($B143,'[1]Organisation Level'!$C$4:$N$141,7,0) -> 0 | AA143: =VLOOKUP($B143,'[1]Organisation Level'!$C$4:$N$141,8,0) -> 0 | AB143: =VLOOKUP($B143,'[1]Organisation Level'!$C$4:$N$141,9,0) -> 0 | AC143: =VLOOKUP($B143,'[1]Organisation Level'!$C$4:$N$141,10,0) -> 0 | AD143: =VLOOKUP($B143,'[1]Collection Mode'!$C$4:$M$141,6,0) -> 0 | AE143: =VLOOKUP($B143,'[1]Collection Mode'!$C$4:$M$141,7,0) -> 0 | AF143: =VLOOKUP($B143,'[1]Collection Mode'!$C$4:$M$141,8,0) -> 10 | AG143: =VLOOKUP($B143,'[1]Collection Mode'!$C$4:$M$141,9,0) -> 0 | AH143: =VLOOKUP($B143,'[1]Collection Mode'!$C$4:$M$141,10,0) -> 0 | AI143: =VLOOKUP($B143,'[1]Collection Mode'!$C$4:$M$141,11,0) -> 0 | AJ143: 0 | AK143: 0 | AL143: 0 | AM143: 0 | AN143: 0 | AO143: 0 | AP143: 0 | AQ143: 0 | AR143: 0 | AS143: 0 | AT143: 0 | AU143: 0 | AV143: 0 | AW143: 0 | AX143: 0 | AY143: 0
A144: IS1 | B144: VLN99 | C144: TURNING POINT - BIRCHWOOD NURSING HOME | D144: 2 | E144: 16 | F144: * | G144: * | H144: * | I144: * | J144: * | K144: * | L144: * | M144: * | N144: * | O144: * | P144: * | Q144: * | R144: * | S144: * | T144: =VLOOKUP($B144,'[1]Organisation Level'!$C$4:$N$141,11,0) -> 2 | U144: =VLOOKUP($B144,'[1]Organisation Level'!$C$4:$N$141,12,0) -> 16 | V144: 0.5 | W144: 0 | X144: =VLOOKUP($B144,'[1]Organisation Level'!$C$4:$N$141,5,0) -> 1 | Y144: =VLOOKUP($B144,'[1]Organisation Level'!$C$4:$N$141,6,0) -> 0 | Z144: =VLOOKUP($B144,'[1]Organisation Level'!$C$4:$N$141,7,0) -> 1 | AA144: =VLOOKUP($B144,'[1]Organisation Level'!$C$4:$N$141,8,0) -> 0 | AB144: =VLOOKUP($B144,'[1]Organisation Level'!$C$4:$N$141,9,0) -> 0 | AC144: =VLOOKUP($B144,'[1]Organisation Level'!$C$4:$N$141,10,0) -> 0 | AD144: =VLOOKUP($B144,'[1]Collection Mode'!$C$4:$M$141,6,0) -> 0 | AE144: =VLOOKUP($B144,'[1]Collection Mode'!$C$4:$M$141,7,0) -> 0 | AF144: =VLOOKUP($B144,'[1]Collection Mode'!$C$4:$M$141,8,0) -> 2 | AG144: =VLOOKUP($B144,'[1]Collection Mode'!$C$4:$M$141,9,0) -> 0 | AH144: =VLOOKUP($B144,'[1]Collection Mode'!$C$4:$M$141,10,0) -> 0 | AI144: =VLOOKUP($B144,'[1]Collection Mode'!$C$4:$M$141,11,0) -> 0 | AJ144: 0 | AK144: 0 | AL144: 0 | AM144: 0 | AN144: 0 | AO144: 0 | AP144: 0 | AQ144: 0 | AR144: 0 | AS144: 0 | AT144: 0 | AU144: 0 | AV144: 0 | AW144: 0 | AX144: 0 | AY144: 0
A145: IS1 | B145: NNV | C145: YOUR HEALTHCARE | D145: 275 | E145: 950 | F145: 0.84 | G145: 0.01818181818 | H145: 132 | I145: 99 | J145: 27 | K145: 4 | L145: 1 | M145: 12 | N145: 0 | O145: 0 | P145: 35 | Q145: 0 | R145: 240 | S145: 0 | T145: =VLOOKUP($B145,'[1]Organisation Level'!$C$4:$N$141,11,0) -> 275 | U145: =VLOOKUP($B145,'[1]Organisation Level'!$C$4:$N$141,12,0) -> 950 | V145: 0.84 | W145: 0.01818181818 | X145: =VLOOKUP($B145,'[1]Organisation Level'!$C$4:$N$141,5,0) -> 132 | Y145: =VLOOKUP($B145,'[1]Organisation Level'!$C$4:$N$141,6,0) -> 99 | Z145: =VLOOKUP($B145,'[1]Organisation Level'!$C$4:$N$141,7,0) -> 27 | AA145: =VLOOKUP($B145,'[1]Organisation Level'!$C$4:$N$141,8,0) -> 4 | AB145: =VLOOKUP($B145,'[1]Organisation Level'!$C$4:$N$141,9,0) -> 1 | AC145: =VLOOKUP($B145,'[1]Organisation Level'!$C$4:$N$141,10,0) -> 12 | AD145: =VLOOKUP($B145,'[1]Collection Mode'!$C$4:$M$141,6,0) -> 0 | AE145: =VLOOKUP($B145,'[1]Collection Mode'!$C$4:$M$141,7,0) -> 0 | AF145: =VLOOKUP($B145,'[1]Collection Mode'!$C$4:$M$141,8,0) -> 35 | AG145: =VLOOKUP($B145,'[1]Collection Mode'!$C$4:$M$141,9,0) -> 0 | AH145: =VLOOKUP($B145,'[1]Collection Mode'!$C$4:$M$141,10,0) -> 240 | AI145: =VLOOKUP($B145,'[1]Collection Mode'!$C$4:$M$141,11,0) -> 0 | AJ145: 0 | AK145: 0 | AL145: 0 | AM145: 0 | AN145: 0 | AO145: 0 | AP145: 0 | AQ145: 0 | AR145: 0 | AS145: 0 | AT145: 0 | AU145: 0 | AV145: 0 | AW145: 0 | AX145: 0 | AY145: 0

Sheet Categories
A3: ICB Code | B3: Trust Code | C3: Trust Name | D3: Service Category Provided | E3: Vlookup | F3: Total Responses | G3: Percentage Positive | H3: Percentage Negative | I3: Breakdown of Responses | O3: Total Responses | P3: Percentage Positive | Q3: Percentage Negative | R3: Breakdown of Responses | X3: Total Responses | Y3: Percentage Positive | Z3: Percentage Negative | AA3: Breakdown of Responses
I4: Very Good | J4: Good | K4: Neither Good nor Poor | L4: Poor | M4: Very Poor | N4: Don't Know | R4: Very Good | S4: Good | T4: Neither Good nor Poor | U4: Poor | V4: Very Poor | W4: Don't Know | AA4: Very Good | AB4: Good | AC4: Neither Good nor Poor | AD4: Poor | AE4: Very Poor | AF4: Don't Know
D5: England (including Independent Sector Providers) | F5: 107096 | G5: 0.9415851199 | H5: 0.0275173676 | I5: 87011 | J5: 13829 | K5: 2552 | L5: 1323 | M5: 1624 | N5: 757 | O5: =SUM(O8:O520) -> 107096 | P5: =SUM(R5+S5)/SUM(R5:W5) -> 0.9415851199 | Q5: =SUM(U5+V5)/SUM(R5:W5) -> 0.0275173676 | R5: =SUM(R8:R520) -> 87011 | S5: 13829 | T5: 2552 | U5: 1323 | V5: 1624 | W5: 757 | X5: =IFERROR(F5-O5,0) -> 0 | Y5: =IFERROR(G5-P5,0) -> 0 | Z5: =IFERROR(H5-Q5,0) -> 0 | AA5: =IFERROR(I5-R5,0) -> 0 | AB5: =IFERROR(J5-S5,0) -> 0 | AC5: =IFERROR(K5-T5,0) -> 0 | AD5: =IFERROR(L5-U5,0) -> 0 | AE5: =IFERROR(M5-V5,0) -> 0 | AF5: =IFERROR(N5-W5,0) -> 0
D6: England (excluding Independent Sector Providers) | F6: 80855 | G6: 0.9471894131 | H6: 0.0235112238 | I6: 66493 | J6: 10092 | K6: 1788 | L6: 868 | M6: 1033 | N6: 581 | O6: =SUM(O8:O410) -> 80855 | P6: 0.9471894131 | Q6: 0.0235112238 | R6: =SUM(R8:R410) -> 66493 | S6: 10092 | T6: 1788 | U6: 868 | V6: 1033 | W6: 581 | X6: 0 | Y6: 0 | Z6: 0 | AA6: 0 | AB6: 0 | AC6: 0 | AD6: 0 | AE6: 0 | AF6: 0
D7: Selection (excluding suppressed data) | F7: =SUBTOTAL(9,F8:F994) -> 107096 | G7: =IFERROR((I7+J7)/SUM(I7:N7), "-") -> 0.9415179369 | H7: =IFERROR((L7+M7)/SUM(I7:N7), "-") -> 0.02751931056 | I7: =SUBTOTAL(9,I8:I994) -> 86324 | J7: 13749 | K7: 2538 | L7: 1314 | M7: 1611 | N7: 753 | O7: =SUMIF(F8:F520,"<>*",O8:O520) -> 107096 | P7: 0.9415179369 | Q7: 0.02751931056 | R7: =SUMIF(I8:I520,"<>*",R8:R520) -> 86324 | S7: 13749 | T7: 2538 | U7: 1314 | V7: 1611 | W7: 753 | X7: 0 | Y7: 0 | Z7: 0 | AA7: 0 | AB7: 0 | AC7: 0 | AD7: 0 | AE7: 0 | AF7: 0
A8: QE1 | B8: RXL | C8: BLACKPOOL TEACHING HOSPITALS NHS FOUNDATION TRUST | D8: Children & Family Services | E8: =B8&D8 -> RXLChildren & Family Services | F8: 287 | G8: 0.8989547038 | H8: 0.03135888502 | I8: 246 | J8: 12 | K8: 16 | L8: 0 | M8: 9 | N8: 4 | O8: =VLOOKUP($E8,'[1]Organisation Categories'!$G$4:$O$831,8,0) -> 287 | P8: =SUM(R8+S8)/SUM(R8:W8) -> 0.8989547038 | Q8: =SUM(U8+V8)/SUM(R8:W8) -> 0.03135888502 | R8: =VLOOKUP($E8,'[1]Organisation Categories'!$G$4:$O$831,2,0) -> 246 | S8: =VLOOKUP($E8,'[1]Organisation Categories'!$G$4:$O$831,3,0) -> 12 | T8: =VLOOKUP($E8,'[1]Organisation Categories'!$G$4:$O$831,4,0) -> 16 | U8: =VLOOKUP($E8,'[1]Organisation Categories'!$G$4:$O$831,5,0) -> 0 | V8: =VLOOKUP($E8,'[1]Organisation Categories'!$G$4:$O$831,6,0) -> 9 | W8: =VLOOKUP($E8,'[1]Organisation Categories'!$G$4:$O$831,7,0) -> 4 | X8: =IFERROR(F8-O8,0) -> 0 | Y8: =IFERROR(G8-P8,0) -> 0 | Z8: 0 | AA8: 0 | AB8: 0 | AC8: 0 | AD8: 0 | AE8: 0 | AF8: 0
A9: QE1 | B9: RXL | C9: BLACKPOOL TEACHING HOSPITALS NHS FOUNDATION TRUST | D9: Community Inpatient Services | E9: =B9&D9 -> RXLCommunity Inpatient Services | F9: 43 | G9: 0.976744186 | H9: 0.02325581395 | I9: 31 | J9: 11 | K9: 0 | L9: 1 | M9: 0 | N9: 0 | O9: =VLOOKUP($E9,'[1]Organisation Categories'!$G$4:$O$831,8,0) -> 43 | P9: =SUM(R9+S9)/SUM(R9:W9) -> 0.976744186 | Q9: =SUM(U9+V9)/SUM(R9:W9) -> 0.02325581395 | R9: =VLOOKUP($E9,'[1]Organisation Categories'!$G$4:$O$831,2,0) -> 31 | S9: =VLOOKUP($E9,'[1]Organisation Categories'!$G$4:$O$831,3,0) -> 11 | T9: =VLOOKUP($E9,'[1]Organisation Categories'!$G$4:$O$831,4,0) -> 0 | U9: =VLOOKUP($E9,'[1]Organisation Categories'!$G$4:$O$831,5,0) -> 1 | V9: =VLOOKUP($E9,'[1]Organisation Categories'!$G$4:$O$831,6,0) -> 0 | W9: =VLOOKUP($E9,'[1]Organisation Categories'!$G$4:$O$831,7,0) -> 0 | X9: =IFERROR(F9-O9,0) -> 0 | Y9: =IFERROR(G9-P9,0) -> 0 | Z9: =IFERROR(H9-Q9,0) -> 0 | AA9: =IFERROR(I9-R9,0) -> 0 | AB9: =IFERROR(J9-S9,0) -> 0 | AC9: =IFERROR(K9-T9,0) -> 0 | AD9: =IFERROR(L9-U9,0) -> 0 | AE9: =IFERROR(M9-V9,0) -> 0 | AF9: =IFERROR(N9-W9,0) -> 0
A10: QE1 | B10: RXL | C10: BLACKPOOL TEACHING HOSPITALS NHS FOUNDATION TRUST | D10: Community Nursing Services | E10: RXLCommunity Nursing Services | F10: 497 | G10: 0.9617706237 | H10: 0.008048289738 | I10: 436 | J10: 42 | K10: 7 | L10: 1 | M10: 3 | N10: 8 | O10: =VLOOKUP($E10,'[1]Organisation Categories'!$G$4:$O$831,8,0) -> 497 | P10: 0.9617706237 | Q10: 0.008048289738 | R10: =VLOOKUP($E10,'[1]Organisation Categories'!$G$4:$O$831,2,0) -> 436 | S10: =VLOOKUP($E10,'[1]Organisation Categories'!$G$4:$O$831,3,0) -> 42 | T10: =VLOOKUP($E10,'[1]Organisation Categories'!$G$4:$O$831,4,0) -> 7 | U10: =VLOOKUP($E10,'[1]Organisation Categories'!$G$4:$O$831,5,0) -> 1 | V10: =VLOOKUP($E10,'[1]Organisation Categories'!$G$4:$O$831,6,0) -> 3 | W10: =VLOOKUP($E10,'[1]Organisation Categories'!$G$4:$O$831,7,0) -> 8 | X10: 0 | Y10: 0 | Z10: 0 | AA10: 0 | AB10: 0 | AC10: 0 | AD10: 0 | AE10: 0 | AF10: 0
A11: QE1 | B11: RXL | C11: BLACKPOOL TEACHING HOSPITALS NHS FOUNDATION TRUST | D11: Rehabilitation & Therapy Services | E11: RXLRehabilitation & Therapy Services | F11: 383 | G11: 0.9738903394 | H11: 0.01044386423 | I11: 347 | J11: 26 | K11: 5 | L11: 2 | M11: 2 | N11: 1 | O11: =VLOOKUP($E11,'[1]Organisation Categories'!$G$4:$O$831,8,0) -> 383 | P11: 0.9738903394 | Q11: 0.01044386423 | R11: =VLOOKUP($E11,'[1]Organisation Categories'!$G$4:$O$831,2,0) -> 347 | S11: =VLOOKUP($E11,'[1]Organisation Categories'!$G$4:$O$831,3,0) -> 26 | T11: =VLOOKUP($E11,'[1]Organisation Categories'!$G$4:$O$831,4,0) -> 5 | U11: =VLOOKUP($E11,'[1]Organisation Categories'!$G$4:$O$831,5,0) -> 2 | V11: =VLOOKUP($E11,'[1]Organisation Categories'!$G$4:$O$831,6,0) -> 2 | W11: =VLOOKUP($E11,'[1]Organisation Categories'!$G$4:$O$831,7,0) -> 1 | X11: 0 | Y11: 0 | Z11: 0 | AA11: 0 | AB11: 0 | AC11: 0 | AD11: 0 | AE11: 0 | AF11: 0
A12: QE1 | B12: RXL | C12: BLACKPOOL TEACHING HOSPITALS NHS FOUNDATION TRUST | D12: Specialist Services | E12: RXLSpecialist Services | F12: 435 | G12: 0.9724137931 | H12: 0.01149425287 | I12: 390 | J12: 33 | K12: 5 | L12: 2 | M12: 3 | N12: 2 | O12: =VLOOKUP($E12,'[1]Organisation Categories'!$G$4:$O$831,8,0) -> 435 | P12: 0.9724137931 | Q12: 0.01149425287 | R12: =VLOOKUP($E12,'[1]Organisation Categories'!$G$4:$O$831,2,0) -> 390 | S12: =VLOOKUP($E12,'[1]Organisation Categories'!$G$4:$O$831,3,0) -> 33 | T12: =VLOOKUP($E12,'[1]Organisation Categories'!$G$4:$O$831,4,0) -> 5 | U12: =VLOOKUP($E12,'[1]Organisation Categories'!$G$4:$O$831,5,0) -> 2 | V12: =VLOOKUP($E12,'[1]Organisation Categories'!$G$4:$O$831,6,0) -> 3 | W12: =VLOOKUP($E12,'[1]Organisation Categories'!$G$4:$O$831,7,0) -> 2 | X12: 0 | Y12: 0 | Z12: 0 | AA12: 0 | AB12: 0 | AC12: 0 | AD12: 0 | AE12: 0 | AF12: 0
A13: QE1 | B13: RXR | C13: EAST LANCASHIRE HOSPITALS NHS TRUST | D13: Children & Family Services | E13: RXRChildren & Family Services | F13: 32 | G13: 1 | H13: 0 | I13: * | J13: * | K13: * | L13: * | M13: * | N13: * | O13: =VLOOKUP($E13,'[1]Organisation Categories'!$G$4:$O$831,8,0) -> 32 | P13: 1 | Q13: 0 | R13: =VLOOKUP($E13,'[1]Organisation Categories'!$G$4:$O$831,2,0) -> 30 | S13: =VLOOKUP($E13,'[1]Organisation Categories'!$G$4:$O$831,3,0) -> 2 | T13: =VLOOKUP($E13,'[1]Organisation Categories'!$G$4:$O$831,4,0) -> 0 | U13: =VLOOKUP($E13,'[1]Organisation Categories'!$G$4:$O$831,5,0) -> 0 | V13: =VLOOKUP($E13,'[1]Organisation Categories'!$G$4:$O$831,6,0) -> 0 | W13: =VLOOKUP($E13,'[1]Organisation Categories'!$G$4:$O$831,7,0) -> 0 | X13: 0 | Y13: 0 | Z13: 0 | AA13: 0 | AB13: 0 | AC13: 0 | AD13: 0 | AE13: 0 | AF13: 0
A14: QE1 | B14: RXR | C14: EAST LANCASHIRE HOSPITALS NHS TRUST | D14: Community Healthcare Other | E14: RXRCommunity Healthcare Other | F14: 59 | G14: 0.8983050847 | H14: 0 | I14: 47 | J14: 6 | K14: 1 | L14: 0 | M14: 0 | N14: 5 | O14: =VLOOKUP($E14,'[1]Organisation Categories'!$G$4:$O$831,8,0) -> 59 | P14: 0.8983050847 | Q14: 0 | R14: =VLOOKUP($E14,'[1]Organisation Categories'!$G$4:$O$831,2,0) -> 47 | S14: =VLOOKUP($E14,'[1]Organisation Categories'!$G$4:$O$831,3,0) -> 6 | T14: =VLOOKUP($E14,'[1]Organisation Categories'!$G$4:$O$831,4,0) -> 1 | U14: =VLOOKUP($E14,'[1]Organisation Categories'!$G$4:$O$831,5,0) -> 0 | V14: =VLOOKUP($E14,'[1]Organisation Categories'!$G$4:$O$831,6,0) -> 0 | W14: =VLOOKUP($E14,'[1]Organisation Categories'!$G$4:$O$831,7,0) -> 5 | X14: 0 | Y14: 0 | Z14: 0 | AA14: 0 | AB14: 0 | AC14: 0 | AD14: 0 | AE14: 0 | AF14: 0
A15: QE1 | B15: RXR | C15: EAST LANCASHIRE HOSPITALS NHS TRUST | D15: Community Inpatient Services | E15: RXRCommunity Inpatient Services | F15: 73 | G15: 0.9863013699 | H15: 0.01369863014 | I15: 62 | J15: 10 | K15: 0 | L15: 0 | M15: 1 | N15: 0 | O15: =VLOOKUP($E15,'[1]Organisation Categories'!$G$4:$O$831,8,0) -> 73 | P15: 0.9863013699 | Q15: 0.01369863014 | R15: =VLOOKUP($E15,'[1]Organisation Categories'!$G$4:$O$831,2,0) -> 62 | S15: =VLOOKUP($E15,'[1]Organisation Categories'!$G$4:$O$831,3,0) -> 10 | T15: =VLOOKUP($E15,'[1]Organisation Categories'!$G$4:$O$831,4,0) -> 0 | U15: =VLOOKUP($E15,'[1]Organisation Categories'!$G$4:$O$831,5,0) -> 0 | V15: =VLOOKUP($E15,'[1]Organisation Categories'!$G$4:$O$831,6,0) -> 1 | W15: =VLOOKUP($E15,'[1]Organisation Categories'!$G$4:$O$831,7,0) -> 0 | X15: 0 | Y15: 0 | Z15: 0 | AA15: 0 | AB15: 0 | AC15: 0 | AD15: 0 | AE15: 0 | AF15: 0
A16: QE1 | B16: RXR | C16: EAST LANCASHIRE HOSPITALS NHS TRUST | D16: Community Nursing Services | E16: RXRCommunity Nursing Services | F16: 565 | G16: 0.9079646018 | H16: 0.03539823009 | I16: 416 | J16: 97 | K16: 21 | L16: 13 | M16: 7 | N16: 11 | O16: =VLOOKUP($E16,'[1]Organisation Categories'!$G$4:$O$831,8,0) -> 565 | P16: 0.9079646018 | Q16: 0.03539823009 | R16: =VLOOKUP($E16,'[1]Organisation Categories'!$G$4:$O$831,2,0) -> 416 | S16: =VLOOKUP($E16,'[1]Organisation Categories'!$G$4:$O$831,3,0) -> 97 | T16: =VLOOKUP($E16,'[1]Organisation Categories'!$G$4:$O$831,4,0) -> 21 | U16: =VLOOKUP($E16,'[1]Organisation Categories'!$G$4:$O$831,5,0) -> 13 | V16: =VLOOKUP($E16,'[1]Organisation Categories'!$G$4:$O$831,6,0) -> 7 | W16: =VLOOKUP($E16,'[1]Organisation Categories'!$G$4:$O$831,7,0) -> 11 | X16: 0 | Y16: 0 | Z16: 0 | AA16: 0 | AB16: 0 | AC16: 0 | AD16: 0 | AE16: 0 | AF16: 0
A17: QE1 | B17: RXR | C17: EAST LANCASHIRE HOSPITALS NHS TRUST | D17: Rehabilitation & Therapy Services | E17: RXRRehabilitation & Therapy Services | F17: 110 | G17: 0.9181818182 | H17: 0.02727272727 | I17: 98 | J17: 3 | K17: 2 | L17: 2 | M17: 1 | N17: 4 | O17: =VLOOKUP($E17,'[1]Organisation Categories'!$G$4:$O$831,8,0) -> 110 | P17: 0.9181818182 | Q17: 0.02727272727 | R17: =VLOOKUP($E17,'[1]Organisation Categories'!$G$4:$O$831,2,0) -> 98 | S17: =VLOOKUP($E17,'[1]Organisation Categories'!$G$4:$O$831,3,0) -> 3 | T17: =VLOOKUP($E17,'[1]Organisation Categories'!$G$4:$O$831,4,0) -> 2 | U17: =VLOOKUP($E17,'[1]Organisation Categories'!$G$4:$O$831,5,0) -> 2 | V17: =VLOOKUP($E17,'[1]Organisation Categories'!$G$4:$O$831,6,0) -> 1 | W17: =VLOOKUP($E17,'[1]Organisation Categories'!$G$4:$O$831,7,0) -> 4 | X17: 0 | Y17: 0 | Z17: 0 | AA17: 0 | AB17: 0 | AC17: 0 | AD17: 0 | AE17: 0 | AF17: 0
A18: QE1 | B18: RXR | C18: EAST LANCASHIRE HOSPITALS NHS TRUST | D18: Specialist Services | E18: RXRSpecialist Services | F18: 2 | G18: * | H18: * | I18: * | J18: * | K18: * | L18: * | M18: * | N18: * | O18: =VLOOKUP($E18,'[1]Organisation Categories'!$G$4:$O$831,8,0) -> 2 | P18: 1 | Q18: 0 | R18: =VLOOKUP($E18,'[1]Organisation Categories'!$G$4:$O$831,2,0) -> 2 | S18: =VLOOKUP($E18,'[1]Organisation Categories'!$G$4:$O$831,3,0) -> 0 | T18: =VLOOKUP($E18,'[1]Organisation Categories'!$G$4:$O$831,4,0) -> 0 | U18: =VLOOKUP($E18,'[1]Organisation Categories'!$G$4:$O$831,5,0) -> 0 | V18: =VLOOKUP($E18,'[1]Organisation Categories'!$G$4:$O$831,6,0) -> 0 | W18: =VLOOKUP($E18,'[1]Organisation Categories'!$G$4:$O$831,7,0) -> 0 | X18: 0 | Y18: 0 | Z18: 0 | AA18: 0 | AB18: 0 | AC18: 0 | AD18: 0 | AE18: 0 | AF18: 0
A19: QE1 | B19: RW5 | C19: LANCASHIRE & SOUTH CUMBRIA NHS FOUNDATION TRUST | D19: Children & Family Services | E19: RW5Children & Family Services | F19: 26 | G19: 0.9615384615 | H19: 0 | I19: 22 | J19: 3 | K19: 0 | L19: 0 | M19: 0 | N19: 1 | O19: =VLOOKUP($E19,'[1]Organisation Categories'!$G$4:$O$831,8,0) -> 26 | P19: 0.9615384615 | Q19: 0 | R19: =VLOOKUP($E19,'[1]Organisation Categories'!$G$4:$O$831,2,0) -> 22 | S19: =VLOOKUP($E19,'[1]Organisation Categories'!$G$4:$O$831,3,0) -> 3 | T19: =VLOOKUP($E19,'[1]Organisation Categories'!$G$4:$O$831,4,0) -> 0 | U19: =VLOOKUP($E19,'[1]Organisation Categories'!$G$4:$O$831,5,0) -> 0 | V19: =VLOOKUP($E19,'[1]Organisation Categories'!$G$4:$O$831,6,0) -> 0 | W19: =VLOOKUP($E19,'[1]Organisation Categories'!$G$4:$O$831,7,0) -> 1 | X19: 0 | Y19: 0 | Z19: 0 | AA19: 0 | AB19: 0 | AC19: 0 | AD19: 0 | AE19: 0 | AF19: 0
A20: QE1 | B20: RW5 | C20: LANCASHIRE & SOUTH CUMBRIA NHS FOUNDATION TRUST | D20: Community Inpatient Services | E20: RW5Community Inpatient Services | F20: 5 | G20: 1 | H20: 0 | I20: 4 | J20: 1 | K20: 0 | L20: 0 | M20: 0 | N20: 0 | O20: =VLOOKUP($E20,'[1]Organisation Categories'!$G$4:$O$831,8,0) -> 5 | P20: 1 | Q20: 0 | R20: =VLOOKUP($E20,'[1]Organisation Categories'!$G$4:$O$831,2,0) -> 4 | S20: =VLOOKUP($E20,'[1]Organisation Categories'!$G$4:$O$831,3,0) -> 1 | T20: =VLOOKUP($E20,'[1]Organisation Categories'!$G$4:$O$831,4,0) -> 0 | U20: =VLOOKUP($E20,'[1]Organisation Categories'!$G$4:$O$831,5,0) -> 0 | V20: =VLOOKUP($E20,'[1]Organisation Categories'!$G$4:$O$831,6,0) -> 0 | W20: =VLOOKUP($E20,'[1]Organisation Categories'!$G$4:$O$831,7,0) -> 0 | X20: 0 | Y20: 0 | Z20: 0 | AA20: 0 | AB20: 0 | AC20: 0 | AD20: 0 | AE20: 0 | AF20: 0
A21: QE1 | B21: RW5 | C21: LANCASHIRE & SOUTH CUMBRIA NHS FOUNDATION TRUST | D21: Community Nursing Services | E21: RW5Community Nursing Services | F21: 174 | G21: 0.9942528736 | H21: 0 | I21: 167 | J21: 6 | K21: 1 | L21: 0 | M21: 0 | N21: 0 | O21: =VLOOKUP($E21,'[1]Organisation Categories'!$G$4:$O$831,8,0) -> 174 | P21: 0.9942528736 | Q21: 0 | R21: =VLOOKUP($E21,'[1]Organisation Categories'!$G$4:$O$831,2,0) -> 167 | S21: =VLOOKUP($E21,'[1]Organisation Categories'!$G$4:$O$831,3,0) -> 6 | T21: =VLOOKUP($E21,'[1]Organisation Categories'!$G$4:$O$831,4,0) -> 1 | U21: =VLOOKUP($E21,'[1]Organisation Categories'!$G$4:$O$831,5,0) -> 0 | V21: =VLOOKUP($E21,'[1]Organisation Categories'!$G$4:$O$831,6,0) -> 0 | W21: =VLOOKUP($E21,'[1]Organisation Categories'!$G$4:$O$831,7,0) -> 0 | X21: 0 | Y21: 0 | Z21: 0 | AA21: 0 | AB21: 0 | AC21: 0 | AD21: 0 | AE21: 0 | AF21: 0
A22: QE1 | B22: RW5 | C22: LANCASHIRE & SOUTH CUMBRIA NHS FOUNDATION TRUST | D22: Rehabilitation & Therapy Services | E22: RW5Rehabilitation & Therapy Services | F22: 57 | G22: 0.9824561404 | H22: 0.01754385965 | I22: 54 | J22: 2 | K22: 0 | L22: 0 | M22: 1 | N22: 0 | O22: =VLOOKUP($E22,'[1]Organisation Categories'!$G$4:$O$831,8,0) -> 57 | P22: 0.9824561404 | Q22: 0.01754385965 | R22: =VLOOKUP($E22,'[1]Organisation Categories'!$G$4:$O$831,2,0) -> 54 | S22: =VLOOKUP($E22,'[1]Organisation Categories'!$G$4:$O$831,3,0) -> 2 | T22: =VLOOKUP($E22,'[1]Organisation Categories'!$G$4:$O$831,4,0) -> 0 | U22: =VLOOKUP($E22,'[1]Organisation Categories'!$G$4:$O$831,5,0) -> 0 | V22: =VLOOKUP($E22,'[1]Organisation Categories'!$G$4:$O$831,6,0) -> 1 | W22: =VLOOKUP($E22,'[1]Organisation Categories'!$G$4:$O$831,7,0) -> 0 | X22: 0 | Y22: 0 | Z22: 0 | AA22: 0 | AB22: 0 | AC22: 0 | AD22: 0 | AE22: 0 | AF22: 0
A23: QE1 | B23: RW5 | C23: LANCASHIRE & SOUTH CUMBRIA NHS FOUNDATION TRUST | D23: Specialist Services | E23: RW5Specialist Services | F23: 211 | G23: 0.9526066351 | H23: 0.04265402844 | I23: 192 | J23: 9 | K23: 1 | L23: 3 | M23: 6 | N23: 0 | O23: =VLOOKUP($E23,'[1]Organisation Categories'!$G$4:$O$831,8,0) -> 211 | P23: 0.9526066351 | Q23: 0.04265402844 | R23: =VLOOKUP($E23,'[1]Organisation Categories'!$G$4:$O$831,2,0) -> 192 | S23: =VLOOKUP($E23,'[1]Organisation Categories'!$G$4:$O$831,3,0) -> 9 | T23: =VLOOKUP($E23,'[1]Organisation Categories'!$G$4:$O$831,4,0) -> 1 | U23: =VLOOKUP($E23,'[1]Organisation Categories'!$G$4:$O$831,5,0) -> 3 | V23: =VLOOKUP($E23,'[1]Organisation Categories'!$G$4:$O$831,6,0) -> 6 | W23: =VLOOKUP($E23,'[1]Organisation Categories'!$G$4:$O$831,7,0) -> 0 | X23: 0 | Y23: 0 | Z23: 0 | AA23: 0 | AB23: 0 | AC23: 0 | AD23: 0 | AE23: 0 | AF23: 0
A24: QE1 | B24: RTX | C24: UNIVERSITY HOSPITALS OF MORECAMBE BAY NHS FOUNDATION TRUST | D24: Children & Family Services | E24: RTXChildren & Family Services | F24: 4 | G24: * | H24: * | I24: * | J24: * | K24: * | L24: * | M24: * | N24: * | O24: =VLOOKUP($E24,'[1]Organisation Categories'!$G$4:$O$831,8,0) -> 4 | P24: 1 | Q24: 0 | R24: =VLOOKUP($E24,'[1]Organisation Categories'!$G$4:$O$831,2,0) -> 4 | S24: =VLOOKUP($E24,'[1]Organisation Categories'!$G$4:$O$831,3,0) -> 0 | T24: =VLOOKUP($E24,'[1]Organisation Categories'!$G$4:$O$831,4,0) -> 0 | U24: =VLOOKUP($E24,'[1]Organisation Categories'!$G$4:$O$831,5,0) -> 0 | V24: =VLOOKUP($E24,'[1]Organisation Categories'!$G$4:$O$831,6,0) -> 0 | W24: =VLOOKUP($E24,'[1]Organisation Categories'!$G$4:$O$831,7,0) -> 0 | X24: 0 | Y24: 0 | Z24: 0 | AA24: 0 | AB24: 0 | AC24: 0 | AD24: 0 | AE24: 0 | AF24: 0
A25: QE1 | B25: RTX | C25: UNIVERSITY HOSPITALS OF MORECAMBE BAY NHS FOUNDATION TRUST | D25: Community Inpatient Services | E25: RTXCommunity Inpatient Services | F25: 2 | G25: * | H25: * | I25: * | J25: * | K25: * | L25: * | M25: * | N25: * | O25: =VLOOKUP($E25,'[1]Organisation Categories'!$G$4:$O$831,8,0) -> 2 | P25: 1 | Q25: 0 | R25: =VLOOKUP($E25,'[1]Organisation Categories'!$G$4:$O$831,2,0) -> 2 | S25: =VLOOKUP($E25,'[1]Organisation Categories'!$G$4:$O$831,3,0) -> 0 | T25: =VLOOKUP($E25,'[1]Organisation Categories'!$G$4:$O$831,4,0) -> 0 | U25: =VLOOKUP($E25,'[1]Organisation Categories'!$G$4:$O$831,5,0) -> 0 | V25: =VLOOKUP($E25,'[1]Organisation Categories'!$G$4:$O$831,6,0) -> 0 | W25: =VLOOKUP($E25,'[1]Organisation Categories'!$G$4:$O$831,7,0) -> 0 | X25: 0 | Y25: 0 | Z25: 0 | AA25: 0 | AB25: 0 | AC25: 0 | AD25: 0 | AE25: 0 | AF25: 0
A26: QE1 | B26: RTX | C26: UNIVERSITY HOSPITALS OF MORECAMBE BAY NHS FOUNDATION TRUST | D26: Community Nursing Services | E26: RTXCommunity Nursing Services | F26: 12 | G26: 1 | H26: 0 | I26: 11 | J26: 1 | K26: 0 | L26: 0 | M26: 0 | N26: 0 | O26: =VLOOKUP($E26,'[1]Organisation Categories'!$G$4:$O$831,8,0) -> 12 | P26: 1 | Q26: 0 | R26: =VLOOKUP($E26,'[1]Organisation Categories'!$G$4:$O$831,2,0) -> 11 | S26: =VLOOKUP($E26,'[1]Organisation Categories'!$G$4:$O$831,3,0) -> 1 | T26: =VLOOKUP($E26,'[1]Organisation Categories'!$G$4:$O$831,4,0) -> 0 | U26: =VLOOKUP($E26,'[1]Organisation Categories'!$G$4:$O$831,5,0) -> 0 | V26: =VLOOKUP($E26,'[1]Organisation Categories'!$G$4:$O$831,6,0) -> 0 | W26: =VLOOKUP($E26,'[1]Organisation Categories'!$G$4:$O$831,7,0) -> 0 | X26: 0 | Y26: 0 | Z26: 0 | AA26: 0 | AB26: 0 | AC26: 0 | AD26: 0 | AE26: 0 | AF26: 0
A27: QE1 | B27: RTX | C27: UNIVERSITY HOSPITALS OF MORECAMBE BAY NHS FOUNDATION TRUST | D27: Rehabilitation & Therapy Services | E27: RTXRehabilitation & Therapy Services | F27: 14 | G27: 1 | H27: 0 | I27: 2 | J27: 12 | K27: 0 | L27: 0 | M27: 0 | N27: 0 | O27: =VLOOKUP($E27,'[1]Organisation Categories'!$G$4:$O$831,8,0) -> 14 | P27: 1 | Q27: 0 | R27: =VLOOKUP($E27,'[1]Organisation Categories'!$G$4:$O$831,2,0) -> 2 | S27: =VLOOKUP($E27,'[1]Organisation Categories'!$G$4:$O$831,3,0) -> 12 | T27: =VLOOKUP($E27,'[1]Organisation Categories'!$G$4:$O$831,4,0) -> 0 | U27: =VLOOKUP($E27,'[1]Organisation Categories'!$G$4:$O$831,5,0) -> 0 | V27: =VLOOKUP($E27,'[1]Organisation Categories'!$G$4:$O$831,6,0) -> 0 | W27: =VLOOKUP($E27,'[1]Organisation Categories'!$G$4:$O$831,7,0) -> 0 | X27: 0 | Y27: 0 | Z27: 0 | AA27: 0 | AB27: 0 | AC27: 0 | AD27: 0 | AE27: 0 | AF27: 0
A28: QF7 | B28: RXE | C28: ROTHERHAM DONCASTER AND SOUTH HUMBER NHS FOUNDATION TRUST | D28: Children & Family Services | E28: RXEChildren & Family Services | F28: 76 | G28: 1 | H28: 0 | I28: 74 | J28: 2 | K28: 0 | L28: 0 | M28: 0 | N28: 0 | O28: =VLOOKUP($E28,'[1]Organisation Categories'!$G$4:$O$831,8,0) -> 76 | P28: 1 | Q28: 0 | R28: =VLOOKUP($E28,'[1]Organisation Categories'!$G$4:$O$831,2,0) -> 74 | S28: =VLOOKUP($E28,'[1]Organisation Categories'!$G$4:$O$831,3,0) -> 2 | T28: =VLOOKUP($E28,'[1]Organisation Categories'!$G$4:$O$831,4,0) -> 0 | U28: =VLOOKUP($E28,'[1]Organisation Categories'!$G$4:$O$831,5,0) -> 0 | V28: =VLOOKUP($E28,'[1]Organisation Categories'!$G$4:$O$831,6,0) -> 0 | W28: =VLOOKUP($E28,'[1]Organisation Categories'!$G$4:$O$831,7,0) -> 0 | X28: 0 | Y28: 0 | Z28: 0 | AA28: 0 | AB28: 0 | AC28: 0 | AD28: 0 | AE28: 0 | AF28: 0
A29: QF7 | B29: RXE | C29: ROTHERHAM DONCASTER AND SOUTH HUMBER NHS FOUNDATION TRUST | D29: Community Inpatient Services | E29: RXECommunity Inpatient Services | F29: 1 | G29: * | H29: * | I29: * | J29: * | K29: * | L29: * | M29: * | N29: * | O29: =VLOOKUP($E29,'[1]Organisation Categories'!$G$4:$O$831,8,0) -> 1 | P29: 1 | Q29: 0 | R29: =VLOOKUP($E29,'[1]Organisation Categories'!$G$4:$O$831,2,0) -> 1 | S29: =VLOOKUP($E29,'[1]Organisation Categories'!$G$4:$O$831,3,0) -> 0 | T29: =VLOOKUP($E29,'[1]Organisation Categories'!$G$4:$O$831,4,0) -> 0 | U29: =VLOOKUP($E29,'[1]Organisation Categories'!$G$4:$O$831,5,0) -> 0 | V29: =VLOOKUP($E29,'[1]Organisation Categories'!$G$4:$O$831,6,0) -> 0 | W29: =VLOOKUP($E29,'[1]Organisation Categories'!$G$4:$O$831,7,0) -> 0 | X29: 0 | Y29: 0 | Z29: 0 | AA29: 0 | AB29: 0 | AC29: 0 | AD29: 0 | AE29: 0 | AF29: 0
A30: QF7 | B30: RXE | C30: ROTHERHAM DONCASTER AND SOUTH HUMBER NHS FOUNDATION TRUST | D30: Community Nursing Services | E30: RXECommunity Nursing Services | F30: 25 | G30: 1 | H30: 0 | I30: 23 | J30: 2 | K30: 0 | L30: 0 | M30: 0 | N30: 0 | O30: =VLOOKUP($E30,'[1]Organisation Categories'!$G$4:$O$831,8,0) -> 25 | P30: 1 | Q30: 0 | R30: =VLOOKUP($E30,'[1]Organisation Categories'!$G$4:$O$831,2,0) -> 23 | S30: =VLOOKUP($E30,'[1]Organisation Categories'!$G$4:$O$831,3,0) -> 2 | T30: =VLOOKUP($E30,'[1]Organisation Categories'!$G$4:$O$831,4,0) -> 0 | U30: =VLOOKUP($E30,'[1]Organisation Categories'!$G$4:$O$831,5,0) -> 0 | V30: =VLOOKUP($E30,'[1]Organisation Categories'!$G$4:$O$831,6,0) -> 0 | W30: =VLOOKUP($E30,'[1]Organisation Categories'!$G$4:$O$831,7,0) -> 0 | X30: 0 | Y30: 0 | Z30: 0 | AA30: 0 | AB30: 0 | AC30: 0 | AD30: 0 | AE30: 0 | AF30: 0
A31: QF7 | B31: RXE | C31: ROTHERHAM DONCASTER AND SOUTH HUMBER NHS FOUNDATION TRUST | D31: Rehabilitation & Therapy Services | E31: RXERehabilitation & Therapy Services | F31: 3 | G31: * | H31: * | I31: * | J31: * | K31: * | L31: * | M31: * | N31: * | O31: =VLOOKUP($E31,'[1]Organisation Categories'!$G$4:$O$831,8,0) -> 3 | P31: 1 | Q31: 0 | R31: =VLOOKUP($E31,'[1]Organisation Categories'!$G$4:$O$831,2,0) -> 3 | S31: =VLOOKUP($E31,'[1]Organisation Categories'!$G$4:$O$831,3,0) -> 0 | T31: =VLOOKUP($E31,'[1]Organisation Categories'!$G$4:$O$831,4,0) -> 0 | U31: =VLOOKUP($E31,'[1]Organisation Categories'!$G$4:$O$831,5,0) -> 0 | V31: =VLOOKUP($E31,'[1]Organisation Categories'!$G$4:$O$831,6,0) -> 0 | W31: =VLOOKUP($E31,'[1]Organisation Categories'!$G$4:$O$831,7,0) -> 0 | X31: 0 | Y31: 0 | Z31: 0 | AA31: 0 | AB31: 0 | AC31: 0 | AD31: 0 | AE31: 0 | AF31: 0
A32: QF7 | B32: RCU | C32: SHEFFIELD CHILDREN'S NHS FOUNDATION TRUST | D32: Community Nursing Services | E32: RCUCommunity Nursing Services | F32: 65 | G32: 0.9384615385 | H32: 0.03076923077 | I32: 58 | J32: 3 | K32: 2 | L32: 0 | M32: 2 | N32: 0 | O32: =VLOOKUP($E32,'[1]Organisation Categories'!$G$4:$O$831,8,0) -> 65 | P32: 0.9384615385 | Q32: 0.03076923077 | R32: =VLOOKUP($E32,'[1]Organisation Categories'!$G$4:$O$831,2,0) -> 58 | S32: =VLOOKUP($E32,'[1]Organisation Categories'!$G$4:$O$831,3,0) -> 3 | T32: =VLOOKUP($E32,'[1]Organisation Categories'!$G$4:$O$831,4,0) -> 2 | U32: =VLOOKUP($E32,'[1]Organisation Categories'!$G$4:$O$831,5,0) -> 0 | V32: =VLOOKUP($E32,'[1]Organisation Categories'!$G$4:$O$831,6,0) -> 2 | W32: =VLOOKUP($E32,'[1]Organisation Categories'!$G$4:$O$831,7,0) -> 0 | X32: 0 | Y32: 0 | Z32: 0 | AA32: 0 | AB32: 0 | AC32: 0 | AD32: 0 | AE32: 0 | AF32: 0
A33: QF7 | B33: RHQ | C33: SHEFFIELD TEACHING HOSPITALS NHS FOUNDATION TRUST | D33: Community Healthcare Other | E33: RHQCommunity Healthcare Other | F33: 50 | G33: 0.7 | H33: 0.16 | I33: 27 | J33: 8 | K33: 7 | L33: 4 | M33: 4 | N33: 0 | O33: =VLOOKUP($E33,'[1]Organisation Categories'!$G$4:$O$831,8,0) -> 50 | P33: 0.7 | Q33: 0.16 | R33: =VLOOKUP($E33,'[1]Organisation Categories'!$G$4:$O$831,2,0) -> 27 | S33: =VLOOKUP($E33,'[1]Organisation Categories'!$G$4:$O$831,3,0) -> 8 | T33: =VLOOKUP($E33,'[1]Organisation Categories'!$G$4:$O$831,4,0) -> 7 | U33: =VLOOKUP($E33,'[1]Organisation Categories'!$G$4:$O$831,5,0) -> 4 | V33: =VLOOKUP($E33,'[1]Organisation Categories'!$G$4:$O$831,6,0) -> 4 | W33: =VLOOKUP($E33,'[1]Organisation Categories'!$G$4:$O$831,7,0) -> 0 | X33: 0 | Y33: 0 | Z33: 0 | AA33: 0 | AB33: 0 | AC33: 0 | AD33: 0 | AE33: 0 | AF33: 0
A34: QF7 | B34: RHQ | C34: SHEFFIELD TEACHING HOSPITALS NHS FOUNDATION TRUST | D34: Community Inpatient Services | E34: RHQCommunity Inpatient Services | F34: 40 | G34: 0.875 | H34: 0 | I34: 21 | J34: 14 | K34: 4 | L34: 0 | M34: 0 | N34: 1 | O34: =VLOOKUP($E34,'[1]Organisation Categories'!$G$4:$O$831,8,0) -> 40 | P34: 0.875 | Q34: 0 | R34: =VLOOKUP($E34,'[1]Organisation Categories'!$G$4:$O$831,2,0) -> 21 | S34: =VLOOKUP($E34,'[1]Organisation Categories'!$G$4:$O$831,3,0) -> 14 | T34: =VLOOKUP($E34,'[1]Organisation Categories'!$G$4:$O$831,4,0) -> 4 | U34: =VLOOKUP($E34,'[1]Organisation Categories'!$G$4:$O$831,5,0) -> 0 | V34: =VLOOKUP($E34,'[1]Organisation Categories'!$G$4:$O$831,6,0) -> 0 | W34: =VLOOKUP($E34,'[1]Organisation Categories'!$G$4:$O$831,7,0) -> 1 | X34: 0 | Y34: 0 | Z34: 0 | AA34: 0 | AB34: 0 | AC34: 0 | AD34: 0 | AE34: 0 | AF34: 0
A35: QF7 | B35: RHQ | C35: SHEFFIELD TEACHING HOSPITALS NHS FOUNDATION TRUST | D35: Community Nursing Services | E35: RHQCommunity Nursing Services | F35: 39 | G35: 0.9230769231 | H35: 0.02564102564 | I35: 27 | J35: 9 | K35: 1 | L35: 1 | M35: 0 | N35: 1 | O35: =VLOOKUP($E35,'[1]Organisation Categories'!$G$4:$O$831,8,0) -> 39 | P35: 0.9230769231 | Q35: 0.02564102564 | R35: =VLOOKUP($E35,'[1]Organisation Categories'!$G$4:$O$831,2,0) -> 27 | S35: =VLOOKUP($E35,'[1]Organisation Categories'!$G$4:$O$831,3,0) -> 9 | T35: =VLOOKUP($E35,'[1]Organisation Categories'!$G$4:$O$831,4,0) -> 1 | U35: =VLOOKUP($E35,'[1]Organisation Categories'!$G$4:$O$831,5,0) -> 1 | V35: =VLOOKUP($E35,'[1]Organisation Categories'!$G$4:$O$831,6,0) -> 0 | W35: =VLOOKUP($E35,'[1]Organisation Categories'!$G$4:$O$831,7,0) -> 1 | X35: 0 | Y35: 0 | Z35: 0 | AA35: 0 | AB35: 0 | AC35: 0 | AD35: 0 | AE35: 0 | AF35: 0
A36: QF7 | B36: RHQ | C36: SHEFFIELD TEACHING HOSPITALS NHS FOUNDATION TRUST | D36: Rehabilitation & Therapy Services | E36: RHQRehabilitation & Therapy Services | F36: 301 | G36: 0.9202657807 | H36: 0.0365448505 | I36: 230 | J36: 47 | K36: 11 | L36: 6 | M36: 5 | N36: 2 | O36: =VLOOKUP($E36,'[1]Organisation Categories'!$G$4:$O$831,8,0) -> 301 | P36: 0.9202657807 | Q36: 0.0365448505 | R36: =VLOOKUP($E36,'[1]Organisation Categories'!$G$4:$O$831,2,0) -> 230 | S36: =VLOOKUP($E36,'[1]Organisation Categories'!$G$4:$O$831,3,0) -> 47 | T36: =VLOOKUP($E36,'[1]Organisation Categories'!$G$4:$O$831,4,0) -> 11 | U36: =VLOOKUP($E36,'[1]Organisation Categories'!$G$4:$O$831,5,0) -> 6 | V36: =VLOOKUP($E36,'[1]Organisation Categories'!$G$4:$O$831,6,0) -> 5 | W36: =VLOOKUP($E36,'[1]Organisation Categories'!$G$4:$O$831,7,0) -> 2 | X36: 0 | Y36: 0 | Z36: 0 | AA36: 0 | AB36: 0 | AC36: 0 | AD36: 0 | AE36: 0 | AF36: 0
A37: QF7 | B37: RHQ | C37: SHEFFIELD TEACHING HOSPITALS NHS FOUNDATION TRUST | D37: Specialist Services | E37: RHQSpecialist Services | F37: 82 | G37: 0.9756097561 | H37: 0.01219512195 | I37: 66 | J37: 14 | K37: 1 | L37: 0 | M37: 1 | N37: 0 | O37: =VLOOKUP($E37,'[1]Organisation Categories'!$G$4:$O$831,8,0) -> 82 | P37: 0.9756097561 | Q37: 0.01219512195 | R37: =VLOOKUP($E37,'[1]Organisation Categories'!$G$4:$O$831,2,0) -> 66 | S37: =VLOOKUP($E37,'[1]Organisation Categories'!$G$4:$O$831,3,0) -> 14 | T37: =VLOOKUP($E37,'[1]Organisation Categories'!$G$4:$O$831,4,0) -> 1 | U37: =VLOOKUP($E37,'[1]Organisation Categories'!$G$4:$O$831,5,0) -> 0 | V37: =VLOOKUP($E37,'[1]Organisation Categories'!$G$4:$O$831,6,0) -> 1 | W37: =VLOOKUP($E37,'[1]Organisation Categories'!$G$4:$O$831,7,0) -> 0 | X37: 0 | Y37: 0 | Z37: 0 | AA37: 0 | AB37: 0 | AC37: 0 | AD37: 0 | AE37: 0 | AF37: 0
A38: QF7 | B38: RFR | C38: THE ROTHERHAM NHS FOUNDATION TRUST | D38: Children & Family Services | E38: RFRChildren & Family Services | F38: 56 | G38: 0.875 | H38: 0.07142857143 | I38: 35 | J38: 14 | K38: 0 | L38: 2 | M38: 2 | N38: 3 | O38: =VLOOKUP($E38,'[1]Organisation Categories'!$G$4:$O$831,8,0) -> 56 | P38: 0.875 | Q38: 0.07142857143 | R38: =VLOOKUP($E38,'[1]Organisation Categories'!$G$4:$O$831,2,0) -> 35 | S38: =VLOOKUP($E38,'[1]Organisation Categories'!$G$4:$O$831,3,0) -> 14 | T38: =VLOOKUP($E38,'[1]Organisation Categories'!$G$4:$O$831,4,0) -> 0 | U38: =VLOOKUP($E38,'[1]Organisation Categories'!$G$4:$O$831,5,0) -> 2 | V38: =VLOOKUP($E38,'[1]Organisation Categories'!$G$4:$O$831,6,0) -> 2 | W38: =VLOOKUP($E38,'[1]Organisation Categories'!$G$4:$O$831,7,0) -> 3 | X38: 0 | Y38: 0 | Z38: 0 | AA38: 0 | AB38: 0 | AC38: 0 | AD38: 0 | AE38: 0 | AF38: 0
A39: QF7 | B39: RFR | C39: THE ROTHERHAM NHS FOUNDATION TRUST | D39: Community Nursing Services | E39: RFRCommunity Nursing Services | F39: 36 | G39: 0.9722222222 | H39: 0 | I39: 28 | J39: 7 | K39: 1 | L39: 0 | M39: 0 | N39: 0 | O39: =VLOOKUP($E39,'[1]Organisation Categories'!$G$4:$O$831,8,0) -> 36 | P39: 0.9722222222 | Q39: 0 | R39: =VLOOKUP($E39,'[1]Organisation Categories'!$G$4:$O$831,2,0) -> 28 | S39: =VLOOKUP($E39,'[1]Organisation Categories'!$G$4:$O$831,3,0) -> 7 | T39: =VLOOKUP($E39,'[1]Organisation Categories'!$G$4:$O$831,4,0) -> 1 | U39: =VLOOKUP($E39,'[1]Organisation Categories'!$G$4:$O$831,5,0) -> 0 | V39: =VLOOKUP($E39,'[1]Organisation Categories'!$G$4:$O$831,6,0) -> 0 | W39: =VLOOKUP($E39,'[1]Organisation Categories'!$G$4:$O$831,7,0) -> 0 | X39: 0 | Y39: 0 | Z39: 0 | AA39: 0 | AB39: 0 | AC39: 0 | AD39: 0 | AE39: 0 | AF39: 0
A40: QF7 | B40: RFR | C40: THE ROTHERHAM NHS FOUNDATION TRUST | D40: Rehabilitation & Therapy Services | E40: RFRRehabilitation & Therapy Services | F40: 57 | G40: 0.9122807018 | H40: 0.05263157895 | I40: 50 | J40: 2 | K40: 2 | L40: 1 | M40: 2 | N40: 0 | O40: =VLOOKUP($E40,'[1]Organisation Categories'!$G$4:$O$831,8,0) -> 57 | P40: 0.9122807018 | Q40: 0.05263157895 | R40: =VLOOKUP($E40,'[1]Organisation Categories'!$G$4:$O$831,2,0) -> 50 | S40: =VLOOKUP($E40,'[1]Organisation Categories'!$G$4:$O$831,3,0) -> 2 | T40: =VLOOKUP($E40,'[1]Organisation Categories'!$G$4:$O$831,4,0) -> 2 | U40: =VLOOKUP($E40,'[1]Organisation Categories'!$G$4:$O$831,5,0) -> 1 | V40: =VLOOKUP($E40,'[1]Organisation Categories'!$G$4:$O$831,6,0) -> 2 | W40: =VLOOKUP($E40,'[1]Organisation Categories'!$G$4:$O$831,7,0) -> 0 | X40: 0 | Y40: 0 | Z40: 0 | AA40: 0 | AB40: 0 | AC40: 0 | AD40: 0 | AE40: 0 | AF40: 0
A41: QF7 | B41: RFR | C41: THE ROTHERHAM NHS FOUNDATION TRUST | D41: Specialist Services | E41: RFRSpecialist Services | F41: 83 | G41: 0.9759036145 | H41: 0 | I41: 79 | J41: 2 | K41: 2 | L41: 0 | M41: 0 | N41: 0 | O41: =VLOOKUP($E41,'[1]Organisation Categories'!$G$4:$O$831,8,0) -> 83 | P41: 0.9759036145 | Q41: 0 | R41: =VLOOKUP($E41,'[1]Organisation Categories'!$G$4:$O$831,2,0) -> 79 | S41: =VLOOKUP($E41,'[1]Organisation Categories'!$G$4:$O$831,3,0) -> 2 | T41: =VLOOKUP($E41,'[1]Organisation Categories'!$G$4:$O$831,4,0) -> 2 | U41: =VLOOKUP($E41,'[1]Organisation Categories'!$G$4:$O$831,5,0) -> 0 | V41: =VLOOKUP($E41,'[1]Organisation Categories'!$G$4:$O$831,6,0) -> 0 | W41: =VLOOKUP($E41,'[1]Organisation Categories'!$G$4:$O$831,7,0) -> 0 | X41: 0 | Y41: 0 | Z41: 0 | AA41: 0 | AB41: 0 | AC41: 0 | AD41: 0 | AE41: 0 | AF41: 0
A42: QGH | B42: R1A | C42: HEREFORDSHIRE AND WORCESTERSHIRE HEALTH AND CARE NHS TRUST | D42: Children & Family Services | E42: R1AChildren & Family Services | F42: 33 | G42: 0.9696969697 | H42: 0.0303030303 | I42: 29 | J42: 3 | K42: 0 | L42: 0 | M42: 1 | N42: 0 | O42: =VLOOKUP($E42,'[1]Organisation Categories'!$G$4:$O$831,8,0) -> 33 | P42: 0.9696969697 | Q42: 0.0303030303 | R42: =VLOOKUP($E42,'[1]Organisation Categories'!$G$4:$O$831,2,0) -> 29 | S42: =VLOOKUP($E42,'[1]Organisation Categories'!$G$4:$O$831,3,0) -> 3 | T42: =VLOOKUP($E42,'[1]Organisation Categories'!$G$4:$O$831,4,0) -> 0 | U42: =VLOOKUP($E42,'[1]Organisation Categories'!$G$4:$O$831,5,0) -> 0 | V42: =VLOOKUP($E42,'[1]Organisation Categories'!$G$4:$O$831,6,0) -> 1 | W42: =VLOOKUP($E42,'[1]Organisation Categories'!$G$4:$O$831,7,0) -> 0 | X42: 0 | Y42: 0 | Z42: 0 | AA42: 0 | AB42: 0 | AC42: 0 | AD42: 0 | AE42: 0 | AF42: 0
A43: QGH | B43: R1A | C43: HEREFORDSHIRE AND WORCESTERSHIRE HEALTH AND CARE NHS TRUST | D43: Community Healthcare Other | E43: R1ACommunity Healthcare Other | F43: 22 | G43: 1 | H43: 0 | I43: 22 | J43: 0 | K43: 0 | L43: 0 | M43: 0 | N43: 0 | O43: =VLOOKUP($E43,'[1]Organisation Categories'!$G$4:$O$831,8,0) -> 22 | P43: 1 | Q43: 0 | R43: =VLOOKUP($E43,'[1]Organisation Categories'!$G$4:$O$831,2,0) -> 22 | S43: =VLOOKUP($E43,'[1]Organisation Categories'!$G$4:$O$831,3,0) -> 0 | T43: =VLOOKUP($E43,'[1]Organisation Categories'!$G$4:$O$831,4,0) -> 0 | U43: =VLOOKUP($E43,'[1]Organisation Categories'!$G$4:$O$831,5,0) -> 0 | V43: =VLOOKUP($E43,'[1]Organisation Categories'!$G$4:$O$831,6,0) -> 0 | W43: =VLOOKUP($E43,'[1]Organisation Categories'!$G$4:$O$831,7,0) -> 0 | X43: 0 | Y43: 0 | Z43: 0 | AA43: 0 | AB43: 0 | AC43: 0 | AD43: 0 | AE43: 0 | AF43: 0
A44: QGH | B44: R1A | C44: HEREFORDSHIRE AND WORCESTERSHIRE HEALTH AND CARE NHS TRUST | D44: Community Inpatient Services | E44: R1ACommunity Inpatient Services | F44: 2 | G44: * | H44: * | I44: * | J44: * | K44: * | L44: * | M44: * | N44: * | O44: =VLOOKUP($E44,'[1]Organisation Categories'!$G$4:$O$831,8,0) -> 2 | P44: 1 | Q44: 0 | R44: =VLOOKUP($E44,'[1]Organisation Categories'!$G$4:$O$831,2,0) -> 2 | S44: =VLOOKUP($E44,'[1]Organisation Categories'!$G$4:$O$831,3,0) -> 0 | T44: =VLOOKUP($E44,'[1]Organisation Categories'!$G$4:$O$831,4,0) -> 0 | U44: =VLOOKUP($E44,'[1]Organisation Categories'!$G$4:$O$831,5,0) -> 0 | V44: =VLOOKUP($E44,'[1]Organisation Categories'!$G$4:$O$831,6,0) -> 0 | W44: =VLOOKUP($E44,'[1]Organisation Categories'!$G$4:$O$831,7,0) -> 0 | X44: 0 | Y44: 0 | Z44: 0 | AA44: 0 | AB44: 0 | AC44: 0 | AD44: 0 | AE44: 0 | AF44: 0
A45: QGH | B45: R1A | C45: HEREFORDSHIRE AND WORCESTERSHIRE HEALTH AND CARE NHS TRUST | D45: Community Nursing Services | E45: R1ACommunity Nursing Services | F45: 17 | G45: 0.8823529412 | H45: 0 | I45: 14 | J45: 1 | K45: 1 | L45: 0 | M45: 0 | N45: 1 | O45: =VLOOKUP($E45,'[1]Organisation Categories'!$G$4:$O$831,8,0) -> 17 | P45: 0.8823529412 | Q45: 0 | R45: =VLOOKUP($E45,'[1]Organisation Categories'!$G$4:$O$831,2,0) -> 14 | S45: =VLOOKUP($E45,'[1]Organisation Categories'!$G$4:$O$831,3,0) -> 1 | T45: =VLOOKUP($E45,'[1]Organisation Categories'!$G$4:$O$831,4,0) -> 1 | U45: =VLOOKUP($E45,'[1]Organisation Categories'!$G$4:$O$831,5,0) -> 0 | V45: =VLOOKUP($E45,'[1]Organisation Categories'!$G$4:$O$831,6,0) -> 0 | W45: =VLOOKUP($E45,'[1]Organisation Categories'!$G$4:$O$831,7,0) -> 1 | X45: 0 | Y45: 0 | Z45: 0 | AA45: 0 | AB45: 0 | AC45: 0 | AD45: 0 | AE45: 0 | AF45: 0
A46: QGH | B46: R1A | C46: HEREFORDSHIRE AND WORCESTERSHIRE HEALTH AND CARE NHS TRUST | D46: Rehabilitation & Therapy Services | E46: R1ARehabilitation & Therapy Services | F46: 2 | G46: * | H46: * | I46: * | J46: * | K46: * | L46: * | M46: * | N46: * | O46: =VLOOKUP($E46,'[1]Organisation Categories'!$G$4:$O$831,8,0) -> 2 | P46: 1 | Q46: 0 | R46: =VLOOKUP($E46,'[1]Organisation Categories'!$G$4:$O$831,2,0) -> 2 | S46: =VLOOKUP($E46,'[1]Organisation Categories'!$G$4:$O$831,3,0) -> 0 | T46: =VLOOKUP($E46,'[1]Organisation Categories'!$G$4:$O$831,4,0) -> 0 | U46: =VLOOKUP($E46,'[1]Organisation Categories'!$G$4:$O$831,5,0) -> 0 | V46: =VLOOKUP($E46,'[1]Organisation Categories'!$G$4:$O$831,6,0) -> 0 | W46: =VLOOKUP($E46,'[1]Organisation Categories'!$G$4:$O$831,7,0) -> 0 | X46: 0 | Y46: 0 | Z46: 0 | AA46: 0 | AB46: 0 | AC46: 0 | AD46: 0 | AE46: 0 | AF46: 0
A47: QGH | B47: R1A | C47: HEREFORDSHIRE AND WORCESTERSHIRE HEALTH AND CARE NHS TRUST | D47: Specialist Services | E47: R1ASpecialist Services | F47: 280 | G47: 0.9607142857 | H47: 0.025 | I47: 245 | J47: 24 | K47: 3 | L47: 3 | M47: 4 | N47: 1 | O47: =VLOOKUP($E47,'[1]Organisation Categories'!$G$4:$O$831,8,0) -> 280 | P47: 0.9607142857 | Q47: 0.025 | R47: =VLOOKUP($E47,'[1]Organisation Categories'!$G$4:$O$831,2,0) -> 245 | S47: =VLOOKUP($E47,'[1]Organisation Categories'!$G$4:$O$831,3,0) -> 24 | T47: =VLOOKUP($E47,'[1]Organisation Categories'!$G$4:$O$831,4,0) -> 3 | U47: =VLOOKUP($E47,'[1]Organisation Categories'!$G$4:$O$831,5,0) -> 3 | V47: =VLOOKUP($E47,'[1]Organisation Categories'!$G$4:$O$831,6,0) -> 4 | W47: =VLOOKUP($E47,'[1]Organisation Categories'!$G$4:$O$831,7,0) -> 1 | X47: 0 | Y47: 0 | Z47: 0 | AA47: 0 | AB47: 0 | AC47: 0 | AD47: 0 | AE47: 0 | AF47: 0
A48: QGH | B48: RLQ | C48: WYE VALLEY NHS TRUST | D48: Community Inpatient Services | E48: RLQCommunity Inpatient Services | F48: 4 | G48: * | H48: * | I48: * | J48: * | K48: * | L48: * | M48: * | N48: * | O48: =VLOOKUP($E48,'[1]Organisation Categories'!$G$4:$O$831,8,0) -> 4 | P48: 0 | Q48: 1 | R48: =VLOOKUP($E48,'[1]Organisation Categories'!$G$4:$O$831,2,0) -> 0 | S48: =VLOOKUP($E48,'[1]Organisation Categories'!$G$4:$O$831,3,0) -> 0 | T48: =VLOOKUP($E48,'[1]Organisation Categories'!$G$4:$O$831,4,0) -> 0 | U48: =VLOOKUP($E48,'[1]Organisation Categories'!$G$4:$O$831,5,0) -> 4 | V48: =VLOOKUP($E48,'[1]Organisation Categories'!$G$4:$O$831,6,0) -> 0 | W48: =VLOOKUP($E48,'[1]Organisation Categories'!$G$4:$O$831,7,0) -> 0 | X48: 0 | Y48: 0 | Z48: 0 | AA48: 0 | AB48: 0 | AC48: 0 | AD48: 0 | AE48: 0 | AF48: 0
A49: QH8 | B49: R1L | C49: ESSEX PARTNERSHIP UNIVERSITY NHS FOUNDATION TRUST | D49: Community Healthcare Other | E49: R1LCommunity Healthcare Other | F49: 112 | G49: 0.9464285714 | H49: 0.01785714286 | I49: 96 | J49: 10 | K49: 0 | L49: 1 | M49: 1 | N49: 4 | O49: =VLOOKUP($E49,'[1]Organisation Categories'!$G$4:$O$831,8,0) -> 112 | P49: 0.9464285714 | Q49: 0.01785714286 | R49: =VLOOKUP($E49,'[1]Organisation Categories'!$G$4:$O$831,2,0) -> 96 | S49: =VLOOKUP($E49,'[1]Organisation Categories'!$G$4:$O$831,3,0) -> 10 | T49: =VLOOKUP($E49,'[1]Organisation Categories'!$G$4:$O$831,4,0) -> 0 | U49: =VLOOKUP($E49,'[1]Organisation Categories'!$G$4:$O$831,5,0) -> 1 | V49: =VLOOKUP($E49,'[1]Organisation Categories'!$G$4:$O$831,6,0) -> 1 | W49: =VLOOKUP($E49,'[1]Organisation Categories'!$G$4:$O$831,7,0) -> 4 | X49: 0 | Y49: 0 | Z49: 0 | AA49: 0 | AB49: 0 | AC49: 0 | AD49: 0 | AE49: 0 | AF49: 0
A50: QH8 | B50: R1L | C50: ESSEX PARTNERSHIP UNIVERSITY NHS FOUNDATION TRUST | D50: Community Inpatient Services | E50: R1LCommunity Inpatient Services | F50: 16 | G50: 0.875 | H50: 0 | I50: 12 | J50: 2 | K50: 2 | L50: 0 | M50: 0 | N50: 0 | O50: =VLOOKUP($E50,'[1]Organisation Categories'!$G$4:$O$831,8,0) -> 16 | P50: 0.875 | Q50: 0 | R50: =VLOOKUP($E50,'[1]Organisation Categories'!$G$4:$O$831,2,0) -> 12 | S50: =VLOOKUP($E50,'[1]Organisation Categories'!$G$4:$O$831,3,0) -> 2 | T50: =VLOOKUP($E50,'[1]Organisation Categories'!$G$4:$O$831,4,0) -> 2 | U50: =VLOOKUP($E50,'[1]Organisation Categories'!$G$4:$O$831,5,0) -> 0 | V50: =VLOOKUP($E50,'[1]Organisation Categories'!$G$4:$O$831,6,0) -> 0 | W50: =VLOOKUP($E50,'[1]Organisation Categories'!$G$4:$O$831,7,0) -> 0 | X50: 0 | Y50: 0 | Z50: 0 | AA50: 0 | AB50: 0 | AC50: 0 | AD50: 0 | AE50: 0 | AF50: 0
A51: QH8 | B51: R1L | C51: ESSEX PARTNERSHIP UNIVERSITY NHS FOUNDATION TRUST | D51: Community Nursing Services | E51: R1LCommunity Nursing Services | F51: 39 | G51: 0.9230769231 | H51: 0.02564102564 | I51: 35 | J51: 1 | K51: 1 | L51: 0 | M51: 1 | N51: 1 | O51: =VLOOKUP($E51,'[1]Organisation Categories'!$G$4:$O$831,8,0) -> 39 | P51: 0.9230769231 | Q51: 0.02564102564 | R51: =VLOOKUP($E51,'[1]Organisation Categories'!$G$4:$O$831,2,0) -> 35 | S51: =VLOOKUP($E51,'[1]Organisation Categories'!$G$4:$O$831,3,0) -> 1 | T51: =VLOOKUP($E51,'[1]Organisation Categories'!$G$4:$O$831,4,0) -> 1 | U51: =VLOOKUP($E51,'[1]Organisation Categories'!$G$4:$O$831,5,0) -> 0 | V51: =VLOOKUP($E51,'[1]Organisation Categories'!$G$4:$O$831,6,0) -> 1 | W51: =VLOOKUP($E51,'[1]Organisation Categories'!$G$4:$O$831,7,0) -> 1 | X51: 0 | Y51: 0 | Z51: 0 | AA51: 0 | AB51: 0 | AC51: 0 | AD51: 0 | AE51: 0 | AF51: 0
A52: QH8 | B52: R1L | C52: ESSEX PARTNERSHIP UNIVERSITY NHS FOUNDATION TRUST | D52: Rehabilitation & Therapy Services | E52: R1LRehabilitation & Therapy Services | F52: 36 | G52: 0.9722222222 | H52: 0 | I52: 32 | J52: 3 | K52: 1 | L52: 0 | M52: 0 | N52: 0 | O52: =VLOOKUP($E52,'[1]Organisation Categories'!$G$4:$O$831,8,0) -> 36 | P52: 0.9722222222 | Q52: 0 | R52: =VLOOKUP($E52,'[1]Organisation Categories'!$G$4:$O$831,2,0) -> 32 | S52: =VLOOKUP($E52,'[1]Organisation Categories'!$G$4:$O$831,3,0) -> 3 | T52: =VLOOKUP($E52,'[1]Organisation Categories'!$G$4:$O$831,4,0) -> 1 | U52: =VLOOKUP($E52,'[1]Organisation Categories'!$G$4:$O$831,5,0) -> 0 | V52: =VLOOKUP($E52,'[1]Organisation Categories'!$G$4:$O$831,6,0) -> 0 | W52: =VLOOKUP($E52,'[1]Organisation Categories'!$G$4:$O$831,7,0) -> 0 | X52: 0 | Y52: 0 | Z52: 0 | AA52: 0 | AB52: 0 | AC52: 0 | AD52: 0 | AE52: 0 | AF52: 0
A53: QH8 | B53: R1L | C53: ESSEX PARTNERSHIP UNIVERSITY NHS FOUNDATION TRUST | D53: Specialist Services | E53: R1LSpecialist Services | F53: 63 | G53: 1 | H53: 0 | I53: 60 | J53: 3 | K53: 0 | L53: 0 | M53: 0 | N53: 0 | O53: =VLOOKUP($E53,'[1]Organisation Categories'!$G$4:$O$831,8,0) -> 63 | P53: 1 | Q53: 0 | R53: =VLOOKUP($E53,'[1]Organisation Categories'!$G$4:$O$831,2,0) -> 60 | S53: =VLOOKUP($E53,'[1]Organisation Categories'!$G$4:$O$831,3,0) -> 3 | T53: =VLOOKUP($E53,'[1]Organisation Categories'!$G$4:$O$831,4,0) -> 0 | U53: =VLOOKUP($E53,'[1]Organisation Categories'!$G$4:$O$831,5,0) -> 0 | V53: =VLOOKUP($E53,'[1]Organisation Categories'!$G$4:$O$831,6,0) -> 0 | W53: =VLOOKUP($E53,'[1]Organisation Categories'!$G$4:$O$831,7,0) -> 0 | X53: 0 | Y53: 0 | Z53: 0 | AA53: 0 | AB53: 0 | AC53: 0 | AD53: 0 | AE53: 0 | AF53: 0
A54: QHL | B54: RYW | C54: BIRMINGHAM COMMUNITY HEALTHCARE NHS FOUNDATION TRUST | D54: Children & Family Services | E54: RYWChildren & Family Services | F54: 47 | G54: 0.9574468085 | H54: 0 | I54: 43 | J54: 2 | K54: 2 | L54: 0 | M54: 0 | N54: 0 | O54: =VLOOKUP($E54,'[1]Organisation Categories'!$G$4:$O$831,8,0) -> 47 | P54: 0.9574468085 | Q54: 0 | R54: =VLOOKUP($E54,'[1]Organisation Categories'!$G$4:$O$831,2,0) -> 43 | S54: =VLOOKUP($E54,'[1]Organisation Categories'!$G$4:$O$831,3,0) -> 2 | T54: =VLOOKUP($E54,'[1]Organisation Categories'!$G$4:$O$831,4,0) -> 2 | U54: =VLOOKUP($E54,'[1]Organisation Categories'!$G$4:$O$831,5,0) -> 0 | V54: =VLOOKUP($E54,'[1]Organisation Categories'!$G$4:$O$831,6,0) -> 0 | W54: =VLOOKUP($E54,'[1]Organisation Categories'!$G$4:$O$831,7,0) -> 0 | X54: 0 | Y54: 0 | Z54: 0 | AA54: 0 | AB54: 0 | AC54: 0 | AD54: 0 | AE54: 0 | AF54: 0
A55: QHL | B55: RYW | C55: BIRMINGHAM COMMUNITY HEALTHCARE NHS FOUNDATION TRUST | D55: Community Healthcare Other | E55: RYWCommunity Healthcare Other | F55: 26 | G55: 1 | H55: 0 | I55: 24 | J55: 2 | K55: 0 | L55: 0 | M55: 0 | N55: 0 | O55: =VLOOKUP($E55,'[1]Organisation Categories'!$G$4:$O$831,8,0) -> 26 | P55: 1 | Q55: 0 | R55: =VLOOKUP($E55,'[1]Organisation Categories'!$G$4:$O$831,2,0) -> 24 | S55: =VLOOKUP($E55,'[1]Organisation Categories'!$G$4:$O$831,3,0) -> 2 | T55: =VLOOKUP($E55,'[1]Organisation Categories'!$G$4:$O$831,4,0) -> 0 | U55: =VLOOKUP($E55,'[1]Organisation Categories'!$G$4:$O$831,5,0) -> 0 | V55: =VLOOKUP($E55,'[1]Organisation Categories'!$G$4:$O$831,6,0) -> 0 | W55: =VLOOKUP($E55,'[1]Organisation Categories'!$G$4:$O$831,7,0) -> 0 | X55: 0 | Y55: 0 | Z55: 0 | AA55: 0 | AB55: 0 | AC55: 0 | AD55: 0 | AE55: 0 | AF55: 0
A56: QHL | B56: RYW | C56: BIRMINGHAM COMMUNITY HEALTHCARE NHS FOUNDATION TRUST | D56: Community Inpatient Services | E56: RYWCommunity Inpatient Services | F56: 16 | G56: 0.875 | H56: 0 | I56: 9 | J56: 5 | K56: 2 | L56: 0 | M56: 0 | N56: 0 | O56: =VLOOKUP($E56,'[1]Organisation Categories'!$G$4:$O$831,8,0) -> 16 | P56: 0.875 | Q56: 0 | R56: =VLOOKUP($E56,'[1]Organisation Categories'!$G$4:$O$831,2,0) -> 9 | S56: =VLOOKUP($E56,'[1]Organisation Categories'!$G$4:$O$831,3,0) -> 5 | T56: =VLOOKUP($E56,'[1]Organisation Categories'!$G$4:$O$831,4,0) -> 2 | U56: =VLOOKUP($E56,'[1]Organisation Categories'!$G$4:$O$831,5,0) -> 0 | V56: =VLOOKUP($E56,'[1]Organisation Categories'!$G$4:$O$831,6,0) -> 0 | W56: =VLOOKUP($E56,'[1]Organisation Categories'!$G$4:$O$831,7,0) -> 0 | X56: 0 | Y56: 0 | Z56: 0 | AA56: 0 | AB56: 0 | AC56: 0 | AD56: 0 | AE56: 0 | AF56: 0
A57: QHL | B57: RYW | C57: BIRMINGHAM COMMUNITY HEALTHCARE NHS FOUNDATION TRUST | D57: Community Nursing Services | E57: RYWCommunity Nursing Services | F57: 224 | G57: 0.9732142857 | H57: 0.004464285714 | I57: 175 | J57: 43 | K57: 5 | L57: 0 | M57: 1 | N57: 0 | O57: =VLOOKUP($E57,'[1]Organisation Categories'!$G$4:$O$831,8,0) -> 224 | P57: 0.9732142857 | Q57: 0.004464285714 | R57: =VLOOKUP($E57,'[1]Organisation Categories'!$G$4:$O$831,2,0) -> 175 | S57: =VLOOKUP($E57,'[1]Organisation Categories'!$G$4:$O$831,3,0) -> 43 | T57: =VLOOKUP($E57,'[1]Organisation Categories'!$G$4:$O$831,4,0) -> 5 | U57: =VLOOKUP($E57,'[1]Organisation Categories'!$G$4:$O$831,5,0) -> 0 | V57: =VLOOKUP($E57,'[1]Organisation Categories'!$G$4:$O$831,6,0) -> 1 | W57: =VLOOKUP($E57,'[1]Organisation Categories'!$G$4:$O$831,7,0) -> 0 | X57: 0 | Y57: 0 | Z57: 0 | AA57: 0 | AB57: 0 | AC57: 0 | AD57: 0 | AE57: 0 | AF57: 0
A58: QHL | B58: RYW | C58: BIRMINGHAM COMMUNITY HEALTHCARE NHS FOUNDATION TRUST | D58: Rehabilitation & Therapy Services | E58: RYWRehabilitation & Therapy Services | F58: 9 | G58: 1 | H58: 0 | I58: 8 | J58: 1 | K58: 0 | L58: 0 | M58: 0 | N58: 0 | O58: =VLOOKUP($E58,'[1]Organisation Categories'!$G$4:$O$831,8,0) -> 9 | P58: 1 | Q58: 0 | R58: =VLOOKUP($E58,'[1]Organisation Categories'!$G$4:$O$831,2,0) -> 8 | S58: =VLOOKUP($E58,'[1]Organisation Categories'!$G$4:$O$831,3,0) -> 1 | T58: =VLOOKUP($E58,'[1]Organisation Categories'!$G$4:$O$831,4,0) -> 0 | U58: =VLOOKUP($E58,'[1]Organisation Categories'!$G$4:$O$831,5,0) -> 0 | V58: =VLOOKUP($E58,'[1]Organisation Categories'!$G$4:$O$831,6,0) -> 0 | W58: =VLOOKUP($E58,'[1]Organisation Categories'!$G$4:$O$831,7,0) -> 0 | X58: 0 | Y58: 0 | Z58: 0 | AA58: 0 | AB58: 0 | AC58: 0 | AD58: 0 | AE58: 0 | AF58: 0
A59: QHL | B59: RYW | C59: BIRMINGHAM COMMUNITY HEALTHCARE NHS FOUNDATION TRUST | D59: Specialist Services | E59: RYWSpecialist Services | F59: 123 | G59: 0.9918699187 | H59: 0.008130081301 | I59: 114 | J59: 8 | K59: 0 | L59: 0 | M59: 1 | N59: 0 | O59: =VLOOKUP($E59,'[1]Organisation Categories'!$G$4:$O$831,8,0) -> 123 | P59: 0.9918699187 | Q59: 0.008130081301 | R59: =VLOOKUP($E59,'[1]Organisation Categories'!$G$4:$O$831,2,0) -> 114 | S59: =VLOOKUP($E59,'[1]Organisation Categories'!$G$4:$O$831,3,0) -> 8 | T59: =VLOOKUP($E59,'[1]Organisation Categories'!$G$4:$O$831,4,0) -> 0 | U59: =VLOOKUP($E59,'[1]Organisation Categories'!$G$4:$O$831,5,0) -> 0 | V59: =VLOOKUP($E59,'[1]Organisation Categories'!$G$4:$O$831,6,0) -> 1 | W59: =VLOOKUP($E59,'[1]Organisation Categories'!$G$4:$O$831,7,0) -> 0 | X59: 0 | Y59: 0 | Z59: 0 | AA59: 0 | AB59: 0 | AC59: 0 | AD59: 0 | AE59: 0 | AF59: 0
A60: QHL | B60: RRK | C60: UNIVERSITY HOSPITALS BIRMINGHAM NHS FOUNDATION TRUST | D60: Children & Family Services | E60: RRKChildren & Family Services | F60: 2 | G60: * | H60: * | I60: * | J60: * | K60: * | L60: * | M60: * | N60: * | O60: =VLOOKUP($E60,'[1]Organisation Categories'!$G$4:$O$831,8,0) -> 2 | P60: 1 | Q60: 0 | R60: =VLOOKUP($E60,'[1]Organisation Categories'!$G$4:$O$831,2,0) -> 2 | S60: =VLOOKUP($E60,'[1]Organisation Categories'!$G$4:$O$831,3,0) -> 0 | T60: =VLOOKUP($E60,'[1]Organisation Categories'!$G$4:$O$831,4,0) -> 0 | U60: =VLOOKUP($E60,'[1]Organisation Categories'!$G$4:$O$831,5,0) -> 0 | V60: =VLOOKUP($E60,'[1]Organisation Categories'!$G$4:$O$831,6,0) -> 0 | W60: =VLOOKUP($E60,'[1]Organisation Categories'!$G$4:$O$831,7,0) -> 0 | X60: 0 | Y60: 0 | Z60: 0 | AA60: 0 | AB60: 0 | AC60: 0 | AD60: 0 | AE60: 0 | AF60: 0
A61: QHL | B61: RRK | C61: UNIVERSITY HOSPITALS BIRMINGHAM NHS FOUNDATION TRUST | D61: Community Healthcare Other | E61: RRKCommunity Healthcare Other | F61: 101 | G61: 0.9702970297 | H61: 0.0198019802 | I61: 82 | J61: 16 | K61: 1 | L61: 1 | M61: 1 | N61: 0 | O61: =VLOOKUP($E61,'[1]Organisation Categories'!$G$4:$O$831,8,0) -> 101 | P61: 0.9702970297 | Q61: 0.0198019802 | R61: =VLOOKUP($E61,'[1]Organisation Categories'!$G$4:$O$831,2,0) -> 82 | S61: =VLOOKUP($E61,'[1]Organisation Categories'!$G$4:$O$831,3,0) -> 16 | T61: =VLOOKUP($E61,'[1]Organisation Categories'!$G$4:$O$831,4,0) -> 1 | U61: =VLOOKUP($E61,'[1]Organisation Categories'!$G$4:$O$831,5,0) -> 1 | V61: =VLOOKUP($E61,'[1]Organisation Categories'!$G$4:$O$831,6,0) -> 1 | W61: =VLOOKUP($E61,'[1]Organisation Categories'!$G$4:$O$831,7,0) -> 0 | X61: 0 | Y61: 0 | Z61: 0 | AA61: 0 | AB61: 0 | AC61: 0 | AD61: 0 | AE61: 0 | AF61: 0
A62: QHL | B62: RRK | C62: UNIVERSITY HOSPITALS BIRMINGHAM NHS FOUNDATION TRUST | D62: Community Nursing Services | E62: RRKCommunity Nursing Services | F62: 34 | G62: 0.9705882353 | H62: 0 | I62: 30 | J62: 3 | K62: 1 | L62: 0 | M62: 0 | N62: 0 | O62: =VLOOKUP($E62,'[1]Organisation Categories'!$G$4:$O$831,8,0) -> 34 | P62: 0.9705882353 | Q62: 0 | R62: =VLOOKUP($E62,'[1]Organisation Categories'!$G$4:$O$831,2,0) -> 30 | S62: =VLOOKUP($E62,'[1]Organisation Categories'!$G$4:$O$831,3,0) -> 3 | T62: =VLOOKUP($E62,'[1]Organisation Categories'!$G$4:$O$831,4,0) -> 1 | U62: =VLOOKUP($E62,'[1]Organisation Categories'!$G$4:$O$831,5,0) -> 0 | V62: =VLOOKUP($E62,'[1]Organisation Categories'!$G$4:$O$831,6,0) -> 0 | W62: =VLOOKUP($E62,'[1]Organisation Categories'!$G$4:$O$831,7,0) -> 0 | X62: 0 | Y62: 0 | Z62: 0 | AA62: 0 | AB62: 0 | AC62: 0 | AD62: 0 | AE62: 0 | AF62: 0
A63: QHL | B63: RRK | C63: UNIVERSITY HOSPITALS BIRMINGHAM NHS FOUNDATION TRUST | D63: Rehabilitation & Therapy Services | E63: RRKRehabilitation & Therapy Services | F63: 18 | G63: 0.9444444444 | H63: 0 | I63: 15 | J63: 2 | K63: 1 | L63: 0 | M63: 0 | N63: 0 | O63: =VLOOKUP($E63,'[1]Organisation Categories'!$G$4:$O$831,8,0) -> 18 | P63: 0.9444444444 | Q63: 0 | R63: =VLOOKUP($E63,'[1]Organisation Categories'!$G$4:$O$831,2,0) -> 15 | S63: =VLOOKUP($E63,'[1]Organisation Categories'!$G$4:$O$831,3,0) -> 2 | T63: =VLOOKUP($E63,'[1]Organisation Categories'!$G$4:$O$831,4,0) -> 1 | U63: =VLOOKUP($E63,'[1]Organisation Categories'!$G$4:$O$831,5,0) -> 0 | V63: =VLOOKUP($E63,'[1]Organisation Categories'!$G$4:$O$831,6,0) -> 0 | W63: =VLOOKUP($E63,'[1]Organisation Categories'!$G$4:$O$831,7,0) -> 0 | X63: 0 | Y63: 0 | Z63: 0 | AA63: 0 | AB63: 0 | AC63: 0 | AD63: 0 | AE63: 0 | AF63: 0
A64: QHL | B64: RRK | C64: UNIVERSITY HOSPITALS BIRMINGHAM NHS FOUNDATION TRUST | D64: Specialist Services | E64: RRKSpecialist Services | F64: 11 | G64: 0.5454545455 | H64: 0.2727272727 | I64: * | J64: * | K64: * | L64: * | M64: * | N64: * | O64: =VLOOKUP($E64,'[1]Organisation Categories'!$G$4:$O$831,8,0) -> 11 | P64: 0.5454545455 | Q64: 0.2727272727 | R64: =VLOOKUP($E64,'[1]Organisation Categories'!$G$4:$O$831,2,0) -> 5 | S64: =VLOOKUP($E64,'[1]Organisation Categories'!$G$4:$O$831,3,0) -> 1 | T64: =VLOOKUP($E64,'[1]Organisation Categories'!$G$4:$O$831,4,0) -> 2 | U64: =VLOOKUP($E64,'[1]Organisation Categories'!$G$4:$O$831,5,0) -> 0 | V64: =VLOOKUP($E64,'[1]Organisation Categories'!$G$4:$O$831,6,0) -> 3 | W64: =VLOOKUP($E64,'[1]Organisation Categories'!$G$4:$O$831,7,0) -> 0 | X64: 0 | Y64: 0 | Z64: 0 | AA64: 0 | AB64: 0 | AC64: 0 | AD64: 0 | AE64: 0 | AF64: 0
A65: QHM | B65: RXP | C65: COUNTY DURHAM AND DARLINGTON NHS FOUNDATION TRUST | D65: Community Inpatient Services | E65: RXPCommunity Inpatient Services | F65: 20 | G65: 1 | H65: 0 | I65: 16 | J65: 4 | K65: 0 | L65: 0 | M65: 0 | N65: 0 | O65: =VLOOKUP($E65,'[1]Organisation Categories'!$G$4:$O$831,8,0) -> 20 | P65: 1 | Q65: 0 | R65: =VLOOKUP($E65,'[1]Organisation Categories'!$G$4:$O$831,2,0) -> 16 | S65: =VLOOKUP($E65,'[1]Organisation Categories'!$G$4:$O$831,3,0) -> 4 | T65: =VLOOKUP($E65,'[1]Organisation Categories'!$G$4:$O$831,4,0) -> 0 | U65: =VLOOKUP($E65,'[1]Organisation Categories'!$G$4:$O$831,5,0) -> 0 | V65: =VLOOKUP($E65,'[1]Organisation Categories'!$G$4:$O$831,6,0) -> 0 | W65: =VLOOKUP($E65,'[1]Organisation Categories'!$G$4:$O$831,7,0) -> 0 | X65: 0 | Y65: 0 | Z65: 0 | AA65: 0 | AB65: 0 | AC65: 0 | AD65: 0 | AE65: 0 | AF65: 0
A66: QHM | B66: RR7 | C66: GATESHEAD HEALTH NHS FOUNDATION TRUST | D66: Specialist Services | E66: RR7Specialist Services | F66: 5 | G66: 1 | H66: 0 | I66: 4 | J66: 1 | K66: 0 | L66: 0 | M66: 0 | N66: 0 | O66: =VLOOKUP($E66,'[1]Organisation Categories'!$G$4:$O$831,8,0) -> 5 | P66: 1 | Q66: 0 | R66: =VLOOKUP($E66,'[1]Organisation Categories'!$G$4:$O$831,2,0) -> 4 | S66: =VLOOKUP($E66,'[1]Organisation Categories'!$G$4:$O$831,3,0) -> 1 | T66: =VLOOKUP($E66,'[1]Organisation Categories'!$G$4:$O$831,4,0) -> 0 | U66: =VLOOKUP($E66,'[1]Organisation Categories'!$G$4:$O$831,5,0) -> 0 | V66: =VLOOKUP($E66,'[1]Organisation Categories'!$G$4:$O$831,6,0) -> 0 | W66: =VLOOKUP($E66,'[1]Organisation Categories'!$G$4:$O$831,7,0) -> 0 | X66: 0 | Y66: 0 | Z66: 0 | AA66: 0 | AB66: 0 | AC66: 0 | AD66: 0 | AE66: 0 | AF66: 0
A67: QHM | B67: RNN | C67: NORTH CUMBRIA INTEGRATED CARE NHS FOUNDATION TRUST | D67: Children & Family Services | E67: RNNChildren & Family Services | F67: 5 | G67: 1 | H67: 0 | I67: 5 | J67: 0 | K67: 0 | L67: 0 | M67: 0 | N67: 0 | O67: =VLOOKUP($E67,'[1]Organisation Categories'!$G$4:$O$831,8,0) -> 5 | P67: 1 | Q67: 0 | R67: =VLOOKUP($E67,'[1]Organisation Categories'!$G$4:$O$831,2,0) -> 5 | S67: =VLOOKUP($E67,'[1]Organisation Categories'!$G$4:$O$831,3,0) -> 0 | T67: =VLOOKUP($E67,'[1]Organisation Categories'!$G$4:$O$831,4,0) -> 0 | U67: =VLOOKUP($E67,'[1]Organisation Categories'!$G$4:$O$831,5,0) -> 0 | V67: =VLOOKUP($E67,'[1]Organisation Categories'!$G$4:$O$831,6,0) -> 0 | W67: =VLOOKUP($E67,'[1]Organisation Categories'!$G$4:$O$831,7,0) -> 0 | X67: 0 | Y67: 0 | Z67: 0 | AA67: 0 | AB67: 0 | AC67: 0 | AD67: 0 | AE67: 0 | AF67: 0
A68: QHM | B68: RNN | C68: NORTH CUMBRIA INTEGRATED CARE NHS FOUNDATION TRUST | D68: Community Healthcare Other | E68: RNNCommunity Healthcare Other | F68: 240 | G68: 0.9583333333 | H68: 0.02083333333 | I68: 201 | J68: 29 | K68: 3 | L68: 0 | M68: 5 | N68: 2 | O68: =VLOOKUP($E68,'[1]Organisation Categories'!$G$4:$O$831,8,0) -> 240 | P68: 0.9583333333 | Q68: 0.02083333333 | R68: =VLOOKUP($E68,'[1]Organisation Categories'!$G$4:$O$831,2,0) -> 201 | S68: =VLOOKUP($E68,'[1]Organisation Categories'!$G$4:$O$831,3,0) -> 29 | T68: =VLOOKUP($E68,'[1]Organisation Categories'!$G$4:$O$831,4,0) -> 3 | U68: =VLOOKUP($E68,'[1]Organisation Categories'!$G$4:$O$831,5,0) -> 0 | V68: =VLOOKUP($E68,'[1]Organisation Categories'!$G$4:$O$831,6,0) -> 5 | W68: =VLOOKUP($E68,'[1]Organisation Categories'!$G$4:$O$831,7,0) -> 2 | X68: 0 | Y68: 0 | Z68: 0 | AA68: 0 | AB68: 0 | AC68: 0 | AD68: 0 | AE68: 0 | AF68: 0
A69: QHM | B69: RNN | C69: NORTH CUMBRIA INTEGRATED CARE NHS FOUNDATION TRUST | D69: Community Inpatient Services | E69: RNNCommunity Inpatient Services | F69: 62 | G69: 0.9516129032 | H69: 0 | I69: 46 | J69: 13 | K69: 3 | L69: 0 | M69: 0 | N69: 0 | O69: =VLOOKUP($E69,'[1]Organisation Categories'!$G$4:$O$831,8,0) -> 62 | P69: 0.9516129032 | Q69: 0 | R69: =VLOOKUP($E69,'[1]Organisation Categories'!$G$4:$O$831,2,0) -> 46 | S69: =VLOOKUP($E69,'[1]Organisation Categories'!$G$4:$O$831,3,0) -> 13 | T69: =VLOOKUP($E69,'[1]Organisation Categories'!$G$4:$O$831,4,0) -> 3 | U69: =VLOOKUP($E69,'[1]Organisation Categories'!$G$4:$O$831,5,0) -> 0 | V69: =VLOOKUP($E69,'[1]Organisation Categories'!$G$4:$O$831,6,0) -> 0 | W69: =VLOOKUP($E69,'[1]Organisation Categories'!$G$4:$O$831,7,0) -> 0 | X69: 0 | Y69: 0 | Z69: 0 | AA69: 0 | AB69: 0 | AC69: 0 | AD69: 0 | AE69: 0 | AF69: 0
A70: QHM | B70: RNN | C70: NORTH CUMBRIA INTEGRATED CARE NHS FOUNDATION TRUST | D70: Community Nursing Services | E70: RNNCommunity Nursing Services | F70: 131 | G70: 0.9923664122 | H70: 0 | I70: 116 | J70: 14 | K70: 0 | L70: 0 | M70: 0 | N70: 1 | O70: =VLOOKUP($E70,'[1]Organisation Categories'!$G$4:$O$831,8,0) -> 131 | P70: 0.9923664122 | Q70: 0 | R70: =VLOOKUP($E70,'[1]Organisation Categories'!$G$4:$O$831,2,0) -> 116 | S70: =VLOOKUP($E70,'[1]Organisation Categories'!$G$4:$O$831,3,0) -> 14 | T70: =VLOOKUP($E70,'[1]Organisation Categories'!$G$4:$O$831,4,0) -> 0 | U70: =VLOOKUP($E70,'[1]Organisation Categories'!$G$4:$O$831,5,0) -> 0 | V70: =VLOOKUP($E70,'[1]Organisation Categories'!$G$4:$O$831,6,0) -> 0 | W70: =VLOOKUP($E70,'[1]Organisation Categories'!$G$4:$O$831,7,0) -> 1 | X70: 0 | Y70: 0 | Z70: 0 | AA70: 0 | AB70: 0 | AC70: 0 | AD70: 0 | AE70: 0 | AF70: 0
A71: QHM | B71: RNN | C71: NORTH CUMBRIA INTEGRATED CARE NHS FOUNDATION TRUST | D71: Rehabilitation & Therapy Services | E71: RNNRehabilitation & Therapy Services | F71: 292 | G71: 0.9726027397 | H71: 0.0102739726 | I71: 247 | J71: 37 | K71: 5 | L71: 3 | M71: 0 | N71: 0 | O71: =VLOOKUP($E71,'[1]Organisation Categories'!$G$4:$O$831,8,0) -> 292 | P71: 0.9726027397 | Q71: 0.0102739726 | R71: =VLOOKUP($E71,'[1]Organisation Categories'!$G$4:$O$831,2,0) -> 247 | S71: =VLOOKUP($E71,'[1]Organisation Categories'!$G$4:$O$831,3,0) -> 37 | T71: =VLOOKUP($E71,'[1]Organisation Categories'!$G$4:$O$831,4,0) -> 5 | U71: =VLOOKUP($E71,'[1]Organisation Categories'!$G$4:$O$831,5,0) -> 3 | V71: =VLOOKUP($E71,'[1]Organisation Categories'!$G$4:$O$831,6,0) -> 0 | W71: =VLOOKUP($E71,'[1]Organisation Categories'!$G$4:$O$831,7,0) -> 0 | X71: 0 | Y71: 0 | Z71: 0 | AA71: 0 | AB71: 0 | AC71: 0 | AD71: 0 | AE71: 0 | AF71: 0
A72: QHM | B72: RNN | C72: NORTH CUMBRIA INTEGRATED CARE NHS FOUNDATION TRUST | D72: Specialist Services | E72: RNNSpecialist Services | F72: 394 | G72: 0.9441624365 | H72: 0.03553299492 | I72: 337 | J72: 35 | K72: 8 | L72: 7 | M72: 7 | N72: 0 | O72: =VLOOKUP($E72,'[1]Organisation Categories'!$G$4:$O$831,8,0) -> 394 | P72: 0.9441624365 | Q72: 0.03553299492 | R72: =VLOOKUP($E72,'[1]Organisation Categories'!$G$4:$O$831,2,0) -> 337 | S72: =VLOOKUP($E72,'[1]Organisation Categories'!$G$4:$O$831,3,0) -> 35 | T72: =VLOOKUP($E72,'[1]Organisation Categories'!$G$4:$O$831,4,0) -> 8 | U72: =VLOOKUP($E72,'[1]Organisation Categories'!$G$4:$O$831,5,0) -> 7 | V72: =VLOOKUP($E72,'[1]Organisation Categories'!$G$4:$O$831,6,0) -> 7 | W72: =VLOOKUP($E72,'[1]Organisation Categories'!$G$4:$O$831,7,0) -> 0 | X72: 0 | Y72: 0 | Z72: 0 | AA72: 0 | AB72: 0 | AC72: 0 | AD72: 0 | AE72: 0 | AF72: 0
A73: QHM | B73: RVW | C73: NORTH TEES AND HARTLEPOOL NHS FOUNDATION TRUST | D73: Community Healthcare Other | E73: =B73&D73 -> RVWCommunity Healthcare Other | F73: 10 | G73: 0.9 | H73: 0 | I73: 7 | J73: 2 | K73: 1 | L73: 0 | M73: 0 | N73: 0 | O73: =VLOOKUP($E73,'[1]Organisation Categories'!$G$4:$O$831,8,0) -> 10 | P73: =SUM(R73+S73)/SUM(R73:W73) -> 0.9 | Q73: =SUM(U73+V73)/SUM(R73:W73) -> 0 | R73: =VLOOKUP($E73,'[1]Organisation Categories'!$G$4:$O$831,2,0) -> 7 | S73: =VLOOKUP($E73,'[1]Organisation Categories'!$G$4:$O$831,3,0) -> 2 | T73: =VLOOKUP($E73,'[1]Organisation Categories'!$G$4:$O$831,4,0) -> 1 | U73: =VLOOKUP($E73,'[1]Organisation Categories'!$G$4:$O$831,5,0) -> 0 | V73: =VLOOKUP($E73,'[1]Organisation Categories'!$G$4:$O$831,6,0) -> 0 | W73: =VLOOKUP($E73,'[1]Organisation Categories'!$G$4:$O$831,7,0) -> 0 | X73: =IFERROR(F73-O73,0) -> 0 | Y73: =IFERROR(G73-P73,0) -> 0 | Z73: =IFERROR(H73-Q73,0) -> 0 | AA73: =IFERROR(I73-R73,0) -> 0 | AB73: =IFERROR(J73-S73,0) -> 0 | AC73: =IFERROR(K73-T73,0) -> 0 | AD73: =IFERROR(L73-U73,0) -> 0 | AE73: =IFERROR(M73-V73,0) -> 0 | AF73: =IFERROR(N73-W73,0) -> 0
A74: QHM | B74: RVW | C74: NORTH TEES AND HARTLEPOOL NHS FOUNDATION TRUST | D74: Community Nursing Services | E74: RVWCommunity Nursing Services | F74: 106 | G74: 0.9905660377 | H74: 0 | I74: 84 | J74: 21 | K74: 1 | L74: 0 | M74: 0 | N74: 0 | O74: =VLOOKUP($E74,'[1]Organisation Categories'!$G$4:$O$831,8,0) -> 106 | P74: 0.9905660377 | Q74: 0 | R74: =VLOOKUP($E74,'[1]Organisation Categories'!$G$4:$O$831,2,0) -> 84 | S74: =VLOOKUP($E74,'[1]Organisation Categories'!$G$4:$O$831,3,0) -> 21 | T74: =VLOOKUP($E74,'[1]Organisation Categories'!$G$4:$O$831,4,0) -> 1 | U74: =VLOOKUP($E74,'[1]Organisation Categories'!$G$4:$O$831,5,0) -> 0 | V74: =VLOOKUP($E74,'[1]Organisation Categories'!$G$4:$O$831,6,0) -> 0 | W74: =VLOOKUP($E74,'[1]Organisation Categories'!$G$4:$O$831,7,0) -> 0 | X74: 0 | Y74: 0 | Z74: 0 | AA74: 0 | AB74: 0 | AC74: 0 | AD74: 0 | AE74: 0 | AF74: 0
A75: QHM | B75: RVW | C75: NORTH TEES AND HARTLEPOOL NHS FOUNDATION TRUST | D75: Rehabilitation & Therapy Services | E75: RVWRehabilitation & Therapy Services | F75: 45 | G75: 0.9777777778 | H75: 0 | I75: 36 | J75: 8 | K75: 1 | L75: 0 | M75: 0 | N75: 0 | O75: =VLOOKUP($E75,'[1]Organisation Categories'!$G$4:$O$831,8,0) -> 45 | P75: 0.9777777778 | Q75: 0 | R75: =VLOOKUP($E75,'[1]Organisation Categories'!$G$4:$O$831,2,0) -> 36 | S75: =VLOOKUP($E75,'[1]Organisation Categories'!$G$4:$O$831,3,0) -> 8 | T75: =VLOOKUP($E75,'[1]Organisation Categories'!$G$4:$O$831,4,0) -> 1 | U75: =VLOOKUP($E75,'[1]Organisation Categories'!$G$4:$O$831,5,0) -> 0 | V75: =VLOOKUP($E75,'[1]Organisation Categories'!$G$4:$O$831,6,0) -> 0 | W75: =VLOOKUP($E75,'[1]Organisation Categories'!$G$4:$O$831,7,0) -> 0 | X75: 0 | Y75: 0 | Z75: 0 | AA75: 0 | AB75: 0 | AC75: 0 | AD75: 0 | AE75: 0 | AF75: 0
A76: QHM | B76: RVW | C76: NORTH TEES AND HARTLEPOOL NHS FOUNDATION TRUST | D76: Specialist Services | E76: RVWSpecialist Services | F76: 53 | G76: 0.9622641509 | H76: 0 | I76: 46 | J76: 5 | K76: 2 | L76: 0 | M76: 0 | N76: 0 | O76: =VLOOKUP($E76,'[1]Organisation Categories'!$G$4:$O$831,8,0) -> 53 | P76: 0.9622641509 | Q76: 0 | R76: =VLOOKUP($E76,'[1]Organisation Categories'!$G$4:$O$831,2,0) -> 46 | S76: =VLOOKUP($E76,'[1]Organisation Categories'!$G$4:$O$831,3,0) -> 5 | T76: =VLOOKUP($E76,'[1]Organisation Categories'!$G$4:$O$831,4,0) -> 2 | U76: =VLOOKUP($E76,'[1]Organisation Categories'!$G$4:$O$831,5,0) -> 0 | V76: =VLOOKUP($E76,'[1]Organisation Categories'!$G$4:$O$831,6,0) -> 0 | W76: =VLOOKUP($E76,'[1]Organisation Categories'!$G$4:$O$831,7,0) -> 0 | X76: 0 | Y76: 0 | Z76: 0 | AA76: 0 | AB76: 0 | AC76: 0 | AD76: 0 | AE76: 0 | AF76: 0
A77: QHM | B77: RTF | C77: NORTHUMBRIA HEALTHCARE NHS FOUNDATION TRUST | D77: Community Nursing Services | E77: RTFCommunity Nursing Services | F77: 404 | G77: 0.9504950495 | H77: 0.02722772277 | I77: 336 | J77: 48 | K77: 6 | L77: 4 | M77: 7 | N77: 3 | O77: =VLOOKUP($E77,'[1]Organisation Categories'!$G$4:$O$831,8,0) -> 404 | P77: 0.9504950495 | Q77: 0.02722772277 | R77: =VLOOKUP($E77,'[1]Organisation Categories'!$G$4:$O$831,2,0) -> 336 | S77: =VLOOKUP($E77,'[1]Organisation Categories'!$G$4:$O$831,3,0) -> 48 | T77: =VLOOKUP($E77,'[1]Organisation Categories'!$G$4:$O$831,4,0) -> 6 | U77: =VLOOKUP($E77,'[1]Organisation Categories'!$G$4:$O$831,5,0) -> 4 | V77: =VLOOKUP($E77,'[1]Organisation Categories'!$G$4:$O$831,6,0) -> 7 | W77: =VLOOKUP($E77,'[1]Organisation Categories'!$G$4:$O$831,7,0) -> 3 | X77: 0 | Y77: 0 | Z77: 0 | AA77: 0 | AB77: 0 | AC77: 0 | AD77: 0 | AE77: 0 | AF77: 0
A78: QHM | B78: RTF | C78: NORTHUMBRIA HEALTHCARE NHS FOUNDATION TRUST | D78: Rehabilitation & Therapy Services | E78: RTFRehabilitation & Therapy Services | F78: 376 | G78: 0.9414893617 | H78: 0.02393617021 | I78: 309 | J78: 45 | K78: 10 | L78: 4 | M78: 5 | N78: 3 | O78: =VLOOKUP($E78,'[1]Organisation Categories'!$G$4:$O$831,8,0) -> 376 | P78: 0.9414893617 | Q78: 0.02393617021 | R78: =VLOOKUP($E78,'[1]Organisation Categories'!$G$4:$O$831,2,0) -> 309 | S78: =VLOOKUP($E78,'[1]Organisation Categories'!$G$4:$O$831,3,0) -> 45 | T78: =VLOOKUP($E78,'[1]Organisation Categories'!$G$4:$O$831,4,0) -> 10 | U78: =VLOOKUP($E78,'[1]Organisation Categories'!$G$4:$O$831,5,0) -> 4 | V78: =VLOOKUP($E78,'[1]Organisation Categories'!$G$4:$O$831,6,0) -> 5 | W78: =VLOOKUP($E78,'[1]Organisation Categories'!$G$4:$O$831,7,0) -> 3 | X78: 0 | Y78: 0 | Z78: 0 | AA78: 0 | AB78: 0 | AC78: 0 | AD78: 0 | AE78: 0 | AF78: 0
A79: QHM | B79: RTF | C79: NORTHUMBRIA HEALTHCARE NHS FOUNDATION TRUST | D79: Specialist Services | E79: RTFSpecialist Services | F79: 199 | G79: 0.9547738693 | H79: 0.03015075377 | I79: 169 | J79: 21 | K79: 3 | L79: 5 | M79: 1 | N79: 0 | O79: =VLOOKUP($E79,'[1]Organisation Categories'!$G$4:$O$831,8,0) -> 199 | P79: 0.9547738693 | Q79: 0.03015075377 | R79: =VLOOKUP($E79,'[1]Organisation Categories'!$G$4:$O$831,2,0) -> 169 | S79: =VLOOKUP($E79,'[1]Organisation Categories'!$G$4:$O$831,3,0) -> 21 | T79: =VLOOKUP($E79,'[1]Organisation Categories'!$G$4:$O$831,4,0) -> 3 | U79: =VLOOKUP($E79,'[1]Organisation Categories'!$G$4:$O$831,5,0) -> 5 | V79: =VLOOKUP($E79,'[1]Organisation Categories'!$G$4:$O$831,6,0) -> 1 | W79: =VLOOKUP($E79,'[1]Organisation Categories'!$G$4:$O$831,7,0) -> 0 | X79: 0 | Y79: 0 | Z79: 0 | AA79: 0 | AB79: 0 | AC79: 0 | AD79: 0 | AE79: 0 | AF79: 0
A80: QHM | B80: RTR | C80: SOUTH TEES HOSPITALS NHS FOUNDATION TRUST | D80: Children & Family Services | E80: RTRChildren & Family Services | F80: 2 | G80: * | H80: * | I80: * | J80: * | K80: * | L80: * | M80: * | N80: * | O80: =VLOOKUP($E80,'[1]Organisation Categories'!$G$4:$O$831,8,0) -> 2 | P80: 1 | Q80: 0 | R80: =VLOOKUP($E80,'[1]Organisation Categories'!$G$4:$O$831,2,0) -> 2 | S80: =VLOOKUP($E80,'[1]Organisation Categories'!$G$4:$O$831,3,0) -> 0 | T80: =VLOOKUP($E80,'[1]Organisation Categories'!$G$4:$O$831,4,0) -> 0 | U80: =VLOOKUP($E80,'[1]Organisation Categories'!$G$4:$O$831,5,0) -> 0 | V80: =VLOOKUP($E80,'[1]Organisation Categories'!$G$4:$O$831,6,0) -> 0 | W80: =VLOOKUP($E80,'[1]Organisation Categories'!$G$4:$O$831,7,0) -> 0 | X80: 0 | Y80: 0 | Z80: 0 | AA80: 0 | AB80: 0 | AC80: 0 | AD80: 0 | AE80: 0 | AF80: 0
A81: QHM | B81: RTR | C81: SOUTH TEES HOSPITALS NHS FOUNDATION TRUST | D81: Community Inpatient Services | E81: RTRCommunity Inpatient Services | F81: 68 | G81: 0.9852941176 | H81: 0 | I81: 51 | J81: 16 | K81: 1 | L81: 0 | M81: 0 | N81: 0 | O81: =VLOOKUP($E81,'[1]Organisation Categories'!$G$4:$O$831,8,0) -> 68 | P81: 0.9852941176 | Q81: 0 | R81: =VLOOKUP($E81,'[1]Organisation Categories'!$G$4:$O$831,2,0) -> 51 | S81: =VLOOKUP($E81,'[1]Organisation Categories'!$G$4:$O$831,3,0) -> 16 | T81: =VLOOKUP($E81,'[1]Organisation Categories'!$G$4:$O$831,4,0) -> 1 | U81: =VLOOKUP($E81,'[1]Organisation Categories'!$G$4:$O$831,5,0) -> 0 | V81: =VLOOKUP($E81,'[1]Organisation Categories'!$G$4:$O$831,6,0) -> 0 | W81: =VLOOKUP($E81,'[1]Organisation Categories'!$G$4:$O$831,7,0) -> 0 | X81: 0 | Y81: 0 | Z81: 0 | AA81: 0 | AB81: 0 | AC81: 0 | AD81: 0 | AE81: 0 | AF81: 0
A82: QHM | B82: RTR | C82: SOUTH TEES HOSPITALS NHS FOUNDATION TRUST | D82: Community Nursing Services | E82: RTRCommunity Nursing Services | F82: 244 | G82: 1 | H82: 0 | I82: 227 | J82: 17 | K82: 0 | L82: 0 | M82: 0 | N82: 0 | O82: =VLOOKUP($E82,'[1]Organisation Categories'!$G$4:$O$831,8,0) -> 244 | P82: 1 | Q82: 0 | R82: =VLOOKUP($E82,'[1]Organisation Categories'!$G$4:$O$831,2,0) -> 227 | S82: =VLOOKUP($E82,'[1]Organisation Categories'!$G$4:$O$831,3,0) -> 17 | T82: =VLOOKUP($E82,'[1]Organisation Categories'!$G$4:$O$831,4,0) -> 0 | U82: =VLOOKUP($E82,'[1]Organisation Categories'!$G$4:$O$831,5,0) -> 0 | V82: =VLOOKUP($E82,'[1]Organisation Categories'!$G$4:$O$831,6,0) -> 0 | W82: =VLOOKUP($E82,'[1]Organisation Categories'!$G$4:$O$831,7,0) -> 0 | X82: 0 | Y82: 0 | Z82: 0 | AA82: 0 | AB82: 0 | AC82: 0 | AD82: 0 | AE82: 0 | AF82: 0
